Workbook

Sheet INFO
B3: RAČUNALNIŠKI PROGRAM ZA ANALIZO AKUSTIKE NOTRANJEGA OKOLJA
B4: ARTIE
B5: "Analysis of Reverberation Time in Indoor Environments"
B7: Verzija 1.0p
B8: julij 2018
B10: Opis:
B11: Program ARTIE (Analysis of Reverberation Time in Indoor Environments) omogoča izračun odmevnega časa prostora v frekvenčnem območju od 125 Hz do 4000 Hz ter ga primerja s priporočenimi vrednostmi, glede na namembnost prostora. Poleg tega, program omogoča tudi račun lastnih resonančnih frekvenc prostora, ki so posebej pomembne ko obravnavamo nizkofrekvenčni odziv prostora. Z računalniškim programom ARTIE je omogočeno projektiranje akustike prostorov v procesu načrtovanja, kot tudi preračunavanje in analizo akustičnih prenov obstoječih prostorov. Program je namenjen za izobraževalne in raziskovalne namene.
B12: Uporaba programa:
B13: Program sestavlja več zavihkov (odmevni čas, uporabljeni materiali, lastne frekvence, koeficienti absorpcije in izpis), do katerih uporabnik lahko dostopa. Zavihki so med seboj povezani, uporabnik vhodne podatke vnaša v prvi zavihek (odmevni čas), v ostalih pa se podatke pregleda, dodaja, zažene dodaten izračun ali ureja. Vsi zavihki so zaščiteni in v programu so odklenjene le celice, ki so potrebne za vpis vhodnih podatkov. Te celice, v katere vnašamo vhodne podatke, so obarvane rumeno in opremljene z dodatnimi komentarji, za lažje razumevanje delovanja programa. V kolikor je vnos vhodnih podatkov pomanjkljiv, program uporabnika na to opozori z rdeče obarvanim tekstom ali celico. Zavihek odmevni čas je opremljen z gumbom, ki omogoča izpis rezultatov v obliki PDF.
B14: Natančnejša navodila za uporabo, ki vsebujejo osnovno teoretično podlago za razumevanje prostorske akustike ter navodila za uporabo in delo s programom ARTIE so na voljo pri avtorjih.
B15: Opozorilo / Obvestilo:
B16: Avtorja tega računalniškega programa pozivava vse uporabnike, da nas informirate in obvestite o predlogih, zadovoljstvu ali pripombah v zvezi z delom ali rezultati računalniškega programa ARTIE (elektronska naslova: nika.subic@fgg.uni-lj.si ali roman.kunic@fgg.uni-lj.si). S tem boste tudi vi pripomogli k izboljšanju učinkovitosti programa. Za vašo pripravljenost na sodelovanje se vnaprej zahvaljujeva, Nika Šubic in Roman Kunič

Sheet ODMEVNI CAS
A1: ARTIE - Analysis of Reverberaton Time of Indoor Environments (verzija 1.0p)
A2: RAČUN ODMEVNEGA ČASA
B5: VHODNI PODATKI: | Q5: REZULTATI:
B7: Namen | D7: Test | Q7: Izračunani odmevni čas v prostoru:
B9: Opis | D9: Test | R9: odmevni čas [s] | S9: frekvenčni pasovi [Hz] | Y9: Povprečen koeficient absorpcije, α͞skupaj
S10: 125 | T10: 250 | U10: 500 | V10: 1000 | W10: 2000 | X10: 4000
Q11: Osnova | R11: T60,S | S11: =racun!C39 -> 2.579954962 | T11: =racun!D39 -> 2.575075075 | U11: =racun!E39 -> 2.786483097 | V11: =racun!F39 -> 2.310158156 | W11: =racun!G39 -> 1.703080526 | X11: =racun!H39 -> 1.551414881 | Y11: =racun!B33 -> 0.05315756434
B12: Dimenzije prostora | R12: T60,Ey | S12: =racun!C40 -> 2.528294062 | T12: =racun!D40 -> 2.545145994 | U12: =racun!E40 -> 2.789787048 | V12: =racun!F40 -> 2.310054678 | W12: =racun!G40 -> 1.735672431 | X12: =racun!H40 -> 1.825173459
B13: (x) | C13: širina | D13: š = | E13: 7 | F13: m | Q13: Osnova + Ljudje | R13: T60,S | S13: =racun1!C39 -> 1.905737426 | T13: =racun1!D39 -> 1.642212057 | U13: =racun1!E39 -> 1.609771014 | V13: =racun1!F39 -> 1.426200034 | W13: =racun1!G39 -> 1.168955695 | X13: =racun1!H39 -> 1.095450998 | Y13: =racun1!B33 -> 0.0773380035
B14: (y) | C14: dolžina | D14: d = | E14: 10 | F14: m | I14: zasedenost volumna z opremo: | K14: 2 | L14: % | R14: T60,Ey | S14: =racun1!C40 -> 1.852961026 | T14: =racun1!D40 -> 1.596563153 | U14: =racun1!E40 -> 1.572956607 | V14: =racun1!F40 -> 1.391535175 | W14: =racun1!G40 -> 1.154927042 | X14: =racun1!H40 -> 1.196346128
B15: (z) | C15: višina | D15: v = | E15: 3 | F15: m | Q15: Osnova + Absorpcija | R15: T60,S | S15: =racun2!C39 -> 1.083776596 | T15: =racun2!D39 -> 1.049049065 | U15: =racun2!E39 -> 1.016878065 | V15: =racun2!F39 -> 1.00222809 | W15: =racun2!G39 -> 0.9006226989 | X15: =racun2!H39 -> 0.8288451781 | Y15: =racun2!B33 -> 0.1079541735
C16: volumen | D16: V' = | E16: =E13*E14*E15 -> 210 | F16: m3 | I16: končni volumen prostora | J16: V = | K16: =E16*(1-0.01*K14) -> 205.8 | L16: m3 | R16: T60,Ey | S16: =racun2!C40 -> 1.030060085 | T16: =racun2!D40 -> 0.99885391 | U16: =racun2!E40 -> 0.970209631 | V16: =racun2!F40 -> 0.9589504129 | W16: =racun2!G40 -> 0.8719542079 | X16: =racun2!H40 -> 0.8627917499
Q17: Osnova + Ljudje + Absorpcija | R17: T60,S | S17: =racun3!C39 -> 0.9435502381 | T17: =racun3!D39 -> 0.8519042608 | U17: =racun3!E39 -> 0.802740153 | V17: =racun3!F39 -> 0.7898457539 | W17: =racun3!G39 -> 0.725354627 | X17: =racun3!H39 -> 0.6780621524 | Y17: =racun3!B33 -> 0.125796211
B18: temperatura prostora: | D18: T = | E18: 20 | F18: °C | I18: relativna vlažnost zraka: | J18: RH = | K18: 50 | L18: % | R18: T60,Ey | S18: =racun3!C40 -> 0.892672488 | T18: =racun3!D40 -> 0.8030664328 | U18: =racun3!E40 -> 0.755904566 | V18: =racun3!F40 -> 0.7451858861 | W18: =racun3!G40 -> 0.69050014 | X18: =racun3!H40 -> 0.6849373533
B20: št. ljudi v prostoru: | D20: N = | E20: 20 | I20: namembnost prostora: | J20: govor/predavanja | Q20: Primerjava izračunanega z optimalnim odmevnim časom:
Q22: optimalen odmevni čas: | S22: Topt = | T22: =racun!X19 -> 0.7159747871 | U22: s | V22: po standardu DIN 18041 Acoustic guality in rooms - Specifications and instructions for the room acoustic design
B23: površine v prostoru: | Q23: namembnost prostora: | T23: =J20 -> govor/predavanja
B25: vrsta površine | E25: material | M25: Površina
B26: 1. | C26: tla | E26: lesena/linolej/gumjasta tla | M26: 70 | N26: m2
B27: 2. | C27: stene/strop | E27: opečni zid, barvan | M27: 102 | N27: m2
B28: 3. | C28: stavbno pohištvo | E28: masivna lesena vrata | M28: 4 | N28: m2
B29: 4. | C29: stavbno pohištvo | E29: maska ventilacijskega jaška | M29: 1.5 | N29: m2
B30: 5. | C30: oprema | E30: leseni ali kovinski stoli (št. stolov) | M30: 4 | N30: m2
B31: 6. | C31: stene/strop | E31: gladek, nebarvan beton | M31: 70 | N31: m2
B32: 7. | C32: oprema | E32: zavese -ravno obešanje | M32: 4 | N32: m2
B33: 8. | C33: stavbno pohištvo | E33: običajno steklo za okna | M33: 10 | N33: m2
B34: 9. | N34: m2
B35: 10. | N35: m2
B36: 11. | N36: m2
B37: 12. | N37: m2
B38: 13. | N38: m2
B39: 14. | N39: m2
B40: 15. | N40: m2
B41: 16. | N41: m2
B43: Dodani absorpcijski elementi
B45: vrsta površine | E45: material | M45: Površina
B46: 1. | C46: absorpcijski material | E46: mikroperforirani absorberji - 40cm votilne | M46: 15 | N46: m2
B47: 2. | C47: absorpcijski material | E47: mineralna volna 5 cm (70 kg/m³), 30 cm odmaknjena od stene | M47: 10 | N47: m2
B48: 3. | C48: lastni materiali | E48: material 1 | M48: 10 | N48: m2
B49: 4. | C49: absorpcijski material | E49: akustične plošče 12.7 mm | M49: 5 | N49: m2
B50: 5. | N50: m2
B51: 6. | N51: m2
B52: 7. | N52: m2
B53: 8. | N53: m2

Sheet UPORABLJENI MATERIALI
A2: ARTIE - Analysis of Reverberaton Time of Indoor Environments (verzija 1.0p)
B5: ABSORPCIJSKE LASTNOSTI MATERIALOV
B7: površine v prostoru: | S7: dodani absorpcijski materiali:
B9: material | D9: absorpcijski koeficient (α) | J9: površina | K9: ekvivalentna absorpcijska površina (A) | S9: material | U9: absorpcijski koeficient (α) | AA9: površina | AB9: ekvivalentna absorpcijska površina (A)
D10: frekvenčni pasovi [Hz] | J10: S | K10: frekvenčni pasovi [Hz] | U10: frekvenčni pasovi [Hz] | AA10: S | AB10: frekvenčni pasovi [Hz]
D11: 125 | E11: 250 | F11: 500 | G11: 1000 | H11: 2000 | I11: 4000 | J11: [m2] | K11: 125 | L11: 250 | M11: 500 | N11: 1000 | O11: 2000 | P11: 4000 | U11: 125 | V11: 250 | W11: 500 | X11: 1000 | Y11: 2000 | Z11: 4000 | AA11: [m2] | AB11: 125 | AC11: 250 | AD11: 500 | AE11: 1000 | AF11: 2000 | AG11: 4000
B12: 1. | C12: =IZPIS!E25 -> lesena/linolej/gumjasta tla | S12: 1. | T12: =IZPIS!E45 -> mikroperforirani absorberji - 40cm votilne
D13: =IF(racun3!C6=0," ",racun3!C6) -> 0.02 | E13: =IF(racun3!D6=0," ",racun3!D6) -> 0.04 | F13: =IF(racun3!E6=0," ",racun3!E6) -> 0.05 | G13: =IF(racun3!F6=0," ",racun3!F6) -> 0.05 | H13: =IF(racun3!G6=0," ",racun3!G6) -> 0.1 | I13: =IF(racun3!H6=0," ",racun3!H6) -> 0.05 | J13: =IF(racun3!J6=0," ",racun3!J6) -> 70 | K13: =IF(racun3!L6=0," ",racun3!L6) -> 1.4 | L13: =IF(racun3!M6=0," ",racun3!M6) -> 2.8 | M13: =IF(racun3!N6=0," ",racun3!N6) -> 3.5 | N13: =IF(racun3!O6=0," ",racun3!O6) -> 3.5 | O13: =IF(racun3!P6=0," ",racun3!P6) -> 7 | P13: =IF(racun3!Q6=0," ",racun3!Q6) -> 3.5 | U13: =IF(racun3!C22=0," ",racun3!C22) -> 0.64 | V13: =IF(racun3!D22=0," ",racun3!D22) -> 0.56 | W13: =IF(racun3!E22=0," ",racun3!E22) -> 0.41 | X13: =IF(racun3!F22=0," ",racun3!F22) -> 0.28 | Y13: =IF(racun3!G22=0," ",racun3!G22) -> 0.13 | Z13: =IF(racun3!H22=0," ",racun3!H22) -> 0.06 | AA13: =IF(racun3!J22=0," ",racun3!J22) -> 15 | AB13: =IF(racun3!L22=0," ",racun3!L22) -> 9.6 | AC13: =IF(racun3!M22=0," ",racun3!M22) -> 8.4 | AD13: =IF(racun3!N22=0," ",racun3!N22) -> 6.15 | AE13: =IF(racun3!O22=0," ",racun3!O22) -> 4.2 | AF13: =IF(racun3!P22=0," ",racun3!P22) -> 1.95 | AG13: =IF(racun3!Q22=0," ",racun3!Q22) -> 0.9
B14: 2. | C14: =IZPIS!E26 -> opečni zid, barvan | S14: 2. | T14: =IZPIS!E46 -> mineralna volna 5 cm (70 kg/m³), 30 cm odmaknjena od stene
D15: =IF(racun3!C7=0," ",racun3!C7) -> 0.05 | E15: =IF(racun3!D7=0," ",racun3!D7) -> 0.04 | F15: =IF(racun3!E7=0," ",racun3!E7) -> 0.02 | G15: =IF(racun3!F7=0," ",racun3!F7) -> 0.04 | H15: =IF(racun3!G7=0," ",racun3!G7) -> 0.05 | I15: =IF(racun3!H7=0," ",racun3!H7) -> 0.05 | J15: =IF(racun3!J7=0," ",racun3!J7) -> 102 | K15: =IF(racun3!L7=0," ",racun3!L7) -> 5.1 | L15: =IF(racun3!M7=0," ",racun3!M7) -> 4.08 | M15: =IF(racun3!N7=0," ",racun3!N7) -> 2.04 | N15: =IF(racun3!O7=0," ",racun3!O7) -> 4.08 | O15: =IF(racun3!P7=0," ",racun3!P7) -> 5.1 | P15: =IF(racun3!Q7=0," ",racun3!Q7) -> 5.1 | U15: =IF(racun3!C23=0," ",racun3!C23) -> 0.7 | V15: =IF(racun3!D23=0," ",racun3!D23) -> 0.45 | W15: =IF(racun3!E23=0," ",racun3!E23) -> 0.65 | X15: =IF(racun3!F23=0," ",racun3!F23) -> 0.6 | Y15: =IF(racun3!G23=0," ",racun3!G23) -> 0.75 | Z15: =IF(racun3!H23=0," ",racun3!H23) -> 0.65 | AA15: =IF(racun3!J23=0," ",racun3!J23) -> 10 | AB15: =IF(racun3!L23=0," ",racun3!L23) -> 7 | AC15: =IF(racun3!M23=0," ",racun3!M23) -> 4.5 | AD15: =IF(racun3!N23=0," ",racun3!N23) -> 6.5 | AE15: =IF(racun3!O23=0," ",racun3!O23) -> 6 | AF15: =IF(racun3!P23=0," ",racun3!P23) -> 7.5 | AG15: =IF(racun3!Q23=0," ",racun3!Q23) -> 6.5
B16: 3. | C16: =IZPIS!E27 -> masivna lesena vrata | S16: 3. | T16: =IZPIS!E47 -> material 1
D17: =IF(racun3!C8=0," ",racun3!C8) -> 0.14 | E17: =IF(racun3!D8=0," ",racun3!D8) -> 0.1 | F17: =IF(racun3!E8=0," ",racun3!E8) -> 0.06 | G17: =IF(racun3!F8=0," ",racun3!F8) -> 0.08 | H17: =IF(racun3!G8=0," ",racun3!G8) -> 0.1 | I17: =IF(racun3!H8=0," ",racun3!H8) -> 0.1 | J17: =IF(racun3!J8=0," ",racun3!J8) -> 4 | K17: =IF(racun3!L8=0," ",racun3!L8) -> 0.56 | L17: =IF(racun3!M8=0," ",racun3!M8) -> 0.4 | M17: =IF(racun3!N8=0," ",racun3!N8) -> 0.24 | N17: =IF(racun3!O8=0," ",racun3!O8) -> 0.32 | O17: =IF(racun3!P8=0," ",racun3!P8) -> 0.4 | P17: =IF(racun3!Q8=0," ",racun3!Q8) -> 0.4 | U17: =IF(racun3!C24=0," ",racun3!C24) -> 0.1 | V17: =IF(racun3!D24=0," ",racun3!D24) -> 0.5 | W17: =IF(racun3!E24=0," ",racun3!E24) -> 0.5 | X17: =IF(racun3!F24=0," ",racun3!F24) -> 0.5 | Y17: =IF(racun3!G24=0," ",racun3!G24) -> 0.5 | Z17: =IF(racun3!H24=0," ",racun3!H24) -> 0.9 | AA17: =IF(racun3!J24=0," ",racun3!J24) -> 10 | AB17: =IF(racun3!L24=0," ",racun3!L24) -> 1 | AC17: =IF(racun3!M24=0," ",racun3!M24) -> 5 | AD17: =IF(racun3!N24=0," ",racun3!N24) -> 5 | AE17: =IF(racun3!O24=0," ",racun3!O24) -> 5 | AF17: =IF(racun3!P24=0," ",racun3!P24) -> 5 | AG17: =IF(racun3!Q24=0," ",racun3!Q24) -> 9
B18: 4. | C18: =IZPIS!E28 -> maska ventilacijskega jaška | S18: 4. | T18: =IZPIS!E48 -> akustične plošče 12.7 mm
D19: =IF(racun3!C9=0," ",racun3!C9) -> 0.6 | E19: =IF(racun3!D9=0," ",racun3!D9) -> 0.6 | F19: =IF(racun3!E9=0," ",racun3!E9) -> 0.6 | G19: =IF(racun3!F9=0," ",racun3!F9) -> 0.6 | H19: =IF(racun3!G9=0," ",racun3!G9) -> 0.6 | I19: =IF(racun3!H9=0," ",racun3!H9) -> 0.6 | J19: =IF(racun3!J9=0," ",racun3!J9) -> 1.5 | K19: =IF(racun3!L9=0," ",racun3!L9) -> 0.9 | L19: =IF(racun3!M9=0," ",racun3!M9) -> 0.9 | M19: =IF(racun3!N9=0," ",racun3!N9) -> 0.9 | N19: =IF(racun3!O9=0," ",racun3!O9) -> 0.9 | O19: =IF(racun3!P9=0," ",racun3!P9) -> 0.9 | P19: =IF(racun3!Q9=0," ",racun3!Q9) -> 0.9 | U19: =IF(racun3!C25=0," ",racun3!C25) -> 0.07 | V19: =IF(racun3!D25=0," ",racun3!D25) -> 0.21 | W19: =IF(racun3!E25=0," ",racun3!E25) -> 0.66 | X19: =IF(racun3!F25=0," ",racun3!F25) -> 0.75 | Y19: =IF(racun3!G25=0," ",racun3!G25) -> 0.62 | Z19: =IF(racun3!H25=0," ",racun3!H25) -> 0.49 | AA19: =IF(racun3!J25=0," ",racun3!J25) -> 5 | AB19: =IF(racun3!L25=0," ",racun3!L25) -> 0.35 | AC19: =IF(racun3!M25=0," ",racun3!M25) -> 1.05 | AD19: =IF(racun3!N25=0," ",racun3!N25) -> 3.3 | AE19: =IF(racun3!O25=0," ",racun3!O25) -> 3.75 | AF19: =IF(racun3!P25=0," ",racun3!P25) -> 3.1 | AG19: =IF(racun3!Q25=0," ",racun3!Q25) -> 2.45
B20: 5. | C20: =IZPIS!E29 -> leseni ali kovinski stoli (št. stolov) | S20: 5. | T20: =IZPIS!E49 -> 
D21: =IF(racun3!C10=0," ",racun3!C10) -> 0.15 | E21: =IF(racun3!D10=0," ",racun3!D10) -> 0.19 | F21: =IF(racun3!E10=0," ",racun3!E10) -> 0.22 | G21: =IF(racun3!F10=0," ",racun3!F10) -> 0.39 | H21: =IF(racun3!G10=0," ",racun3!G10) -> 0.38 | I21: =IF(racun3!H10=0," ",racun3!H10) -> 0.3 | J21: =IF(racun3!J10=0," ",racun3!J10) -> 4 | K21: =IF(racun3!L10=0," ",racun3!L10) -> 0.6 | L21: =IF(racun3!M10=0," ",racun3!M10) -> 0.76 | M21: =IF(racun3!N10=0," ",racun3!N10) -> 0.88 | N21: =IF(racun3!O10=0," ",racun3!O10) -> 1.56 | O21: =IF(racun3!P10=0," ",racun3!P10) -> 1.52 | P21: =IF(racun3!Q10=0," ",racun3!Q10) -> 1.2 | U21: =IF(racun3!C26=0," ",racun3!C26) ->  | V21: =IF(racun3!D26=0," ",racun3!D26) ->  | W21: =IF(racun3!E26=0," ",racun3!E26) ->  | X21: =IF(racun3!F26=0," ",racun3!F26) ->  | Y21: =IF(racun3!G26=0," ",racun3!G26) ->  | Z21: =IF(racun3!H26=0," ",racun3!H26) ->  | AA21: =IF(racun3!J26=0," ",racun3!J26) ->  | AB21: =IF(racun3!L26=0," ",racun3!L26) ->  | AC21: =IF(racun3!M26=0," ",racun3!M26) ->  | AD21: =IF(racun3!N26=0," ",racun3!N26) ->  | AE21: =IF(racun3!O26=0," ",racun3!O26) ->  | AF21: =IF(racun3!P26=0," ",racun3!P26) ->  | AG21: =IF(racun3!Q26=0," ",racun3!Q26) -> 
B22: 6. | C22: =IZPIS!E30 -> gladek, nebarvan beton | S22: 6. | T22: =IZPIS!E50 -> 
D23: =IF(racun3!C11=0," ",racun3!C11) -> 0.01 | E23: =IF(racun3!D11=0," ",racun3!D11) -> 0.01 | F23: =IF(racun3!E11=0," ",racun3!E11) -> 0.02 | G23: =IF(racun3!F11=0," ",racun3!F11) -> 0.02 | H23: =IF(racun3!G11=0," ",racun3!G11) -> 0.02 | I23: =IF(racun3!H11=0," ",racun3!H11) -> 0.05 | J23: =IF(racun3!J11=0," ",racun3!J11) -> 70 | K23: =IF(racun3!L11=0," ",racun3!L11) -> 0.7 | L23: =IF(racun3!M11=0," ",racun3!M11) -> 0.7 | M23: =IF(racun3!N11=0," ",racun3!N11) -> 1.4 | N23: =IF(racun3!O11=0," ",racun3!O11) -> 1.4 | O23: =IF(racun3!P11=0," ",racun3!P11) -> 1.4 | P23: =IF(racun3!Q11=0," ",racun3!Q11) -> 3.5 | U23: =IF(racun3!C27=0," ",racun3!C27) ->  | V23: =IF(racun3!D27=0," ",racun3!D27) ->  | W23: =IF(racun3!E27=0," ",racun3!E27) ->  | X23: =IF(racun3!F27=0," ",racun3!F27) ->  | Y23: =IF(racun3!G27=0," ",racun3!G27) ->  | Z23: =IF(racun3!H27=0," ",racun3!H27) ->  | AA23: =IF(racun3!J27=0," ",racun3!J27) ->  | AB23: =IF(racun3!L27=0," ",racun3!L27) ->  | AC23: =IF(racun3!M27=0," ",racun3!M27) ->  | AD23: =IF(racun3!N27=0," ",racun3!N27) ->  | AE23: =IF(racun3!O27=0," ",racun3!O27) ->  | AF23: =IF(racun3!P27=0," ",racun3!P27) ->  | AG23: =IF(racun3!Q27=0," ",racun3!Q27) -> 
B24: 7. | C24: =IZPIS!E31 -> zavese -ravno obešanje | S24: 7. | T24: =IZPIS!E51 -> 
D25: =IF(racun3!C12=0," ",racun3!C12) -> 0.04 | E25: =IF(racun3!D12=0," ",racun3!D12) -> 0.16 | F25: =IF(racun3!E12=0," ",racun3!E12) -> 0.19 | G25: =IF(racun3!F12=0," ",racun3!F12) -> 0.17 | H25: =IF(racun3!G12=0," ",racun3!G12) -> 0.2 | I25: =IF(racun3!H12=0," ",racun3!H12) -> 0.25 | J25: =IF(racun3!J12=0," ",racun3!J12) -> 4 | K25: =IF(racun3!L12=0," ",racun3!L12) -> 0.16 | L25: =IF(racun3!M12=0," ",racun3!M12) -> 0.64 | M25: =IF(racun3!N12=0," ",racun3!N12) -> 0.76 | N25: =IF(racun3!O12=0," ",racun3!O12) -> 0.68 | O25: =IF(racun3!P12=0," ",racun3!P12) -> 0.8 | P25: =IF(racun3!Q12=0," ",racun3!Q12) -> 1 | U25: =IF(racun3!C28=0," ",racun3!C28) ->  | V25: =IF(racun3!D28=0," ",racun3!D28) ->  | W25: =IF(racun3!E28=0," ",racun3!E28) ->  | X25: =IF(racun3!F28=0," ",racun3!F28) ->  | Y25: =IF(racun3!G28=0," ",racun3!G28) ->  | Z25: =IF(racun3!H28=0," ",racun3!H28) ->  | AA25: =IF(racun3!J28=0," ",racun3!J28) ->  | AB25: =IF(racun3!L28=0," ",racun3!L28) ->  | AC25: =IF(racun3!M28=0," ",racun3!M28) ->  | AD25: =IF(racun3!N28=0," ",racun3!N28) ->  | AE25: =IF(racun3!O28=0," ",racun3!O28) ->  | AF25: =IF(racun3!P28=0," ",racun3!P28) ->  | AG25: =IF(racun3!Q28=0," ",racun3!Q28) -> 
B26: 8. | C26: =IZPIS!E32 -> običajno steklo za okna | S26: 8. | T26: =IZPIS!E52 -> 
D27: =IF(racun3!C13=0," ",racun3!C13) -> 0.35 | E27: =IF(racun3!D13=0," ",racun3!D13) -> 0.25 | F27: =IF(racun3!E13=0," ",racun3!E13) -> 0.18 | G27: =IF(racun3!F13=0," ",racun3!F13) -> 0.12 | H27: =IF(racun3!G13=0," ",racun3!G13) -> 0.07 | I27: =IF(racun3!H13=0," ",racun3!H13) -> 0.04 | J27: =IF(racun3!J13=0," ",racun3!J13) -> 10 | K27: =IF(racun3!L13=0," ",racun3!L13) -> 3.5 | L27: =IF(racun3!M13=0," ",racun3!M13) -> 2.5 | M27: =IF(racun3!N13=0," ",racun3!N13) -> 1.8 | N27: =IF(racun3!O13=0," ",racun3!O13) -> 1.2 | O27: =IF(racun3!P13=0," ",racun3!P13) -> 0.7 | P27: =IF(racun3!Q13=0," ",racun3!Q13) -> 0.4 | U27: =IF(racun3!C29=0," ",racun3!C29) ->  | V27: =IF(racun3!D29=0," ",racun3!D29) ->  | W27: =IF(racun3!E29=0," ",racun3!E29) ->  | X27: =IF(racun3!F29=0," ",racun3!F29) ->  | Y27: =IF(racun3!G29=0," ",racun3!G29) ->  | Z27: =IF(racun3!H29=0," ",racun3!H29) ->  | AA27: =IF(racun3!J29=0," ",racun3!J29) ->  | AB27: =IF(racun3!L29=0," ",racun3!L29) ->  | AC27: =IF(racun3!M29=0," ",racun3!M29) ->  | AD27: =IF(racun3!N29=0," ",racun3!N29) ->  | AE27: =IF(racun3!O29=0," ",racun3!O29) ->  | AF27: =IF(racun3!P29=0," ",racun3!P29) ->  | AG27: =IF(racun3!Q29=0," ",racun3!Q29) -> 
B28: 9. | C28: =IZPIS!E33 ->  | U28: Povprečen α: | AA28: Skupna S: | AB28: Skupna A:
D29: =IF(racun3!C14=0," ",racun3!C14) ->  | E29: =IF(racun3!D14=0," ",racun3!D14) ->  | F29: =IF(racun3!E14=0," ",racun3!E14) ->  | G29: =IF(racun3!F14=0," ",racun3!F14) ->  | H29: =IF(racun3!G14=0," ",racun3!G14) ->  | I29: =IF(racun3!H14=0," ",racun3!H14) ->  | J29: =IF(racun3!J14=0," ",racun3!J14) ->  | K29: =IF(racun3!L14=0," ",racun3!L14) ->  | L29: =IF(racun3!M14=0," ",racun3!M14) ->  | M29: =IF(racun3!N14=0," ",racun3!N14) ->  | N29: =IF(racun3!O14=0," ",racun3!O14) ->  | O29: =IF(racun3!P14=0," ",racun3!P14) ->  | P29: =IF(racun3!Q14=0," ",racun3!Q14) ->  | U29: =IF(racun2!C34=0," ",racun2!C34) -> 0.18875 | V29: =IF(racun2!D34=0," ",racun2!D34) -> 0.215 | W29: =IF(racun2!E34=0," ",racun2!E34) -> 0.2775 | X29: =IF(racun2!F34=0," ",racun2!F34) -> 0.26625 | Y29: =IF(racun2!G34=0," ",racun2!G34) -> 0.25 | Z29: =IF(racun2!H34=0," ",racun2!H34) -> 0.2625 | AA29: =IF(racun2!J34=0," ",racun2!J34) -> 40 | AB29: =IF(racun2!L34=0," ",racun2!L34) -> 17.95 | AC29: =IF(racun2!M34=0," ",racun2!M34) -> 18.95 | AD29: =IF(racun2!N34=0," ",racun2!N34) -> 20.95 | AE29: =IF(racun2!O34=0," ",racun2!O34) -> 18.95 | AF29: =IF(racun2!P34=0," ",racun2!P34) -> 17.55 | AG29: =IF(racun2!Q34=0," ",racun2!Q34) -> 18.85
B30: 10. | C30: =IZPIS!E34 ->  | U30: U
D31: =IF(racun3!C15=0," ",racun3!C15) ->  | E31: =IF(racun3!D15=0," ",racun3!D15) ->  | F31: =IF(racun3!E15=0," ",racun3!E15) ->  | G31: =IF(racun3!F15=0," ",racun3!F15) ->  | H31: =IF(racun3!G15=0," ",racun3!G15) ->  | I31: =IF(racun3!H15=0," ",racun3!H15) ->  | J31: =IF(racun3!J15=0," ",racun3!J15) ->  | K31: =IF(racun3!L15=0," ",racun3!L15) ->  | L31: =IF(racun3!M15=0," ",racun3!M15) ->  | M31: =IF(racun3!N15=0," ",racun3!N15) ->  | N31: =IF(racun3!O15=0," ",racun3!O15) ->  | O31: =IF(racun3!P15=0," ",racun3!P15) ->  | P31: =IF(racun3!Q15=0," ",racun3!Q15) -> 
B32: 11. | C32: =IZPIS!E35 ->  | S32: Skupne vrednosti (osnovne površine, dodani absorpcijski materiali in ljudje):
D33: =IF(racun3!C16=0," ",racun3!C16) ->  | E33: =IF(racun3!D16=0," ",racun3!D16) ->  | F33: =IF(racun3!E16=0," ",racun3!E16) ->  | G33: =IF(racun3!F16=0," ",racun3!F16) ->  | H33: =IF(racun3!G16=0," ",racun3!G16) ->  | I33: =IF(racun3!H16=0," ",racun3!H16) ->  | J33: =IF(racun3!J16=0," ",racun3!J16) ->  | K33: =IF(racun3!L16=0," ",racun3!L16) ->  | L33: =IF(racun3!M16=0," ",racun3!M16) ->  | M33: =IF(racun3!N16=0," ",racun3!N16) ->  | N33: =IF(racun3!O16=0," ",racun3!O16) ->  | O33: =IF(racun3!P16=0," ",racun3!P16) ->  | P33: =IF(racun3!Q16=0," ",racun3!Q16) -> 
B34: 12. | C34: =IZPIS!E36 ->  | U34: absorpcijski koeficient (α) | AA34: površina | AB34: ekvivalentna absorpcijska površina (A)
D35: =IF(racun3!C17=0," ",racun3!C17) ->  | E35: =IF(racun3!D17=0," ",racun3!D17) ->  | F35: =IF(racun3!E17=0," ",racun3!E17) ->  | G35: =IF(racun3!F17=0," ",racun3!F17) ->  | H35: =IF(racun3!G17=0," ",racun3!G17) ->  | I35: =IF(racun3!H17=0," ",racun3!H17) ->  | J35: =IF(racun3!J17=0," ",racun3!J17) ->  | K35: =IF(racun3!L17=0," ",racun3!L17) ->  | L35: =IF(racun3!M17=0," ",racun3!M17) ->  | M35: =IF(racun3!N17=0," ",racun3!N17) ->  | N35: =IF(racun3!O17=0," ",racun3!O17) ->  | O35: =IF(racun3!P17=0," ",racun3!P17) ->  | P35: =IF(racun3!Q17=0," ",racun3!Q17) ->  | U35: frekvenčni pasovi [Hz] | AA35: S | AB35: frekvenčni pasovi [Hz]
B36: 13. | C36: =IZPIS!E37 ->  | U36: 125 | V36: 250 | W36: 500 | X36: 1000 | Y36: 2000 | Z36: 4000 | AA36: [m2] | AB36: 125 | AC36: 250 | AD36: 500 | AE36: 1000 | AF36: 2000 | AG36: 4000
D37: =IF(racun3!C18=0," ",racun3!C18) ->  | E37: =IF(racun3!D18=0," ",racun3!D18) ->  | F37: =IF(racun3!E18=0," ",racun3!E18) ->  | G37: =IF(racun3!F18=0," ",racun3!F18) ->  | H37: =IF(racun3!G18=0," ",racun3!G18) ->  | I37: =IF(racun3!H18=0," ",racun3!H18) ->  | J37: =IF(racun3!J18=0," ",racun3!J18) ->  | K37: =IF(racun3!L18=0," ",racun3!L18) ->  | L37: =IF(racun3!M18=0," ",racun3!M18) ->  | M37: =IF(racun3!N18=0," ",racun3!N18) ->  | N37: =IF(racun3!O18=0," ",racun3!O18) ->  | O37: =IF(racun3!P18=0," ",racun3!P18) ->  | P37: =IF(racun3!Q18=0," ",racun3!Q18) ->  | U37: Povprečen α: | AA37: Skupna S: | AB37: Skupna A:
B38: 14. | C38: =IZPIS!E38 ->  | U38: =IF(racun3!C32=0," ",racun3!C32) -> 0.1089708141 | V38: =IF(racun3!D32=0," ",racun3!D32) -> 0.1202150538 | W38: =IF(racun3!E32=0," ",racun3!E32) -> 0.1267895545 | X38: =IF(racun3!F32=0," ",racun3!F32) -> 0.1277726575 | Y38: =IF(racun3!G32=0," ",racun3!G32) -> 0.1363133641 | Z38: =IF(racun3!H32=0," ",racun3!H32) -> 0.1347158218 | AA38: =IF(racun3!J31=0," ",racun3!J31) -> 325.5 | AB38: =IF(racun3!L31=0," ",racun3!L31) -> 35.47 | AC38: =IF(racun3!M31=0," ",racun3!M31) -> 39.13 | AD38: =IF(racun3!N31=0," ",racun3!N31) -> 41.27 | AE38: =IF(racun3!O31=0," ",racun3!O31) -> 41.59 | AF38: =IF(racun3!P31=0," ",racun3!P31) -> 44.37 | AG38: =IF(racun3!Q31=0," ",racun3!Q31) -> 43.85
D39: =IF(racun3!C19=0," ",racun3!C19) ->  | E39: =IF(racun3!D19=0," ",racun3!D19) ->  | F39: =IF(racun3!E19=0," ",racun3!E19) ->  | G39: =IF(racun3!F19=0," ",racun3!F19) ->  | H39: =IF(racun3!G19=0," ",racun3!G19) ->  | I39: =IF(racun3!H19=0," ",racun3!H19) ->  | J39: =IF(racun3!J19=0," ",racun3!J19) ->  | K39: =IF(racun3!L19=0," ",racun3!L19) ->  | L39: =IF(racun3!M19=0," ",racun3!M19) ->  | M39: =IF(racun3!N19=0," ",racun3!N19) ->  | N39: =IF(racun3!O19=0," ",racun3!O19) ->  | O39: =IF(racun3!P19=0," ",racun3!P19) ->  | P39: =IF(racun3!Q19=0," ",racun3!Q19) -> 
B40: 15. | C40: =IZPIS!E39 -> 
D41: =IF(racun3!C20=0," ",racun3!C20) ->  | E41: =IF(racun3!D20=0," ",racun3!D20) ->  | F41: =IF(racun3!E20=0," ",racun3!E20) ->  | G41: =IF(racun3!F20=0," ",racun3!F20) ->  | H41: =IF(racun3!G20=0," ",racun3!G20) ->  | I41: =IF(racun3!H20=0," ",racun3!H20) ->  | J41: =IF(racun3!J20=0," ",racun3!J20) ->  | K41: =IF(racun3!L20=0," ",racun3!L20) ->  | L41: =IF(racun3!M20=0," ",racun3!M20) ->  | M41: =IF(racun3!N20=0," ",racun3!N20) ->  | N41: =IF(racun3!O20=0," ",racun3!O20) ->  | O41: =IF(racun3!P20=0," ",racun3!P20) ->  | P41: =IF(racun3!Q20=0," ",racun3!Q20) -> 
B42: 16. | C42: =IZPIS!E40 -> 
D43: =IF(racun3!C21=0," ",racun3!C21) ->  | E43: =IF(racun3!D21=0," ",racun3!D21) ->  | F43: =IF(racun3!E21=0," ",racun3!E21) ->  | G43: =IF(racun3!F21=0," ",racun3!F21) ->  | H43: =IF(racun3!G21=0," ",racun3!G21) ->  | I43: =IF(racun3!H21=0," ",racun3!H21) ->  | J43: =IF(racun3!J21=0," ",racun3!J21) ->  | K43: =IF(racun3!L21=0," ",racun3!L21) ->  | L43: =IF(racun3!M21=0," ",racun3!M21) ->  | M43: =IF(racun3!N21=0," ",racun3!N21) ->  | N43: =IF(racun3!O21=0," ",racun3!O21) ->  | O43: =IF(racun3!P21=0," ",racun3!P21) ->  | P43: =IF(racun3!Q21=0," ",racun3!Q21) -> 
D44: Povprečen α: | J44: Skupna S: | K44: Skupna A:
D45: =IF(racun!C32=0," ",racun!C32) -> 0.04866290019 | E45: =IF(racun!D32=0," ",racun!D32) -> 0.04813559322 | F45: =IF(racun!E32=0," ",racun!E32) -> 0.04338983051 | G45: =IF(racun!F32=0," ",racun!F32) -> 0.0513747646 | H45: =IF(racun!G32=0," ",racun!G32) -> 0.06711864407 | I45: =IF(racun!H32=0," ",racun!H32) -> 0.06026365348 | J45: =IF(racun!J31=0," ",racun!J31) -> 265.5 | K45: =IF(racun!L31=0," ",racun!L31) -> 12.92 | L45: =IF(racun!M31=0," ",racun!M31) -> 12.78 | M45: =IF(racun!N31=0," ",racun!N31) -> 11.52 | N45: =IF(racun!O31=0," ",racun!O31) -> 13.64 | O45: =IF(racun!P31=0," ",racun!P31) -> 17.82 | P45: =IF(racun!Q31=0," ",racun!Q31) -> 16
B47: absorpcija ljudi:
D49: absorpcijski koeficient (α) | J49: št. | K49: ekvivalentna absorpcijska površina (A)
D50: frekvenčni pasovi [Hz] | J50: ljudi | K50: frekvenčni pasovi [Hz]
D51: 125 | E51: 250 | F51: 500 | G51: 1000 | H51: 2000 | I51: 4000 | K51: 125 | L51: 250 | M51: 500 | N51: 1000 | O51: 2000 | P51: 4000
B52: 1. | C52: oseba - sedi
D53: =IF(racun3!C73=0," ",racun3!C73) -> 0.23 | E53: =IF(racun3!D73=0," ",racun3!D73) -> 0.37 | F53: =IF(racun3!E73=0," ",racun3!E73) -> 0.44 | G53: =IF(racun3!F73=0," ",racun3!F73) -> 0.45 | H53: =IF(racun3!G73=0," ",racun3!G73) -> 0.45 | I53: =IF(racun3!H73=0," ",racun3!H73) -> 0.45 | J53: =IZPIS!E19 -> 20 | K53: =IF(racun3!L73=0," ",racun3!L73) -> 4.6 | L53: =IF(racun3!M73=0," ",racun3!M73) -> 7.4 | M53: =IF(racun3!N73=0," ",racun3!N73) -> 8.8 | N53: =IF(racun3!O73=0," ",racun3!O73) -> 9 | O53: =IF(racun3!P73=0," ",racun3!P73) -> 9 | P53: =IF(racun3!Q73=0," ",racun3!Q73) -> 9

Sheet LASTNE FREKVENCE
A1: ARTIE - Analysis of Reverberaton Time of Indoor Environments (verzija 1.0p)
A2: RAČUN LASTNIH FREKVENC PROSTORA
C5: Schroederjeva frekvenca | J5: Lastne frekvence prostora
D7: osnova za izračun | F7: Schroederjeva frekvenca [Hz] | J7: x | K7: y | L7: z | M7: frekvenca [Hz] | N7: dimenzija | O7: dimenzijski zapis
I8: 1 | J8: 0 | K8: 1 | L8: 0 | M8: 3.00877193 | N8: =IF(AND(J8=0,K8=0,L8=0),"/",IF(OR(AND(J8=0,K8=0,NOT(L8=0)),AND(L8=0,K8=0,NOT(J8=0)),AND(L8=0,J8=0,NOT(K8=0))),"1D",IF(OR(AND(J8=0,NOT(K8=0),NOT(L8=0)),AND(NOT(L8=0),K8=0,NOT(J8=0)),AND(L8=0,NOT(J8=0),NOT(K8=0))),"2D","3D"))) -> 1D | O8: =CONCATENATE(J8,",",K8,",",L8) -> 0,1,0
B9: Osnova | D9: T60,S | F9: =racun!$D$42 -> 219.8368306 | I9: 2 | J9: 0 | K9: 2 | L9: 0 | M9: 6.01754386 | N9: 1D | O9: 0,2,0
D10: T60,Ey | F10: =racun!$D$43 -> 221.6843023 | I10: 3 | J10: 0 | K10: 3 | L10: 0 | M10: 9.026315789 | N10: 1D | O10: 0,3,0
B11: Osnova + Ljudje | D11: T60,S | F11: =racun1!D42 -> 177.9364775 | I11: 4 | J11: 0 | K11: 4 | L11: 0 | M11: 12.03508772 | N11: 1D | O11: 0,4,0
D12: T60,Ey | F12: =racun1!D43 -> 177.0995772 | I12: 5 | J12: 0 | K12: 5 | L12: 0 | M12: 15.04385965 | N12: 1D | O12: 0,5,0
B13: Osnova + Absorpcija | D13: T60,S | F13: =racun2!D42 -> 145.0690438 | I13: 6 | J13: 0 | K13: 6 | L13: 0 | M13: 18.05263158 | N13: 1D | O13: 0,6,0
D14: T60,Ey | F14: =racun2!D43 -> 142.7243676 | I14: 7 | J14: 0 | K14: 7 | L14: 0 | M14: 21.06140351 | N14: 1D | O14: 0,7,0
B15: Osnova + Ljudje + Absorpcija | D15: T60,S | F15: =racun3!D42 -> 130.938755 | I15: 8 | J15: 0 | K15: 8 | L15: 0 | M15: 24.07017544 | N15: 1D | O15: 0,8,0
D16: T60,Ey | F16: =racun3!D43 -> 127.9087299 | I16: 9 | J16: 0 | K16: 9 | L16: 0 | M16: 27.07894737 | N16: 1D | O16: 0,9,0
I17: 10 | J17: 1 | K17: 10 | L17: 0 | M17: 35.28932102 | N17: 2D | O17: 1,10,0
B18: x smer = | C18: širina | D18: = | E18: ='ODMEVNI CAS'!E13 -> 7 | F18: m | I18: 11 | J18: 1 | K18: 0 | L18: 0 | M18: 18.44086022 | N18: 1D | O18: 1,0,0
B19: y smer = | C19: dolžina | D19: = | E19: ='ODMEVNI CAS'!E14 -> 10 | F19: m | I19: 12 | J19: 1 | K19: 1 | L19: 0 | M19: 18.68470053 | N19: 2D | O19: 1,1,0
B20: z smer = | C20: višina | D20: = | E20: ='ODMEVNI CAS'!E15 -> 3 | F20: m | I20: 13 | J20: 1 | K20: 2 | L20: 0 | M20: 19.39783904 | N20: 2D | O20: 1,2,0
I21: 14 | J21: 1 | K21: 3 | L21: 0 | M21: 20.53143205 | N21: 2D | O21: 1,3,0
I22: 15 | J22: 1 | K22: 4 | L22: 0 | M22: 22.02064172 | N22: 2D | O22: 1,4,0
I23: 16 | J23: 1 | K23: 5 | L23: 0 | M23: 23.7988033 | N23: 2D | O23: 1,5,0
I24: 17 | J24: 1 | K24: 6 | L24: 0 | M24: 25.80625568 | N24: 2D | O24: 1,6,0
I25: 18 | J25: 1 | K25: 7 | L25: 0 | M25: 27.99371435 | N25: 2D | O25: 1,7,0
I26: 19 | J26: 1 | K26: 8 | L26: 0 | M26: 30.32224713 | N26: 2D | O26: 1,8,0
I27: 20 | J27: 1 | K27: 9 | L27: 0 | M27: 32.76178744 | N27: 2D | O27: 1,9,0
I28: 21 | J28: 2 | K28: 10 | L28: 0 | M28: 47.5976066 | N28: 2D | O28: 2,10,0
I29: 22 | J29: 2 | K29: 0 | L29: 0 | M29: 36.88172043 | N29: 1D | O29: 2,0,0
I30: 23 | J30: 2 | K30: 1 | L30: 0 | M30: 37.00424314 | N30: 2D | O30: 2,1,0
I31: 24 | J31: 2 | K31: 2 | L31: 0 | M31: 37.36940107 | N31: 2D | O31: 2,2,0
I32: 25 | J32: 2 | K32: 3 | L32: 0 | M32: 37.97019461 | N32: 2D | O32: 2,3,0
I33: 26 | J33: 2 | K33: 4 | L33: 0 | M33: 38.79567809 | N33: 2D | O33: 2,4,0
I34: 27 | J34: 2 | K34: 5 | L34: 0 | M34: 39.8318844 | N34: 2D | O34: 2,5,0
I35: 28 | J35: 2 | K35: 6 | L35: 0 | M35: 41.06286411 | N35: 2D | O35: 2,6,0
I36: 29 | J36: 2 | K36: 7 | L36: 0 | M36: 42.47168492 | N36: 2D | O36: 2,7,0
I37: 30 | J37: 2 | K37: 8 | L37: 0 | M37: 44.04128345 | N37: 2D | O37: 2,8,0
I38: 31 | J38: 2 | K38: 9 | L38: 0 | M38: 45.75511657 | N38: 2D | O38: 2,9,0
I39: 32 | J39: 3 | K39: 10 | L39: 0 | M39: 62.97506476 | N39: 2D | O39: 3,10,0
I40: 33 | J40: 3 | K40: 0 | L40: 0 | M40: 55.32258065 | N40: 1D | O40: 3,0,0
I41: 34 | J41: 3 | K41: 1 | L41: 0 | M41: 55.40433772 | N41: 2D | O41: 3,1,0
I42: 35 | J42: 3 | K42: 2 | L42: 0 | M42: 55.64888825 | N42: 2D | O42: 3,2,0
I43: 36 | J43: 3 | K43: 3 | L43: 0 | M43: 56.0541016 | N43: 2D | O43: 3,3,0
I44: 37 | J44: 3 | K44: 4 | L44: 0 | M44: 56.6165282 | N44: 2D | O44: 3,4,0
I45: 38 | J45: 3 | K45: 5 | L45: 0 | M45: 57.33154143 | N45: 2D | O45: 3,5,0
I46: 39 | J46: 3 | K46: 6 | L46: 0 | M46: 58.19351713 | N46: 2D | O46: 3,6,0
I47: 40 | J47: 3 | K47: 7 | L47: 0 | M47: 59.19603574 | N47: 2D | O47: 3,7,0
I48: 41 | J48: 3 | K48: 8 | L48: 0 | M48: 60.33209158 | N48: 2D | O48: 3,8,0
I49: 42 | J49: 3 | K49: 9 | L49: 0 | M49: 61.59429616 | N49: 2D | O49: 3,9,0
I50: 43 | J50: 4 | K50: 10 | L50: 0 | M50: 79.6637688 | N50: 2D | O50: 4,10,0
I51: 44 | J51: 4 | K51: 0 | L51: 0 | M51: 73.76344086 | N51: 1D | O51: 4,0,0
I52: 45 | J52: 4 | K52: 1 | L52: 0 | M52: 73.82477847 | N52: 2D | O52: 4,1,0
I53: 46 | J53: 4 | K53: 2 | L53: 0 | M53: 74.00848628 | N53: 2D | O53: 4,2,0
I54: 47 | J54: 4 | K54: 3 | L54: 0 | M54: 74.31365678 | N54: 2D | O54: 4,3,0
I55: 48 | J55: 4 | K55: 4 | L55: 0 | M55: 74.73880213 | N55: 2D | O55: 4,4,0
I56: 49 | J56: 4 | K56: 5 | L56: 0 | M56: 75.28188973 | N56: 2D | O56: 4,5,0
I57: 50 | J57: 4 | K57: 6 | L57: 0 | M57: 75.94038922 | N57: 2D | O57: 4,6,0
I58: 51 | J58: 4 | K58: 7 | L58: 0 | M58: 76.71132853 | N58: 2D | O58: 4,7,0
I59: 52 | J59: 4 | K59: 8 | L59: 0 | M59: 77.59135618 | N59: 2D | O59: 4,8,0
I60: 53 | J60: 4 | K60: 9 | L60: 0 | M60: 78.576807 | N60: 2D | O60: 4,9,0
I61: 54 | J61: 5 | K61: 10 | L61: 0 | M61: 96.98919522 | N61: 2D | O61: 5,10,0
I62: 55 | J62: 5 | K62: 0 | L62: 0 | M62: 92.20430108 | N62: 1D | O62: 5,0,0
I63: 56 | J63: 5 | K63: 1 | L63: 0 | M63: 92.2533785 | N63: 2D | O63: 5,1,0
I64: 57 | J64: 5 | K64: 2 | L64: 0 | M64: 92.40045439 | N64: 2D | O64: 5,2,0
I65: 58 | J65: 5 | K65: 3 | L65: 0 | M65: 92.645062 | N65: 2D | O65: 5,3,0
I66: 59 | J66: 5 | K66: 4 | L66: 0 | M66: 92.98643166 | N66: 2D | O66: 5,4,0
I67: 60 | J67: 5 | K67: 5 | L67: 0 | M67: 93.42350266 | N67: 2D | O67: 5,5,0
I68: 61 | J68: 5 | K68: 6 | L68: 0 | M68: 93.95493943 | N68: 2D | O68: 5,6,0
I69: 62 | J69: 5 | K69: 7 | L69: 0 | M69: 94.57915127 | N69: 2D | O69: 5,7,0
I70: 63 | J70: 5 | K70: 8 | L70: 0 | M70: 95.29431506 | N70: 2D | O70: 5,8,0
I71: 64 | J71: 5 | K71: 9 | L71: 0 | M71: 96.09840023 | N71: 2D | O71: 5,9,0
I72: 65 | J72: 6 | K72: 10 | L72: 0 | M72: 114.6630829 | N72: =IF(AND(J72=0,K72=0,L72=0),"/",IF(OR(AND(J72=0,K72=0,NOT(L72=0)),AND(L72=0,K72=0,NOT(J72=0)),AND(L72=0,J72=0,NOT(K72=0))),"1D",IF(OR(AND(J72=0,NOT(K72=0),NOT(L72=0)),AND(NOT(L72=0),K72=0,NOT(J72=0)),AND(L72=0,NOT(J72=0),NOT(K72=0))),"2D","3D"))) -> 2D | O72: =CONCATENATE(J72,",",K72,",",L72) -> 6,10,0
I73: 66 | J73: 6 | K73: 0 | L73: 0 | M73: 110.6451613 | N73: 1D | O73: 6,0,0
I74: 67 | J74: 6 | K74: 1 | L74: 0 | M74: 110.6860625 | N74: 2D | O74: 6,1,0
I75: 68 | J75: 6 | K75: 2 | L75: 0 | M75: 110.8086754 | N75: 2D | O75: 6,2,0
I76: 69 | J76: 6 | K76: 3 | L76: 0 | M76: 111.0127294 | N76: 2D | O76: 6,3,0
I77: 70 | J77: 6 | K77: 4 | L77: 0 | M77: 111.2977765 | N77: 2D | O77: 6,4,0
I78: 71 | J78: 6 | K78: 5 | L78: 0 | M78: 111.6631964 | N78: 2D | O78: 6,5,0
I79: 72 | J79: 6 | K79: 6 | L79: 0 | M79: 112.1082032 | N79: 2D | O79: 6,6,0
I80: 73 | J80: 6 | K80: 7 | L80: 0 | M80: 112.6318536 | N80: 2D | O80: 6,7,0
I81: 74 | J81: 6 | K81: 8 | L81: 0 | M81: 113.2330564 | N81: 2D | O81: 6,8,0
I82: 75 | J82: 6 | K82: 9 | L82: 0 | M82: 113.9105838 | N82: 2D | O82: 6,9,0
I83: 76 | J83: 7 | K83: 10 | L83: 0 | M83: 132.546112 | N83: 2D | O83: 7,10,0
I84: 77 | J84: 7 | K84: 0 | L84: 0 | M84: 129.0860215 | N84: 1D | O84: 7,0,0
I85: 78 | J85: 7 | K85: 1 | L85: 0 | M85: 129.1210814 | N85: 2D | O85: 7,1,0
I86: 79 | J86: 7 | K86: 2 | L86: 0 | M86: 129.2262039 | N86: 2D | O86: 7,2,0
I87: 80 | J87: 7 | K87: 3 | L87: 0 | M87: 129.4012184 | N87: 2D | O87: 7,3,0
I88: 81 | J88: 7 | K88: 4 | L88: 0 | M88: 129.6458418 | N88: 2D | O88: 7,4,0
I89: 82 | J89: 7 | K89: 5 | L89: 0 | M89: 129.9596809 | N89: 2D | O89: 7,5,0
I90: 83 | J90: 7 | K90: 6 | L90: 0 | M90: 130.3422359 | N90: 2D | O90: 7,6,0
I91: 84 | J91: 7 | K91: 7 | L91: 0 | M91: 130.7929037 | N91: 2D | O91: 7,7,0
I92: 85 | J92: 7 | K92: 8 | L92: 0 | M92: 131.3109831 | N92: 2D | O92: 7,8,0
I93: 86 | J93: 7 | K93: 9 | L93: 0 | M93: 131.8956798 | N93: 2D | O93: 7,9,0
I94: 87 | J94: 8 | K94: 10 | L94: 0 | M94: 150.5637795 | N94: 2D | O94: 8,10,0
I95: 88 | J95: 8 | K95: 0 | L95: 0 | M95: 147.5268817 | N95: 1D | O95: 8,0,0
I96: 89 | J96: 8 | K96: 1 | L96: 0 | M96: 147.5575601 | N96: 2D | O96: 8,1,0
I97: 90 | J97: 8 | K97: 2 | L97: 0 | M97: 147.6495569 | N97: 2D | O97: 8,2,0
I98: 91 | J98: 8 | K98: 3 | L98: 0 | M98: 147.8027578 | N98: 2D | O98: 8,3,0
I99: 92 | J99: 8 | K99: 4 | L99: 0 | M99: 148.0169726 | N99: 2D | O99: 8,4,0
I100: 93 | J100: 8 | K100: 5 | L100: 0 | M100: 148.2919369 | N100: 2D | O100: 8,5,0
I101: 94 | J101: 8 | K101: 6 | L101: 0 | M101: 148.6273136 | N101: 2D | O101: 8,6,0
I102: 95 | J102: 8 | K102: 7 | L102: 0 | M102: 149.0226947 | N102: 2D | O102: 8,7,0
I103: 96 | J103: 8 | K103: 8 | L103: 0 | M103: 149.4776043 | N103: 2D | O103: 8,8,0
I104: 97 | J104: 8 | K104: 9 | L104: 0 | M104: 149.9915005 | N104: 2D | O104: 8,9,0
I105: 98 | J105: 9 | K105: 10 | L105: 0 | M105: 168.6729445 | N105: 2D | O105: 9,10,0
I106: 99 | J106: 9 | K106: 0 | L106: 0 | M106: 165.9677419 | N106: 1D | O106: 9,0,0
I107: 100 | J107: 9 | K107: 1 | L107: 0 | M107: 165.9950122 | N107: 2D | O107: 9,1,0
I108: 101 | J108: 9 | K108: 2 | L108: 0 | M108: 166.0767961 | N108: 2D | O108: 9,2,0
I109: 102 | J109: 9 | K109: 3 | L109: 0 | M109: 166.2130131 | N109: 2D | O109: 9,3,0
I110: 103 | J110: 9 | K110: 4 | L110: 0 | M110: 166.4035297 | N110: 2D | O110: 9,4,0
I111: 104 | J111: 9 | K111: 5 | L111: 0 | M111: 166.6481595 | N111: 2D | O111: 9,5,0
I112: 105 | J112: 9 | K112: 6 | L112: 0 | M112: 166.9466647 | N112: 2D | O112: 9,6,0
I113: 106 | J113: 9 | K113: 7 | L113: 0 | M113: 167.298757 | N113: 2D | O113: 9,7,0
I114: 107 | J114: 9 | K114: 8 | L114: 0 | M114: 167.7040987 | N114: 2D | O114: 9,8,0
I115: 108 | J115: 9 | K115: 9 | L115: 0 | M115: 168.1623048 | N115: 2D | O115: 9,9,0
I116: 109 | J116: 10 | K116: 10 | L116: 0 | M116: 186.8470053 | N116: 2D | O116: 10,10,0
I117: 110 | J117: 10 | K117: 0 | L117: 0 | M117: 184.4086022 | N117: 1D | O117: 10,0,0
I118: 111 | J118: 10 | K118: 1 | L118: 0 | M118: 184.4331458 | N118: 2D | O118: 10,1,0
I119: 112 | J119: 10 | K119: 2 | L119: 0 | M119: 184.506757 | N119: 2D | O119: 10,2,0
I120: 113 | J120: 10 | K120: 3 | L120: 0 | M120: 184.6293772 | N120: 2D | O120: 10,3,0
I121: 114 | J121: 10 | K121: 4 | L121: 0 | M121: 184.8009088 | N121: 2D | O121: 10,4,0
I122: 115 | J122: 10 | K122: 5 | L122: 0 | M122: 185.0212157 | N122: 2D | O122: 10,5,0
I123: 116 | J123: 10 | K123: 6 | L123: 0 | M123: 185.290124 | N123: 2D | O123: 10,6,0
I124: 117 | J124: 10 | K124: 7 | L124: 0 | M124: 185.6074224 | N124: 2D | O124: 10,7,0
I125: 118 | J125: 10 | K125: 8 | L125: 0 | M125: 185.9728633 | N125: 2D | O125: 10,8,0
I126: 119 | J126: 10 | K126: 9 | L126: 0 | M126: 186.3861635 | N126: 2D | O126: 10,9,0
I127: 120 | J127: 0 | K127: 10 | L127: 0 | M127: 30.0877193 | N127: 1D | O127: 0,10,0
I128: 121 | J128: 0 | K128: 0 | L128: 1 | M128: 53.59375 | N128: 1D | O128: 0,0,1
I129: 122 | J129: 0 | K129: 1 | L129: 1 | M129: 53.67814031 | N129: 2D | O129: 0,1,1
I130: 123 | J130: 0 | K130: 2 | L130: 1 | M130: 53.93051894 | N130: 2D | O130: 0,2,1
I131: 124 | J131: 0 | K131: 3 | L131: 1 | M131: 54.34854566 | N131: 2D | O131: 0,3,1
I132: 125 | J132: 0 | K132: 4 | L132: 1 | M132: 54.92843868 | N132: 2D | O132: 0,4,1
I133: 126 | J133: 0 | K133: 5 | L133: 1 | M133: 55.66513947 | N133: 2D | O133: 0,5,1
I134: 127 | J134: 0 | K134: 6 | L134: 1 | M134: 56.55252024 | N134: 2D | O134: 0,6,1
I135: 128 | J135: 0 | K135: 7 | L135: 1 | M135: 57.58361535 | N135: 2D | O135: 0,7,1
I136: 129 | J136: 0 | K136: 8 | L136: 1 | M136: 58.75085859 | N136: =IF(AND(J136=0,K136=0,L136=0),"/",IF(OR(AND(J136=0,K136=0,NOT(L136=0)),AND(L136=0,K136=0,NOT(J136=0)),AND(L136=0,J136=0,NOT(K136=0))),"1D",IF(OR(AND(J136=0,NOT(K136=0),NOT(L136=0)),AND(NOT(L136=0),K136=0,NOT(J136=0)),AND(L136=0,NOT(J136=0),NOT(K136=0))),"2D","3D"))) -> 2D | O136: =CONCATENATE(J136,",",K136,",",L136) -> 0,8,1
I137: 130 | J137: 0 | K137: 9 | L137: 1 | M137: 60.04631071 | N137: 2D | O137: 0,9,1
I138: 131 | J138: 1 | K138: 10 | L138: 1 | M138: 64.16873239 | N138: 3D | O138: 1,10,1
I139: 132 | J139: 1 | K139: 0 | L139: 1 | M139: 56.67764431 | N139: 2D | O139: 1,0,1
I140: 133 | J140: 1 | K140: 1 | L140: 1 | M140: 56.75744949 | N140: 3D | O140: 1,1,1
I141: 134 | J141: 1 | K141: 2 | L141: 1 | M141: 56.9961946 | N141: 3D | O141: 1,2,1
I142: 135 | J142: 1 | K142: 3 | L142: 1 | M142: 57.39189613 | N142: 3D | O142: 1,3,1
I143: 136 | J143: 1 | K143: 4 | L143: 1 | M143: 57.94133845 | N143: 3D | O143: 1,4,1
I144: 137 | J144: 1 | K144: 5 | L144: 1 | M144: 58.64020018 | N144: 3D | O144: 1,5,1
I145: 138 | J145: 1 | K145: 6 | L145: 1 | M145: 59.48321504 | N145: 3D | O145: 1,6,1
I146: 139 | J146: 1 | K146: 7 | L146: 1 | M146: 60.46435382 | N146: 3D | O146: 1,7,1
I147: 140 | J147: 1 | K147: 8 | L147: 1 | M147: 61.57701446 | N147: 3D | O147: 1,8,1
I148: 141 | J148: 1 | K148: 9 | L148: 1 | M148: 62.81420823 | N148: 3D | O148: 1,9,1
I149: 142 | J149: 2 | K149: 10 | L149: 1 | M149: 71.67860346 | N149: 3D | O149: 2,10,1
I150: 143 | J150: 2 | K150: 0 | L150: 1 | M150: 65.05806131 | N150: 2D | O150: 2,0,1
I151: 144 | J151: 2 | K151: 1 | L151: 1 | M151: 65.12759822 | N151: 3D | O151: 2,1,1
I152: 145 | J152: 2 | K152: 2 | L152: 1 | M152: 65.3357649 | N152: 3D | O152: 2,2,1
I153: 146 | J153: 2 | K153: 3 | L153: 1 | M153: 65.68124327 | N153: 3D | O153: 2,3,1
I154: 147 | J154: 2 | K154: 4 | L154: 1 | M154: 66.16188236 | N154: 3D | O154: 2,4,1
I155: 148 | J155: 2 | K155: 5 | L155: 1 | M155: 66.7747636 | N155: 3D | O155: 2,5,1
I156: 149 | J156: 2 | K156: 6 | L156: 1 | M156: 67.5162858 | N156: 3D | O156: 2,6,1
I157: 150 | J157: 2 | K157: 7 | L157: 1 | M157: 68.38226421 | N157: 3D | O157: 2,7,1
I158: 151 | J158: 2 | K158: 8 | L158: 1 | M158: 69.36803793 | N158: 3D | O158: 2,8,1
I159: 152 | J159: 2 | K159: 9 | L159: 1 | M159: 70.46857975 | N159: 3D | O159: 2,9,1
I160: 153 | J160: 3 | K160: 10 | L160: 1 | M160: 82.6931002 | N160: 3D | O160: 3,10,1
I161: 154 | J161: 3 | K161: 0 | L161: 1 | M161: 77.0251775 | N161: 2D | O161: 3,0,1
I162: 155 | J162: 3 | K162: 1 | L162: 1 | M162: 77.0839197 | N162: 3D | O162: 3,1,1
I163: 156 | J163: 3 | K163: 2 | L163: 1 | M163: 77.25987835 | N163: 3D | O163: 3,2,1
I164: 157 | J164: 3 | K164: 3 | L164: 1 | M164: 77.55225558 | N164: 3D | O164: 3,3,1
I165: 158 | J165: 3 | K165: 4 | L165: 1 | M165: 77.95974156 | N165: 3D | O165: 3,4,1
I166: 159 | J166: 3 | K166: 5 | L166: 1 | M166: 78.48054333 | N166: 3D | O166: 3,5,1
I167: 160 | J167: 3 | K167: 6 | L167: 1 | M167: 79.11242301 | N167: 3D | O167: 3,6,1
I168: 161 | J168: 3 | K168: 7 | L168: 1 | M168: 79.85274376 | N168: 3D | O168: 3,7,1
I169: 162 | J169: 3 | K169: 8 | L169: 1 | M169: 80.69852114 | N169: 3D | O169: 3,8,1
I170: 163 | J170: 3 | K170: 9 | L170: 1 | M170: 81.64647793 | N170: 3D | O170: 3,9,1
I171: 164 | J171: 4 | K171: 10 | L171: 1 | M171: 96.01357247 | N171: 3D | O171: 4,10,1
I172: 165 | J172: 4 | K172: 0 | L172: 1 | M172: 91.17749309 | N172: 2D | O172: 4,0,1
I173: 166 | J173: 4 | K173: 1 | L173: 1 | M173: 91.22712291 | N173: 3D | O173: 4,1,1
I174: 167 | J174: 4 | K174: 2 | L174: 1 | M174: 91.37585064 | N174: 3D | O174: 4,2,1
I175: 168 | J175: 4 | K175: 3 | L175: 1 | M175: 91.6231937 | N175: 3D | O175: 4,3,1
I176: 169 | J176: 4 | K176: 4 | L176: 1 | M176: 91.96835642 | N176: 3D | O176: 4,4,1
I177: 170 | J177: 4 | K177: 5 | L177: 1 | M177: 92.41024272 | N177: 3D | O177: 4,5,1
I178: 171 | J178: 4 | K178: 6 | L178: 1 | M178: 92.94747309 | N178: 3D | O178: 4,6,1
I179: 172 | J179: 4 | K179: 7 | L179: 1 | M179: 93.57840544 | N179: 3D | O179: 4,7,1
I180: 173 | J180: 4 | K180: 8 | L180: 1 | M180: 94.30115902 | N180: 3D | O180: 4,8,1
I181: 174 | J181: 4 | K181: 9 | L181: 1 | M181: 95.11364065 | N181: 3D | O181: 4,9,1
I182: 175 | J182: 5 | K182: 10 | L182: 1 | M182: 110.8115248 | N182: 3D | O182: 5,10,1
I183: 176 | J183: 5 | K183: 0 | L183: 1 | M183: 106.6485967 | N183: 2D | O183: 5,0,1
I184: 177 | J184: 5 | K184: 1 | L184: 1 | M184: 106.69103 | N184: 3D | O184: 5,1,1
I185: 178 | J185: 5 | K185: 2 | L185: 1 | M185: 106.8182288 | N185: 3D | O185: 5,2,1
I186: 179 | J186: 5 | K186: 3 | L186: 1 | M186: 107.0298909 | N186: 3D | O186: 5,3,1
I187: 180 | J187: 5 | K187: 4 | L187: 1 | M187: 107.3255166 | N187: 3D | O187: 5,4,1
I188: 181 | J188: 5 | K188: 5 | L188: 1 | M188: 107.7044144 | N188: 3D | O188: 5,5,1
I189: 182 | J189: 5 | K189: 6 | L189: 1 | M189: 108.1657094 | N189: 3D | O189: 5,6,1
I190: 183 | J190: 5 | K190: 7 | L190: 1 | M190: 108.7083525 | N190: 3D | O190: 5,7,1
I191: 184 | J191: 5 | K191: 8 | L191: 1 | M191: 109.3311324 | N191: 3D | O191: 5,8,1
I192: 185 | J192: 5 | K192: 9 | L192: 1 | M192: 110.0326886 | N192: 3D | O192: 5,9,1
I193: 186 | J193: 6 | K193: 10 | L193: 1 | M193: 126.5697934 | N193: 3D | O193: 6,10,1
I194: 187 | J194: 6 | K194: 0 | L194: 1 | M194: 122.9416193 | N194: 2D | O194: 6,0,1
I195: 188 | J195: 6 | K195: 1 | L195: 1 | M195: 122.9784309 | N195: 3D | O195: 6,1,1
I196: 189 | J196: 6 | K196: 2 | L196: 1 | M196: 123.0887996 | N196: 3D | O196: 6,2,1
I197: 190 | J197: 6 | K197: 3 | L197: 1 | M197: 123.2725279 | N197: 3D | O197: 6,3,1
I198: 191 | J198: 6 | K198: 4 | L198: 1 | M198: 123.5292884 | N198: 3D | O198: 6,4,1
I199: 192 | J199: 6 | K199: 5 | L199: 1 | M199: 123.8586269 | N199: 3D | O199: 6,5,1
I200: 193 | J200: 6 | K200: 6 | L200: 1 | M200: 124.2599665 | N200: =IF(AND(J200=0,K200=0,L200=0),"/",IF(OR(AND(J200=0,K200=0,NOT(L200=0)),AND(L200=0,K200=0,NOT(J200=0)),AND(L200=0,J200=0,NOT(K200=0))),"1D",IF(OR(AND(J200=0,NOT(K200=0),NOT(L200=0)),AND(NOT(L200=0),K200=0,NOT(J200=0)),AND(L200=0,NOT(J200=0),NOT(K200=0))),"2D","3D"))) -> 3D | O200: =CONCATENATE(J200,",",K200,",",L200) -> 6,6,1
I201: 194 | J201: 6 | K201: 7 | L201: 1 | M201: 124.7326119 | N201: 3D | O201: 6,7,1
I202: 195 | J202: 6 | K202: 8 | L202: 1 | M202: 125.2757562 | N202: 3D | O202: 6,8,1
I203: 196 | J203: 6 | K203: 9 | L203: 1 | M203: 125.888487 | N203: 3D | O203: 6,9,1
... 1135 more rows

Sheet koeficienti absorpcije
A1: ARTIE - Analysis of Reverberaton Time of Indoor Environments (verzija 1.0p)
A2: absorbcijski koeficient α
B4: material | C4: frekvenčni pasovi
C5: 63 | D5: 125 | E5: 250 | F5: 500 | G5: 1000 | H5: 2000 | I5: 4000 | J5: 8000
A6: LASTNI MATERIALI
B7: material 1 | C7: 0 | D7: 0.1 | E7: 0.5 | F7: 0.5 | G7: 0.5 | H7: 0.5 | I7: 0.9 | J7: 1
B8: material 2
B9: material 3
B10: material 4
B11: material 5
B12: material 6
B13: material 7
B14: material 8
B15: material 9
B16: material 10
A18: TLA
B19: parket na betonski podlagi | D19: 0.04 | E19: 0.04 | F19: 0.07 | G19: 0.06 | H19: 0.06 | I19: 0.07
B20: marmorne ali steklene ploščice | D20: 0.01 | E20: 0.01 | F20: 0.01 | G20: 0.01 | H20: 0.02 | I20: 0.02 | M20: Vir: | N20: Cox, T. J., D'Antonio, P. 2009. Acoustic absorbers and diffusers: theory, design, and application. 2nd edition. Oxon. Taylor & Francis:
B21: lesena/linolej/gumjasta tla | D21: 0.02 | E21: 0.04 | F21: 0.05 | G21: 0.05 | H21: 0.1 | I21: 0.05
B22: beton | D22: 0.01 | E22: 0.02 | F22: 0.02 | G22: 0.02 | H22: 0.02 | I22: 0.02 | N22: str. | O22: 440-444 | P22: Materiali- absorpcijski koeficienti
B23: tanka preproga na betonu | D23: 0.02 | E23: 0.04 | F23: 0.08 | G23: 0.2 | H23: 0.35 | I23: 0.4 | N23: str. | O23: 85 | P23: konstante zvočne absorpcije zraka
B24: težka preproga na betonu | D24: 0.02 | E24: 0.06 | F24: 0.14 | G24: 0.37 | H24: 0.6 | I24: 0.65
A25: STENE, STROP
B26: barvan omet | D26: 0.02 | E26: 0.02 | F26: 0.02 | G26: 0.02 | H26: 0.02 | I26: 0.02
B27: gips plošče pritrjene s čepi, 12,7 mm | D27: 0.29 | E27: 0.1 | F27: 0.05 | G27: 0.04 | H27: 0.07 | I27: 0.09
B28: mavčne plošče na okvirju, 13 mm, 10 cm zračnega prostora | D28: 0.08 | E28: 0.11 | F28: 0.05 | G28: 0.03 | H28: 0.02 | I28: 0.03
B29: opečni zid, barvan | D29: 0.05 | E29: 0.04 | F29: 0.02 | G29: 0.04 | H29: 0.05 | I29: 0.05
B30: gladek, nebarvan beton | D30: 0.01 | E30: 0.01 | F30: 0.02 | G30: 0.02 | H30: 0.02 | I30: 0.05
B31: gladek, barvan beton | D31: 0.01 | E31: 0.01 | F31: 0.01 | G31: 0.02 | H31: 0.02 | I31: 0.02
B32: grob beton | D32: 0.02 | E32: 0.03 | F32: 0.03 | G32: 0.03 | H32: 0.04 | I32: 0.07
B33: obloga iz vezanih plošč, 1cm | D33: 0.28 | E33: 0.22 | F33: 0.17 | G33: 0.09 | H33: 0.1 | I33: 0.11
B34: marmorne ali steklene ploščice | D34: 0.01 | E34: 0.01 | F34: 0.01 | G34: 0.01 | H34: 0.02 | I34: 0.02
B35: akustični omet | D35: 0.3 | E35: 0.35 | F35: 0.5 | G35: 0.7 | H35: 0.7 | I35: 0.7
A36: STAVBNO POHIŠTVO
B37: običajno steklo za okna | D37: 0.35 | E37: 0.25 | F37: 0.18 | G37: 0.12 | H37: 0.07 | I37: 0.04
B38: velika zasteklitev, težko steklo | D38: 0.18 | E38: 0.06 | F38: 0.04 | G38: 0.03 | H38: 0.02 | I38: 0.02
B39: masivna lesena vrata | D39: 0.14 | E39: 0.1 | F39: 0.06 | G39: 0.08 | H39: 0.1 | I39: 0.1
B40: maska ventilacijskega jaška | D40: 0.6 | E40: 0.6 | F40: 0.6 | G40: 0.6 | H40: 0.6 | I40: 0.6
A41: OPREMA
B42: leseni ali kovinski stoli (št. stolov) | D42: 0.15 | E42: 0.19 | F42: 0.22 | G42: 0.39 | H42: 0.38 | I42: 0.3
B43: prazno, oblazinjeno sedišče | D43: 0.45 | E43: 0.6 | F43: 0.73 | G43: 0.8 | H43: 0.75 | I43: 0.64
B44: lesena klop - 100% zasedenost | D44: 0.57 | E44: 0.61 | F44: 0.75 | G44: 0.86 | H44: 0.91 | I44: 0.86
B45: lesena klop - 75% zasedenost | D45: 0.46 | E45: 0.56 | F45: 0.65 | G45: 0.75 | H45: 0.72 | I45: 0.62
B46: zavese -ravno obešanje | D46: 0.04 | E46: 0.16 | F46: 0.19 | G46: 0.17 | H46: 0.2 | I46: 0.25
B47: zavese -nabrano na polovico površine | D47: 0.15 | E47: 0.25 | F47: 0.3 | G47: 0.28 | H47: 0.35 | I47: 0.4
B48: zavese nagubane ob steni | D48: 0.05 | E48: 0.15 | F48: 0.35 | G48: 0.4 | H48: 0.5 | I48: 0.5
A49: ABSORPCIJSKE POVRŠINE
B50: mineralna volna 5 cm (40 kg/m³), lepljena na podlago, s tankoslojnim ometom | D50: 0.15 | E50: 0.7 | F50: 0.6 | G50: 0.6 | H50: 0.75 | I50: 0.75
B51: mineralna volna 5 cm (70 kg/m³), 30 cm odmaknjena od stene | D51: 0.7 | E51: 0.45 | F51: 0.65 | G51: 0.6 | H51: 0.75 | I51: 0.65
B52: paneli iz steklenih vlaken 5.1 cm, v plastičnem ovoju, prekriti s perforirano kovino | D52: 0.33 | E52: 0.79 | F52: 0.99 | G52: 0.91 | H52: 0.76 | I52: 0.64
B53: akustične plošče 12.7 mm | D53: 0.07 | E53: 0.21 | F53: 0.66 | G53: 0.75 | H53: 0.62 | I53: 0.49
B54: poliuretanska pena 2.5 cm | D54: 0.16 | E54: 0.25 | F54: 0.45 | G54: 0.84 | H54: 0.97 | I54: 0.87
B55: flis, 10 cm ovčje volne | D55: 0.47 | E55: 0.86 | F55: 1 | G55: 0.94 | H55: 0.96 | I55: 1.02
B56: mikroperforirani absorberji - 4cm votiline | D56: 0.08 | E56: 0.27 | F56: 0.7 | G56: 0.35 | H56: 0.11 | I56: 0.04
B57: mikroperforirani absorberji - 40cm votilne | D57: 0.64 | E57: 0.56 | F57: 0.41 | G57: 0.28 | H57: 0.13 | I57: 0.06
A58: RAZNO
B59: površina vode | D59: 0.01 | E59: 0.01 | F59: 0.01 | G59: 0.01 | H59: 0.02 | I59: 0.02
B60: kartonske škatle za jajca | D60: 0.01 | E60: 0.07 | F60: 0.43 | G60: 0.62 | H60: 0.51 | I60: 0.7
B61: balast - drobljenec 3.18cm, 15.2cm visoko nasutje | D61: 0.19 | E61: 0.23 | F61: 0.43 | G61: 0.37 | H61: 0.58 | I61: 0.62
B62: balast -drobljenec 3.18cm, 30.5cm visoko nasutje | D62: 0.27 | E62: 0.58 | F62: 0.48 | G62: 0.54 | H62: 0.73 | I62: 0.63
B63: balast -drobljenec 3.18cm, 45.7cm visoko nasutje | D63: 0.41 | E63: 0.53 | F63: 0.64 | G63: 0.84 | H63: 0.91 | I63: 0.63
B64: balast -drobljenec 0.64cm, 15.2cm visoko nasutje | D64: 0.22 | E64: 0.64 | F64: 0.7 | G64: 0.79 | H64: 0.88 | I64: 0.72
B65: prst - brez vegitacije | D65: 0.27 | E65: 0.57 | F65: 0.76 | G65: 0.9 | H65: 0.89 | I65: 0.84
B66: prst - 20% vegitacije | D66: 0.34 | E66: 0.63 | F66: 0.79 | G66: 0.92 | H66: 0.89 | I66: 0.81
B67: prst - 40% vegitacije | D67: 0.39 | E67: 0.68 | F67: 0.83 | G67: 0.95 | H67: 0.9 | I67: 0.83
B68: prst - 60% vegitacije | D68: 0.45 | E68: 0.72 | F68: 0.85 | G68: 0.97 | H68: 0.9 | I68: 0.8
B69: prst - 80% vegitacije | D69: 0.46 | E69: 0.73 | F69: 0.85 | G69: 0.97 | H69: 0.89 | I69: 0.72
B70: prst - 100% vegitacije | D70: 0.49 | E70: 0.75 | F70: 0.89 | G70: 0.98 | H70: 0.91 | I70: 0.73
A71: LJUDJE
B72: ljudje - sedijo (1 oseba) | D72: 0.23 | E72: 0.37 | F72: 0.44 | G72: 0.45 | H72: 0.45 | I72: 0.45 | M72: vir: | N72: Bies, D.A., Hansen, C.H., 2003, Emgeneering noise and control: theory and practice, 3rd ed. Spon Press, str 303-305.
B73: ljudje - stojijo (1 oseba) | D73: 0.15 | E73: 0.37 | F73: 0.43 | G73: 0.44 | H73: 0.44 | I73: 0.43
B74: poslušalci na lesenem sedišču (1/m²) | D74: 0.16 | E74: 0.24 | F74: 0.56 | G74: 0.69 | H74: 0.81 | I74: 0.78
B75: poslušalci na lesenem sedišču (2/m²) | D75: 0.24 | E75: 0.4 | F75: 0.78 | G75: 0.98 | H75: 0.96 | I75: 0.87

Sheet IZPIS
A1: RAČUN ODMEVNEGA ČASA | BI1: RAČUN LASTNIH FREKVENC PROSTORA
B4: VHODNI PODATKI: | Q4: REZULTATI: | AB4: ABSORPCIJSKE LASTNOSTI MATERIALOV | BJ4: Schroederjeva frekvenca | BR4: Lastne frekvence prostora
B6: Namen | D6: ='ODMEVNI CAS'!D7:N7 -> Test | Q6: Izračunani odmevni čas v prostoru: | AB6: površine v osnovnem prostoru: | AS6: dodani absorpcijski materiali: | BL6: osnova za izračun | BN6: Schroederjeva frekvenca [Hz] | BR6: x | BS6: y | BT6: z | BU6: frekvenca [Hz] | BV6: dimenzija | BW6: dimenzijski zapis
B8: Opis | D8: ='ODMEVNI CAS'!D9:N9 -> Test | R8: odmevni čas [s] | S8: frekvenčni pasovi [Hz] | Y8: Povprečen koeficient absorpcije, α͞skupaj | AB8: material | AD8: absorpcijski koeficient (α) | AJ8: površina | AK8: ekvivalentna absorpcijska površina (A) | AS8: material | AU8: absorpcijski koeficient (α) | BA8: površina | BB8: ekvivalentna absorpcijska površina (A) | BJ8: Osnova | BL8: T60,S | BN8: ='LASTNE FREKVENCE'!F9 -> 219.8368306 | BQ8: 1 | BR8: ='LASTNE FREKVENCE'!J8 -> 0 | BS8: ='LASTNE FREKVENCE'!K8 -> 1 | BT8: ='LASTNE FREKVENCE'!L8 -> 0 | BU8: ='LASTNE FREKVENCE'!M8 -> 3.00877193 | BV8: ='LASTNE FREKVENCE'!N8 -> 1D | BW8: ='LASTNE FREKVENCE'!O8 -> 0,1,0
S9: 125 | T9: 250 | U9: 500 | V9: 1000 | W9: 2000 | X9: 4000 | AD9: frekvenčni pasovi [Hz] | AJ9: S | AK9: frekvenčni pasovi [Hz] | AU9: frekvenčni pasovi [Hz] | BA9: S | BB9: frekvenčni pasovi [Hz] | BL9: T60,Ey | BN9: ='LASTNE FREKVENCE'!F10 -> 221.6843023 | BQ9: 2 | BR9: ='LASTNE FREKVENCE'!J9 -> 0 | BS9: ='LASTNE FREKVENCE'!K9 -> 2 | BT9: ='LASTNE FREKVENCE'!L9 -> 0 | BU9: ='LASTNE FREKVENCE'!M9 -> 6.01754386 | BV9: ='LASTNE FREKVENCE'!N9 -> 1D | BW9: ='LASTNE FREKVENCE'!O9 -> 0,2,0
Q10: Osnova | R10: T60,S | S10: ='ODMEVNI CAS'!S11 -> 2.579954962 | T10: ='ODMEVNI CAS'!T11 -> 2.575075075 | U10: ='ODMEVNI CAS'!U11 -> 2.786483097 | V10: ='ODMEVNI CAS'!V11 -> 2.310158156 | W10: ='ODMEVNI CAS'!W11 -> 1.703080526 | X10: ='ODMEVNI CAS'!X11 -> 1.551414881 | Y10: ='ODMEVNI CAS'!Y11 -> 0.05315756434 | AD10: 125 | AE10: 250 | AF10: 500 | AG10: 1000 | AH10: 2000 | AI10: 4000 | AJ10: [m2] | AK10: 125 | AL10: 250 | AM10: 500 | AN10: 1000 | AO10: 2000 | AP10: 4000 | AU10: 125 | AV10: 250 | AW10: 500 | AX10: 1000 | AY10: 2000 | AZ10: 4000 | BA10: [m2] | BB10: 125 | BC10: 250 | BD10: 500 | BE10: 1000 | BF10: 2000 | BG10: 4000 | BJ10: Osnova + Ljudje | BL10: T60,S | BN10: ='LASTNE FREKVENCE'!F11 -> 177.9364775 | BQ10: 3 | BR10: ='LASTNE FREKVENCE'!J10 -> 0 | BS10: ='LASTNE FREKVENCE'!K10 -> 3 | BT10: ='LASTNE FREKVENCE'!L10 -> 0 | BU10: ='LASTNE FREKVENCE'!M10 -> 9.026315789 | BV10: ='LASTNE FREKVENCE'!N10 -> 1D | BW10: ='LASTNE FREKVENCE'!O10 -> 0,3,0
B11: Dimenzije prostora | R11: T60,Ey | S11: ='ODMEVNI CAS'!S12 -> 2.528294062 | T11: ='ODMEVNI CAS'!T12 -> 2.545145994 | U11: ='ODMEVNI CAS'!U12 -> 2.789787048 | V11: ='ODMEVNI CAS'!V12 -> 2.310054678 | W11: ='ODMEVNI CAS'!W12 -> 1.735672431 | X11: ='ODMEVNI CAS'!X12 -> 1.825173459 | AB11: 1. | AC11: =E25 -> lesena/linolej/gumjasta tla | AS11: 1. | AT11: =E45 -> mikroperforirani absorberji - 40cm votilne | BL11: T60,Ey | BN11: ='LASTNE FREKVENCE'!F12 -> 177.0995772 | BQ11: 4 | BR11: ='LASTNE FREKVENCE'!J11 -> 0 | BS11: ='LASTNE FREKVENCE'!K11 -> 4 | BT11: ='LASTNE FREKVENCE'!L11 -> 0 | BU11: ='LASTNE FREKVENCE'!M11 -> 12.03508772 | BV11: ='LASTNE FREKVENCE'!N11 -> 1D | BW11: ='LASTNE FREKVENCE'!O11 -> 0,4,0
B12: (x) | C12: širina | D12: š = | E12: ='ODMEVNI CAS'!E13 -> 7 | F12: m | Q12: Osnova + Ljudje | R12: T60,S | S12: ='ODMEVNI CAS'!S13 -> 1.905737426 | T12: ='ODMEVNI CAS'!T13 -> 1.642212057 | U12: ='ODMEVNI CAS'!U13 -> 1.609771014 | V12: ='ODMEVNI CAS'!V13 -> 1.426200034 | W12: ='ODMEVNI CAS'!W13 -> 1.168955695 | X12: ='ODMEVNI CAS'!X13 -> 1.095450998 | Y12: ='ODMEVNI CAS'!Y13 -> 0.0773380035 | AD12: =IF(racun3!C6=0," ",racun3!C6) -> 0.02 | AE12: =IF(racun3!D6=0," ",racun3!D6) -> 0.04 | AF12: =IF(racun3!E6=0," ",racun3!E6) -> 0.05 | AG12: =IF(racun3!F6=0," ",racun3!F6) -> 0.05 | AH12: =IF(racun3!G6=0," ",racun3!G6) -> 0.1 | AI12: =IF(racun3!H6=0," ",racun3!H6) -> 0.05 | AJ12: =IF(racun3!J6=0," ",racun3!J6) -> 70 | AK12: =IF(racun3!L6=0," ",racun3!L6) -> 1.4 | AL12: =IF(racun3!M6=0," ",racun3!M6) -> 2.8 | AM12: =IF(racun3!N6=0," ",racun3!N6) -> 3.5 | AN12: =IF(racun3!O6=0," ",racun3!O6) -> 3.5 | AO12: =IF(racun3!P6=0," ",racun3!P6) -> 7 | AP12: =IF(racun3!Q6=0," ",racun3!Q6) -> 3.5 | AU12: =IF(racun3!C22=0," ",racun3!C22) -> 0.64 | AV12: =IF(racun3!D22=0," ",racun3!D22) -> 0.56 | AW12: =IF(racun3!E22=0," ",racun3!E22) -> 0.41 | AX12: =IF(racun3!F22=0," ",racun3!F22) -> 0.28 | AY12: =IF(racun3!G22=0," ",racun3!G22) -> 0.13 | AZ12: =IF(racun3!H22=0," ",racun3!H22) -> 0.06 | BA12: =IF(racun3!J22=0," ",racun3!J22) -> 15 | BB12: =IF(racun3!L22=0," ",racun3!L22) -> 9.6 | BC12: =IF(racun3!M22=0," ",racun3!M22) -> 8.4 | BD12: =IF(racun3!N22=0," ",racun3!N22) -> 6.15 | BE12: =IF(racun3!O22=0," ",racun3!O22) -> 4.2 | BF12: =IF(racun3!P22=0," ",racun3!P22) -> 1.95 | BG12: =IF(racun3!Q22=0," ",racun3!Q22) -> 0.9 | BJ12: Osnova + Absorpcija | BL12: T60,S | BN12: ='LASTNE FREKVENCE'!F13 -> 145.0690438 | BQ12: 5 | BR12: ='LASTNE FREKVENCE'!J12 -> 0 | BS12: ='LASTNE FREKVENCE'!K12 -> 5 | BT12: ='LASTNE FREKVENCE'!L12 -> 0 | BU12: ='LASTNE FREKVENCE'!M12 -> 15.04385965 | BV12: ='LASTNE FREKVENCE'!N12 -> 1D | BW12: ='LASTNE FREKVENCE'!O12 -> 0,5,0
B13: (y) | C13: dolžina | D13: d = | E13: ='ODMEVNI CAS'!E14 -> 10 | F13: m | I13: zasedenost volumna z opremo: | K13: ='ODMEVNI CAS'!K14 -> 2 | L13: % | R13: T60,Ey | S13: ='ODMEVNI CAS'!S14 -> 1.852961026 | T13: ='ODMEVNI CAS'!T14 -> 1.596563153 | U13: ='ODMEVNI CAS'!U14 -> 1.572956607 | V13: ='ODMEVNI CAS'!V14 -> 1.391535175 | W13: ='ODMEVNI CAS'!W14 -> 1.154927042 | X13: ='ODMEVNI CAS'!X14 -> 1.196346128 | AB13: 2. | AC13: =E26 -> opečni zid, barvan | AS13: 2. | AT13: =E46 -> mineralna volna 5 cm (70 kg/m³), 30 cm odmaknjena od stene | BL13: T60,Ey | BN13: ='LASTNE FREKVENCE'!F14 -> 142.7243676 | BQ13: 6 | BR13: ='LASTNE FREKVENCE'!J13 -> 0 | BS13: ='LASTNE FREKVENCE'!K13 -> 6 | BT13: ='LASTNE FREKVENCE'!L13 -> 0 | BU13: ='LASTNE FREKVENCE'!M13 -> 18.05263158 | BV13: ='LASTNE FREKVENCE'!N13 -> 1D | BW13: ='LASTNE FREKVENCE'!O13 -> 0,6,0
B14: (z) | C14: višina | D14: v = | E14: ='ODMEVNI CAS'!E15 -> 3 | F14: m | Q14: Osnova + Absorpcija | R14: T60,S | S14: ='ODMEVNI CAS'!S15 -> 1.083776596 | T14: ='ODMEVNI CAS'!T15 -> 1.049049065 | U14: ='ODMEVNI CAS'!U15 -> 1.016878065 | V14: ='ODMEVNI CAS'!V15 -> 1.00222809 | W14: ='ODMEVNI CAS'!W15 -> 0.9006226989 | X14: ='ODMEVNI CAS'!X15 -> 0.8288451781 | Y14: ='ODMEVNI CAS'!Y15 -> 0.1079541735 | AD14: =IF(racun3!C7=0," ",racun3!C7) -> 0.05 | AE14: =IF(racun3!D7=0," ",racun3!D7) -> 0.04 | AF14: =IF(racun3!E7=0," ",racun3!E7) -> 0.02 | AG14: =IF(racun3!F7=0," ",racun3!F7) -> 0.04 | AH14: =IF(racun3!G7=0," ",racun3!G7) -> 0.05 | AI14: =IF(racun3!H7=0," ",racun3!H7) -> 0.05 | AJ14: =IF(racun3!J7=0," ",racun3!J7) -> 102 | AK14: =IF(racun3!L7=0," ",racun3!L7) -> 5.1 | AL14: =IF(racun3!M7=0," ",racun3!M7) -> 4.08 | AM14: =IF(racun3!N7=0," ",racun3!N7) -> 2.04 | AN14: =IF(racun3!O7=0," ",racun3!O7) -> 4.08 | AO14: =IF(racun3!P7=0," ",racun3!P7) -> 5.1 | AP14: =IF(racun3!Q7=0," ",racun3!Q7) -> 5.1 | AU14: =IF(racun3!C23=0," ",racun3!C23) -> 0.7 | AV14: =IF(racun3!D23=0," ",racun3!D23) -> 0.45 | AW14: =IF(racun3!E23=0," ",racun3!E23) -> 0.65 | AX14: =IF(racun3!F23=0," ",racun3!F23) -> 0.6 | AY14: =IF(racun3!G23=0," ",racun3!G23) -> 0.75 | AZ14: =IF(racun3!H23=0," ",racun3!H23) -> 0.65 | BA14: =IF(racun3!J23=0," ",racun3!J23) -> 10 | BB14: =IF(racun3!L23=0," ",racun3!L23) -> 7 | BC14: =IF(racun3!M23=0," ",racun3!M23) -> 4.5 | BD14: =IF(racun3!N23=0," ",racun3!N23) -> 6.5 | BE14: =IF(racun3!O23=0," ",racun3!O23) -> 6 | BF14: =IF(racun3!P23=0," ",racun3!P23) -> 7.5 | BG14: =IF(racun3!Q23=0," ",racun3!Q23) -> 6.5 | BJ14: Osnova + Ljudje + Absorpcija | BL14: T60,S | BN14: ='LASTNE FREKVENCE'!F15 -> 130.938755 | BQ14: 7 | BR14: ='LASTNE FREKVENCE'!J14 -> 0 | BS14: ='LASTNE FREKVENCE'!K14 -> 7 | BT14: ='LASTNE FREKVENCE'!L14 -> 0 | BU14: ='LASTNE FREKVENCE'!M14 -> 21.06140351 | BV14: ='LASTNE FREKVENCE'!N14 -> 1D | BW14: ='LASTNE FREKVENCE'!O14 -> 0,7,0
C15: volumen | D15: V' = | E15: ='ODMEVNI CAS'!E16 -> 210 | F15: m3 | I15: končni volumen prostora | J15: V = | K15: ='ODMEVNI CAS'!K16 -> 205.8 | L15: m3 | R15: T60,Ey | S15: ='ODMEVNI CAS'!S16 -> 1.030060085 | T15: ='ODMEVNI CAS'!T16 -> 0.99885391 | U15: ='ODMEVNI CAS'!U16 -> 0.970209631 | V15: ='ODMEVNI CAS'!V16 -> 0.9589504129 | W15: ='ODMEVNI CAS'!W16 -> 0.8719542079 | X15: ='ODMEVNI CAS'!X16 -> 0.8627917499 | AB15: 3. | AC15: =E27 -> masivna lesena vrata | AS15: 3. | AT15: =E47 -> material 1 | BL15: T60,Ey | BN15: ='LASTNE FREKVENCE'!F16 -> 127.9087299 | BQ15: 8 | BR15: ='LASTNE FREKVENCE'!J15 -> 0 | BS15: ='LASTNE FREKVENCE'!K15 -> 8 | BT15: ='LASTNE FREKVENCE'!L15 -> 0 | BU15: ='LASTNE FREKVENCE'!M15 -> 24.07017544 | BV15: ='LASTNE FREKVENCE'!N15 -> 1D | BW15: ='LASTNE FREKVENCE'!O15 -> 0,8,0
Q16: Osnova + Ljudje + Absorpcija | R16: T60,S | S16: ='ODMEVNI CAS'!S17 -> 0.9435502381 | T16: ='ODMEVNI CAS'!T17 -> 0.8519042608 | U16: ='ODMEVNI CAS'!U17 -> 0.802740153 | V16: ='ODMEVNI CAS'!V17 -> 0.7898457539 | W16: ='ODMEVNI CAS'!W17 -> 0.725354627 | X16: ='ODMEVNI CAS'!X17 -> 0.6780621524 | Y16: ='ODMEVNI CAS'!Y17 -> 0.125796211 | AD16: =IF(racun3!C8=0," ",racun3!C8) -> 0.14 | AE16: =IF(racun3!D8=0," ",racun3!D8) -> 0.1 | AF16: =IF(racun3!E8=0," ",racun3!E8) -> 0.06 | AG16: =IF(racun3!F8=0," ",racun3!F8) -> 0.08 | AH16: =IF(racun3!G8=0," ",racun3!G8) -> 0.1 | AI16: =IF(racun3!H8=0," ",racun3!H8) -> 0.1 | AJ16: =IF(racun3!J8=0," ",racun3!J8) -> 4 | AK16: =IF(racun3!L8=0," ",racun3!L8) -> 0.56 | AL16: =IF(racun3!M8=0," ",racun3!M8) -> 0.4 | AM16: =IF(racun3!N8=0," ",racun3!N8) -> 0.24 | AN16: =IF(racun3!O8=0," ",racun3!O8) -> 0.32 | AO16: =IF(racun3!P8=0," ",racun3!P8) -> 0.4 | AP16: =IF(racun3!Q8=0," ",racun3!Q8) -> 0.4 | AU16: =IF(racun3!C24=0," ",racun3!C24) -> 0.1 | AV16: =IF(racun3!D24=0," ",racun3!D24) -> 0.5 | AW16: =IF(racun3!E24=0," ",racun3!E24) -> 0.5 | AX16: =IF(racun3!F24=0," ",racun3!F24) -> 0.5 | AY16: =IF(racun3!G24=0," ",racun3!G24) -> 0.5 | AZ16: =IF(racun3!H24=0," ",racun3!H24) -> 0.9 | BA16: =IF(racun3!J24=0," ",racun3!J24) -> 10 | BB16: =IF(racun3!L24=0," ",racun3!L24) -> 1 | BC16: =IF(racun3!M24=0," ",racun3!M24) -> 5 | BD16: =IF(racun3!N24=0," ",racun3!N24) -> 5 | BE16: =IF(racun3!O24=0," ",racun3!O24) -> 5 | BF16: =IF(racun3!P24=0," ",racun3!P24) -> 5 | BG16: =IF(racun3!Q24=0," ",racun3!Q24) -> 9 | BQ16: 9 | BR16: ='LASTNE FREKVENCE'!J16 -> 0 | BS16: ='LASTNE FREKVENCE'!K16 -> 9 | BT16: ='LASTNE FREKVENCE'!L16 -> 0 | BU16: ='LASTNE FREKVENCE'!M16 -> 27.07894737 | BV16: ='LASTNE FREKVENCE'!N16 -> 1D | BW16: ='LASTNE FREKVENCE'!O16 -> 0,9,0
B17: temperatura prostora: | D17: T = | E17: ='ODMEVNI CAS'!E18 -> 20 | F17: °C | I17: relativna vlažnost zraka: | J17: RH = | K17: ='ODMEVNI CAS'!K18 -> 50 | L17: % | R17: T60,Ey | S17: ='ODMEVNI CAS'!S18 -> 0.892672488 | T17: ='ODMEVNI CAS'!T18 -> 0.8030664328 | U17: ='ODMEVNI CAS'!U18 -> 0.755904566 | V17: ='ODMEVNI CAS'!V18 -> 0.7451858861 | W17: ='ODMEVNI CAS'!W18 -> 0.69050014 | X17: ='ODMEVNI CAS'!X18 -> 0.6849373533 | AB17: 4. | AC17: =E28 -> maska ventilacijskega jaška | AS17: 4. | AT17: =E48 -> akustične plošče 12.7 mm | BJ17: Dimenzije prostora: | BQ17: 10 | BR17: ='LASTNE FREKVENCE'!J17 -> 1 | BS17: ='LASTNE FREKVENCE'!K17 -> 10 | BT17: ='LASTNE FREKVENCE'!L17 -> 0 | BU17: ='LASTNE FREKVENCE'!M17 -> 35.28932102 | BV17: ='LASTNE FREKVENCE'!N17 -> 2D | BW17: ='LASTNE FREKVENCE'!O17 -> 1,10,0
AD18: =IF(racun3!C9=0," ",racun3!C9) -> 0.6 | AE18: =IF(racun3!D9=0," ",racun3!D9) -> 0.6 | AF18: =IF(racun3!E9=0," ",racun3!E9) -> 0.6 | AG18: =IF(racun3!F9=0," ",racun3!F9) -> 0.6 | AH18: =IF(racun3!G9=0," ",racun3!G9) -> 0.6 | AI18: =IF(racun3!H9=0," ",racun3!H9) -> 0.6 | AJ18: =IF(racun3!J9=0," ",racun3!J9) -> 1.5 | AK18: =IF(racun3!L9=0," ",racun3!L9) -> 0.9 | AL18: =IF(racun3!M9=0," ",racun3!M9) -> 0.9 | AM18: =IF(racun3!N9=0," ",racun3!N9) -> 0.9 | AN18: =IF(racun3!O9=0," ",racun3!O9) -> 0.9 | AO18: =IF(racun3!P9=0," ",racun3!P9) -> 0.9 | AP18: =IF(racun3!Q9=0," ",racun3!Q9) -> 0.9 | AU18: =IF(racun3!C25=0," ",racun3!C25) -> 0.07 | AV18: =IF(racun3!D25=0," ",racun3!D25) -> 0.21 | AW18: =IF(racun3!E25=0," ",racun3!E25) -> 0.66 | AX18: =IF(racun3!F25=0," ",racun3!F25) -> 0.75 | AY18: =IF(racun3!G25=0," ",racun3!G25) -> 0.62 | AZ18: =IF(racun3!H25=0," ",racun3!H25) -> 0.49 | BA18: =IF(racun3!J25=0," ",racun3!J25) -> 5 | BB18: =IF(racun3!L25=0," ",racun3!L25) -> 0.35 | BC18: =IF(racun3!M25=0," ",racun3!M25) -> 1.05 | BD18: =IF(racun3!N25=0," ",racun3!N25) -> 3.3 | BE18: =IF(racun3!O25=0," ",racun3!O25) -> 3.75 | BF18: =IF(racun3!P25=0," ",racun3!P25) -> 3.1 | BG18: =IF(racun3!Q25=0," ",racun3!Q25) -> 2.45 | BQ18: 11 | BR18: ='LASTNE FREKVENCE'!J18 -> 1 | BS18: ='LASTNE FREKVENCE'!K18 -> 0 | BT18: ='LASTNE FREKVENCE'!L18 -> 0 | BU18: ='LASTNE FREKVENCE'!M18 -> 18.44086022 | BV18: ='LASTNE FREKVENCE'!N18 -> 1D | BW18: ='LASTNE FREKVENCE'!O18 -> 1,0,0
B19: št. ljudi v prostoru: | D19: N = | E19: ='ODMEVNI CAS'!E20 -> 20 | I19: namembnost prostora: | J19: ='ODMEVNI CAS'!J20:K20 -> govor/predavanja | Q19: Primerjava izračunanega z optimalnim odmevnim časom: | AB19: 5. | AC19: =E29 -> leseni ali kovinski stoli (št. stolov) | AS19: 5. | AT19: =E49 ->  | BJ19: x smer = | BK19: širina | BL19: = | BM19: =E12 -> 7 | BN19: m | BQ19: 12 | BR19: ='LASTNE FREKVENCE'!J19 -> 1 | BS19: ='LASTNE FREKVENCE'!K19 -> 1 | BT19: ='LASTNE FREKVENCE'!L19 -> 0 | BU19: ='LASTNE FREKVENCE'!M19 -> 18.68470053 | BV19: ='LASTNE FREKVENCE'!N19 -> 2D | BW19: ='LASTNE FREKVENCE'!O19 -> 1,1,0
AD20: =IF(racun3!C10=0," ",racun3!C10) -> 0.15 | AE20: =IF(racun3!D10=0," ",racun3!D10) -> 0.19 | AF20: =IF(racun3!E10=0," ",racun3!E10) -> 0.22 | AG20: =IF(racun3!F10=0," ",racun3!F10) -> 0.39 | AH20: =IF(racun3!G10=0," ",racun3!G10) -> 0.38 | AI20: =IF(racun3!H10=0," ",racun3!H10) -> 0.3 | AJ20: =IF(racun3!J10=0," ",racun3!J10) -> 4 | AK20: =IF(racun3!L10=0," ",racun3!L10) -> 0.6 | AL20: =IF(racun3!M10=0," ",racun3!M10) -> 0.76 | AM20: =IF(racun3!N10=0," ",racun3!N10) -> 0.88 | AN20: =IF(racun3!O10=0," ",racun3!O10) -> 1.56 | AO20: =IF(racun3!P10=0," ",racun3!P10) -> 1.52 | AP20: =IF(racun3!Q10=0," ",racun3!Q10) -> 1.2 | AU20: =IF(racun3!C26=0," ",racun3!C26) ->  | AV20: =IF(racun3!D26=0," ",racun3!D26) ->  | AW20: =IF(racun3!E26=0," ",racun3!E26) ->  | AX20: =IF(racun3!F26=0," ",racun3!F26) ->  | AY20: =IF(racun3!G26=0," ",racun3!G26) ->  | AZ20: =IF(racun3!H26=0," ",racun3!H26) ->  | BA20: =IF(racun3!J26=0," ",racun3!J26) ->  | BB20: =IF(racun3!L26=0," ",racun3!L26) ->  | BC20: =IF(racun3!M26=0," ",racun3!M26) ->  | BD20: =IF(racun3!N26=0," ",racun3!N26) ->  | BE20: =IF(racun3!O26=0," ",racun3!O26) ->  | BF20: =IF(racun3!P26=0," ",racun3!P26) ->  | BG20: =IF(racun3!Q26=0," ",racun3!Q26) ->  | BJ20: y smer = | BK20: dolžina | BL20: = | BM20: =E13 -> 10 | BN20: m | BQ20: 13 | BR20: ='LASTNE FREKVENCE'!J20 -> 1 | BS20: ='LASTNE FREKVENCE'!K20 -> 2 | BT20: ='LASTNE FREKVENCE'!L20 -> 0 | BU20: ='LASTNE FREKVENCE'!M20 -> 19.39783904 | BV20: ='LASTNE FREKVENCE'!N20 -> 2D | BW20: ='LASTNE FREKVENCE'!O20 -> 1,2,0
Q21: optimalen odmevni čas: | S21: Topt = | T21: ='ODMEVNI CAS'!T22 -> 0.7159747871 | U21: s | V21: po standardu DIN 18041 Acoustic guality in rooms - Specifications and instructions for the room acoustic design | AB21: 6. | AC21: =E30 -> gladek, nebarvan beton | AS21: 6. | AT21: =E50 ->  | BJ21: z smer = | BK21: višina | BL21: = | BM21: =E14 -> 3 | BN21: m | BQ21: 14 | BR21: ='LASTNE FREKVENCE'!J21 -> 1 | BS21: ='LASTNE FREKVENCE'!K21 -> 3 | BT21: ='LASTNE FREKVENCE'!L21 -> 0 | BU21: ='LASTNE FREKVENCE'!M21 -> 20.53143205 | BV21: ='LASTNE FREKVENCE'!N21 -> 2D | BW21: ='LASTNE FREKVENCE'!O21 -> 1,3,0
B22: površine v prostoru: | Q22: namembnost prostora: | T22: ='ODMEVNI CAS'!T23 -> govor/predavanja | AD22: =IF(racun3!C11=0," ",racun3!C11) -> 0.01 | AE22: =IF(racun3!D11=0," ",racun3!D11) -> 0.01 | AF22: =IF(racun3!E11=0," ",racun3!E11) -> 0.02 | AG22: =IF(racun3!F11=0," ",racun3!F11) -> 0.02 | AH22: =IF(racun3!G11=0," ",racun3!G11) -> 0.02 | AI22: =IF(racun3!H11=0," ",racun3!H11) -> 0.05 | AJ22: =IF(racun3!J11=0," ",racun3!J11) -> 70 | AK22: =IF(racun3!L11=0," ",racun3!L11) -> 0.7 | AL22: =IF(racun3!M11=0," ",racun3!M11) -> 0.7 | AM22: =IF(racun3!N11=0," ",racun3!N11) -> 1.4 | AN22: =IF(racun3!O11=0," ",racun3!O11) -> 1.4 | AO22: =IF(racun3!P11=0," ",racun3!P11) -> 1.4 | AP22: =IF(racun3!Q11=0," ",racun3!Q11) -> 3.5 | AU22: =IF(racun3!C27=0," ",racun3!C27) ->  | AV22: =IF(racun3!D27=0," ",racun3!D27) ->  | AW22: =IF(racun3!E27=0," ",racun3!E27) ->  | AX22: =IF(racun3!F27=0," ",racun3!F27) ->  | AY22: =IF(racun3!G27=0," ",racun3!G27) ->  | AZ22: =IF(racun3!H27=0," ",racun3!H27) ->  | BA22: =IF(racun3!J27=0," ",racun3!J27) ->  | BB22: =IF(racun3!L27=0," ",racun3!L27) ->  | BC22: =IF(racun3!M27=0," ",racun3!M27) ->  | BD22: =IF(racun3!N27=0," ",racun3!N27) ->  | BE22: =IF(racun3!O27=0," ",racun3!O27) ->  | BF22: =IF(racun3!P27=0," ",racun3!P27) ->  | BG22: =IF(racun3!Q27=0," ",racun3!Q27) ->  | BQ22: 15 | BR22: ='LASTNE FREKVENCE'!J22 -> 1 | BS22: ='LASTNE FREKVENCE'!K22 -> 4 | BT22: ='LASTNE FREKVENCE'!L22 -> 0 | BU22: ='LASTNE FREKVENCE'!M22 -> 22.02064172 | BV22: ='LASTNE FREKVENCE'!N22 -> 2D | BW22: ='LASTNE FREKVENCE'!O22 -> 1,4,0
AB23: 7. | AC23: =E31 -> zavese -ravno obešanje | AS23: 7. | AT23: =E51 ->  | BJ23: Grafični prikaz lastnih frekvenc: | BQ23: 16 | BR23: ='LASTNE FREKVENCE'!J23 -> 1 | BS23: ='LASTNE FREKVENCE'!K23 -> 5 | BT23: ='LASTNE FREKVENCE'!L23 -> 0 | BU23: ='LASTNE FREKVENCE'!M23 -> 23.7988033 | BV23: ='LASTNE FREKVENCE'!N23 -> 2D | BW23: ='LASTNE FREKVENCE'!O23 -> 1,5,0
B24: vrsta materiala | E24: material | M24: Površina | AD24: =IF(racun3!C12=0," ",racun3!C12) -> 0.04 | AE24: =IF(racun3!D12=0," ",racun3!D12) -> 0.16 | AF24: =IF(racun3!E12=0," ",racun3!E12) -> 0.19 | AG24: =IF(racun3!F12=0," ",racun3!F12) -> 0.17 | AH24: =IF(racun3!G12=0," ",racun3!G12) -> 0.2 | AI24: =IF(racun3!H12=0," ",racun3!H12) -> 0.25 | AJ24: =IF(racun3!J12=0," ",racun3!J12) -> 4 | AK24: =IF(racun3!L12=0," ",racun3!L12) -> 0.16 | AL24: =IF(racun3!M12=0," ",racun3!M12) -> 0.64 | AM24: =IF(racun3!N12=0," ",racun3!N12) -> 0.76 | AN24: =IF(racun3!O12=0," ",racun3!O12) -> 0.68 | AO24: =IF(racun3!P12=0," ",racun3!P12) -> 0.8 | AP24: =IF(racun3!Q12=0," ",racun3!Q12) -> 1 | AU24: =IF(racun3!C28=0," ",racun3!C28) ->  | AV24: =IF(racun3!D28=0," ",racun3!D28) ->  | AW24: =IF(racun3!E28=0," ",racun3!E28) ->  | AX24: =IF(racun3!F28=0," ",racun3!F28) ->  | AY24: =IF(racun3!G28=0," ",racun3!G28) ->  | AZ24: =IF(racun3!H28=0," ",racun3!H28) ->  | BA24: =IF(racun3!J28=0," ",racun3!J28) ->  | BB24: =IF(racun3!L28=0," ",racun3!L28) ->  | BC24: =IF(racun3!M28=0," ",racun3!M28) ->  | BD24: =IF(racun3!N28=0," ",racun3!N28) ->  | BE24: =IF(racun3!O28=0," ",racun3!O28) ->  | BF24: =IF(racun3!P28=0," ",racun3!P28) ->  | BG24: =IF(racun3!Q28=0," ",racun3!Q28) ->  | BQ24: 17 | BR24: ='LASTNE FREKVENCE'!J24 -> 1 | BS24: ='LASTNE FREKVENCE'!K24 -> 6 | BT24: ='LASTNE FREKVENCE'!L24 -> 0 | BU24: ='LASTNE FREKVENCE'!M24 -> 25.80625568 | BV24: ='LASTNE FREKVENCE'!N24 -> 2D | BW24: ='LASTNE FREKVENCE'!O24 -> 1,6,0
B25: 1. | C25: =IF(LEN('ODMEVNI CAS'!C26:D26)=0," ",'ODMEVNI CAS'!C26:D26) -> tla | E25: =IF(LEN('ODMEVNI CAS'!E26:L26)=0," ",'ODMEVNI CAS'!E26:L26) -> lesena/linolej/gumjasta tla | M25: =IF(LEN('ODMEVNI CAS'!M26)=0," ",'ODMEVNI CAS'!M26) -> 70 | N25: m2 | AB25: 8. | AC25: =E32 -> običajno steklo za okna | AS25: 8. | AT25: =E52 ->  | BQ25: 18 | BR25: ='LASTNE FREKVENCE'!J25 -> 1 | BS25: ='LASTNE FREKVENCE'!K25 -> 7 | BT25: ='LASTNE FREKVENCE'!L25 -> 0 | BU25: ='LASTNE FREKVENCE'!M25 -> 27.99371435 | BV25: ='LASTNE FREKVENCE'!N25 -> 2D | BW25: ='LASTNE FREKVENCE'!O25 -> 1,7,0
B26: 2. | C26: =IF(LEN('ODMEVNI CAS'!C27:D27)=0," ",'ODMEVNI CAS'!C27:D27) -> stene/strop | E26: =IF(LEN('ODMEVNI CAS'!E27:L27)=0," ",'ODMEVNI CAS'!E27:L27) -> opečni zid, barvan | M26: =IF(LEN('ODMEVNI CAS'!M27)=0," ",'ODMEVNI CAS'!M27) -> 102 | N26: m2 | AD26: =IF(racun3!C13=0," ",racun3!C13) -> 0.35 | AE26: =IF(racun3!D13=0," ",racun3!D13) -> 0.25 | AF26: =IF(racun3!E13=0," ",racun3!E13) -> 0.18 | AG26: =IF(racun3!F13=0," ",racun3!F13) -> 0.12 | AH26: =IF(racun3!G13=0," ",racun3!G13) -> 0.07 | AI26: =IF(racun3!H13=0," ",racun3!H13) -> 0.04 | AJ26: =IF(racun3!J13=0," ",racun3!J13) -> 10 | AK26: =IF(racun3!L13=0," ",racun3!L13) -> 3.5 | AL26: =IF(racun3!M13=0," ",racun3!M13) -> 2.5 | AM26: =IF(racun3!N13=0," ",racun3!N13) -> 1.8 | AN26: =IF(racun3!O13=0," ",racun3!O13) -> 1.2 | AO26: =IF(racun3!P13=0," ",racun3!P13) -> 0.7 | AP26: =IF(racun3!Q13=0," ",racun3!Q13) -> 0.4 | AU26: =IF(racun3!C29=0," ",racun3!C29) ->  | AV26: =IF(racun3!D29=0," ",racun3!D29) ->  | AW26: =IF(racun3!E29=0," ",racun3!E29) ->  | AX26: =IF(racun3!F29=0," ",racun3!F29) ->  | AY26: =IF(racun3!G29=0," ",racun3!G29) ->  | AZ26: =IF(racun3!H29=0," ",racun3!H29) ->  | BA26: =IF(racun3!J29=0," ",racun3!J29) ->  | BB26: =IF(racun3!L29=0," ",racun3!L29) ->  | BC26: =IF(racun3!M29=0," ",racun3!M29) ->  | BD26: =IF(racun3!N29=0," ",racun3!N29) ->  | BE26: =IF(racun3!O29=0," ",racun3!O29) ->  | BF26: =IF(racun3!P29=0," ",racun3!P29) ->  | BG26: =IF(racun3!Q29=0," ",racun3!Q29) ->  | BQ26: 19 | BR26: ='LASTNE FREKVENCE'!J26 -> 1 | BS26: ='LASTNE FREKVENCE'!K26 -> 8 | BT26: ='LASTNE FREKVENCE'!L26 -> 0 | BU26: ='LASTNE FREKVENCE'!M26 -> 30.32224713 | BV26: ='LASTNE FREKVENCE'!N26 -> 2D | BW26: ='LASTNE FREKVENCE'!O26 -> 1,8,0
B27: 3. | C27: =IF(LEN('ODMEVNI CAS'!C28:D28)=0," ",'ODMEVNI CAS'!C28:D28) -> stavbno pohištvo | E27: =IF(LEN('ODMEVNI CAS'!E28:L28)=0," ",'ODMEVNI CAS'!E28:L28) -> masivna lesena vrata | M27: =IF(LEN('ODMEVNI CAS'!M28)=0," ",'ODMEVNI CAS'!M28) -> 4 | N27: m2 | AB27: 9. | AC27: =E33 ->  | AU27: Povprečen α: | BA27: Skupna S: | BB27: Skupna A: | BQ27: 20 | BR27: ='LASTNE FREKVENCE'!J27 -> 1 | BS27: ='LASTNE FREKVENCE'!K27 -> 9 | BT27: ='LASTNE FREKVENCE'!L27 -> 0 | BU27: ='LASTNE FREKVENCE'!M27 -> 32.76178744 | BV27: ='LASTNE FREKVENCE'!N27 -> 2D | BW27: ='LASTNE FREKVENCE'!O27 -> 1,9,0
B28: 4. | C28: =IF(LEN('ODMEVNI CAS'!C29:D29)=0," ",'ODMEVNI CAS'!C29:D29) -> stavbno pohištvo | E28: =IF(LEN('ODMEVNI CAS'!E29:L29)=0," ",'ODMEVNI CAS'!E29:L29) -> maska ventilacijskega jaška | M28: =IF(LEN('ODMEVNI CAS'!M29)=0," ",'ODMEVNI CAS'!M29) -> 1.5 | N28: m2 | AD28: =IF(racun3!C14=0," ",racun3!C14) ->  | AE28: =IF(racun3!D14=0," ",racun3!D14) ->  | AF28: =IF(racun3!E14=0," ",racun3!E14) ->  | AG28: =IF(racun3!F14=0," ",racun3!F14) ->  | AH28: =IF(racun3!G14=0," ",racun3!G14) ->  | AI28: =IF(racun3!H14=0," ",racun3!H14) ->  | AJ28: =IF(racun3!J14=0," ",racun3!J14) ->  | AK28: =IF(racun3!L14=0," ",racun3!L14) ->  | AL28: =IF(racun3!M14=0," ",racun3!M14) ->  | AM28: =IF(racun3!N14=0," ",racun3!N14) ->  | AN28: =IF(racun3!O14=0," ",racun3!O14) ->  | AO28: =IF(racun3!P14=0," ",racun3!P14) ->  | AP28: =IF(racun3!Q14=0," ",racun3!Q14) ->  | AU28: =IF(racun2!C34=0," ",racun2!C34) -> 0.18875 | AV28: =IF(racun2!D34=0," ",racun2!D34) -> 0.215 | AW28: =IF(racun2!E34=0," ",racun2!E34) -> 0.2775 | AX28: =IF(racun2!F34=0," ",racun2!F34) -> 0.26625 | AY28: =IF(racun2!G34=0," ",racun2!G34) -> 0.25 | AZ28: =IF(racun2!H34=0," ",racun2!H34) -> 0.2625 | BA28: =IF(racun2!J34=0," ",racun2!J34) -> 40 | BB28: =IF(racun2!L34=0," ",racun2!L34) -> 17.95 | BC28: =IF(racun2!M34=0," ",racun2!M34) -> 18.95 | BD28: =IF(racun2!N34=0," ",racun2!N34) -> 20.95 | BE28: =IF(racun2!O34=0," ",racun2!O34) -> 18.95 | BF28: =IF(racun2!P34=0," ",racun2!P34) -> 17.55 | BG28: =IF(racun2!Q34=0," ",racun2!Q34) -> 18.85 | BQ28: 21 | BR28: ='LASTNE FREKVENCE'!J28 -> 2 | BS28: ='LASTNE FREKVENCE'!K28 -> 10 | BT28: ='LASTNE FREKVENCE'!L28 -> 0 | BU28: ='LASTNE FREKVENCE'!M28 -> 47.5976066 | BV28: ='LASTNE FREKVENCE'!N28 -> 2D | BW28: ='LASTNE FREKVENCE'!O28 -> 2,10,0
B29: 5. | C29: =IF(LEN('ODMEVNI CAS'!C30:D30)=0," ",'ODMEVNI CAS'!C30:D30) -> oprema | E29: =IF(LEN('ODMEVNI CAS'!E30:L30)=0," ",'ODMEVNI CAS'!E30:L30) -> leseni ali kovinski stoli (št. stolov) | M29: =IF(LEN('ODMEVNI CAS'!M30)=0," ",'ODMEVNI CAS'!M30) -> 4 | N29: m2 | AB29: 10. | AC29: =E34 ->  | BQ29: 22 | BR29: ='LASTNE FREKVENCE'!J29 -> 2 | BS29: ='LASTNE FREKVENCE'!K29 -> 0 | BT29: ='LASTNE FREKVENCE'!L29 -> 0 | BU29: ='LASTNE FREKVENCE'!M29 -> 36.88172043 | BV29: ='LASTNE FREKVENCE'!N29 -> 1D | BW29: ='LASTNE FREKVENCE'!O29 -> 2,0,0
B30: 6. | C30: =IF(LEN('ODMEVNI CAS'!C31:D31)=0," ",'ODMEVNI CAS'!C31:D31) -> stene/strop | E30: =IF(LEN('ODMEVNI CAS'!E31:L31)=0," ",'ODMEVNI CAS'!E31:L31) -> gladek, nebarvan beton | M30: =IF(LEN('ODMEVNI CAS'!M31)=0," ",'ODMEVNI CAS'!M31) -> 70 | N30: m2 | AD30: =IF(racun3!C15=0," ",racun3!C15) ->  | AE30: =IF(racun3!D15=0," ",racun3!D15) ->  | AF30: =IF(racun3!E15=0," ",racun3!E15) ->  | AG30: =IF(racun3!F15=0," ",racun3!F15) ->  | AH30: =IF(racun3!G15=0," ",racun3!G15) ->  | AI30: =IF(racun3!H15=0," ",racun3!H15) ->  | AJ30: =IF(racun3!J15=0," ",racun3!J15) ->  | AK30: =IF(racun3!L15=0," ",racun3!L15) ->  | AL30: =IF(racun3!M15=0," ",racun3!M15) ->  | AM30: =IF(racun3!N15=0," ",racun3!N15) ->  | AN30: =IF(racun3!O15=0," ",racun3!O15) ->  | AO30: =IF(racun3!P15=0," ",racun3!P15) ->  | AP30: =IF(racun3!Q15=0," ",racun3!Q15) ->  | BQ30: 23 | BR30: ='LASTNE FREKVENCE'!J30 -> 2 | BS30: ='LASTNE FREKVENCE'!K30 -> 1 | BT30: ='LASTNE FREKVENCE'!L30 -> 0 | BU30: ='LASTNE FREKVENCE'!M30 -> 37.00424314 | BV30: ='LASTNE FREKVENCE'!N30 -> 2D | BW30: ='LASTNE FREKVENCE'!O30 -> 2,1,0
B31: 7. | C31: =IF(LEN('ODMEVNI CAS'!C32:D32)=0," ",'ODMEVNI CAS'!C32:D32) -> oprema | E31: =IF(LEN('ODMEVNI CAS'!E32:L32)=0," ",'ODMEVNI CAS'!E32:L32) -> zavese -ravno obešanje | M31: =IF(LEN('ODMEVNI CAS'!M32)=0," ",'ODMEVNI CAS'!M32) -> 4 | N31: m2 | AB31: 11. | AC31: =E35 ->  | AS31: Skupne vrednosti (osnovne površine, dodani absorpcijski materiali in ljudje): | BQ31: 24 | BR31: ='LASTNE FREKVENCE'!J31 -> 2 | BS31: ='LASTNE FREKVENCE'!K31 -> 2 | BT31: ='LASTNE FREKVENCE'!L31 -> 0 | BU31: ='LASTNE FREKVENCE'!M31 -> 37.36940107 | BV31: ='LASTNE FREKVENCE'!N31 -> 2D | BW31: ='LASTNE FREKVENCE'!O31 -> 2,2,0
B32: 8. | C32: =IF(LEN('ODMEVNI CAS'!C33:D33)=0," ",'ODMEVNI CAS'!C33:D33) -> stavbno pohištvo | E32: =IF(LEN('ODMEVNI CAS'!E33:L33)=0," ",'ODMEVNI CAS'!E33:L33) -> običajno steklo za okna | M32: =IF(LEN('ODMEVNI CAS'!M33)=0," ",'ODMEVNI CAS'!M33) -> 10 | N32: m2 | AD32: =IF(racun3!C16=0," ",racun3!C16) ->  | AE32: =IF(racun3!D16=0," ",racun3!D16) ->  | AF32: =IF(racun3!E16=0," ",racun3!E16) ->  | AG32: =IF(racun3!F16=0," ",racun3!F16) ->  | AH32: =IF(racun3!G16=0," ",racun3!G16) ->  | AI32: =IF(racun3!H16=0," ",racun3!H16) ->  | AJ32: =IF(racun3!J16=0," ",racun3!J16) ->  | AK32: =IF(racun3!L16=0," ",racun3!L16) ->  | AL32: =IF(racun3!M16=0," ",racun3!M16) ->  | AM32: =IF(racun3!N16=0," ",racun3!N16) ->  | AN32: =IF(racun3!O16=0," ",racun3!O16) ->  | AO32: =IF(racun3!P16=0," ",racun3!P16) ->  | AP32: =IF(racun3!Q16=0," ",racun3!Q16) ->  | BQ32: 25 | BR32: ='LASTNE FREKVENCE'!J32 -> 2 | BS32: ='LASTNE FREKVENCE'!K32 -> 3 | BT32: ='LASTNE FREKVENCE'!L32 -> 0 | BU32: ='LASTNE FREKVENCE'!M32 -> 37.97019461 | BV32: ='LASTNE FREKVENCE'!N32 -> 2D | BW32: ='LASTNE FREKVENCE'!O32 -> 2,3,0
B33: 9. | C33: =IF(LEN('ODMEVNI CAS'!C34:D34)=0," ",'ODMEVNI CAS'!C34:D34) ->  | E33: =IF(LEN('ODMEVNI CAS'!E34:L34)=0," ",'ODMEVNI CAS'!E34:L34) ->  | M33: =IF(LEN('ODMEVNI CAS'!M34)=0," ",'ODMEVNI CAS'!M34) ->  | N33: m2 | AB33: 12. | AC33: =E36 ->  | AU33: absorpcijski koeficient (α) | BA33: površina | BB33: ekvivalentna absorpcijska površina (A) | BQ33: 26 | BR33: ='LASTNE FREKVENCE'!J33 -> 2 | BS33: ='LASTNE FREKVENCE'!K33 -> 4 | BT33: ='LASTNE FREKVENCE'!L33 -> 0 | BU33: ='LASTNE FREKVENCE'!M33 -> 38.79567809 | BV33: ='LASTNE FREKVENCE'!N33 -> 2D | BW33: ='LASTNE FREKVENCE'!O33 -> 2,4,0
B34: 10. | C34: =IF(LEN('ODMEVNI CAS'!C35:D35)=0," ",'ODMEVNI CAS'!C35:D35) ->  | E34: =IF(LEN('ODMEVNI CAS'!E35:L35)=0," ",'ODMEVNI CAS'!E35:L35) ->  | M34: =IF(LEN('ODMEVNI CAS'!M35)=0," ",'ODMEVNI CAS'!M35) ->  | N34: m2 | AD34: =IF(racun3!C17=0," ",racun3!C17) ->  | AE34: =IF(racun3!D17=0," ",racun3!D17) ->  | AF34: =IF(racun3!E17=0," ",racun3!E17) ->  | AG34: =IF(racun3!F17=0," ",racun3!F17) ->  | AH34: =IF(racun3!G17=0," ",racun3!G17) ->  | AI34: =IF(racun3!H17=0," ",racun3!H17) ->  | AJ34: =IF(racun3!J17=0," ",racun3!J17) ->  | AK34: =IF(racun3!L17=0," ",racun3!L17) ->  | AL34: =IF(racun3!M17=0," ",racun3!M17) ->  | AM34: =IF(racun3!N17=0," ",racun3!N17) ->  | AN34: =IF(racun3!O17=0," ",racun3!O17) ->  | AO34: =IF(racun3!P17=0," ",racun3!P17) ->  | AP34: =IF(racun3!Q17=0," ",racun3!Q17) ->  | AU34: frekvenčni pasovi [Hz] | BA34: S | BB34: frekvenčni pasovi [Hz] | BQ34: 27 | BR34: ='LASTNE FREKVENCE'!J34 -> 2 | BS34: ='LASTNE FREKVENCE'!K34 -> 5 | BT34: ='LASTNE FREKVENCE'!L34 -> 0 | BU34: ='LASTNE FREKVENCE'!M34 -> 39.8318844 | BV34: ='LASTNE FREKVENCE'!N34 -> 2D | BW34: ='LASTNE FREKVENCE'!O34 -> 2,5,0
B35: 11. | C35: =IF(LEN('ODMEVNI CAS'!C36:D36)=0," ",'ODMEVNI CAS'!C36:D36) ->  | E35: =IF(LEN('ODMEVNI CAS'!E36:L36)=0," ",'ODMEVNI CAS'!E36:L36) ->  | M35: =IF(LEN('ODMEVNI CAS'!M36)=0," ",'ODMEVNI CAS'!M36) ->  | N35: m2 | AB35: 13. | AC35: =E37 ->  | AU35: 125 | AV35: 250 | AW35: 500 | AX35: 1000 | AY35: 2000 | AZ35: 4000 | BA35: [m2] | BB35: 125 | BC35: 250 | BD35: 500 | BE35: 1000 | BF35: 2000 | BG35: 4000 | BQ35: 28 | BR35: ='LASTNE FREKVENCE'!J35 -> 2 | BS35: ='LASTNE FREKVENCE'!K35 -> 6 | BT35: ='LASTNE FREKVENCE'!L35 -> 0 | BU35: ='LASTNE FREKVENCE'!M35 -> 41.06286411 | BV35: ='LASTNE FREKVENCE'!N35 -> 2D | BW35: ='LASTNE FREKVENCE'!O35 -> 2,6,0
B36: 12. | C36: =IF(LEN('ODMEVNI CAS'!C37:D37)=0," ",'ODMEVNI CAS'!C37:D37) ->  | E36: =IF(LEN('ODMEVNI CAS'!E37:L37)=0," ",'ODMEVNI CAS'!E37:L37) ->  | M36: =IF(LEN('ODMEVNI CAS'!M37)=0," ",'ODMEVNI CAS'!M37) ->  | N36: m2 | AD36: =IF(racun3!C18=0," ",racun3!C18) ->  | AE36: =IF(racun3!D18=0," ",racun3!D18) ->  | AF36: =IF(racun3!E18=0," ",racun3!E18) ->  | AG36: =IF(racun3!F18=0," ",racun3!F18) ->  | AH36: =IF(racun3!G18=0," ",racun3!G18) ->  | AI36: =IF(racun3!H18=0," ",racun3!H18) ->  | AJ36: =IF(racun3!J18=0," ",racun3!J18) ->  | AK36: =IF(racun3!L18=0," ",racun3!L18) ->  | AL36: =IF(racun3!M18=0," ",racun3!M18) ->  | AM36: =IF(racun3!N18=0," ",racun3!N18) ->  | AN36: =IF(racun3!O18=0," ",racun3!O18) ->  | AO36: =IF(racun3!P18=0," ",racun3!P18) ->  | AP36: =IF(racun3!Q18=0," ",racun3!Q18) ->  | AU36: Povprečen α: | BA36: Skupna S: | BB36: Skupna A: | BQ36: 29 | BR36: ='LASTNE FREKVENCE'!J36 -> 2 | BS36: ='LASTNE FREKVENCE'!K36 -> 7 | BT36: ='LASTNE FREKVENCE'!L36 -> 0 | BU36: ='LASTNE FREKVENCE'!M36 -> 42.47168492 | BV36: ='LASTNE FREKVENCE'!N36 -> 2D | BW36: ='LASTNE FREKVENCE'!O36 -> 2,7,0
B37: 13. | C37: =IF(LEN('ODMEVNI CAS'!C38:D38)=0," ",'ODMEVNI CAS'!C38:D38) ->  | E37: =IF(LEN('ODMEVNI CAS'!E38:L38)=0," ",'ODMEVNI CAS'!E38:L38) ->  | M37: =IF(LEN('ODMEVNI CAS'!M38)=0," ",'ODMEVNI CAS'!M38) ->  | N37: m2 | AB37: 14. | AC37: =E38 ->  | AU37: =IF(racun3!C32=0," ",racun3!C32) -> 0.1089708141 | AV37: =IF(racun3!D32=0," ",racun3!D32) -> 0.1202150538 | AW37: =IF(racun3!E32=0," ",racun3!E32) -> 0.1267895545 | AX37: =IF(racun3!F32=0," ",racun3!F32) -> 0.1277726575 | AY37: =IF(racun3!G32=0," ",racun3!G32) -> 0.1363133641 | AZ37: =IF(racun3!H32=0," ",racun3!H32) -> 0.1347158218 | BA37: =IF(racun3!J31=0," ",racun3!J31) -> 325.5 | BB37: =IF(racun3!L31=0," ",racun3!L31) -> 35.47 | BC37: =IF(racun3!M31=0," ",racun3!M31) -> 39.13 | BD37: =IF(racun3!N31=0," ",racun3!N31) -> 41.27 | BE37: =IF(racun3!O31=0," ",racun3!O31) -> 41.59 | BF37: =IF(racun3!P31=0," ",racun3!P31) -> 44.37 | BG37: =IF(racun3!Q31=0," ",racun3!Q31) -> 43.85 | BQ37: 30 | BR37: ='LASTNE FREKVENCE'!J37 -> 2 | BS37: ='LASTNE FREKVENCE'!K37 -> 8 | BT37: ='LASTNE FREKVENCE'!L37 -> 0 | BU37: ='LASTNE FREKVENCE'!M37 -> 44.04128345 | BV37: ='LASTNE FREKVENCE'!N37 -> 2D | BW37: ='LASTNE FREKVENCE'!O37 -> 2,8,0
B38: 14. | C38: =IF(LEN('ODMEVNI CAS'!C39:D39)=0," ",'ODMEVNI CAS'!C39:D39) ->  | E38: =IF(LEN('ODMEVNI CAS'!E39:L39)=0," ",'ODMEVNI CAS'!E39:L39) ->  | M38: =IF(LEN('ODMEVNI CAS'!M39)=0," ",'ODMEVNI CAS'!M39) ->  | N38: m2 | AD38: =IF(racun3!C19=0," ",racun3!C19) ->  | AE38: =IF(racun3!D19=0," ",racun3!D19) ->  | AF38: =IF(racun3!E19=0," ",racun3!E19) ->  | AG38: =IF(racun3!F19=0," ",racun3!F19) ->  | AH38: =IF(racun3!G19=0," ",racun3!G19) ->  | AI38: =IF(racun3!H19=0," ",racun3!H19) ->  | AJ38: =IF(racun3!J19=0," ",racun3!J19) ->  | AK38: =IF(racun3!L19=0," ",racun3!L19) ->  | AL38: =IF(racun3!M19=0," ",racun3!M19) ->  | AM38: =IF(racun3!N19=0," ",racun3!N19) ->  | AN38: =IF(racun3!O19=0," ",racun3!O19) ->  | AO38: =IF(racun3!P19=0," ",racun3!P19) ->  | AP38: =IF(racun3!Q19=0," ",racun3!Q19) ->  | BQ38: 31 | BR38: ='LASTNE FREKVENCE'!J38 -> 2 | BS38: ='LASTNE FREKVENCE'!K38 -> 9 | BT38: ='LASTNE FREKVENCE'!L38 -> 0 | BU38: ='LASTNE FREKVENCE'!M38 -> 45.75511657 | BV38: ='LASTNE FREKVENCE'!N38 -> 2D | BW38: ='LASTNE FREKVENCE'!O38 -> 2,9,0
B39: 15. | C39: =IF(LEN('ODMEVNI CAS'!C40:D40)=0," ",'ODMEVNI CAS'!C40:D40) ->  | E39: =IF(LEN('ODMEVNI CAS'!E40:L40)=0," ",'ODMEVNI CAS'!E40:L40) ->  | M39: =IF(LEN('ODMEVNI CAS'!M40)=0," ",'ODMEVNI CAS'!M40) ->  | N39: m2 | AB39: 15. | AC39: =E39 ->  | BQ39: 32 | BR39: ='LASTNE FREKVENCE'!J39 -> 3 | BS39: ='LASTNE FREKVENCE'!K39 -> 10 | BT39: ='LASTNE FREKVENCE'!L39 -> 0 | BU39: ='LASTNE FREKVENCE'!M39 -> 62.97506476 | BV39: ='LASTNE FREKVENCE'!N39 -> 2D | BW39: ='LASTNE FREKVENCE'!O39 -> 3,10,0
B40: 16. | C40: =IF(LEN('ODMEVNI CAS'!C41:D41)=0," ",'ODMEVNI CAS'!C41:D41) ->  | E40: =IF(LEN('ODMEVNI CAS'!E41:L41)=0," ",'ODMEVNI CAS'!E41:L41) ->  | M40: =IF(LEN('ODMEVNI CAS'!M41)=0," ",'ODMEVNI CAS'!M41) ->  | N40: m2 | AD40: =IF(racun3!C20=0," ",racun3!C20) ->  | AE40: =IF(racun3!D20=0," ",racun3!D20) ->  | AF40: =IF(racun3!E20=0," ",racun3!E20) ->  | AG40: =IF(racun3!F20=0," ",racun3!F20) ->  | AH40: =IF(racun3!G20=0," ",racun3!G20) ->  | AI40: =IF(racun3!H20=0," ",racun3!H20) ->  | AJ40: =IF(racun3!J20=0," ",racun3!J20) ->  | AK40: =IF(racun3!L20=0," ",racun3!L20) ->  | AL40: =IF(racun3!M20=0," ",racun3!M20) ->  | AM40: =IF(racun3!N20=0," ",racun3!N20) ->  | AN40: =IF(racun3!O20=0," ",racun3!O20) ->  | AO40: =IF(racun3!P20=0," ",racun3!P20) ->  | AP40: =IF(racun3!Q20=0," ",racun3!Q20) ->  | BQ40: 33 | BR40: ='LASTNE FREKVENCE'!J40 -> 3 | BS40: ='LASTNE FREKVENCE'!K40 -> 0 | BT40: ='LASTNE FREKVENCE'!L40 -> 0 | BU40: ='LASTNE FREKVENCE'!M40 -> 55.32258065 | BV40: ='LASTNE FREKVENCE'!N40 -> 1D | BW40: ='LASTNE FREKVENCE'!O40 -> 3,0,0
AB41: 16. | AC41: =E40 ->  | BQ41: 34 | BR41: ='LASTNE FREKVENCE'!J41 -> 3 | BS41: ='LASTNE FREKVENCE'!K41 -> 1 | BT41: ='LASTNE FREKVENCE'!L41 -> 0 | BU41: ='LASTNE FREKVENCE'!M41 -> 55.40433772 | BV41: ='LASTNE FREKVENCE'!N41 -> 2D | BW41: ='LASTNE FREKVENCE'!O41 -> 3,1,0
B42: Dodani absorpcijski elementi | AD42: =IF(racun3!C21=0," ",racun3!C21) ->  | AE42: =IF(racun3!D21=0," ",racun3!D21) ->  | AF42: =IF(racun3!E21=0," ",racun3!E21) ->  | AG42: =IF(racun3!F21=0," ",racun3!F21) ->  | AH42: =IF(racun3!G21=0," ",racun3!G21) ->  | AI42: =IF(racun3!H21=0," ",racun3!H21) ->  | AJ42: =IF(racun3!J21=0," ",racun3!J21) ->  | AK42: =IF(racun3!L21=0," ",racun3!L21) ->  | AL42: =IF(racun3!M21=0," ",racun3!M21) ->  | AM42: =IF(racun3!N21=0," ",racun3!N21) ->  | AN42: =IF(racun3!O21=0," ",racun3!O21) ->  | AO42: =IF(racun3!P21=0," ",racun3!P21) ->  | AP42: =IF(racun3!Q21=0," ",racun3!Q21) ->  | BQ42: 35 | BR42: ='LASTNE FREKVENCE'!J42 -> 3 | BS42: ='LASTNE FREKVENCE'!K42 -> 2 | BT42: ='LASTNE FREKVENCE'!L42 -> 0 | BU42: ='LASTNE FREKVENCE'!M42 -> 55.64888825 | BV42: ='LASTNE FREKVENCE'!N42 -> 2D | BW42: ='LASTNE FREKVENCE'!O42 -> 3,2,0
AD43: Povprečen α: | AJ43: Skupna S: | AK43: Skupna A: | BQ43: 36 | BR43: ='LASTNE FREKVENCE'!J43 -> 3 | BS43: ='LASTNE FREKVENCE'!K43 -> 3 | BT43: ='LASTNE FREKVENCE'!L43 -> 0 | BU43: ='LASTNE FREKVENCE'!M43 -> 56.0541016 | BV43: ='LASTNE FREKVENCE'!N43 -> 2D | BW43: ='LASTNE FREKVENCE'!O43 -> 3,3,0
B44: vrsta materiala | E44: material | M44: Površina | AD44: =IF(racun!C32=0," ",racun!C32) -> 0.04866290019 | AE44: =IF(racun!D32=0," ",racun!D32) -> 0.04813559322 | AF44: =IF(racun!E32=0," ",racun!E32) -> 0.04338983051 | AG44: =IF(racun!F32=0," ",racun!F32) -> 0.0513747646 | AH44: =IF(racun!G32=0," ",racun!G32) -> 0.06711864407 | AI44: =IF(racun!H32=0," ",racun!H32) -> 0.06026365348 | AJ44: =IF(racun!J31=0," ",racun!J31) -> 265.5 | AK44: =IF(racun!L31=0," ",racun!L31) -> 12.92 | AL44: =IF(racun!M31=0," ",racun!M31) -> 12.78 | AM44: =IF(racun!N31=0," ",racun!N31) -> 11.52 | AN44: =IF(racun!O31=0," ",racun!O31) -> 13.64 | AO44: =IF(racun!P31=0," ",racun!P31) -> 17.82 | AP44: =IF(racun!Q31=0," ",racun!Q31) -> 16 | BQ44: 37 | BR44: ='LASTNE FREKVENCE'!J44 -> 3 | BS44: ='LASTNE FREKVENCE'!K44 -> 4 | BT44: ='LASTNE FREKVENCE'!L44 -> 0 | BU44: ='LASTNE FREKVENCE'!M44 -> 56.6165282 | BV44: ='LASTNE FREKVENCE'!N44 -> 2D | BW44: ='LASTNE FREKVENCE'!O44 -> 3,4,0
B45: 1. | C45: =IF(LEN('ODMEVNI CAS'!C46:D46)=0," ",'ODMEVNI CAS'!C46:D46) -> absorpcijski material | E45: =IF(LEN('ODMEVNI CAS'!E46:L46)=0," ",'ODMEVNI CAS'!E46:L46) -> mikroperforirani absorberji - 40cm votilne | M45: =IF(LEN('ODMEVNI CAS'!M46)=0," ",'ODMEVNI CAS'!M46) -> 15 | N45: m2 | BQ45: 38 | BR45: ='LASTNE FREKVENCE'!J45 -> 3 | BS45: ='LASTNE FREKVENCE'!K45 -> 5 | BT45: ='LASTNE FREKVENCE'!L45 -> 0 | BU45: ='LASTNE FREKVENCE'!M45 -> 57.33154143 | BV45: ='LASTNE FREKVENCE'!N45 -> 2D | BW45: ='LASTNE FREKVENCE'!O45 -> 3,5,0
B46: 2. | C46: =IF(LEN('ODMEVNI CAS'!C47:D47)=0," ",'ODMEVNI CAS'!C47:D47) -> absorpcijski material | E46: =IF(LEN('ODMEVNI CAS'!E47:L47)=0," ",'ODMEVNI CAS'!E47:L47) -> mineralna volna 5 cm (70 kg/m³), 30 cm odmaknjena od stene | M46: =IF(LEN('ODMEVNI CAS'!M47)=0," ",'ODMEVNI CAS'!M47) -> 10 | N46: m2 | AB46: absorpcija ljudi v prostoru: | BQ46: 39 | BR46: ='LASTNE FREKVENCE'!J46 -> 3 | BS46: ='LASTNE FREKVENCE'!K46 -> 6 | BT46: ='LASTNE FREKVENCE'!L46 -> 0 | BU46: ='LASTNE FREKVENCE'!M46 -> 58.19351713 | BV46: ='LASTNE FREKVENCE'!N46 -> 2D | BW46: ='LASTNE FREKVENCE'!O46 -> 3,6,0
B47: 3. | C47: =IF(LEN('ODMEVNI CAS'!C48:D48)=0," ",'ODMEVNI CAS'!C48:D48) -> lastni materiali | E47: =IF(LEN('ODMEVNI CAS'!E48:L48)=0," ",'ODMEVNI CAS'!E48:L48) -> material 1 | M47: =IF(LEN('ODMEVNI CAS'!M48)=0," ",'ODMEVNI CAS'!M48) -> 10 | N47: m2 | BQ47: 40 | BR47: ='LASTNE FREKVENCE'!J47 -> 3 | BS47: ='LASTNE FREKVENCE'!K47 -> 7 | BT47: ='LASTNE FREKVENCE'!L47 -> 0 | BU47: ='LASTNE FREKVENCE'!M47 -> 59.19603574 | BV47: ='LASTNE FREKVENCE'!N47 -> 2D | BW47: ='LASTNE FREKVENCE'!O47 -> 3,7,0
B48: 4. | C48: =IF(LEN('ODMEVNI CAS'!C49:D49)=0," ",'ODMEVNI CAS'!C49:D49) -> absorpcijski material | E48: =IF(LEN('ODMEVNI CAS'!E49:L49)=0," ",'ODMEVNI CAS'!E49:L49) -> akustične plošče 12.7 mm | M48: =IF(LEN('ODMEVNI CAS'!M49)=0," ",'ODMEVNI CAS'!M49) -> 5 | N48: m2 | AD48: absorpcijski koeficient (α) | AJ48: št. | AK48: ekvivalentna absorpcijska površina (A) | BQ48: 41 | BR48: ='LASTNE FREKVENCE'!J48 -> 3 | BS48: ='LASTNE FREKVENCE'!K48 -> 8 | BT48: ='LASTNE FREKVENCE'!L48 -> 0 | BU48: ='LASTNE FREKVENCE'!M48 -> 60.33209158 | BV48: ='LASTNE FREKVENCE'!N48 -> 2D | BW48: ='LASTNE FREKVENCE'!O48 -> 3,8,0
B49: 5. | C49: =IF(LEN('ODMEVNI CAS'!C50:D50)=0," ",'ODMEVNI CAS'!C50:D50) ->  | E49: =IF(LEN('ODMEVNI CAS'!E50:L50)=0," ",'ODMEVNI CAS'!E50:L50) ->  | M49: =IF(LEN('ODMEVNI CAS'!M50)=0," ",'ODMEVNI CAS'!M50) ->  | N49: m2 | AD49: frekvenčni pasovi [Hz] | AJ49: ljudi | AK49: frekvenčni pasovi [Hz] | BQ49: 42 | BR49: ='LASTNE FREKVENCE'!J49 -> 3 | BS49: ='LASTNE FREKVENCE'!K49 -> 9 | BT49: ='LASTNE FREKVENCE'!L49 -> 0 | BU49: ='LASTNE FREKVENCE'!M49 -> 61.59429616 | BV49: ='LASTNE FREKVENCE'!N49 -> 2D | BW49: ='LASTNE FREKVENCE'!O49 -> 3,9,0
B50: 6. | C50: =IF(LEN('ODMEVNI CAS'!C51:D51)=0," ",'ODMEVNI CAS'!C51:D51) ->  | E50: =IF(LEN('ODMEVNI CAS'!E51:L51)=0," ",'ODMEVNI CAS'!E51:L51) ->  | M50: =IF(LEN('ODMEVNI CAS'!M51)=0," ",'ODMEVNI CAS'!M51) ->  | N50: m2 | AD50: 125 | AE50: 250 | AF50: 500 | AG50: 1000 | AH50: 2000 | AI50: 4000 | AK50: 125 | AL50: 250 | AM50: 500 | AN50: 1000 | AO50: 2000 | AP50: 4000 | BQ50: 43 | BR50: ='LASTNE FREKVENCE'!J50 -> 4 | BS50: ='LASTNE FREKVENCE'!K50 -> 10 | BT50: ='LASTNE FREKVENCE'!L50 -> 0 | BU50: ='LASTNE FREKVENCE'!M50 -> 79.6637688 | BV50: ='LASTNE FREKVENCE'!N50 -> 2D | BW50: ='LASTNE FREKVENCE'!O50 -> 4,10,0
B51: 7. | C51: =IF(LEN('ODMEVNI CAS'!C52:D52)=0," ",'ODMEVNI CAS'!C52:D52) ->  | E51: =IF(LEN('ODMEVNI CAS'!E52:L52)=0," ",'ODMEVNI CAS'!E52:L52) ->  | M51: =IF(LEN('ODMEVNI CAS'!M52)=0," ",'ODMEVNI CAS'!M52) ->  | N51: m2 | AB51: 1. | AC51: oseba - sedi | BQ51: 44 | BR51: ='LASTNE FREKVENCE'!J51 -> 4 | BS51: ='LASTNE FREKVENCE'!K51 -> 0 | BT51: ='LASTNE FREKVENCE'!L51 -> 0 | BU51: ='LASTNE FREKVENCE'!M51 -> 73.76344086 | BV51: ='LASTNE FREKVENCE'!N51 -> 1D | BW51: ='LASTNE FREKVENCE'!O51 -> 4,0,0
B52: 8. | C52: =IF(LEN('ODMEVNI CAS'!C53:D53)=0," ",'ODMEVNI CAS'!C53:D53) ->  | E52: =IF(LEN('ODMEVNI CAS'!E53:L53)=0," ",'ODMEVNI CAS'!E53:L53) ->  | M52: =IF(LEN('ODMEVNI CAS'!M53)=0," ",'ODMEVNI CAS'!M53) ->  | N52: m2 | AD52: =IF(racun3!C73=0," ",racun3!C73) -> 0.23 | AE52: =IF(racun3!D73=0," ",racun3!D73) -> 0.37 | AF52: =IF(racun3!E73=0," ",racun3!E73) -> 0.44 | AG52: =IF(racun3!F73=0," ",racun3!F73) -> 0.45 | AH52: =IF(racun3!G73=0," ",racun3!G73) -> 0.45 | AI52: =IF(racun3!H73=0," ",racun3!H73) -> 0.45 | AJ52: =IF(E19=0," ",E19) -> 20 | AK52: =IF(racun3!L73=0," ",racun3!L73) -> 4.6 | AL52: =IF(racun3!M73=0," ",racun3!M73) -> 7.4 | AM52: =IF(racun3!N73=0," ",racun3!N73) -> 8.8 | AN52: =IF(racun3!O73=0," ",racun3!O73) -> 9 | AO52: =IF(racun3!P73=0," ",racun3!P73) -> 9 | AP52: =IF(racun3!Q73=0," ",racun3!Q73) -> 9 | BQ52: 45 | BR52: ='LASTNE FREKVENCE'!J52 -> 4 | BS52: ='LASTNE FREKVENCE'!K52 -> 1 | BT52: ='LASTNE FREKVENCE'!L52 -> 0 | BU52: ='LASTNE FREKVENCE'!M52 -> 73.82477847 | BV52: ='LASTNE FREKVENCE'!N52 -> 2D | BW52: ='LASTNE FREKVENCE'!O52 -> 4,1,0

Sheet podatki (hidden)
B2: konstanta zvočne absorbcije m pri 20°C in konstantnem atmosferskem pritisku 10-3 m-1 | M2: Vrste površin/elementov | P2: namembnost prostora | T2: A 6‐decibel reduction is clearly noticeable; a 10‐decibel reduction sounds half as loud; and a 20‐
B3: relativna vlažnost (%) | C3: frekvenčni pasovi | N3: nic | T3: decibel reduction sounds a quarter as loud.
C4: 63 | D4: 125 | E4: 250 | F4: 500 | G4: 1000 | H4: 2000 | I4: 4000 | J4: 8000 | M4: tla | N4: tla | P4: glasba | T4: Vir: Architectural acoustics ilustrated, str. 214
B5: 20 | C5: 0.06 | D5: 0.16 | E5: 0.32 | F5: 0.6 | G5: 1.5 | H5: 4.96 | I5: 17.2 | J5: 50 | M5: stene/strop | N5: stenestrop | P5: govor/predavanja
B6: 30 | C6: 0.044 | D6: 0.14 | E6: 0.33 | F6: 0.58 | G6: 1.15 | H6: 3.25 | I6: 11.26 | J6: 38.76 | M6: stavbno pohištvo | N6: stavbno | P6: pouk
B7: 40 | C7: 0.035 | D7: 0.12 | E7: 0.32 | F7: 0.6 | G7: 1.07 | H7: 2.58 | I7: 8.39 | J7: 29.94 | M7: oprema | N7: oprema | P7: pouk/pogovor
B8: 50 | C8: 0.028 | D8: 0.1 | E8: 0.3 | F8: 0.63 | G8: 1.07 | H8: 2.28 | I8: 6.83 | J8: 24.24 | M8: absorpcijski material | N8: absorpcijske | P8: šport
B9: 60 | C9: 0.024 | D9: 0.088 | E9: 0.28 | F9: 0.64 | G9: 1.11 | H9: 2.14 | I9: 5.9 | J9: 20.48 | M9: razno | N9: razno
B10: 70 | C10: 0.021 | D10: 0.077 | E10: 0.26 | F10: 0.64 | G10: 1.15 | H10: 2.08 | I10: 5.32 | J10: 17.88 | M10: lastni materiali | N10: lastni
N12: nic
M13: absorpcijski material | N13: absorpcijske
M14: lastni materiali | N14: lastni
B17: RESONANČNE FREKVENCE PROSTORA | L17: x | M17: y | N17: z | O17: frekvenca
L18: =IF(ROWS($L$18:L18)>podatki!$I$33,"",INDEX(xsmer,1+MOD(INT((ROWS($L$17:L18)-1)/ROWS(ysmer)),ROWS(zsmer)))) -> 0 | M18: =IF(ROWS($M$18:M18)>podatki!$I$33,"",INDEX(ysmer,1+MOD(ROWS($M$18:M18)-1,ROWS(zsmer)))) -> 0 | N18: =IF(ROWS($N$18:N18)>podatki!$I$33,"",INDEX(zsmer,1+INT((ROWS($N$18:N18)-1)/(ROWS(xsmer)*ROWS(ysmer))))) -> 0 | O18: =podatki!$D$20/2*(($L18)^2/podatki!$D$22^2+($M18)^2/podatki!$D$23^2+($N18)^2/podatki!$D$24^2)^(1/2) -> 0
L19: =IF(ROWS($L$18:L19)>podatki!$I$33,"",INDEX(xsmer,1+MOD(INT((ROWS($L$17:L19)-1)/ROWS(ysmer)),ROWS(zsmer)))) -> 0 | M19: =IF(ROWS($M$18:M19)>podatki!$I$33,"",INDEX(ysmer,1+MOD(ROWS($M$18:M19)-1,ROWS(zsmer)))) -> 1 | N19: =IF(ROWS($N$18:N19)>podatki!$I$33,"",INDEX(zsmer,1+INT((ROWS($N$18:N19)-1)/(ROWS(xsmer)*ROWS(ysmer))))) -> 0 | O19: =podatki!$D$20/2*(($L19)^2/podatki!$D$22^2+($M19)^2/podatki!$D$23^2+($N19)^2/podatki!$D$24^2)^(1/2) -> 17.15
B20: hitrost zvoka: | D20: 343 | E20: m/s | G20: x | H20: y | I20: z | L20: =IF(ROWS($L$18:L20)>podatki!$I$33,"",INDEX(xsmer,1+MOD(INT((ROWS($L$17:L20)-1)/ROWS(ysmer)),ROWS(zsmer)))) -> 0 | M20: =IF(ROWS($M$18:M20)>podatki!$I$33,"",INDEX(ysmer,1+MOD(ROWS($M$18:M20)-1,ROWS(zsmer)))) -> 2 | N20: =IF(ROWS($N$18:N20)>podatki!$I$33,"",INDEX(zsmer,1+INT((ROWS($N$18:N20)-1)/(ROWS(xsmer)*ROWS(ysmer))))) -> 0 | O20: =podatki!$D$20/2*(($L20)^2/podatki!$D$22^2+($M20)^2/podatki!$D$23^2+($N20)^2/podatki!$D$24^2)^(1/2) -> 34.3
G21: 0 | H21: 0 | I21: 0 | L21: =IF(ROWS($L$18:L21)>podatki!$I$33,"",INDEX(xsmer,1+MOD(INT((ROWS($L$17:L21)-1)/ROWS(ysmer)),ROWS(zsmer)))) -> 0 | M21: =IF(ROWS($M$18:M21)>podatki!$I$33,"",INDEX(ysmer,1+MOD(ROWS($M$18:M21)-1,ROWS(zsmer)))) -> 3 | N21: =IF(ROWS($N$18:N21)>podatki!$I$33,"",INDEX(zsmer,1+INT((ROWS($N$18:N21)-1)/(ROWS(xsmer)*ROWS(ysmer))))) -> 0 | O21: =podatki!$D$20/2*(($L21)^2/podatki!$D$22^2+($M21)^2/podatki!$D$23^2+($N21)^2/podatki!$D$24^2)^(1/2) -> 51.45
B22: smer (1) | D22: ='ODMEVNI CAS'!E13 -> 7 | E22: m | G22: 1 | H22: 1 | I22: 1 | L22: =IF(ROWS($L$18:L22)>podatki!$I$33,"",INDEX(xsmer,1+MOD(INT((ROWS($L$17:L22)-1)/ROWS(ysmer)),ROWS(zsmer)))) -> 0 | M22: =IF(ROWS($M$18:M22)>podatki!$I$33,"",INDEX(ysmer,1+MOD(ROWS($M$18:M22)-1,ROWS(zsmer)))) -> 4 | N22: =IF(ROWS($N$18:N22)>podatki!$I$33,"",INDEX(zsmer,1+INT((ROWS($N$18:N22)-1)/(ROWS(xsmer)*ROWS(ysmer))))) -> 0 | O22: =podatki!$D$20/2*(($L22)^2/podatki!$D$22^2+($M22)^2/podatki!$D$23^2+($N22)^2/podatki!$D$24^2)^(1/2) -> 68.6
B23: smer (2) | D23: ='ODMEVNI CAS'!E14 -> 10 | E23: m | G23: 2 | H23: 2 | I23: 2 | L23: =IF(ROWS($L$18:L23)>podatki!$I$33,"",INDEX(xsmer,1+MOD(INT((ROWS($L$17:L23)-1)/ROWS(ysmer)),ROWS(zsmer)))) -> 0 | M23: =IF(ROWS($M$18:M23)>podatki!$I$33,"",INDEX(ysmer,1+MOD(ROWS($M$18:M23)-1,ROWS(zsmer)))) -> 5 | N23: =IF(ROWS($N$18:N23)>podatki!$I$33,"",INDEX(zsmer,1+INT((ROWS($N$18:N23)-1)/(ROWS(xsmer)*ROWS(ysmer))))) -> 0 | O23: =podatki!$D$20/2*(($L23)^2/podatki!$D$22^2+($M23)^2/podatki!$D$23^2+($N23)^2/podatki!$D$24^2)^(1/2) -> 85.75
B24: smer (3) | D24: ='ODMEVNI CAS'!E15 -> 3 | E24: m | G24: 3 | H24: 3 | I24: 3 | L24: =IF(ROWS($L$18:L24)>podatki!$I$33,"",INDEX(xsmer,1+MOD(INT((ROWS($L$17:L24)-1)/ROWS(ysmer)),ROWS(zsmer)))) -> 0 | M24: =IF(ROWS($M$18:M24)>podatki!$I$33,"",INDEX(ysmer,1+MOD(ROWS($M$18:M24)-1,ROWS(zsmer)))) -> 6 | N24: =IF(ROWS($N$18:N24)>podatki!$I$33,"",INDEX(zsmer,1+INT((ROWS($N$18:N24)-1)/(ROWS(xsmer)*ROWS(ysmer))))) -> 0 | O24: =podatki!$D$20/2*(($L24)^2/podatki!$D$22^2+($M24)^2/podatki!$D$23^2+($N24)^2/podatki!$D$24^2)^(1/2) -> 102.9
G25: 4 | H25: 4 | I25: 4 | L25: =IF(ROWS($L$18:L25)>podatki!$I$33,"",INDEX(xsmer,1+MOD(INT((ROWS($L$17:L25)-1)/ROWS(ysmer)),ROWS(zsmer)))) -> 0 | M25: =IF(ROWS($M$18:M25)>podatki!$I$33,"",INDEX(ysmer,1+MOD(ROWS($M$18:M25)-1,ROWS(zsmer)))) -> 7 | N25: =IF(ROWS($N$18:N25)>podatki!$I$33,"",INDEX(zsmer,1+INT((ROWS($N$18:N25)-1)/(ROWS(xsmer)*ROWS(ysmer))))) -> 0 | O25: =podatki!$D$20/2*(($L25)^2/podatki!$D$22^2+($M25)^2/podatki!$D$23^2+($N25)^2/podatki!$D$24^2)^(1/2) -> 120.05
B26: vrste resonančnih frekvenc | G26: 5 | H26: 5 | I26: 5 | L26: =IF(ROWS($L$18:L26)>podatki!$I$33,"",INDEX(xsmer,1+MOD(INT((ROWS($L$17:L26)-1)/ROWS(ysmer)),ROWS(zsmer)))) -> 0 | M26: =IF(ROWS($M$18:M26)>podatki!$I$33,"",INDEX(ysmer,1+MOD(ROWS($M$18:M26)-1,ROWS(zsmer)))) -> 8 | N26: =IF(ROWS($N$18:N26)>podatki!$I$33,"",INDEX(zsmer,1+INT((ROWS($N$18:N26)-1)/(ROWS(xsmer)*ROWS(ysmer))))) -> 0 | O26: =podatki!$D$20/2*(($L26)^2/podatki!$D$22^2+($M26)^2/podatki!$D$23^2+($N26)^2/podatki!$D$24^2)^(1/2) -> 137.2
B27: osna | G27: 6 | H27: 6 | I27: 6 | L27: =IF(ROWS($L$18:L27)>podatki!$I$33,"",INDEX(xsmer,1+MOD(INT((ROWS($L$17:L27)-1)/ROWS(ysmer)),ROWS(zsmer)))) -> 0 | M27: =IF(ROWS($M$18:M27)>podatki!$I$33,"",INDEX(ysmer,1+MOD(ROWS($M$18:M27)-1,ROWS(zsmer)))) -> 9 | N27: =IF(ROWS($N$18:N27)>podatki!$I$33,"",INDEX(zsmer,1+INT((ROWS($N$18:N27)-1)/(ROWS(xsmer)*ROWS(ysmer))))) -> 0 | O27: =podatki!$D$20/2*(($L27)^2/podatki!$D$22^2+($M27)^2/podatki!$D$23^2+($N27)^2/podatki!$D$24^2)^(1/2) -> 154.35
B28: tangencialna | G28: 7 | H28: 7 | I28: 7 | L28: =IF(ROWS($L$18:L28)>podatki!$I$33,"",INDEX(xsmer,1+MOD(INT((ROWS($L$17:L28)-1)/ROWS(ysmer)),ROWS(zsmer)))) -> 1 | M28: =IF(ROWS($M$18:M28)>podatki!$I$33,"",INDEX(ysmer,1+MOD(ROWS($M$18:M28)-1,ROWS(zsmer)))) -> 10 | N28: =IF(ROWS($N$18:N28)>podatki!$I$33,"",INDEX(zsmer,1+INT((ROWS($N$18:N28)-1)/(ROWS(xsmer)*ROWS(ysmer))))) -> 0 | O28: =podatki!$D$20/2*(($L28)^2/podatki!$D$22^2+($M28)^2/podatki!$D$23^2+($N28)^2/podatki!$D$24^2)^(1/2) -> 173.2411614
B29: prostorska | G29: 8 | H29: 8 | I29: 8 | L29: =IF(ROWS($L$18:L29)>podatki!$I$33,"",INDEX(xsmer,1+MOD(INT((ROWS($L$17:L29)-1)/ROWS(ysmer)),ROWS(zsmer)))) -> 1 | M29: =IF(ROWS($M$18:M29)>podatki!$I$33,"",INDEX(ysmer,1+MOD(ROWS($M$18:M29)-1,ROWS(zsmer)))) -> 0 | N29: =IF(ROWS($N$18:N29)>podatki!$I$33,"",INDEX(zsmer,1+INT((ROWS($N$18:N29)-1)/(ROWS(xsmer)*ROWS(ysmer))))) -> 0 | O29: =podatki!$D$20/2*(($L29)^2/podatki!$D$22^2+($M29)^2/podatki!$D$23^2+($N29)^2/podatki!$D$24^2)^(1/2) -> 24.5
G30: 9 | H30: 9 | I30: 9 | L30: =IF(ROWS($L$18:L30)>podatki!$I$33,"",INDEX(xsmer,1+MOD(INT((ROWS($L$17:L30)-1)/ROWS(ysmer)),ROWS(zsmer)))) -> 1 | M30: =IF(ROWS($M$18:M30)>podatki!$I$33,"",INDEX(ysmer,1+MOD(ROWS($M$18:M30)-1,ROWS(zsmer)))) -> 1 | N30: =IF(ROWS($N$18:N30)>podatki!$I$33,"",INDEX(zsmer,1+INT((ROWS($N$18:N30)-1)/(ROWS(xsmer)*ROWS(ysmer))))) -> 0 | O30: =podatki!$D$20/2*(($L30)^2/podatki!$D$22^2+($M30)^2/podatki!$D$23^2+($N30)^2/podatki!$D$24^2)^(1/2) -> 29.90606126
G31: 10 | H31: 10 | I31: 10 | L31: =IF(ROWS($L$18:L31)>podatki!$I$33,"",INDEX(xsmer,1+MOD(INT((ROWS($L$17:L31)-1)/ROWS(ysmer)),ROWS(zsmer)))) -> 1 | M31: =IF(ROWS($M$18:M31)>podatki!$I$33,"",INDEX(ysmer,1+MOD(ROWS($M$18:M31)-1,ROWS(zsmer)))) -> 2 | N31: =IF(ROWS($N$18:N31)>podatki!$I$33,"",INDEX(zsmer,1+INT((ROWS($N$18:N31)-1)/(ROWS(xsmer)*ROWS(ysmer))))) -> 0 | O31: =podatki!$D$20/2*(($L31)^2/podatki!$D$22^2+($M31)^2/podatki!$D$23^2+($N31)^2/podatki!$D$24^2)^(1/2) -> 42.15139381
L32: =IF(ROWS($L$18:L32)>podatki!$I$33,"",INDEX(xsmer,1+MOD(INT((ROWS($L$17:L32)-1)/ROWS(ysmer)),ROWS(zsmer)))) -> 1 | M32: =IF(ROWS($M$18:M32)>podatki!$I$33,"",INDEX(ysmer,1+MOD(ROWS($M$18:M32)-1,ROWS(zsmer)))) -> 3 | N32: =IF(ROWS($N$18:N32)>podatki!$I$33,"",INDEX(zsmer,1+INT((ROWS($N$18:N32)-1)/(ROWS(xsmer)*ROWS(ysmer))))) -> 0 | O32: =podatki!$D$20/2*(($L32)^2/podatki!$D$22^2+($M32)^2/podatki!$D$23^2+($N32)^2/podatki!$D$24^2)^(1/2) -> 56.98554641
G33: skupaj kombinacij: | I33: =ROWS(xsmer)*ROWS(ysmer)*ROWS(zsmer) -> 1331 | L33: =IF(ROWS($L$18:L33)>podatki!$I$33,"",INDEX(xsmer,1+MOD(INT((ROWS($L$17:L33)-1)/ROWS(ysmer)),ROWS(zsmer)))) -> 1 | M33: =IF(ROWS($M$18:M33)>podatki!$I$33,"",INDEX(ysmer,1+MOD(ROWS($M$18:M33)-1,ROWS(zsmer)))) -> 4 | N33: =IF(ROWS($N$18:N33)>podatki!$I$33,"",INDEX(zsmer,1+INT((ROWS($N$18:N33)-1)/(ROWS(xsmer)*ROWS(ysmer))))) -> 0 | O33: =podatki!$D$20/2*(($L33)^2/podatki!$D$22^2+($M33)^2/podatki!$D$23^2+($N33)^2/podatki!$D$24^2)^(1/2) -> 72.84373686
L34: =IF(ROWS($L$18:L34)>podatki!$I$33,"",INDEX(xsmer,1+MOD(INT((ROWS($L$17:L34)-1)/ROWS(ysmer)),ROWS(zsmer)))) -> 1 | M34: =IF(ROWS($M$18:M34)>podatki!$I$33,"",INDEX(ysmer,1+MOD(ROWS($M$18:M34)-1,ROWS(zsmer)))) -> 5 | N34: =IF(ROWS($N$18:N34)>podatki!$I$33,"",INDEX(zsmer,1+INT((ROWS($N$18:N34)-1)/(ROWS(xsmer)*ROWS(ysmer))))) -> 0 | O34: =podatki!$D$20/2*(($L34)^2/podatki!$D$22^2+($M34)^2/podatki!$D$23^2+($N34)^2/podatki!$D$24^2)^(1/2) -> 89.18134614
L35: =IF(ROWS($L$18:L35)>podatki!$I$33,"",INDEX(xsmer,1+MOD(INT((ROWS($L$17:L35)-1)/ROWS(ysmer)),ROWS(zsmer)))) -> 1 | M35: =IF(ROWS($M$18:M35)>podatki!$I$33,"",INDEX(ysmer,1+MOD(ROWS($M$18:M35)-1,ROWS(zsmer)))) -> 6 | N35: =IF(ROWS($N$18:N35)>podatki!$I$33,"",INDEX(zsmer,1+INT((ROWS($N$18:N35)-1)/(ROWS(xsmer)*ROWS(ysmer))))) -> 0 | O35: =podatki!$D$20/2*(($L35)^2/podatki!$D$22^2+($M35)^2/podatki!$D$23^2+($N35)^2/podatki!$D$24^2)^(1/2) -> 105.7764624
L36: =IF(ROWS($L$18:L36)>podatki!$I$33,"",INDEX(xsmer,1+MOD(INT((ROWS($L$17:L36)-1)/ROWS(ysmer)),ROWS(zsmer)))) -> 1 | M36: =IF(ROWS($M$18:M36)>podatki!$I$33,"",INDEX(ysmer,1+MOD(ROWS($M$18:M36)-1,ROWS(zsmer)))) -> 7 | N36: =IF(ROWS($N$18:N36)>podatki!$I$33,"",INDEX(zsmer,1+INT((ROWS($N$18:N36)-1)/(ROWS(xsmer)*ROWS(ysmer))))) -> 0 | O36: =podatki!$D$20/2*(($L36)^2/podatki!$D$22^2+($M36)^2/podatki!$D$23^2+($N36)^2/podatki!$D$24^2)^(1/2) -> 122.5244976
L37: =IF(ROWS($L$18:L37)>podatki!$I$33,"",INDEX(xsmer,1+MOD(INT((ROWS($L$17:L37)-1)/ROWS(ysmer)),ROWS(zsmer)))) -> 1 | M37: =IF(ROWS($M$18:M37)>podatki!$I$33,"",INDEX(ysmer,1+MOD(ROWS($M$18:M37)-1,ROWS(zsmer)))) -> 8 | N37: =IF(ROWS($N$18:N37)>podatki!$I$33,"",INDEX(zsmer,1+INT((ROWS($N$18:N37)-1)/(ROWS(xsmer)*ROWS(ysmer))))) -> 0 | O37: =podatki!$D$20/2*(($L37)^2/podatki!$D$22^2+($M37)^2/podatki!$D$23^2+($N37)^2/podatki!$D$24^2)^(1/2) -> 139.370334
L38: =IF(ROWS($L$18:L38)>podatki!$I$33,"",INDEX(xsmer,1+MOD(INT((ROWS($L$17:L38)-1)/ROWS(ysmer)),ROWS(zsmer)))) -> 1 | M38: =IF(ROWS($M$18:M38)>podatki!$I$33,"",INDEX(ysmer,1+MOD(ROWS($M$18:M38)-1,ROWS(zsmer)))) -> 9 | N38: =IF(ROWS($N$18:N38)>podatki!$I$33,"",INDEX(zsmer,1+INT((ROWS($N$18:N38)-1)/(ROWS(xsmer)*ROWS(ysmer))))) -> 0 | O38: =podatki!$D$20/2*(($L38)^2/podatki!$D$22^2+($M38)^2/podatki!$D$23^2+($N38)^2/podatki!$D$24^2)^(1/2) -> 156.2823487
L39: =IF(ROWS($L$18:L39)>podatki!$I$33,"",INDEX(xsmer,1+MOD(INT((ROWS($L$17:L39)-1)/ROWS(ysmer)),ROWS(zsmer)))) -> 2 | M39: =IF(ROWS($M$18:M39)>podatki!$I$33,"",INDEX(ysmer,1+MOD(ROWS($M$18:M39)-1,ROWS(zsmer)))) -> 10 | N39: =IF(ROWS($N$18:N39)>podatki!$I$33,"",INDEX(zsmer,1+INT((ROWS($N$18:N39)-1)/(ROWS(xsmer)*ROWS(ysmer))))) -> 0 | O39: =podatki!$D$20/2*(($L39)^2/podatki!$D$22^2+($M39)^2/podatki!$D$23^2+($N39)^2/podatki!$D$24^2)^(1/2) -> 178.3626923
L40: =IF(ROWS($L$18:L40)>podatki!$I$33,"",INDEX(xsmer,1+MOD(INT((ROWS($L$17:L40)-1)/ROWS(ysmer)),ROWS(zsmer)))) -> 2 | M40: =IF(ROWS($M$18:M40)>podatki!$I$33,"",INDEX(ysmer,1+MOD(ROWS($M$18:M40)-1,ROWS(zsmer)))) -> 0 | N40: =IF(ROWS($N$18:N40)>podatki!$I$33,"",INDEX(zsmer,1+INT((ROWS($N$18:N40)-1)/(ROWS(xsmer)*ROWS(ysmer))))) -> 0 | O40: =podatki!$D$20/2*(($L40)^2/podatki!$D$22^2+($M40)^2/podatki!$D$23^2+($N40)^2/podatki!$D$24^2)^(1/2) -> 49
L41: =IF(ROWS($L$18:L41)>podatki!$I$33,"",INDEX(xsmer,1+MOD(INT((ROWS($L$17:L41)-1)/ROWS(ysmer)),ROWS(zsmer)))) -> 2 | M41: =IF(ROWS($M$18:M41)>podatki!$I$33,"",INDEX(ysmer,1+MOD(ROWS($M$18:M41)-1,ROWS(zsmer)))) -> 1 | N41: =IF(ROWS($N$18:N41)>podatki!$I$33,"",INDEX(zsmer,1+INT((ROWS($N$18:N41)-1)/(ROWS(xsmer)*ROWS(ysmer))))) -> 0 | O41: =podatki!$D$20/2*(($L41)^2/podatki!$D$22^2+($M41)^2/podatki!$D$23^2+($N41)^2/podatki!$D$24^2)^(1/2) -> 51.91456925
L42: =IF(ROWS($L$18:L42)>podatki!$I$33,"",INDEX(xsmer,1+MOD(INT((ROWS($L$17:L42)-1)/ROWS(ysmer)),ROWS(zsmer)))) -> 2 | M42: =IF(ROWS($M$18:M42)>podatki!$I$33,"",INDEX(ysmer,1+MOD(ROWS($M$18:M42)-1,ROWS(zsmer)))) -> 2 | N42: =IF(ROWS($N$18:N42)>podatki!$I$33,"",INDEX(zsmer,1+INT((ROWS($N$18:N42)-1)/(ROWS(xsmer)*ROWS(ysmer))))) -> 0 | O42: =podatki!$D$20/2*(($L42)^2/podatki!$D$22^2+($M42)^2/podatki!$D$23^2+($N42)^2/podatki!$D$24^2)^(1/2) -> 59.81212252
L43: =IF(ROWS($L$18:L43)>podatki!$I$33,"",INDEX(xsmer,1+MOD(INT((ROWS($L$17:L43)-1)/ROWS(ysmer)),ROWS(zsmer)))) -> 2 | M43: =IF(ROWS($M$18:M43)>podatki!$I$33,"",INDEX(ysmer,1+MOD(ROWS($M$18:M43)-1,ROWS(zsmer)))) -> 3 | N43: =IF(ROWS($N$18:N43)>podatki!$I$33,"",INDEX(zsmer,1+INT((ROWS($N$18:N43)-1)/(ROWS(xsmer)*ROWS(ysmer))))) -> 0 | O43: =podatki!$D$20/2*(($L43)^2/podatki!$D$22^2+($M43)^2/podatki!$D$23^2+($N43)^2/podatki!$D$24^2)^(1/2) -> 71.05
L44: =IF(ROWS($L$18:L44)>podatki!$I$33,"",INDEX(xsmer,1+MOD(INT((ROWS($L$17:L44)-1)/ROWS(ysmer)),ROWS(zsmer)))) -> 2 | M44: =IF(ROWS($M$18:M44)>podatki!$I$33,"",INDEX(ysmer,1+MOD(ROWS($M$18:M44)-1,ROWS(zsmer)))) -> 4 | N44: =IF(ROWS($N$18:N44)>podatki!$I$33,"",INDEX(zsmer,1+INT((ROWS($N$18:N44)-1)/(ROWS(xsmer)*ROWS(ysmer))))) -> 0 | O44: =podatki!$D$20/2*(($L44)^2/podatki!$D$22^2+($M44)^2/podatki!$D$23^2+($N44)^2/podatki!$D$24^2)^(1/2) -> 84.30278762
L45: =IF(ROWS($L$18:L45)>podatki!$I$33,"",INDEX(xsmer,1+MOD(INT((ROWS($L$17:L45)-1)/ROWS(ysmer)),ROWS(zsmer)))) -> 2 | M45: =IF(ROWS($M$18:M45)>podatki!$I$33,"",INDEX(ysmer,1+MOD(ROWS($M$18:M45)-1,ROWS(zsmer)))) -> 5 | N45: =IF(ROWS($N$18:N45)>podatki!$I$33,"",INDEX(zsmer,1+INT((ROWS($N$18:N45)-1)/(ROWS(xsmer)*ROWS(ysmer))))) -> 0 | O45: =podatki!$D$20/2*(($L45)^2/podatki!$D$22^2+($M45)^2/podatki!$D$23^2+($N45)^2/podatki!$D$24^2)^(1/2) -> 98.76265742
L46: =IF(ROWS($L$18:L46)>podatki!$I$33,"",INDEX(xsmer,1+MOD(INT((ROWS($L$17:L46)-1)/ROWS(ysmer)),ROWS(zsmer)))) -> 2 | M46: =IF(ROWS($M$18:M46)>podatki!$I$33,"",INDEX(ysmer,1+MOD(ROWS($M$18:M46)-1,ROWS(zsmer)))) -> 6 | N46: =IF(ROWS($N$18:N46)>podatki!$I$33,"",INDEX(zsmer,1+INT((ROWS($N$18:N46)-1)/(ROWS(xsmer)*ROWS(ysmer))))) -> 0 | O46: =podatki!$D$20/2*(($L46)^2/podatki!$D$22^2+($M46)^2/podatki!$D$23^2+($N46)^2/podatki!$D$24^2)^(1/2) -> 113.9710928
L47: =IF(ROWS($L$18:L47)>podatki!$I$33,"",INDEX(xsmer,1+MOD(INT((ROWS($L$17:L47)-1)/ROWS(ysmer)),ROWS(zsmer)))) -> 2 | M47: =IF(ROWS($M$18:M47)>podatki!$I$33,"",INDEX(ysmer,1+MOD(ROWS($M$18:M47)-1,ROWS(zsmer)))) -> 7 | N47: =IF(ROWS($N$18:N47)>podatki!$I$33,"",INDEX(zsmer,1+INT((ROWS($N$18:N47)-1)/(ROWS(xsmer)*ROWS(ysmer))))) -> 0 | O47: =podatki!$D$20/2*(($L47)^2/podatki!$D$22^2+($M47)^2/podatki!$D$23^2+($N47)^2/podatki!$D$24^2)^(1/2) -> 129.6649625
L48: =IF(ROWS($L$18:L48)>podatki!$I$33,"",INDEX(xsmer,1+MOD(INT((ROWS($L$17:L48)-1)/ROWS(ysmer)),ROWS(zsmer)))) -> 2 | M48: =IF(ROWS($M$18:M48)>podatki!$I$33,"",INDEX(ysmer,1+MOD(ROWS($M$18:M48)-1,ROWS(zsmer)))) -> 8 | N48: =IF(ROWS($N$18:N48)>podatki!$I$33,"",INDEX(zsmer,1+INT((ROWS($N$18:N48)-1)/(ROWS(xsmer)*ROWS(ysmer))))) -> 0 | O48: =podatki!$D$20/2*(($L48)^2/podatki!$D$22^2+($M48)^2/podatki!$D$23^2+($N48)^2/podatki!$D$24^2)^(1/2) -> 145.6874737
L49: =IF(ROWS($L$18:L49)>podatki!$I$33,"",INDEX(xsmer,1+MOD(INT((ROWS($L$17:L49)-1)/ROWS(ysmer)),ROWS(zsmer)))) -> 2 | M49: =IF(ROWS($M$18:M49)>podatki!$I$33,"",INDEX(ysmer,1+MOD(ROWS($M$18:M49)-1,ROWS(zsmer)))) -> 9 | N49: =IF(ROWS($N$18:N49)>podatki!$I$33,"",INDEX(zsmer,1+INT((ROWS($N$18:N49)-1)/(ROWS(xsmer)*ROWS(ysmer))))) -> 0 | O49: =podatki!$D$20/2*(($L49)^2/podatki!$D$22^2+($M49)^2/podatki!$D$23^2+($N49)^2/podatki!$D$24^2)^(1/2) -> 161.9411081
L50: =IF(ROWS($L$18:L50)>podatki!$I$33,"",INDEX(xsmer,1+MOD(INT((ROWS($L$17:L50)-1)/ROWS(ysmer)),ROWS(zsmer)))) -> 3 | M50: =IF(ROWS($M$18:M50)>podatki!$I$33,"",INDEX(ysmer,1+MOD(ROWS($M$18:M50)-1,ROWS(zsmer)))) -> 10 | N50: =IF(ROWS($N$18:N50)>podatki!$I$33,"",INDEX(zsmer,1+INT((ROWS($N$18:N50)-1)/(ROWS(xsmer)*ROWS(ysmer))))) -> 0 | O50: =podatki!$D$20/2*(($L50)^2/podatki!$D$22^2+($M50)^2/podatki!$D$23^2+($N50)^2/podatki!$D$24^2)^(1/2) -> 186.5864411
L51: =IF(ROWS($L$18:L51)>podatki!$I$33,"",INDEX(xsmer,1+MOD(INT((ROWS($L$17:L51)-1)/ROWS(ysmer)),ROWS(zsmer)))) -> 3 | M51: =IF(ROWS($M$18:M51)>podatki!$I$33,"",INDEX(ysmer,1+MOD(ROWS($M$18:M51)-1,ROWS(zsmer)))) -> 0 | N51: =IF(ROWS($N$18:N51)>podatki!$I$33,"",INDEX(zsmer,1+INT((ROWS($N$18:N51)-1)/(ROWS(xsmer)*ROWS(ysmer))))) -> 0 | O51: =podatki!$D$20/2*(($L51)^2/podatki!$D$22^2+($M51)^2/podatki!$D$23^2+($N51)^2/podatki!$D$24^2)^(1/2) -> 73.5
L52: =IF(ROWS($L$18:L52)>podatki!$I$33,"",INDEX(xsmer,1+MOD(INT((ROWS($L$17:L52)-1)/ROWS(ysmer)),ROWS(zsmer)))) -> 3 | M52: =IF(ROWS($M$18:M52)>podatki!$I$33,"",INDEX(ysmer,1+MOD(ROWS($M$18:M52)-1,ROWS(zsmer)))) -> 1 | N52: =IF(ROWS($N$18:N52)>podatki!$I$33,"",INDEX(zsmer,1+INT((ROWS($N$18:N52)-1)/(ROWS(xsmer)*ROWS(ysmer))))) -> 0 | O52: =podatki!$D$20/2*(($L52)^2/podatki!$D$22^2+($M52)^2/podatki!$D$23^2+($N52)^2/podatki!$D$24^2)^(1/2) -> 75.47431682
L53: =IF(ROWS($L$18:L53)>podatki!$I$33,"",INDEX(xsmer,1+MOD(INT((ROWS($L$17:L53)-1)/ROWS(ysmer)),ROWS(zsmer)))) -> 3 | M53: =IF(ROWS($M$18:M53)>podatki!$I$33,"",INDEX(ysmer,1+MOD(ROWS($M$18:M53)-1,ROWS(zsmer)))) -> 2 | N53: =IF(ROWS($N$18:N53)>podatki!$I$33,"",INDEX(zsmer,1+INT((ROWS($N$18:N53)-1)/(ROWS(xsmer)*ROWS(ysmer))))) -> 0 | O53: =podatki!$D$20/2*(($L53)^2/podatki!$D$22^2+($M53)^2/podatki!$D$23^2+($N53)^2/podatki!$D$24^2)^(1/2) -> 81.10943225
L54: =IF(ROWS($L$18:L54)>podatki!$I$33,"",INDEX(xsmer,1+MOD(INT((ROWS($L$17:L54)-1)/ROWS(ysmer)),ROWS(zsmer)))) -> 3 | M54: =IF(ROWS($M$18:M54)>podatki!$I$33,"",INDEX(ysmer,1+MOD(ROWS($M$18:M54)-1,ROWS(zsmer)))) -> 3 | N54: =IF(ROWS($N$18:N54)>podatki!$I$33,"",INDEX(zsmer,1+INT((ROWS($N$18:N54)-1)/(ROWS(xsmer)*ROWS(ysmer))))) -> 0 | O54: =podatki!$D$20/2*(($L54)^2/podatki!$D$22^2+($M54)^2/podatki!$D$23^2+($N54)^2/podatki!$D$24^2)^(1/2) -> 89.71818378
L55: =IF(ROWS($L$18:L55)>podatki!$I$33,"",INDEX(xsmer,1+MOD(INT((ROWS($L$17:L55)-1)/ROWS(ysmer)),ROWS(zsmer)))) -> 3 | M55: =IF(ROWS($M$18:M55)>podatki!$I$33,"",INDEX(ysmer,1+MOD(ROWS($M$18:M55)-1,ROWS(zsmer)))) -> 4 | N55: =IF(ROWS($N$18:N55)>podatki!$I$33,"",INDEX(zsmer,1+INT((ROWS($N$18:N55)-1)/(ROWS(xsmer)*ROWS(ysmer))))) -> 0 | O55: =podatki!$D$20/2*(($L55)^2/podatki!$D$22^2+($M55)^2/podatki!$D$23^2+($N55)^2/podatki!$D$24^2)^(1/2) -> 100.5395942
L56: =IF(ROWS($L$18:L56)>podatki!$I$33,"",INDEX(xsmer,1+MOD(INT((ROWS($L$17:L56)-1)/ROWS(ysmer)),ROWS(zsmer)))) -> 3 | M56: =IF(ROWS($M$18:M56)>podatki!$I$33,"",INDEX(ysmer,1+MOD(ROWS($M$18:M56)-1,ROWS(zsmer)))) -> 5 | N56: =IF(ROWS($N$18:N56)>podatki!$I$33,"",INDEX(zsmer,1+INT((ROWS($N$18:N56)-1)/(ROWS(xsmer)*ROWS(ysmer))))) -> 0 | O56: =podatki!$D$20/2*(($L56)^2/podatki!$D$22^2+($M56)^2/podatki!$D$23^2+($N56)^2/podatki!$D$24^2)^(1/2) -> 112.9394196
L57: =IF(ROWS($L$18:L57)>podatki!$I$33,"",INDEX(xsmer,1+MOD(INT((ROWS($L$17:L57)-1)/ROWS(ysmer)),ROWS(zsmer)))) -> 3 | M57: =IF(ROWS($M$18:M57)>podatki!$I$33,"",INDEX(ysmer,1+MOD(ROWS($M$18:M57)-1,ROWS(zsmer)))) -> 6 | N57: =IF(ROWS($N$18:N57)>podatki!$I$33,"",INDEX(zsmer,1+INT((ROWS($N$18:N57)-1)/(ROWS(xsmer)*ROWS(ysmer))))) -> 0 | O57: =podatki!$D$20/2*(($L57)^2/podatki!$D$22^2+($M57)^2/podatki!$D$23^2+($N57)^2/podatki!$D$24^2)^(1/2) -> 126.4541814
L58: =IF(ROWS($L$18:L58)>podatki!$I$33,"",INDEX(xsmer,1+MOD(INT((ROWS($L$17:L58)-1)/ROWS(ysmer)),ROWS(zsmer)))) -> 3 | M58: =IF(ROWS($M$18:M58)>podatki!$I$33,"",INDEX(ysmer,1+MOD(ROWS($M$18:M58)-1,ROWS(zsmer)))) -> 7 | N58: =IF(ROWS($N$18:N58)>podatki!$I$33,"",INDEX(zsmer,1+INT((ROWS($N$18:N58)-1)/(ROWS(xsmer)*ROWS(ysmer))))) -> 0 | O58: =podatki!$D$20/2*(($L58)^2/podatki!$D$22^2+($M58)^2/podatki!$D$23^2+($N58)^2/podatki!$D$24^2)^(1/2) -> 140.7631077
L59: =IF(ROWS($L$18:L59)>podatki!$I$33,"",INDEX(xsmer,1+MOD(INT((ROWS($L$17:L59)-1)/ROWS(ysmer)),ROWS(zsmer)))) -> 3 | M59: =IF(ROWS($M$18:M59)>podatki!$I$33,"",INDEX(ysmer,1+MOD(ROWS($M$18:M59)-1,ROWS(zsmer)))) -> 8 | N59: =IF(ROWS($N$18:N59)>podatki!$I$33,"",INDEX(zsmer,1+INT((ROWS($N$18:N59)-1)/(ROWS(xsmer)*ROWS(ysmer))))) -> 0 | O59: =podatki!$D$20/2*(($L59)^2/podatki!$D$22^2+($M59)^2/podatki!$D$23^2+($N59)^2/podatki!$D$24^2)^(1/2) -> 155.6473257
L60: =IF(ROWS($L$18:L60)>podatki!$I$33,"",INDEX(xsmer,1+MOD(INT((ROWS($L$17:L60)-1)/ROWS(ysmer)),ROWS(zsmer)))) -> 3 | M60: =IF(ROWS($M$18:M60)>podatki!$I$33,"",INDEX(ysmer,1+MOD(ROWS($M$18:M60)-1,ROWS(zsmer)))) -> 9 | N60: =IF(ROWS($N$18:N60)>podatki!$I$33,"",INDEX(zsmer,1+INT((ROWS($N$18:N60)-1)/(ROWS(xsmer)*ROWS(ysmer))))) -> 0 | O60: =podatki!$D$20/2*(($L60)^2/podatki!$D$22^2+($M60)^2/podatki!$D$23^2+($N60)^2/podatki!$D$24^2)^(1/2) -> 170.9566392
L61: =IF(ROWS($L$18:L61)>podatki!$I$33,"",INDEX(xsmer,1+MOD(INT((ROWS($L$17:L61)-1)/ROWS(ysmer)),ROWS(zsmer)))) -> 4 | M61: =IF(ROWS($M$18:M61)>podatki!$I$33,"",INDEX(ysmer,1+MOD(ROWS($M$18:M61)-1,ROWS(zsmer)))) -> 10 | N61: =IF(ROWS($N$18:N61)>podatki!$I$33,"",INDEX(zsmer,1+INT((ROWS($N$18:N61)-1)/(ROWS(xsmer)*ROWS(ysmer))))) -> 0 | O61: =podatki!$D$20/2*(($L61)^2/podatki!$D$22^2+($M61)^2/podatki!$D$23^2+($N61)^2/podatki!$D$24^2)^(1/2) -> 197.5253148
L62: =IF(ROWS($L$18:L62)>podatki!$I$33,"",INDEX(xsmer,1+MOD(INT((ROWS($L$17:L62)-1)/ROWS(ysmer)),ROWS(zsmer)))) -> 4 | M62: =IF(ROWS($M$18:M62)>podatki!$I$33,"",INDEX(ysmer,1+MOD(ROWS($M$18:M62)-1,ROWS(zsmer)))) -> 0 | N62: =IF(ROWS($N$18:N62)>podatki!$I$33,"",INDEX(zsmer,1+INT((ROWS($N$18:N62)-1)/(ROWS(xsmer)*ROWS(ysmer))))) -> 0 | O62: =podatki!$D$20/2*(($L62)^2/podatki!$D$22^2+($M62)^2/podatki!$D$23^2+($N62)^2/podatki!$D$24^2)^(1/2) -> 98
L63: =IF(ROWS($L$18:L63)>podatki!$I$33,"",INDEX(xsmer,1+MOD(INT((ROWS($L$17:L63)-1)/ROWS(ysmer)),ROWS(zsmer)))) -> 4 | M63: =IF(ROWS($M$18:M63)>podatki!$I$33,"",INDEX(ysmer,1+MOD(ROWS($M$18:M63)-1,ROWS(zsmer)))) -> 1 | N63: =IF(ROWS($N$18:N63)>podatki!$I$33,"",INDEX(zsmer,1+INT((ROWS($N$18:N63)-1)/(ROWS(xsmer)*ROWS(ysmer))))) -> 0 | O63: =podatki!$D$20/2*(($L63)^2/podatki!$D$22^2+($M63)^2/podatki!$D$23^2+($N63)^2/podatki!$D$24^2)^(1/2) -> 99.48930847
L64: =IF(ROWS($L$18:L64)>podatki!$I$33,"",INDEX(xsmer,1+MOD(INT((ROWS($L$17:L64)-1)/ROWS(ysmer)),ROWS(zsmer)))) -> 4 | M64: =IF(ROWS($M$18:M64)>podatki!$I$33,"",INDEX(ysmer,1+MOD(ROWS($M$18:M64)-1,ROWS(zsmer)))) -> 2 | N64: =IF(ROWS($N$18:N64)>podatki!$I$33,"",INDEX(zsmer,1+INT((ROWS($N$18:N64)-1)/(ROWS(xsmer)*ROWS(ysmer))))) -> 0 | O64: =podatki!$D$20/2*(($L64)^2/podatki!$D$22^2+($M64)^2/podatki!$D$23^2+($N64)^2/podatki!$D$24^2)^(1/2) -> 103.8291385
L65: =IF(ROWS($L$18:L65)>podatki!$I$33,"",INDEX(xsmer,1+MOD(INT((ROWS($L$17:L65)-1)/ROWS(ysmer)),ROWS(zsmer)))) -> 4 | M65: =IF(ROWS($M$18:M65)>podatki!$I$33,"",INDEX(ysmer,1+MOD(ROWS($M$18:M65)-1,ROWS(zsmer)))) -> 3 | N65: =IF(ROWS($N$18:N65)>podatki!$I$33,"",INDEX(zsmer,1+INT((ROWS($N$18:N65)-1)/(ROWS(xsmer)*ROWS(ysmer))))) -> 0 | O65: =podatki!$D$20/2*(($L65)^2/podatki!$D$22^2+($M65)^2/podatki!$D$23^2+($N65)^2/podatki!$D$24^2)^(1/2) -> 110.6846986
L66: =IF(ROWS($L$18:L66)>podatki!$I$33,"",INDEX(xsmer,1+MOD(INT((ROWS($L$17:L66)-1)/ROWS(ysmer)),ROWS(zsmer)))) -> 4 | M66: =IF(ROWS($M$18:M66)>podatki!$I$33,"",INDEX(ysmer,1+MOD(ROWS($M$18:M66)-1,ROWS(zsmer)))) -> 4 | N66: =IF(ROWS($N$18:N66)>podatki!$I$33,"",INDEX(zsmer,1+INT((ROWS($N$18:N66)-1)/(ROWS(xsmer)*ROWS(ysmer))))) -> 0 | O66: =podatki!$D$20/2*(($L66)^2/podatki!$D$22^2+($M66)^2/podatki!$D$23^2+($N66)^2/podatki!$D$24^2)^(1/2) -> 119.624245
L67: =IF(ROWS($L$18:L67)>podatki!$I$33,"",INDEX(xsmer,1+MOD(INT((ROWS($L$17:L67)-1)/ROWS(ysmer)),ROWS(zsmer)))) -> 4 | M67: =IF(ROWS($M$18:M67)>podatki!$I$33,"",INDEX(ysmer,1+MOD(ROWS($M$18:M67)-1,ROWS(zsmer)))) -> 5 | N67: =IF(ROWS($N$18:N67)>podatki!$I$33,"",INDEX(zsmer,1+INT((ROWS($N$18:N67)-1)/(ROWS(xsmer)*ROWS(ysmer))))) -> 0 | O67: =podatki!$D$20/2*(($L67)^2/podatki!$D$22^2+($M67)^2/podatki!$D$23^2+($N67)^2/podatki!$D$24^2)^(1/2) -> 130.2192862
L68: =IF(ROWS($L$18:L68)>podatki!$I$33,"",INDEX(xsmer,1+MOD(INT((ROWS($L$17:L68)-1)/ROWS(ysmer)),ROWS(zsmer)))) -> 4 | M68: =IF(ROWS($M$18:M68)>podatki!$I$33,"",INDEX(ysmer,1+MOD(ROWS($M$18:M68)-1,ROWS(zsmer)))) -> 6 | N68: =IF(ROWS($N$18:N68)>podatki!$I$33,"",INDEX(zsmer,1+INT((ROWS($N$18:N68)-1)/(ROWS(xsmer)*ROWS(ysmer))))) -> 0 | O68: =podatki!$D$20/2*(($L68)^2/podatki!$D$22^2+($M68)^2/podatki!$D$23^2+($N68)^2/podatki!$D$24^2)^(1/2) -> 142.1
L69: =IF(ROWS($L$18:L69)>podatki!$I$33,"",INDEX(xsmer,1+MOD(INT((ROWS($L$17:L69)-1)/ROWS(ysmer)),ROWS(zsmer)))) -> 4 | M69: =IF(ROWS($M$18:M69)>podatki!$I$33,"",INDEX(ysmer,1+MOD(ROWS($M$18:M69)-1,ROWS(zsmer)))) -> 7 | N69: =IF(ROWS($N$18:N69)>podatki!$I$33,"",INDEX(zsmer,1+INT((ROWS($N$18:N69)-1)/(ROWS(xsmer)*ROWS(ysmer))))) -> 0 | O69: =podatki!$D$20/2*(($L69)^2/podatki!$D$22^2+($M69)^2/podatki!$D$23^2+($N69)^2/podatki!$D$24^2)^(1/2) -> 154.9709731
L70: =IF(ROWS($L$18:L70)>podatki!$I$33,"",INDEX(xsmer,1+MOD(INT((ROWS($L$17:L70)-1)/ROWS(ysmer)),ROWS(zsmer)))) -> 4 | M70: =IF(ROWS($M$18:M70)>podatki!$I$33,"",INDEX(ysmer,1+MOD(ROWS($M$18:M70)-1,ROWS(zsmer)))) -> 8 | N70: =IF(ROWS($N$18:N70)>podatki!$I$33,"",INDEX(zsmer,1+INT((ROWS($N$18:N70)-1)/(ROWS(xsmer)*ROWS(ysmer))))) -> 0 | O70: =podatki!$D$20/2*(($L70)^2/podatki!$D$22^2+($M70)^2/podatki!$D$23^2+($N70)^2/podatki!$D$24^2)^(1/2) -> 168.6055752
L71: =IF(ROWS($L$18:L71)>podatki!$I$33,"",INDEX(xsmer,1+MOD(INT((ROWS($L$17:L71)-1)/ROWS(ysmer)),ROWS(zsmer)))) -> 4 | M71: =IF(ROWS($M$18:M71)>podatki!$I$33,"",INDEX(ysmer,1+MOD(ROWS($M$18:M71)-1,ROWS(zsmer)))) -> 9 | N71: =IF(ROWS($N$18:N71)>podatki!$I$33,"",INDEX(zsmer,1+INT((ROWS($N$18:N71)-1)/(ROWS(xsmer)*ROWS(ysmer))))) -> 0 | O71: =podatki!$D$20/2*(($L71)^2/podatki!$D$22^2+($M71)^2/podatki!$D$23^2+($N71)^2/podatki!$D$24^2)^(1/2) -> 182.8330454
L72: =IF(ROWS($L$18:L72)>podatki!$I$33,"",INDEX(xsmer,1+MOD(INT((ROWS($L$17:L72)-1)/ROWS(ysmer)),ROWS(zsmer)))) -> 5 | M72: =IF(ROWS($M$18:M72)>podatki!$I$33,"",INDEX(ysmer,1+MOD(ROWS($M$18:M72)-1,ROWS(zsmer)))) -> 10 | N72: =IF(ROWS($N$18:N72)>podatki!$I$33,"",INDEX(zsmer,1+INT((ROWS($N$18:N72)-1)/(ROWS(xsmer)*ROWS(ysmer))))) -> 0 | O72: =podatki!$D$20/2*(($L72)^2/podatki!$D$22^2+($M72)^2/podatki!$D$23^2+($N72)^2/podatki!$D$24^2)^(1/2) -> 210.756969
L73: =IF(ROWS($L$18:L73)>podatki!$I$33,"",INDEX(xsmer,1+MOD(INT((ROWS($L$17:L73)-1)/ROWS(ysmer)),ROWS(zsmer)))) -> 5 | M73: =IF(ROWS($M$18:M73)>podatki!$I$33,"",INDEX(ysmer,1+MOD(ROWS($M$18:M73)-1,ROWS(zsmer)))) -> 0 | N73: =IF(ROWS($N$18:N73)>podatki!$I$33,"",INDEX(zsmer,1+INT((ROWS($N$18:N73)-1)/(ROWS(xsmer)*ROWS(ysmer))))) -> 0 | O73: =podatki!$D$20/2*(($L73)^2/podatki!$D$22^2+($M73)^2/podatki!$D$23^2+($N73)^2/podatki!$D$24^2)^(1/2) -> 122.5
L74: =IF(ROWS($L$18:L74)>podatki!$I$33,"",INDEX(xsmer,1+MOD(INT((ROWS($L$17:L74)-1)/ROWS(ysmer)),ROWS(zsmer)))) -> 5 | M74: =IF(ROWS($M$18:M74)>podatki!$I$33,"",INDEX(ysmer,1+MOD(ROWS($M$18:M74)-1,ROWS(zsmer)))) -> 1 | N74: =IF(ROWS($N$18:N74)>podatki!$I$33,"",INDEX(zsmer,1+INT((ROWS($N$18:N74)-1)/(ROWS(xsmer)*ROWS(ysmer))))) -> 0 | O74: =podatki!$D$20/2*(($L74)^2/podatki!$D$22^2+($M74)^2/podatki!$D$23^2+($N74)^2/podatki!$D$24^2)^(1/2) -> 123.6946745
L75: =IF(ROWS($L$18:L75)>podatki!$I$33,"",INDEX(xsmer,1+MOD(INT((ROWS($L$17:L75)-1)/ROWS(ysmer)),ROWS(zsmer)))) -> 5 | M75: =IF(ROWS($M$18:M75)>podatki!$I$33,"",INDEX(ysmer,1+MOD(ROWS($M$18:M75)-1,ROWS(zsmer)))) -> 2 | N75: =IF(ROWS($N$18:N75)>podatki!$I$33,"",INDEX(zsmer,1+INT((ROWS($N$18:N75)-1)/(ROWS(xsmer)*ROWS(ysmer))))) -> 0 | O75: =podatki!$D$20/2*(($L75)^2/podatki!$D$22^2+($M75)^2/podatki!$D$23^2+($N75)^2/podatki!$D$24^2)^(1/2) -> 127.2113989
L76: =IF(ROWS($L$18:L76)>podatki!$I$33,"",INDEX(xsmer,1+MOD(INT((ROWS($L$17:L76)-1)/ROWS(ysmer)),ROWS(zsmer)))) -> 5 | M76: =IF(ROWS($M$18:M76)>podatki!$I$33,"",INDEX(ysmer,1+MOD(ROWS($M$18:M76)-1,ROWS(zsmer)))) -> 3 | N76: =IF(ROWS($N$18:N76)>podatki!$I$33,"",INDEX(zsmer,1+INT((ROWS($N$18:N76)-1)/(ROWS(xsmer)*ROWS(ysmer))))) -> 0 | O76: =podatki!$D$20/2*(($L76)^2/podatki!$D$22^2+($M76)^2/podatki!$D$23^2+($N76)^2/podatki!$D$24^2)^(1/2) -> 132.8659193
L77: =IF(ROWS($L$18:L77)>podatki!$I$33,"",INDEX(xsmer,1+MOD(INT((ROWS($L$17:L77)-1)/ROWS(ysmer)),ROWS(zsmer)))) -> 5 | M77: =IF(ROWS($M$18:M77)>podatki!$I$33,"",INDEX(ysmer,1+MOD(ROWS($M$18:M77)-1,ROWS(zsmer)))) -> 4 | N77: =IF(ROWS($N$18:N77)>podatki!$I$33,"",INDEX(zsmer,1+INT((ROWS($N$18:N77)-1)/(ROWS(xsmer)*ROWS(ysmer))))) -> 0 | O77: =podatki!$D$20/2*(($L77)^2/podatki!$D$22^2+($M77)^2/podatki!$D$23^2+($N77)^2/podatki!$D$24^2)^(1/2) -> 140.4001781
L78: =IF(ROWS($L$18:L78)>podatki!$I$33,"",INDEX(xsmer,1+MOD(INT((ROWS($L$17:L78)-1)/ROWS(ysmer)),ROWS(zsmer)))) -> 5 | M78: =IF(ROWS($M$18:M78)>podatki!$I$33,"",INDEX(ysmer,1+MOD(ROWS($M$18:M78)-1,ROWS(zsmer)))) -> 5 | N78: =IF(ROWS($N$18:N78)>podatki!$I$33,"",INDEX(zsmer,1+INT((ROWS($N$18:N78)-1)/(ROWS(xsmer)*ROWS(ysmer))))) -> 0 | O78: =podatki!$D$20/2*(($L78)^2/podatki!$D$22^2+($M78)^2/podatki!$D$23^2+($N78)^2/podatki!$D$24^2)^(1/2) -> 149.5303063
L79: =IF(ROWS($L$18:L79)>podatki!$I$33,"",INDEX(xsmer,1+MOD(INT((ROWS($L$17:L79)-1)/ROWS(ysmer)),ROWS(zsmer)))) -> 5 | M79: =IF(ROWS($M$18:M79)>podatki!$I$33,"",INDEX(ysmer,1+MOD(ROWS($M$18:M79)-1,ROWS(zsmer)))) -> 6 | N79: =IF(ROWS($N$18:N79)>podatki!$I$33,"",INDEX(zsmer,1+INT((ROWS($N$18:N79)-1)/(ROWS(xsmer)*ROWS(ysmer))))) -> 0 | O79: =podatki!$D$20/2*(($L79)^2/podatki!$D$22^2+($M79)^2/podatki!$D$23^2+($N79)^2/podatki!$D$24^2)^(1/2) -> 159.9833116
L80: =IF(ROWS($L$18:L80)>podatki!$I$33,"",INDEX(xsmer,1+MOD(INT((ROWS($L$17:L80)-1)/ROWS(ysmer)),ROWS(zsmer)))) -> 5 | M80: =IF(ROWS($M$18:M80)>podatki!$I$33,"",INDEX(ysmer,1+MOD(ROWS($M$18:M80)-1,ROWS(zsmer)))) -> 7 | N80: =IF(ROWS($N$18:N80)>podatki!$I$33,"",INDEX(zsmer,1+INT((ROWS($N$18:N80)-1)/(ROWS(xsmer)*ROWS(ysmer))))) -> 0 | O80: =podatki!$D$20/2*(($L80)^2/podatki!$D$22^2+($M80)^2/podatki!$D$23^2+($N80)^2/podatki!$D$24^2)^(1/2) -> 171.5174991
L81: =IF(ROWS($L$18:L81)>podatki!$I$33,"",INDEX(xsmer,1+MOD(INT((ROWS($L$17:L81)-1)/ROWS(ysmer)),ROWS(zsmer)))) -> 5 | M81: =IF(ROWS($M$18:M81)>podatki!$I$33,"",INDEX(ysmer,1+MOD(ROWS($M$18:M81)-1,ROWS(zsmer)))) -> 8 | N81: =IF(ROWS($N$18:N81)>podatki!$I$33,"",INDEX(zsmer,1+INT((ROWS($N$18:N81)-1)/(ROWS(xsmer)*ROWS(ysmer))))) -> 0 | O81: =podatki!$D$20/2*(($L81)^2/podatki!$D$22^2+($M81)^2/podatki!$D$23^2+($N81)^2/podatki!$D$24^2)^(1/2) -> 183.9295789
L82: =IF(ROWS($L$18:L82)>podatki!$I$33,"",INDEX(xsmer,1+MOD(INT((ROWS($L$17:L82)-1)/ROWS(ysmer)),ROWS(zsmer)))) -> 5 | M82: =IF(ROWS($M$18:M82)>podatki!$I$33,"",INDEX(ysmer,1+MOD(ROWS($M$18:M82)-1,ROWS(zsmer)))) -> 9 | N82: =IF(ROWS($N$18:N82)>podatki!$I$33,"",INDEX(zsmer,1+INT((ROWS($N$18:N82)-1)/(ROWS(xsmer)*ROWS(ysmer))))) -> 0 | O82: =podatki!$D$20/2*(($L82)^2/podatki!$D$22^2+($M82)^2/podatki!$D$23^2+($N82)^2/podatki!$D$24^2)^(1/2) -> 197.05373
L83: =IF(ROWS($L$18:L83)>podatki!$I$33,"",INDEX(xsmer,1+MOD(INT((ROWS($L$17:L83)-1)/ROWS(ysmer)),ROWS(zsmer)))) -> 6 | M83: =IF(ROWS($M$18:M83)>podatki!$I$33,"",INDEX(ysmer,1+MOD(ROWS($M$18:M83)-1,ROWS(zsmer)))) -> 10 | N83: =IF(ROWS($N$18:N83)>podatki!$I$33,"",INDEX(zsmer,1+INT((ROWS($N$18:N83)-1)/(ROWS(xsmer)*ROWS(ysmer))))) -> 0 | O83: =podatki!$D$20/2*(($L83)^2/podatki!$D$22^2+($M83)^2/podatki!$D$23^2+($N83)^2/podatki!$D$24^2)^(1/2) -> 225.8788392
L84: =IF(ROWS($L$18:L84)>podatki!$I$33,"",INDEX(xsmer,1+MOD(INT((ROWS($L$17:L84)-1)/ROWS(ysmer)),ROWS(zsmer)))) -> 6 | M84: =IF(ROWS($M$18:M84)>podatki!$I$33,"",INDEX(ysmer,1+MOD(ROWS($M$18:M84)-1,ROWS(zsmer)))) -> 0 | N84: =IF(ROWS($N$18:N84)>podatki!$I$33,"",INDEX(zsmer,1+INT((ROWS($N$18:N84)-1)/(ROWS(xsmer)*ROWS(ysmer))))) -> 0 | O84: =podatki!$D$20/2*(($L84)^2/podatki!$D$22^2+($M84)^2/podatki!$D$23^2+($N84)^2/podatki!$D$24^2)^(1/2) -> 147
L85: =IF(ROWS($L$18:L85)>podatki!$I$33,"",INDEX(xsmer,1+MOD(INT((ROWS($L$17:L85)-1)/ROWS(ysmer)),ROWS(zsmer)))) -> 6 | M85: =IF(ROWS($M$18:M85)>podatki!$I$33,"",INDEX(ysmer,1+MOD(ROWS($M$18:M85)-1,ROWS(zsmer)))) -> 1 | N85: =IF(ROWS($N$18:N85)>podatki!$I$33,"",INDEX(zsmer,1+INT((ROWS($N$18:N85)-1)/(ROWS(xsmer)*ROWS(ysmer))))) -> 0 | O85: =podatki!$D$20/2*(($L85)^2/podatki!$D$22^2+($M85)^2/podatki!$D$23^2+($N85)^2/podatki!$D$24^2)^(1/2) -> 147.9970354
L86: =IF(ROWS($L$18:L86)>podatki!$I$33,"",INDEX(xsmer,1+MOD(INT((ROWS($L$17:L86)-1)/ROWS(ysmer)),ROWS(zsmer)))) -> 6 | M86: =IF(ROWS($M$18:M86)>podatki!$I$33,"",INDEX(ysmer,1+MOD(ROWS($M$18:M86)-1,ROWS(zsmer)))) -> 2 | N86: =IF(ROWS($N$18:N86)>podatki!$I$33,"",INDEX(zsmer,1+INT((ROWS($N$18:N86)-1)/(ROWS(xsmer)*ROWS(ysmer))))) -> 0 | O86: =podatki!$D$20/2*(($L86)^2/podatki!$D$22^2+($M86)^2/podatki!$D$23^2+($N86)^2/podatki!$D$24^2)^(1/2) -> 150.9486336
L87: =IF(ROWS($L$18:L87)>podatki!$I$33,"",INDEX(xsmer,1+MOD(INT((ROWS($L$17:L87)-1)/ROWS(ysmer)),ROWS(zsmer)))) -> 6 | M87: =IF(ROWS($M$18:M87)>podatki!$I$33,"",INDEX(ysmer,1+MOD(ROWS($M$18:M87)-1,ROWS(zsmer)))) -> 3 | N87: =IF(ROWS($N$18:N87)>podatki!$I$33,"",INDEX(zsmer,1+INT((ROWS($N$18:N87)-1)/(ROWS(xsmer)*ROWS(ysmer))))) -> 0 | O87: =podatki!$D$20/2*(($L87)^2/podatki!$D$22^2+($M87)^2/podatki!$D$23^2+($N87)^2/podatki!$D$24^2)^(1/2) -> 155.7437077
L88: =IF(ROWS($L$18:L88)>podatki!$I$33,"",INDEX(xsmer,1+MOD(INT((ROWS($L$17:L88)-1)/ROWS(ysmer)),ROWS(zsmer)))) -> 6 | M88: =IF(ROWS($M$18:M88)>podatki!$I$33,"",INDEX(ysmer,1+MOD(ROWS($M$18:M88)-1,ROWS(zsmer)))) -> 4 | N88: =IF(ROWS($N$18:N88)>podatki!$I$33,"",INDEX(zsmer,1+INT((ROWS($N$18:N88)-1)/(ROWS(xsmer)*ROWS(ysmer))))) -> 0 | O88: =podatki!$D$20/2*(($L88)^2/podatki!$D$22^2+($M88)^2/podatki!$D$23^2+($N88)^2/podatki!$D$24^2)^(1/2) -> 162.2188645
L89: =IF(ROWS($L$18:L89)>podatki!$I$33,"",INDEX(xsmer,1+MOD(INT((ROWS($L$17:L89)-1)/ROWS(ysmer)),ROWS(zsmer)))) -> 6 | M89: =IF(ROWS($M$18:M89)>podatki!$I$33,"",INDEX(ysmer,1+MOD(ROWS($M$18:M89)-1,ROWS(zsmer)))) -> 5 | N89: =IF(ROWS($N$18:N89)>podatki!$I$33,"",INDEX(zsmer,1+INT((ROWS($N$18:N89)-1)/(ROWS(xsmer)*ROWS(ysmer))))) -> 0 | O89: =podatki!$D$20/2*(($L89)^2/podatki!$D$22^2+($M89)^2/podatki!$D$23^2+($N89)^2/podatki!$D$24^2)^(1/2) -> 170.1824389
L90: =IF(ROWS($L$18:L90)>podatki!$I$33,"",INDEX(xsmer,1+MOD(INT((ROWS($L$17:L90)-1)/ROWS(ysmer)),ROWS(zsmer)))) -> 6 | M90: =IF(ROWS($M$18:M90)>podatki!$I$33,"",INDEX(ysmer,1+MOD(ROWS($M$18:M90)-1,ROWS(zsmer)))) -> 6 | N90: =IF(ROWS($N$18:N90)>podatki!$I$33,"",INDEX(zsmer,1+INT((ROWS($N$18:N90)-1)/(ROWS(xsmer)*ROWS(ysmer))))) -> 0 | O90: =podatki!$D$20/2*(($L90)^2/podatki!$D$22^2+($M90)^2/podatki!$D$23^2+($N90)^2/podatki!$D$24^2)^(1/2) -> 179.4363676
L91: =IF(ROWS($L$18:L91)>podatki!$I$33,"",INDEX(xsmer,1+MOD(INT((ROWS($L$17:L91)-1)/ROWS(ysmer)),ROWS(zsmer)))) -> 6 | M91: =IF(ROWS($M$18:M91)>podatki!$I$33,"",INDEX(ysmer,1+MOD(ROWS($M$18:M91)-1,ROWS(zsmer)))) -> 7 | N91: =IF(ROWS($N$18:N91)>podatki!$I$33,"",INDEX(zsmer,1+INT((ROWS($N$18:N91)-1)/(ROWS(xsmer)*ROWS(ysmer))))) -> 0 | O91: =podatki!$D$20/2*(($L91)^2/podatki!$D$22^2+($M91)^2/podatki!$D$23^2+($N91)^2/podatki!$D$24^2)^(1/2) -> 189.791998
L92: =IF(ROWS($L$18:L92)>podatki!$I$33,"",INDEX(xsmer,1+MOD(INT((ROWS($L$17:L92)-1)/ROWS(ysmer)),ROWS(zsmer)))) -> 6 | M92: =IF(ROWS($M$18:M92)>podatki!$I$33,"",INDEX(ysmer,1+MOD(ROWS($M$18:M92)-1,ROWS(zsmer)))) -> 8 | N92: =IF(ROWS($N$18:N92)>podatki!$I$33,"",INDEX(zsmer,1+INT((ROWS($N$18:N92)-1)/(ROWS(xsmer)*ROWS(ysmer))))) -> 0 | O92: =podatki!$D$20/2*(($L92)^2/podatki!$D$22^2+($M92)^2/podatki!$D$23^2+($N92)^2/podatki!$D$24^2)^(1/2) -> 201.0791884
L93: =IF(ROWS($L$18:L93)>podatki!$I$33,"",INDEX(xsmer,1+MOD(INT((ROWS($L$17:L93)-1)/ROWS(ysmer)),ROWS(zsmer)))) -> 6 | M93: =IF(ROWS($M$18:M93)>podatki!$I$33,"",INDEX(ysmer,1+MOD(ROWS($M$18:M93)-1,ROWS(zsmer)))) -> 9 | N93: =IF(ROWS($N$18:N93)>podatki!$I$33,"",INDEX(zsmer,1+INT((ROWS($N$18:N93)-1)/(ROWS(xsmer)*ROWS(ysmer))))) -> 0 | O93: =podatki!$D$20/2*(($L93)^2/podatki!$D$22^2+($M93)^2/podatki!$D$23^2+($N93)^2/podatki!$D$24^2)^(1/2) -> 213.15
L94: =IF(ROWS($L$18:L94)>podatki!$I$33,"",INDEX(xsmer,1+MOD(INT((ROWS($L$17:L94)-1)/ROWS(ysmer)),ROWS(zsmer)))) -> 7 | M94: =IF(ROWS($M$18:M94)>podatki!$I$33,"",INDEX(ysmer,1+MOD(ROWS($M$18:M94)-1,ROWS(zsmer)))) -> 10 | N94: =IF(ROWS($N$18:N94)>podatki!$I$33,"",INDEX(zsmer,1+INT((ROWS($N$18:N94)-1)/(ROWS(xsmer)*ROWS(ysmer))))) -> 0 | O94: =podatki!$D$20/2*(($L94)^2/podatki!$D$22^2+($M94)^2/podatki!$D$23^2+($N94)^2/podatki!$D$24^2)^(1/2) -> 242.5376259
L95: =IF(ROWS($L$18:L95)>podatki!$I$33,"",INDEX(xsmer,1+MOD(INT((ROWS($L$17:L95)-1)/ROWS(ysmer)),ROWS(zsmer)))) -> 7 | M95: =IF(ROWS($M$18:M95)>podatki!$I$33,"",INDEX(ysmer,1+MOD(ROWS($M$18:M95)-1,ROWS(zsmer)))) -> 0 | N95: =IF(ROWS($N$18:N95)>podatki!$I$33,"",INDEX(zsmer,1+INT((ROWS($N$18:N95)-1)/(ROWS(xsmer)*ROWS(ysmer))))) -> 0 | O95: =podatki!$D$20/2*(($L95)^2/podatki!$D$22^2+($M95)^2/podatki!$D$23^2+($N95)^2/podatki!$D$24^2)^(1/2) -> 171.5
L96: =IF(ROWS($L$18:L96)>podatki!$I$33,"",INDEX(xsmer,1+MOD(INT((ROWS($L$17:L96)-1)/ROWS(ysmer)),ROWS(zsmer)))) -> 7 | M96: =IF(ROWS($M$18:M96)>podatki!$I$33,"",INDEX(ysmer,1+MOD(ROWS($M$18:M96)-1,ROWS(zsmer)))) -> 1 | N96: =IF(ROWS($N$18:N96)>podatki!$I$33,"",INDEX(zsmer,1+INT((ROWS($N$18:N96)-1)/(ROWS(xsmer)*ROWS(ysmer))))) -> 0 | O96: =podatki!$D$20/2*(($L96)^2/podatki!$D$22^2+($M96)^2/podatki!$D$23^2+($N96)^2/podatki!$D$24^2)^(1/2) -> 172.3553669
L97: =IF(ROWS($L$18:L97)>podatki!$I$33,"",INDEX(xsmer,1+MOD(INT((ROWS($L$17:L97)-1)/ROWS(ysmer)),ROWS(zsmer)))) -> 7 | M97: =IF(ROWS($M$18:M97)>podatki!$I$33,"",INDEX(ysmer,1+MOD(ROWS($M$18:M97)-1,ROWS(zsmer)))) -> 2 | N97: =IF(ROWS($N$18:N97)>podatki!$I$33,"",INDEX(zsmer,1+INT((ROWS($N$18:N97)-1)/(ROWS(xsmer)*ROWS(ysmer))))) -> 0 | O97: =podatki!$D$20/2*(($L97)^2/podatki!$D$22^2+($M97)^2/podatki!$D$23^2+($N97)^2/podatki!$D$24^2)^(1/2) -> 174.8963693
L98: =IF(ROWS($L$18:L98)>podatki!$I$33,"",INDEX(xsmer,1+MOD(INT((ROWS($L$17:L98)-1)/ROWS(ysmer)),ROWS(zsmer)))) -> 7 | M98: =IF(ROWS($M$18:M98)>podatki!$I$33,"",INDEX(ysmer,1+MOD(ROWS($M$18:M98)-1,ROWS(zsmer)))) -> 3 | N98: =IF(ROWS($N$18:N98)>podatki!$I$33,"",INDEX(zsmer,1+INT((ROWS($N$18:N98)-1)/(ROWS(xsmer)*ROWS(ysmer))))) -> 0 | O98: =podatki!$D$20/2*(($L98)^2/podatki!$D$22^2+($M98)^2/podatki!$D$23^2+($N98)^2/podatki!$D$24^2)^(1/2) -> 179.0512566
L99: =IF(ROWS($L$18:L99)>podatki!$I$33,"",INDEX(xsmer,1+MOD(INT((ROWS($L$17:L99)-1)/ROWS(ysmer)),ROWS(zsmer)))) -> 7 | M99: =IF(ROWS($M$18:M99)>podatki!$I$33,"",INDEX(ysmer,1+MOD(ROWS($M$18:M99)-1,ROWS(zsmer)))) -> 4 | N99: =IF(ROWS($N$18:N99)>podatki!$I$33,"",INDEX(zsmer,1+INT((ROWS($N$18:N99)-1)/(ROWS(xsmer)*ROWS(ysmer))))) -> 0 | O99: =podatki!$D$20/2*(($L99)^2/podatki!$D$22^2+($M99)^2/podatki!$D$23^2+($N99)^2/podatki!$D$24^2)^(1/2) -> 184.7111529
L100: =IF(ROWS($L$18:L100)>podatki!$I$33,"",INDEX(xsmer,1+MOD(INT((ROWS($L$17:L100)-1)/ROWS(ysmer)),ROWS(zsmer)))) -> 7 | M100: =IF(ROWS($M$18:M100)>podatki!$I$33,"",INDEX(ysmer,1+MOD(ROWS($M$18:M100)-1,ROWS(zsmer)))) -> 5 | N100: =IF(ROWS($N$18:N100)>podatki!$I$33,"",INDEX(zsmer,1+INT((ROWS($N$18:N100)-1)/(ROWS(xsmer)*ROWS(ysmer))))) -> 0 | O100: =podatki!$D$20/2*(($L100)^2/podatki!$D$22^2+($M100)^2/podatki!$D$23^2+($N100)^2/podatki!$D$24^2)^(1/2) -> 191.7428291
L101: =IF(ROWS($L$18:L101)>podatki!$I$33,"",INDEX(xsmer,1+MOD(INT((ROWS($L$17:L101)-1)/ROWS(ysmer)),ROWS(zsmer)))) -> 7 | M101: =IF(ROWS($M$18:M101)>podatki!$I$33,"",INDEX(ysmer,1+MOD(ROWS($M$18:M101)-1,ROWS(zsmer)))) -> 6 | N101: =IF(ROWS($N$18:N101)>podatki!$I$33,"",INDEX(zsmer,1+INT((ROWS($N$18:N101)-1)/(ROWS(xsmer)*ROWS(ysmer))))) -> 0 | O101: =podatki!$D$20/2*(($L101)^2/podatki!$D$22^2+($M101)^2/podatki!$D$23^2+($N101)^2/podatki!$D$24^2)^(1/2) -> 200.00165
L102: =IF(ROWS($L$18:L102)>podatki!$I$33,"",INDEX(xsmer,1+MOD(INT((ROWS($L$17:L102)-1)/ROWS(ysmer)),ROWS(zsmer)))) -> 7 | M102: =IF(ROWS($M$18:M102)>podatki!$I$33,"",INDEX(ysmer,1+MOD(ROWS($M$18:M102)-1,ROWS(zsmer)))) -> 7 | N102: =IF(ROWS($N$18:N102)>podatki!$I$33,"",INDEX(zsmer,1+INT((ROWS($N$18:N102)-1)/(ROWS(xsmer)*ROWS(ysmer))))) -> 0 | O102: =podatki!$D$20/2*(($L102)^2/podatki!$D$22^2+($M102)^2/podatki!$D$23^2+($N102)^2/podatki!$D$24^2)^(1/2) -> 209.3424288
L103: =IF(ROWS($L$18:L103)>podatki!$I$33,"",INDEX(xsmer,1+MOD(INT((ROWS($L$17:L103)-1)/ROWS(ysmer)),ROWS(zsmer)))) -> 7 | M103: =IF(ROWS($M$18:M103)>podatki!$I$33,"",INDEX(ysmer,1+MOD(ROWS($M$18:M103)-1,ROWS(zsmer)))) -> 8 | N103: =IF(ROWS($N$18:N103)>podatki!$I$33,"",INDEX(zsmer,1+INT((ROWS($N$18:N103)-1)/(ROWS(xsmer)*ROWS(ysmer))))) -> 0 | O103: =podatki!$D$20/2*(($L103)^2/podatki!$D$22^2+($M103)^2/podatki!$D$23^2+($N103)^2/podatki!$D$24^2)^(1/2) -> 219.6271613
L104: =IF(ROWS($L$18:L104)>podatki!$I$33,"",INDEX(xsmer,1+MOD(INT((ROWS($L$17:L104)-1)/ROWS(ysmer)),ROWS(zsmer)))) -> 7 | M104: =IF(ROWS($M$18:M104)>podatki!$I$33,"",INDEX(ysmer,1+MOD(ROWS($M$18:M104)-1,ROWS(zsmer)))) -> 9 | N104: =IF(ROWS($N$18:N104)>podatki!$I$33,"",INDEX(zsmer,1+INT((ROWS($N$18:N104)-1)/(ROWS(xsmer)*ROWS(ysmer))))) -> 0 | O104: =podatki!$D$20/2*(($L104)^2/podatki!$D$22^2+($M104)^2/podatki!$D$23^2+($N104)^2/podatki!$D$24^2)^(1/2) -> 230.7296524
L105: =IF(ROWS($L$18:L105)>podatki!$I$33,"",INDEX(xsmer,1+MOD(INT((ROWS($L$17:L105)-1)/ROWS(ysmer)),ROWS(zsmer)))) -> 8 | M105: =IF(ROWS($M$18:M105)>podatki!$I$33,"",INDEX(ysmer,1+MOD(ROWS($M$18:M105)-1,ROWS(zsmer)))) -> 10 | N105: =IF(ROWS($N$18:N105)>podatki!$I$33,"",INDEX(zsmer,1+INT((ROWS($N$18:N105)-1)/(ROWS(xsmer)*ROWS(ysmer))))) -> 0 | O105: =podatki!$D$20/2*(($L105)^2/podatki!$D$22^2+($M105)^2/podatki!$D$23^2+($N105)^2/podatki!$D$24^2)^(1/2) -> 260.4385724
L106: =IF(ROWS($L$18:L106)>podatki!$I$33,"",INDEX(xsmer,1+MOD(INT((ROWS($L$17:L106)-1)/ROWS(ysmer)),ROWS(zsmer)))) -> 8 | M106: =IF(ROWS($M$18:M106)>podatki!$I$33,"",INDEX(ysmer,1+MOD(ROWS($M$18:M106)-1,ROWS(zsmer)))) -> 0 | N106: =IF(ROWS($N$18:N106)>podatki!$I$33,"",INDEX(zsmer,1+INT((ROWS($N$18:N106)-1)/(ROWS(xsmer)*ROWS(ysmer))))) -> 0 | O106: =podatki!$D$20/2*(($L106)^2/podatki!$D$22^2+($M106)^2/podatki!$D$23^2+($N106)^2/podatki!$D$24^2)^(1/2) -> 196
L107: =IF(ROWS($L$18:L107)>podatki!$I$33,"",INDEX(xsmer,1+MOD(INT((ROWS($L$17:L107)-1)/ROWS(ysmer)),ROWS(zsmer)))) -> 8 | M107: =IF(ROWS($M$18:M107)>podatki!$I$33,"",INDEX(ysmer,1+MOD(ROWS($M$18:M107)-1,ROWS(zsmer)))) -> 1 | N107: =IF(ROWS($N$18:N107)>podatki!$I$33,"",INDEX(zsmer,1+INT((ROWS($N$18:N107)-1)/(ROWS(xsmer)*ROWS(ysmer))))) -> 0 | O107: =podatki!$D$20/2*(($L107)^2/podatki!$D$22^2+($M107)^2/podatki!$D$23^2+($N107)^2/podatki!$D$24^2)^(1/2) -> 196.7488818
L108: =IF(ROWS($L$18:L108)>podatki!$I$33,"",INDEX(xsmer,1+MOD(INT((ROWS($L$17:L108)-1)/ROWS(ysmer)),ROWS(zsmer)))) -> 8 | M108: =IF(ROWS($M$18:M108)>podatki!$I$33,"",INDEX(ysmer,1+MOD(ROWS($M$18:M108)-1,ROWS(zsmer)))) -> 2 | N108: =IF(ROWS($N$18:N108)>podatki!$I$33,"",INDEX(zsmer,1+INT((ROWS($N$18:N108)-1)/(ROWS(xsmer)*ROWS(ysmer))))) -> 0 | O108: =podatki!$D$20/2*(($L108)^2/podatki!$D$22^2+($M108)^2/podatki!$D$23^2+($N108)^2/podatki!$D$24^2)^(1/2) -> 198.9786169
L109: =IF(ROWS($L$18:L109)>podatki!$I$33,"",INDEX(xsmer,1+MOD(INT((ROWS($L$17:L109)-1)/ROWS(ysmer)),ROWS(zsmer)))) -> 8 | M109: =IF(ROWS($M$18:M109)>podatki!$I$33,"",INDEX(ysmer,1+MOD(ROWS($M$18:M109)-1,ROWS(zsmer)))) -> 3 | N109: =IF(ROWS($N$18:N109)>podatki!$I$33,"",INDEX(zsmer,1+INT((ROWS($N$18:N109)-1)/(ROWS(xsmer)*ROWS(ysmer))))) -> 0 | O109: =podatki!$D$20/2*(($L109)^2/podatki!$D$22^2+($M109)^2/podatki!$D$23^2+($N109)^2/podatki!$D$24^2)^(1/2) -> 202.6403279
L110: =IF(ROWS($L$18:L110)>podatki!$I$33,"",INDEX(xsmer,1+MOD(INT((ROWS($L$17:L110)-1)/ROWS(ysmer)),ROWS(zsmer)))) -> 8 | M110: =IF(ROWS($M$18:M110)>podatki!$I$33,"",INDEX(ysmer,1+MOD(ROWS($M$18:M110)-1,ROWS(zsmer)))) -> 4 | N110: =IF(ROWS($N$18:N110)>podatki!$I$33,"",INDEX(zsmer,1+INT((ROWS($N$18:N110)-1)/(ROWS(xsmer)*ROWS(ysmer))))) -> 0 | O110: =podatki!$D$20/2*(($L110)^2/podatki!$D$22^2+($M110)^2/podatki!$D$23^2+($N110)^2/podatki!$D$24^2)^(1/2) -> 207.658277
L111: =IF(ROWS($L$18:L111)>podatki!$I$33,"",INDEX(xsmer,1+MOD(INT((ROWS($L$17:L111)-1)/ROWS(ysmer)),ROWS(zsmer)))) -> 8 | M111: =IF(ROWS($M$18:M111)>podatki!$I$33,"",INDEX(ysmer,1+MOD(ROWS($M$18:M111)-1,ROWS(zsmer)))) -> 5 | N111: =IF(ROWS($N$18:N111)>podatki!$I$33,"",INDEX(zsmer,1+INT((ROWS($N$18:N111)-1)/(ROWS(xsmer)*ROWS(ysmer))))) -> 0 | O111: =podatki!$D$20/2*(($L111)^2/podatki!$D$22^2+($M111)^2/podatki!$D$23^2+($N111)^2/podatki!$D$24^2)^(1/2) -> 213.9370527
L112: =IF(ROWS($L$18:L112)>podatki!$I$33,"",INDEX(xsmer,1+MOD(INT((ROWS($L$17:L112)-1)/ROWS(ysmer)),ROWS(zsmer)))) -> 8 | M112: =IF(ROWS($M$18:M112)>podatki!$I$33,"",INDEX(ysmer,1+MOD(ROWS($M$18:M112)-1,ROWS(zsmer)))) -> 6 | N112: =IF(ROWS($N$18:N112)>podatki!$I$33,"",INDEX(zsmer,1+INT((ROWS($N$18:N112)-1)/(ROWS(xsmer)*ROWS(ysmer))))) -> 0 | O112: =podatki!$D$20/2*(($L112)^2/podatki!$D$22^2+($M112)^2/podatki!$D$23^2+($N112)^2/podatki!$D$24^2)^(1/2) -> 221.3693972
L113: =IF(ROWS($L$18:L113)>podatki!$I$33,"",INDEX(xsmer,1+MOD(INT((ROWS($L$17:L113)-1)/ROWS(ysmer)),ROWS(zsmer)))) -> 8 | M113: =IF(ROWS($M$18:M113)>podatki!$I$33,"",INDEX(ysmer,1+MOD(ROWS($M$18:M113)-1,ROWS(zsmer)))) -> 7 | N113: =IF(ROWS($N$18:N113)>podatki!$I$33,"",INDEX(zsmer,1+INT((ROWS($N$18:N113)-1)/(ROWS(xsmer)*ROWS(ysmer))))) -> 0 | O113: =podatki!$D$20/2*(($L113)^2/podatki!$D$22^2+($M113)^2/podatki!$D$23^2+($N113)^2/podatki!$D$24^2)^(1/2) -> 229.8434304
L114: =IF(ROWS($L$18:L114)>podatki!$I$33,"",INDEX(xsmer,1+MOD(INT((ROWS($L$17:L114)-1)/ROWS(ysmer)),ROWS(zsmer)))) -> 8 | M114: =IF(ROWS($M$18:M114)>podatki!$I$33,"",INDEX(ysmer,1+MOD(ROWS($M$18:M114)-1,ROWS(zsmer)))) -> 8 | N114: =IF(ROWS($N$18:N114)>podatki!$I$33,"",INDEX(zsmer,1+INT((ROWS($N$18:N114)-1)/(ROWS(xsmer)*ROWS(ysmer))))) -> 0 | O114: =podatki!$D$20/2*(($L114)^2/podatki!$D$22^2+($M114)^2/podatki!$D$23^2+($N114)^2/podatki!$D$24^2)^(1/2) -> 239.2484901
L115: =IF(ROWS($L$18:L115)>podatki!$I$33,"",INDEX(xsmer,1+MOD(INT((ROWS($L$17:L115)-1)/ROWS(ysmer)),ROWS(zsmer)))) -> 8 | M115: =IF(ROWS($M$18:M115)>podatki!$I$33,"",INDEX(ysmer,1+MOD(ROWS($M$18:M115)-1,ROWS(zsmer)))) -> 9 | N115: =IF(ROWS($N$18:N115)>podatki!$I$33,"",INDEX(zsmer,1+INT((ROWS($N$18:N115)-1)/(ROWS(xsmer)*ROWS(ysmer))))) -> 0 | O115: =podatki!$D$20/2*(($L115)^2/podatki!$D$22^2+($M115)^2/podatki!$D$23^2+($N115)^2/podatki!$D$24^2)^(1/2) -> 249.4793027
L116: =IF(ROWS($L$18:L116)>podatki!$I$33,"",INDEX(xsmer,1+MOD(INT((ROWS($L$17:L116)-1)/ROWS(ysmer)),ROWS(zsmer)))) -> 9 | M116: =IF(ROWS($M$18:M116)>podatki!$I$33,"",INDEX(ysmer,1+MOD(ROWS($M$18:M116)-1,ROWS(zsmer)))) -> 10 | N116: =IF(ROWS($N$18:N116)>podatki!$I$33,"",INDEX(zsmer,1+INT((ROWS($N$18:N116)-1)/(ROWS(xsmer)*ROWS(ysmer))))) -> 0 | O116: =podatki!$D$20/2*(($L116)^2/podatki!$D$22^2+($M116)^2/podatki!$D$23^2+($N116)^2/podatki!$D$24^2)^(1/2) -> 279.3429791
L117: =IF(ROWS($L$18:L117)>podatki!$I$33,"",INDEX(xsmer,1+MOD(INT((ROWS($L$17:L117)-1)/ROWS(ysmer)),ROWS(zsmer)))) -> 9 | M117: =IF(ROWS($M$18:M117)>podatki!$I$33,"",INDEX(ysmer,1+MOD(ROWS($M$18:M117)-1,ROWS(zsmer)))) -> 0 | N117: =IF(ROWS($N$18:N117)>podatki!$I$33,"",INDEX(zsmer,1+INT((ROWS($N$18:N117)-1)/(ROWS(xsmer)*ROWS(ysmer))))) -> 0 | O117: =podatki!$D$20/2*(($L117)^2/podatki!$D$22^2+($M117)^2/podatki!$D$23^2+($N117)^2/podatki!$D$24^2)^(1/2) -> 220.5
L118: =IF(ROWS($L$18:L118)>podatki!$I$33,"",INDEX(xsmer,1+MOD(INT((ROWS($L$17:L118)-1)/ROWS(ysmer)),ROWS(zsmer)))) -> 9 | M118: =IF(ROWS($M$18:M118)>podatki!$I$33,"",INDEX(ysmer,1+MOD(ROWS($M$18:M118)-1,ROWS(zsmer)))) -> 1 | N118: =IF(ROWS($N$18:N118)>podatki!$I$33,"",INDEX(zsmer,1+INT((ROWS($N$18:N118)-1)/(ROWS(xsmer)*ROWS(ysmer))))) -> 0 | O118: =podatki!$D$20/2*(($L118)^2/podatki!$D$22^2+($M118)^2/podatki!$D$23^2+($N118)^2/podatki!$D$24^2)^(1/2) -> 221.1659388
L119: =IF(ROWS($L$18:L119)>podatki!$I$33,"",INDEX(xsmer,1+MOD(INT((ROWS($L$17:L119)-1)/ROWS(ysmer)),ROWS(zsmer)))) -> 9 | M119: =IF(ROWS($M$18:M119)>podatki!$I$33,"",INDEX(ysmer,1+MOD(ROWS($M$18:M119)-1,ROWS(zsmer)))) -> 2 | N119: =IF(ROWS($N$18:N119)>podatki!$I$33,"",INDEX(zsmer,1+INT((ROWS($N$18:N119)-1)/(ROWS(xsmer)*ROWS(ysmer))))) -> 0 | O119: =podatki!$D$20/2*(($L119)^2/podatki!$D$22^2+($M119)^2/podatki!$D$23^2+($N119)^2/podatki!$D$24^2)^(1/2) -> 223.1518317
L120: =IF(ROWS($L$18:L120)>podatki!$I$33,"",INDEX(xsmer,1+MOD(INT((ROWS($L$17:L120)-1)/ROWS(ysmer)),ROWS(zsmer)))) -> 9 | M120: =IF(ROWS($M$18:M120)>podatki!$I$33,"",INDEX(ysmer,1+MOD(ROWS($M$18:M120)-1,ROWS(zsmer)))) -> 3 | N120: =IF(ROWS($N$18:N120)>podatki!$I$33,"",INDEX(zsmer,1+INT((ROWS($N$18:N120)-1)/(ROWS(xsmer)*ROWS(ysmer))))) -> 0 | O120: =podatki!$D$20/2*(($L120)^2/podatki!$D$22^2+($M120)^2/podatki!$D$23^2+($N120)^2/podatki!$D$24^2)^(1/2) -> 226.4229505
L121: =IF(ROWS($L$18:L121)>podatki!$I$33,"",INDEX(xsmer,1+MOD(INT((ROWS($L$17:L121)-1)/ROWS(ysmer)),ROWS(zsmer)))) -> 9 | M121: =IF(ROWS($M$18:M121)>podatki!$I$33,"",INDEX(ysmer,1+MOD(ROWS($M$18:M121)-1,ROWS(zsmer)))) -> 4 | N121: =IF(ROWS($N$18:N121)>podatki!$I$33,"",INDEX(zsmer,1+INT((ROWS($N$18:N121)-1)/(ROWS(xsmer)*ROWS(ysmer))))) -> 0 | O121: =podatki!$D$20/2*(($L121)^2/podatki!$D$22^2+($M121)^2/podatki!$D$23^2+($N121)^2/podatki!$D$24^2)^(1/2) -> 230.9246847
L122: =IF(ROWS($L$18:L122)>podatki!$I$33,"",INDEX(xsmer,1+MOD(INT((ROWS($L$17:L122)-1)/ROWS(ysmer)),ROWS(zsmer)))) -> 9 | M122: =IF(ROWS($M$18:M122)>podatki!$I$33,"",INDEX(ysmer,1+MOD(ROWS($M$18:M122)-1,ROWS(zsmer)))) -> 5 | N122: =IF(ROWS($N$18:N122)>podatki!$I$33,"",INDEX(zsmer,1+INT((ROWS($N$18:N122)-1)/(ROWS(xsmer)*ROWS(ysmer))))) -> 0 | O122: =podatki!$D$20/2*(($L122)^2/podatki!$D$22^2+($M122)^2/podatki!$D$23^2+($N122)^2/podatki!$D$24^2)^(1/2) -> 236.586797
L123: =IF(ROWS($L$18:L123)>podatki!$I$33,"",INDEX(xsmer,1+MOD(INT((ROWS($L$17:L123)-1)/ROWS(ysmer)),ROWS(zsmer)))) -> 9 | M123: =IF(ROWS($M$18:M123)>podatki!$I$33,"",INDEX(ysmer,1+MOD(ROWS($M$18:M123)-1,ROWS(zsmer)))) -> 6 | N123: =IF(ROWS($N$18:N123)>podatki!$I$33,"",INDEX(zsmer,1+INT((ROWS($N$18:N123)-1)/(ROWS(xsmer)*ROWS(ysmer))))) -> 0 | O123: =podatki!$D$20/2*(($L123)^2/podatki!$D$22^2+($M123)^2/podatki!$D$23^2+($N123)^2/podatki!$D$24^2)^(1/2) -> 243.3282968
L124: =IF(ROWS($L$18:L124)>podatki!$I$33,"",INDEX(xsmer,1+MOD(INT((ROWS($L$17:L124)-1)/ROWS(ysmer)),ROWS(zsmer)))) -> 9 | M124: =IF(ROWS($M$18:M124)>podatki!$I$33,"",INDEX(ysmer,1+MOD(ROWS($M$18:M124)-1,ROWS(zsmer)))) -> 7 | N124: =IF(ROWS($N$18:N124)>podatki!$I$33,"",INDEX(zsmer,1+INT((ROWS($N$18:N124)-1)/(ROWS(xsmer)*ROWS(ysmer))))) -> 0 | O124: =podatki!$D$20/2*(($L124)^2/podatki!$D$22^2+($M124)^2/podatki!$D$23^2+($N124)^2/podatki!$D$24^2)^(1/2) -> 251.0622483
L125: =IF(ROWS($L$18:L125)>podatki!$I$33,"",INDEX(xsmer,1+MOD(INT((ROWS($L$17:L125)-1)/ROWS(ysmer)),ROWS(zsmer)))) -> 9 | M125: =IF(ROWS($M$18:M125)>podatki!$I$33,"",INDEX(ysmer,1+MOD(ROWS($M$18:M125)-1,ROWS(zsmer)))) -> 8 | N125: =IF(ROWS($N$18:N125)>podatki!$I$33,"",INDEX(zsmer,1+INT((ROWS($N$18:N125)-1)/(ROWS(xsmer)*ROWS(ysmer))))) -> 0 | O125: =podatki!$D$20/2*(($L125)^2/podatki!$D$22^2+($M125)^2/podatki!$D$23^2+($N125)^2/podatki!$D$24^2)^(1/2) -> 259.7
L126: =IF(ROWS($L$18:L126)>podatki!$I$33,"",INDEX(xsmer,1+MOD(INT((ROWS($L$17:L126)-1)/ROWS(ysmer)),ROWS(zsmer)))) -> 9 | M126: =IF(ROWS($M$18:M126)>podatki!$I$33,"",INDEX(ysmer,1+MOD(ROWS($M$18:M126)-1,ROWS(zsmer)))) -> 9 | N126: =IF(ROWS($N$18:N126)>podatki!$I$33,"",INDEX(zsmer,1+INT((ROWS($N$18:N126)-1)/(ROWS(xsmer)*ROWS(ysmer))))) -> 0 | O126: =podatki!$D$20/2*(($L126)^2/podatki!$D$22^2+($M126)^2/podatki!$D$23^2+($N126)^2/podatki!$D$24^2)^(1/2) -> 269.1545513
L127: =IF(ROWS($L$18:L127)>podatki!$I$33,"",INDEX(xsmer,1+MOD(INT((ROWS($L$17:L127)-1)/ROWS(ysmer)),ROWS(zsmer)))) -> 10 | M127: =IF(ROWS($M$18:M127)>podatki!$I$33,"",INDEX(ysmer,1+MOD(ROWS($M$18:M127)-1,ROWS(zsmer)))) -> 10 | N127: =IF(ROWS($N$18:N127)>podatki!$I$33,"",INDEX(zsmer,1+INT((ROWS($N$18:N127)-1)/(ROWS(xsmer)*ROWS(ysmer))))) -> 0 | O127: =podatki!$D$20/2*(($L127)^2/podatki!$D$22^2+($M127)^2/podatki!$D$23^2+($N127)^2/podatki!$D$24^2)^(1/2) -> 299.0606126
L128: =IF(ROWS($L$18:L128)>podatki!$I$33,"",INDEX(xsmer,1+MOD(INT((ROWS($L$17:L128)-1)/ROWS(ysmer)),ROWS(zsmer)))) -> 10 | M128: =IF(ROWS($M$18:M128)>podatki!$I$33,"",INDEX(ysmer,1+MOD(ROWS($M$18:M128)-1,ROWS(zsmer)))) -> 0 | N128: =IF(ROWS($N$18:N128)>podatki!$I$33,"",INDEX(zsmer,1+INT((ROWS($N$18:N128)-1)/(ROWS(xsmer)*ROWS(ysmer))))) -> 0 | O128: =podatki!$D$20/2*(($L128)^2/podatki!$D$22^2+($M128)^2/podatki!$D$23^2+($N128)^2/podatki!$D$24^2)^(1/2) -> 245
L129: =IF(ROWS($L$18:L129)>podatki!$I$33,"",INDEX(xsmer,1+MOD(INT((ROWS($L$17:L129)-1)/ROWS(ysmer)),ROWS(zsmer)))) -> 10 | M129: =IF(ROWS($M$18:M129)>podatki!$I$33,"",INDEX(ysmer,1+MOD(ROWS($M$18:M129)-1,ROWS(zsmer)))) -> 1 | N129: =IF(ROWS($N$18:N129)>podatki!$I$33,"",INDEX(zsmer,1+INT((ROWS($N$18:N129)-1)/(ROWS(xsmer)*ROWS(ysmer))))) -> 0 | O129: =podatki!$D$20/2*(($L129)^2/podatki!$D$22^2+($M129)^2/podatki!$D$23^2+($N129)^2/podatki!$D$24^2)^(1/2) -> 245.5995165
L130: =IF(ROWS($L$18:L130)>podatki!$I$33,"",INDEX(xsmer,1+MOD(INT((ROWS($L$17:L130)-1)/ROWS(ysmer)),ROWS(zsmer)))) -> 10 | M130: =IF(ROWS($M$18:M130)>podatki!$I$33,"",INDEX(ysmer,1+MOD(ROWS($M$18:M130)-1,ROWS(zsmer)))) -> 2 | N130: =IF(ROWS($N$18:N130)>podatki!$I$33,"",INDEX(zsmer,1+INT((ROWS($N$18:N130)-1)/(ROWS(xsmer)*ROWS(ysmer))))) -> 0 | O130: =podatki!$D$20/2*(($L130)^2/podatki!$D$22^2+($M130)^2/podatki!$D$23^2+($N130)^2/podatki!$D$24^2)^(1/2) -> 247.389349
L131: =IF(ROWS($L$18:L131)>podatki!$I$33,"",INDEX(xsmer,1+MOD(INT((ROWS($L$17:L131)-1)/ROWS(ysmer)),ROWS(zsmer)))) -> 10 | M131: =IF(ROWS($M$18:M131)>podatki!$I$33,"",INDEX(ysmer,1+MOD(ROWS($M$18:M131)-1,ROWS(zsmer)))) -> 3 | N131: =IF(ROWS($N$18:N131)>podatki!$I$33,"",INDEX(zsmer,1+INT((ROWS($N$18:N131)-1)/(ROWS(xsmer)*ROWS(ysmer))))) -> 0 | O131: =podatki!$D$20/2*(($L131)^2/podatki!$D$22^2+($M131)^2/podatki!$D$23^2+($N131)^2/podatki!$D$24^2)^(1/2) -> 250.3439684
L132: =IF(ROWS($L$18:L132)>podatki!$I$33,"",INDEX(xsmer,1+MOD(INT((ROWS($L$17:L132)-1)/ROWS(ysmer)),ROWS(zsmer)))) -> 10 | M132: =IF(ROWS($M$18:M132)>podatki!$I$33,"",INDEX(ysmer,1+MOD(ROWS($M$18:M132)-1,ROWS(zsmer)))) -> 4 | N132: =IF(ROWS($N$18:N132)>podatki!$I$33,"",INDEX(zsmer,1+INT((ROWS($N$18:N132)-1)/(ROWS(xsmer)*ROWS(ysmer))))) -> 0 | O132: =podatki!$D$20/2*(($L132)^2/podatki!$D$22^2+($M132)^2/podatki!$D$23^2+($N132)^2/podatki!$D$24^2)^(1/2) -> 254.4227977
L133: =IF(ROWS($L$18:L133)>podatki!$I$33,"",INDEX(xsmer,1+MOD(INT((ROWS($L$17:L133)-1)/ROWS(ysmer)),ROWS(zsmer)))) -> 10 | M133: =IF(ROWS($M$18:M133)>podatki!$I$33,"",INDEX(ysmer,1+MOD(ROWS($M$18:M133)-1,ROWS(zsmer)))) -> 5 | N133: =IF(ROWS($N$18:N133)>podatki!$I$33,"",INDEX(zsmer,1+INT((ROWS($N$18:N133)-1)/(ROWS(xsmer)*ROWS(ysmer))))) -> 0 | O133: =podatki!$D$20/2*(($L133)^2/podatki!$D$22^2+($M133)^2/podatki!$D$23^2+($N133)^2/podatki!$D$24^2)^(1/2) -> 259.5728462
L134: =IF(ROWS($L$18:L134)>podatki!$I$33,"",INDEX(xsmer,1+MOD(INT((ROWS($L$17:L134)-1)/ROWS(ysmer)),ROWS(zsmer)))) -> 10 | M134: =IF(ROWS($M$18:M134)>podatki!$I$33,"",INDEX(ysmer,1+MOD(ROWS($M$18:M134)-1,ROWS(zsmer)))) -> 6 | N134: =IF(ROWS($N$18:N134)>podatki!$I$33,"",INDEX(zsmer,1+INT((ROWS($N$18:N134)-1)/(ROWS(xsmer)*ROWS(ysmer))))) -> 0 | O134: =podatki!$D$20/2*(($L134)^2/podatki!$D$22^2+($M134)^2/podatki!$D$23^2+($N134)^2/podatki!$D$24^2)^(1/2) -> 265.7318385
L135: =IF(ROWS($L$18:L135)>podatki!$I$33,"",INDEX(xsmer,1+MOD(INT((ROWS($L$17:L135)-1)/ROWS(ysmer)),ROWS(zsmer)))) -> 10 | M135: =IF(ROWS($M$18:M135)>podatki!$I$33,"",INDEX(ysmer,1+MOD(ROWS($M$18:M135)-1,ROWS(zsmer)))) -> 7 | N135: =IF(ROWS($N$18:N135)>podatki!$I$33,"",INDEX(zsmer,1+INT((ROWS($N$18:N135)-1)/(ROWS(xsmer)*ROWS(ysmer))))) -> 0 | O135: =podatki!$D$20/2*(($L135)^2/podatki!$D$22^2+($M135)^2/podatki!$D$23^2+($N135)^2/podatki!$D$24^2)^(1/2) -> 272.8314544
L136: =IF(ROWS($L$18:L136)>podatki!$I$33,"",INDEX(xsmer,1+MOD(INT((ROWS($L$17:L136)-1)/ROWS(ysmer)),ROWS(zsmer)))) -> 10 | M136: =IF(ROWS($M$18:M136)>podatki!$I$33,"",INDEX(ysmer,1+MOD(ROWS($M$18:M136)-1,ROWS(zsmer)))) -> 8 | N136: =IF(ROWS($N$18:N136)>podatki!$I$33,"",INDEX(zsmer,1+INT((ROWS($N$18:N136)-1)/(ROWS(xsmer)*ROWS(ysmer))))) -> 0 | O136: =podatki!$D$20/2*(($L136)^2/podatki!$D$22^2+($M136)^2/podatki!$D$23^2+($N136)^2/podatki!$D$24^2)^(1/2) -> 280.8003561
L137: =IF(ROWS($L$18:L137)>podatki!$I$33,"",INDEX(xsmer,1+MOD(INT((ROWS($L$17:L137)-1)/ROWS(ysmer)),ROWS(zsmer)))) -> 10 | M137: =IF(ROWS($M$18:M137)>podatki!$I$33,"",INDEX(ysmer,1+MOD(ROWS($M$18:M137)-1,ROWS(zsmer)))) -> 9 | N137: =IF(ROWS($N$18:N137)>podatki!$I$33,"",INDEX(zsmer,1+INT((ROWS($N$18:N137)-1)/(ROWS(xsmer)*ROWS(ysmer))))) -> 0 | O137: =podatki!$D$20/2*(($L137)^2/podatki!$D$22^2+($M137)^2/podatki!$D$23^2+($N137)^2/podatki!$D$24^2)^(1/2) -> 289.5667842
L138: =IF(ROWS($L$18:L138)>podatki!$I$33,"",INDEX(xsmer,1+MOD(INT((ROWS($L$17:L138)-1)/ROWS(ysmer)),ROWS(zsmer)))) -> 0 | M138: =IF(ROWS($M$18:M138)>podatki!$I$33,"",INDEX(ysmer,1+MOD(ROWS($M$18:M138)-1,ROWS(zsmer)))) -> 10 | N138: =IF(ROWS($N$18:N138)>podatki!$I$33,"",INDEX(zsmer,1+INT((ROWS($N$18:N138)-1)/(ROWS(xsmer)*ROWS(ysmer))))) -> 0 | O138: =podatki!$D$20/2*(($L138)^2/podatki!$D$22^2+($M138)^2/podatki!$D$23^2+($N138)^2/podatki!$D$24^2)^(1/2) -> 171.5
L139: =IF(ROWS($L$18:L139)>podatki!$I$33,"",INDEX(xsmer,1+MOD(INT((ROWS($L$17:L139)-1)/ROWS(ysmer)),ROWS(zsmer)))) -> 0 | M139: =IF(ROWS($M$18:M139)>podatki!$I$33,"",INDEX(ysmer,1+MOD(ROWS($M$18:M139)-1,ROWS(zsmer)))) -> 0 | N139: =IF(ROWS($N$18:N139)>podatki!$I$33,"",INDEX(zsmer,1+INT((ROWS($N$18:N139)-1)/(ROWS(xsmer)*ROWS(ysmer))))) -> 1 | O139: =podatki!$D$20/2*(($L139)^2/podatki!$D$22^2+($M139)^2/podatki!$D$23^2+($N139)^2/podatki!$D$24^2)^(1/2) -> 57.16666667
L140: =IF(ROWS($L$18:L140)>podatki!$I$33,"",INDEX(xsmer,1+MOD(INT((ROWS($L$17:L140)-1)/ROWS(ysmer)),ROWS(zsmer)))) -> 0 | M140: =IF(ROWS($M$18:M140)>podatki!$I$33,"",INDEX(ysmer,1+MOD(ROWS($M$18:M140)-1,ROWS(zsmer)))) -> 1 | N140: =IF(ROWS($N$18:N140)>podatki!$I$33,"",INDEX(zsmer,1+INT((ROWS($N$18:N140)-1)/(ROWS(xsmer)*ROWS(ysmer))))) -> 1 | O140: =podatki!$D$20/2*(($L140)^2/podatki!$D$22^2+($M140)^2/podatki!$D$23^2+($N140)^2/podatki!$D$24^2)^(1/2) -> 59.68375221
L141: =IF(ROWS($L$18:L141)>podatki!$I$33,"",INDEX(xsmer,1+MOD(INT((ROWS($L$17:L141)-1)/ROWS(ysmer)),ROWS(zsmer)))) -> 0 | M141: =IF(ROWS($M$18:M141)>podatki!$I$33,"",INDEX(ysmer,1+MOD(ROWS($M$18:M141)-1,ROWS(zsmer)))) -> 2 | N141: =IF(ROWS($N$18:N141)>podatki!$I$33,"",INDEX(zsmer,1+INT((ROWS($N$18:N141)-1)/(ROWS(xsmer)*ROWS(ysmer))))) -> 1 | O141: =podatki!$D$20/2*(($L141)^2/podatki!$D$22^2+($M141)^2/podatki!$D$23^2+($N141)^2/podatki!$D$24^2)^(1/2) -> 66.66721666
L142: =IF(ROWS($L$18:L142)>podatki!$I$33,"",INDEX(xsmer,1+MOD(INT((ROWS($L$17:L142)-1)/ROWS(ysmer)),ROWS(zsmer)))) -> 0 | M142: =IF(ROWS($M$18:M142)>podatki!$I$33,"",INDEX(ysmer,1+MOD(ROWS($M$18:M142)-1,ROWS(zsmer)))) -> 3 | N142: =IF(ROWS($N$18:N142)>podatki!$I$33,"",INDEX(zsmer,1+INT((ROWS($N$18:N142)-1)/(ROWS(xsmer)*ROWS(ysmer))))) -> 1 | O142: =podatki!$D$20/2*(($L142)^2/podatki!$D$22^2+($M142)^2/podatki!$D$23^2+($N142)^2/podatki!$D$24^2)^(1/2) -> 76.90988414
L143: =IF(ROWS($L$18:L143)>podatki!$I$33,"",INDEX(xsmer,1+MOD(INT((ROWS($L$17:L143)-1)/ROWS(ysmer)),ROWS(zsmer)))) -> 0 | M143: =IF(ROWS($M$18:M143)>podatki!$I$33,"",INDEX(ysmer,1+MOD(ROWS($M$18:M143)-1,ROWS(zsmer)))) -> 4 | N143: =IF(ROWS($N$18:N143)>podatki!$I$33,"",INDEX(zsmer,1+INT((ROWS($N$18:N143)-1)/(ROWS(xsmer)*ROWS(ysmer))))) -> 1 | O143: =podatki!$D$20/2*(($L143)^2/podatki!$D$22^2+($M143)^2/podatki!$D$23^2+($N143)^2/podatki!$D$24^2)^(1/2) -> 89.29718796
L144: =IF(ROWS($L$18:L144)>podatki!$I$33,"",INDEX(xsmer,1+MOD(INT((ROWS($L$17:L144)-1)/ROWS(ysmer)),ROWS(zsmer)))) -> 0 | M144: =IF(ROWS($M$18:M144)>podatki!$I$33,"",INDEX(ysmer,1+MOD(ROWS($M$18:M144)-1,ROWS(zsmer)))) -> 5 | N144: =IF(ROWS($N$18:N144)>podatki!$I$33,"",INDEX(zsmer,1+INT((ROWS($N$18:N144)-1)/(ROWS(xsmer)*ROWS(ysmer))))) -> 1 | O144: =podatki!$D$20/2*(($L144)^2/podatki!$D$22^2+($M144)^2/podatki!$D$23^2+($N144)^2/podatki!$D$24^2)^(1/2) -> 103.058674
L145: =IF(ROWS($L$18:L145)>podatki!$I$33,"",INDEX(xsmer,1+MOD(INT((ROWS($L$17:L145)-1)/ROWS(ysmer)),ROWS(zsmer)))) -> 0 | M145: =IF(ROWS($M$18:M145)>podatki!$I$33,"",INDEX(ysmer,1+MOD(ROWS($M$18:M145)-1,ROWS(zsmer)))) -> 6 | N145: =IF(ROWS($N$18:N145)>podatki!$I$33,"",INDEX(zsmer,1+INT((ROWS($N$18:N145)-1)/(ROWS(xsmer)*ROWS(ysmer))))) -> 1 | O145: =podatki!$D$20/2*(($L145)^2/podatki!$D$22^2+($M145)^2/podatki!$D$23^2+($N145)^2/podatki!$D$24^2)^(1/2) -> 117.7133713
L146: =IF(ROWS($L$18:L146)>podatki!$I$33,"",INDEX(xsmer,1+MOD(INT((ROWS($L$17:L146)-1)/ROWS(ysmer)),ROWS(zsmer)))) -> 0 | M146: =IF(ROWS($M$18:M146)>podatki!$I$33,"",INDEX(ysmer,1+MOD(ROWS($M$18:M146)-1,ROWS(zsmer)))) -> 7 | N146: =IF(ROWS($N$18:N146)>podatki!$I$33,"",INDEX(zsmer,1+INT((ROWS($N$18:N146)-1)/(ROWS(xsmer)*ROWS(ysmer))))) -> 1 | O146: =podatki!$D$20/2*(($L146)^2/podatki!$D$22^2+($M146)^2/podatki!$D$23^2+($N146)^2/podatki!$D$24^2)^(1/2) -> 132.966275
L147: =IF(ROWS($L$18:L147)>podatki!$I$33,"",INDEX(xsmer,1+MOD(INT((ROWS($L$17:L147)-1)/ROWS(ysmer)),ROWS(zsmer)))) -> 0 | M147: =IF(ROWS($M$18:M147)>podatki!$I$33,"",INDEX(ysmer,1+MOD(ROWS($M$18:M147)-1,ROWS(zsmer)))) -> 8 | N147: =IF(ROWS($N$18:N147)>podatki!$I$33,"",INDEX(zsmer,1+INT((ROWS($N$18:N147)-1)/(ROWS(xsmer)*ROWS(ysmer))))) -> 1 | O147: =podatki!$D$20/2*(($L147)^2/podatki!$D$22^2+($M147)^2/podatki!$D$23^2+($N147)^2/podatki!$D$24^2)^(1/2) -> 148.6333333
L148: =IF(ROWS($L$18:L148)>podatki!$I$33,"",INDEX(xsmer,1+MOD(INT((ROWS($L$17:L148)-1)/ROWS(ysmer)),ROWS(zsmer)))) -> 0 | M148: =IF(ROWS($M$18:M148)>podatki!$I$33,"",INDEX(ysmer,1+MOD(ROWS($M$18:M148)-1,ROWS(zsmer)))) -> 9 | N148: =IF(ROWS($N$18:N148)>podatki!$I$33,"",INDEX(zsmer,1+INT((ROWS($N$18:N148)-1)/(ROWS(xsmer)*ROWS(ysmer))))) -> 1 | O148: =podatki!$D$20/2*(($L148)^2/podatki!$D$22^2+($M148)^2/podatki!$D$23^2+($N148)^2/podatki!$D$24^2)^(1/2) -> 164.5963252
L149: =IF(ROWS($L$18:L149)>podatki!$I$33,"",INDEX(xsmer,1+MOD(INT((ROWS($L$17:L149)-1)/ROWS(ysmer)),ROWS(zsmer)))) -> 1 | M149: =IF(ROWS($M$18:M149)>podatki!$I$33,"",INDEX(ysmer,1+MOD(ROWS($M$18:M149)-1,ROWS(zsmer)))) -> 10 | N149: =IF(ROWS($N$18:N149)>podatki!$I$33,"",INDEX(zsmer,1+INT((ROWS($N$18:N149)-1)/(ROWS(xsmer)*ROWS(ysmer))))) -> 1 | O149: =podatki!$D$20/2*(($L149)^2/podatki!$D$22^2+($M149)^2/podatki!$D$23^2+($N149)^2/podatki!$D$24^2)^(1/2) -> 182.4295145
L150: =IF(ROWS($L$18:L150)>podatki!$I$33,"",INDEX(xsmer,1+MOD(INT((ROWS($L$17:L150)-1)/ROWS(ysmer)),ROWS(zsmer)))) -> 1 | M150: =IF(ROWS($M$18:M150)>podatki!$I$33,"",INDEX(ysmer,1+MOD(ROWS($M$18:M150)-1,ROWS(zsmer)))) -> 0 | N150: =IF(ROWS($N$18:N150)>podatki!$I$33,"",INDEX(zsmer,1+INT((ROWS($N$18:N150)-1)/(ROWS(xsmer)*ROWS(ysmer))))) -> 1 | O150: =podatki!$D$20/2*(($L150)^2/podatki!$D$22^2+($M150)^2/podatki!$D$23^2+($N150)^2/podatki!$D$24^2)^(1/2) -> 62.19548036
L151: =IF(ROWS($L$18:L151)>podatki!$I$33,"",INDEX(xsmer,1+MOD(INT((ROWS($L$17:L151)-1)/ROWS(ysmer)),ROWS(zsmer)))) -> 1 | M151: =IF(ROWS($M$18:M151)>podatki!$I$33,"",INDEX(ysmer,1+MOD(ROWS($M$18:M151)-1,ROWS(zsmer)))) -> 1 | N151: =IF(ROWS($N$18:N151)>podatki!$I$33,"",INDEX(zsmer,1+INT((ROWS($N$18:N151)-1)/(ROWS(xsmer)*ROWS(ysmer))))) -> 1 | O151: =podatki!$D$20/2*(($L151)^2/podatki!$D$22^2+($M151)^2/podatki!$D$23^2+($N151)^2/podatki!$D$24^2)^(1/2) -> 64.51666667
L152: =IF(ROWS($L$18:L152)>podatki!$I$33,"",INDEX(xsmer,1+MOD(INT((ROWS($L$17:L152)-1)/ROWS(ysmer)),ROWS(zsmer)))) -> 1 | M152: =IF(ROWS($M$18:M152)>podatki!$I$33,"",INDEX(ysmer,1+MOD(ROWS($M$18:M152)-1,ROWS(zsmer)))) -> 2 | N152: =IF(ROWS($N$18:N152)>podatki!$I$33,"",INDEX(zsmer,1+INT((ROWS($N$18:N152)-1)/(ROWS(xsmer)*ROWS(ysmer))))) -> 1 | O152: =podatki!$D$20/2*(($L152)^2/podatki!$D$22^2+($M152)^2/podatki!$D$23^2+($N152)^2/podatki!$D$24^2)^(1/2) -> 71.02652869
L153: =IF(ROWS($L$18:L153)>podatki!$I$33,"",INDEX(xsmer,1+MOD(INT((ROWS($L$17:L153)-1)/ROWS(ysmer)),ROWS(zsmer)))) -> 1 | M153: =IF(ROWS($M$18:M153)>podatki!$I$33,"",INDEX(ysmer,1+MOD(ROWS($M$18:M153)-1,ROWS(zsmer)))) -> 3 | N153: =IF(ROWS($N$18:N153)>podatki!$I$33,"",INDEX(zsmer,1+INT((ROWS($N$18:N153)-1)/(ROWS(xsmer)*ROWS(ysmer))))) -> 1 | O153: =podatki!$D$20/2*(($L153)^2/podatki!$D$22^2+($M153)^2/podatki!$D$23^2+($N153)^2/podatki!$D$24^2)^(1/2) -> 80.71790556
L154: =IF(ROWS($L$18:L154)>podatki!$I$33,"",INDEX(xsmer,1+MOD(INT((ROWS($L$17:L154)-1)/ROWS(ysmer)),ROWS(zsmer)))) -> 1 | M154: =IF(ROWS($M$18:M154)>podatki!$I$33,"",INDEX(ysmer,1+MOD(ROWS($M$18:M154)-1,ROWS(zsmer)))) -> 4 | N154: =IF(ROWS($N$18:N154)>podatki!$I$33,"",INDEX(zsmer,1+INT((ROWS($N$18:N154)-1)/(ROWS(xsmer)*ROWS(ysmer))))) -> 1 | O154: =podatki!$D$20/2*(($L154)^2/podatki!$D$22^2+($M154)^2/podatki!$D$23^2+($N154)^2/podatki!$D$24^2)^(1/2) -> 92.59718018
L155: =IF(ROWS($L$18:L155)>podatki!$I$33,"",INDEX(xsmer,1+MOD(INT((ROWS($L$17:L155)-1)/ROWS(ysmer)),ROWS(zsmer)))) -> 1 | M155: =IF(ROWS($M$18:M155)>podatki!$I$33,"",INDEX(ysmer,1+MOD(ROWS($M$18:M155)-1,ROWS(zsmer)))) -> 5 | N155: =IF(ROWS($N$18:N155)>podatki!$I$33,"",INDEX(zsmer,1+INT((ROWS($N$18:N155)-1)/(ROWS(xsmer)*ROWS(ysmer))))) -> 1 | O155: =podatki!$D$20/2*(($L155)^2/podatki!$D$22^2+($M155)^2/podatki!$D$23^2+($N155)^2/podatki!$D$24^2)^(1/2) -> 105.9308278
L156: =IF(ROWS($L$18:L156)>podatki!$I$33,"",INDEX(xsmer,1+MOD(INT((ROWS($L$17:L156)-1)/ROWS(ysmer)),ROWS(zsmer)))) -> 1 | M156: =IF(ROWS($M$18:M156)>podatki!$I$33,"",INDEX(ysmer,1+MOD(ROWS($M$18:M156)-1,ROWS(zsmer)))) -> 6 | N156: =IF(ROWS($N$18:N156)>podatki!$I$33,"",INDEX(zsmer,1+INT((ROWS($N$18:N156)-1)/(ROWS(xsmer)*ROWS(ysmer))))) -> 1 | O156: =podatki!$D$20/2*(($L156)^2/podatki!$D$22^2+($M156)^2/podatki!$D$23^2+($N156)^2/podatki!$D$24^2)^(1/2) -> 120.2359671
L157: =IF(ROWS($L$18:L157)>podatki!$I$33,"",INDEX(xsmer,1+MOD(INT((ROWS($L$17:L157)-1)/ROWS(ysmer)),ROWS(zsmer)))) -> 1 | M157: =IF(ROWS($M$18:M157)>podatki!$I$33,"",INDEX(ysmer,1+MOD(ROWS($M$18:M157)-1,ROWS(zsmer)))) -> 7 | N157: =IF(ROWS($N$18:N157)>podatki!$I$33,"",INDEX(zsmer,1+INT((ROWS($N$18:N157)-1)/(ROWS(xsmer)*ROWS(ysmer))))) -> 1 | O157: =podatki!$D$20/2*(($L157)^2/podatki!$D$22^2+($M157)^2/podatki!$D$23^2+($N157)^2/podatki!$D$24^2)^(1/2) -> 135.2045867
L158: =IF(ROWS($L$18:L158)>podatki!$I$33,"",INDEX(xsmer,1+MOD(INT((ROWS($L$17:L158)-1)/ROWS(ysmer)),ROWS(zsmer)))) -> 1 | M158: =IF(ROWS($M$18:M158)>podatki!$I$33,"",INDEX(ysmer,1+MOD(ROWS($M$18:M158)-1,ROWS(zsmer)))) -> 8 | N158: =IF(ROWS($N$18:N158)>podatki!$I$33,"",INDEX(zsmer,1+INT((ROWS($N$18:N158)-1)/(ROWS(xsmer)*ROWS(ysmer))))) -> 1 | O158: =podatki!$D$20/2*(($L158)^2/podatki!$D$22^2+($M158)^2/podatki!$D$23^2+($N158)^2/podatki!$D$24^2)^(1/2) -> 150.6390314
L159: =IF(ROWS($L$18:L159)>podatki!$I$33,"",INDEX(xsmer,1+MOD(INT((ROWS($L$17:L159)-1)/ROWS(ysmer)),ROWS(zsmer)))) -> 1 | M159: =IF(ROWS($M$18:M159)>podatki!$I$33,"",INDEX(ysmer,1+MOD(ROWS($M$18:M159)-1,ROWS(zsmer)))) -> 9 | N159: =IF(ROWS($N$18:N159)>podatki!$I$33,"",INDEX(zsmer,1+INT((ROWS($N$18:N159)-1)/(ROWS(xsmer)*ROWS(ysmer))))) -> 1 | O159: =podatki!$D$20/2*(($L159)^2/podatki!$D$22^2+($M159)^2/podatki!$D$23^2+($N159)^2/podatki!$D$24^2)^(1/2) -> 166.4097361
L160: =IF(ROWS($L$18:L160)>podatki!$I$33,"",INDEX(xsmer,1+MOD(INT((ROWS($L$17:L160)-1)/ROWS(ysmer)),ROWS(zsmer)))) -> 2 | M160: =IF(ROWS($M$18:M160)>podatki!$I$33,"",INDEX(ysmer,1+MOD(ROWS($M$18:M160)-1,ROWS(zsmer)))) -> 10 | N160: =IF(ROWS($N$18:N160)>podatki!$I$33,"",INDEX(zsmer,1+INT((ROWS($N$18:N160)-1)/(ROWS(xsmer)*ROWS(ysmer))))) -> 1 | O160: =podatki!$D$20/2*(($L160)^2/podatki!$D$22^2+($M160)^2/podatki!$D$23^2+($N160)^2/podatki!$D$24^2)^(1/2) -> 187.2999674
L161: =IF(ROWS($L$18:L161)>podatki!$I$33,"",INDEX(xsmer,1+MOD(INT((ROWS($L$17:L161)-1)/ROWS(ysmer)),ROWS(zsmer)))) -> 2 | M161: =IF(ROWS($M$18:M161)>podatki!$I$33,"",INDEX(ysmer,1+MOD(ROWS($M$18:M161)-1,ROWS(zsmer)))) -> 0 | N161: =IF(ROWS($N$18:N161)>podatki!$I$33,"",INDEX(zsmer,1+INT((ROWS($N$18:N161)-1)/(ROWS(xsmer)*ROWS(ysmer))))) -> 1 | O161: =podatki!$D$20/2*(($L161)^2/podatki!$D$22^2+($M161)^2/podatki!$D$23^2+($N161)^2/podatki!$D$24^2)^(1/2) -> 75.2929464
L162: =IF(ROWS($L$18:L162)>podatki!$I$33,"",INDEX(xsmer,1+MOD(INT((ROWS($L$17:L162)-1)/ROWS(ysmer)),ROWS(zsmer)))) -> 2 | M162: =IF(ROWS($M$18:M162)>podatki!$I$33,"",INDEX(ysmer,1+MOD(ROWS($M$18:M162)-1,ROWS(zsmer)))) -> 1 | N162: =IF(ROWS($N$18:N162)>podatki!$I$33,"",INDEX(zsmer,1+INT((ROWS($N$18:N162)-1)/(ROWS(xsmer)*ROWS(ysmer))))) -> 1 | O162: =podatki!$D$20/2*(($L162)^2/podatki!$D$22^2+($M162)^2/podatki!$D$23^2+($N162)^2/podatki!$D$24^2)^(1/2) -> 77.22143665
L163: =IF(ROWS($L$18:L163)>podatki!$I$33,"",INDEX(xsmer,1+MOD(INT((ROWS($L$17:L163)-1)/ROWS(ysmer)),ROWS(zsmer)))) -> 2 | M163: =IF(ROWS($M$18:M163)>podatki!$I$33,"",INDEX(ysmer,1+MOD(ROWS($M$18:M163)-1,ROWS(zsmer)))) -> 2 | N163: =IF(ROWS($N$18:N163)>podatki!$I$33,"",INDEX(zsmer,1+INT((ROWS($N$18:N163)-1)/(ROWS(xsmer)*ROWS(ysmer))))) -> 1 | O163: =podatki!$D$20/2*(($L163)^2/podatki!$D$22^2+($M163)^2/podatki!$D$23^2+($N163)^2/podatki!$D$24^2)^(1/2) -> 82.73764426
L164: =IF(ROWS($L$18:L164)>podatki!$I$33,"",INDEX(xsmer,1+MOD(INT((ROWS($L$17:L164)-1)/ROWS(ysmer)),ROWS(zsmer)))) -> 2 | M164: =IF(ROWS($M$18:M164)>podatki!$I$33,"",INDEX(ysmer,1+MOD(ROWS($M$18:M164)-1,ROWS(zsmer)))) -> 3 | N164: =IF(ROWS($N$18:N164)>podatki!$I$33,"",INDEX(zsmer,1+INT((ROWS($N$18:N164)-1)/(ROWS(xsmer)*ROWS(ysmer))))) -> 1 | O164: =podatki!$D$20/2*(($L164)^2/podatki!$D$22^2+($M164)^2/podatki!$D$23^2+($N164)^2/podatki!$D$24^2)^(1/2) -> 91.19281922
L165: =IF(ROWS($L$18:L165)>podatki!$I$33,"",INDEX(xsmer,1+MOD(INT((ROWS($L$17:L165)-1)/ROWS(ysmer)),ROWS(zsmer)))) -> 2 | M165: =IF(ROWS($M$18:M165)>podatki!$I$33,"",INDEX(ysmer,1+MOD(ROWS($M$18:M165)-1,ROWS(zsmer)))) -> 4 | N165: =IF(ROWS($N$18:N165)>podatki!$I$33,"",INDEX(zsmer,1+INT((ROWS($N$18:N165)-1)/(ROWS(xsmer)*ROWS(ysmer))))) -> 1 | O165: =podatki!$D$20/2*(($L165)^2/podatki!$D$22^2+($M165)^2/podatki!$D$23^2+($N165)^2/podatki!$D$24^2)^(1/2) -> 101.8576839
L166: =IF(ROWS($L$18:L166)>podatki!$I$33,"",INDEX(xsmer,1+MOD(INT((ROWS($L$17:L166)-1)/ROWS(ysmer)),ROWS(zsmer)))) -> 2 | M166: =IF(ROWS($M$18:M166)>podatki!$I$33,"",INDEX(ysmer,1+MOD(ROWS($M$18:M166)-1,ROWS(zsmer)))) -> 5 | N166: =IF(ROWS($N$18:N166)>podatki!$I$33,"",INDEX(zsmer,1+INT((ROWS($N$18:N166)-1)/(ROWS(xsmer)*ROWS(ysmer))))) -> 1 | O166: =podatki!$D$20/2*(($L166)^2/podatki!$D$22^2+($M166)^2/podatki!$D$23^2+($N166)^2/podatki!$D$24^2)^(1/2) -> 114.1143737
L167: =IF(ROWS($L$18:L167)>podatki!$I$33,"",INDEX(xsmer,1+MOD(INT((ROWS($L$17:L167)-1)/ROWS(ysmer)),ROWS(zsmer)))) -> 2 | M167: =IF(ROWS($M$18:M167)>podatki!$I$33,"",INDEX(ysmer,1+MOD(ROWS($M$18:M167)-1,ROWS(zsmer)))) -> 6 | N167: =IF(ROWS($N$18:N167)>podatki!$I$33,"",INDEX(zsmer,1+INT((ROWS($N$18:N167)-1)/(ROWS(xsmer)*ROWS(ysmer))))) -> 1 | O167: =podatki!$D$20/2*(($L167)^2/podatki!$D$22^2+($M167)^2/podatki!$D$23^2+($N167)^2/podatki!$D$24^2)^(1/2) -> 127.5046579
L168: =IF(ROWS($L$18:L168)>podatki!$I$33,"",INDEX(xsmer,1+MOD(INT((ROWS($L$17:L168)-1)/ROWS(ysmer)),ROWS(zsmer)))) -> 2 | M168: =IF(ROWS($M$18:M168)>podatki!$I$33,"",INDEX(ysmer,1+MOD(ROWS($M$18:M168)-1,ROWS(zsmer)))) -> 7 | N168: =IF(ROWS($N$18:N168)>podatki!$I$33,"",INDEX(zsmer,1+INT((ROWS($N$18:N168)-1)/(ROWS(xsmer)*ROWS(ysmer))))) -> 1 | O168: =podatki!$D$20/2*(($L168)^2/podatki!$D$22^2+($M168)^2/podatki!$D$23^2+($N168)^2/podatki!$D$24^2)^(1/2) -> 141.7075519
L169: =IF(ROWS($L$18:L169)>podatki!$I$33,"",INDEX(xsmer,1+MOD(INT((ROWS($L$17:L169)-1)/ROWS(ysmer)),ROWS(zsmer)))) -> 2 | M169: =IF(ROWS($M$18:M169)>podatki!$I$33,"",INDEX(ysmer,1+MOD(ROWS($M$18:M169)-1,ROWS(zsmer)))) -> 8 | N169: =IF(ROWS($N$18:N169)>podatki!$I$33,"",INDEX(zsmer,1+INT((ROWS($N$18:N169)-1)/(ROWS(xsmer)*ROWS(ysmer))))) -> 1 | O169: =podatki!$D$20/2*(($L169)^2/podatki!$D$22^2+($M169)^2/podatki!$D$23^2+($N169)^2/podatki!$D$24^2)^(1/2) -> 156.5019737
L170: =IF(ROWS($L$18:L170)>podatki!$I$33,"",INDEX(xsmer,1+MOD(INT((ROWS($L$17:L170)-1)/ROWS(ysmer)),ROWS(zsmer)))) -> 2 | M170: =IF(ROWS($M$18:M170)>podatki!$I$33,"",INDEX(ysmer,1+MOD(ROWS($M$18:M170)-1,ROWS(zsmer)))) -> 9 | N170: =IF(ROWS($N$18:N170)>podatki!$I$33,"",INDEX(zsmer,1+INT((ROWS($N$18:N170)-1)/(ROWS(xsmer)*ROWS(ysmer))))) -> 1 | O170: =podatki!$D$20/2*(($L170)^2/podatki!$D$22^2+($M170)^2/podatki!$D$23^2+($N170)^2/podatki!$D$24^2)^(1/2) -> 171.7351166
L171: =IF(ROWS($L$18:L171)>podatki!$I$33,"",INDEX(xsmer,1+MOD(INT((ROWS($L$17:L171)-1)/ROWS(ysmer)),ROWS(zsmer)))) -> 3 | M171: =IF(ROWS($M$18:M171)>podatki!$I$33,"",INDEX(ysmer,1+MOD(ROWS($M$18:M171)-1,ROWS(zsmer)))) -> 10 | N171: =IF(ROWS($N$18:N171)>podatki!$I$33,"",INDEX(zsmer,1+INT((ROWS($N$18:N171)-1)/(ROWS(xsmer)*ROWS(ysmer))))) -> 1 | O171: =podatki!$D$20/2*(($L171)^2/podatki!$D$22^2+($M171)^2/podatki!$D$23^2+($N171)^2/podatki!$D$24^2)^(1/2) -> 195.1474514
L172: =IF(ROWS($L$18:L172)>podatki!$I$33,"",INDEX(xsmer,1+MOD(INT((ROWS($L$17:L172)-1)/ROWS(ysmer)),ROWS(zsmer)))) -> 3 | M172: =IF(ROWS($M$18:M172)>podatki!$I$33,"",INDEX(ysmer,1+MOD(ROWS($M$18:M172)-1,ROWS(zsmer)))) -> 0 | N172: =IF(ROWS($N$18:N172)>podatki!$I$33,"",INDEX(zsmer,1+INT((ROWS($N$18:N172)-1)/(ROWS(xsmer)*ROWS(ysmer))))) -> 1 | O172: =podatki!$D$20/2*(($L172)^2/podatki!$D$22^2+($M172)^2/podatki!$D$23^2+($N172)^2/podatki!$D$24^2)^(1/2) -> 93.11432638
L173: =IF(ROWS($L$18:L173)>podatki!$I$33,"",INDEX(xsmer,1+MOD(INT((ROWS($L$17:L173)-1)/ROWS(ysmer)),ROWS(zsmer)))) -> 3 | M173: =IF(ROWS($M$18:M173)>podatki!$I$33,"",INDEX(ysmer,1+MOD(ROWS($M$18:M173)-1,ROWS(zsmer)))) -> 1 | N173: =IF(ROWS($N$18:N173)>podatki!$I$33,"",INDEX(zsmer,1+INT((ROWS($N$18:N173)-1)/(ROWS(xsmer)*ROWS(ysmer))))) -> 1 | O173: =podatki!$D$20/2*(($L173)^2/podatki!$D$22^2+($M173)^2/podatki!$D$23^2+($N173)^2/podatki!$D$24^2)^(1/2) -> 94.68051689
L174: =IF(ROWS($L$18:L174)>podatki!$I$33,"",INDEX(xsmer,1+MOD(INT((ROWS($L$17:L174)-1)/ROWS(ysmer)),ROWS(zsmer)))) -> 3 | M174: =IF(ROWS($M$18:M174)>podatki!$I$33,"",INDEX(ysmer,1+MOD(ROWS($M$18:M174)-1,ROWS(zsmer)))) -> 2 | N174: =IF(ROWS($N$18:N174)>podatki!$I$33,"",INDEX(zsmer,1+INT((ROWS($N$18:N174)-1)/(ROWS(xsmer)*ROWS(ysmer))))) -> 1 | O174: =podatki!$D$20/2*(($L174)^2/podatki!$D$22^2+($M174)^2/podatki!$D$23^2+($N174)^2/podatki!$D$24^2)^(1/2) -> 99.23088117
L175: =IF(ROWS($L$18:L175)>podatki!$I$33,"",INDEX(xsmer,1+MOD(INT((ROWS($L$17:L175)-1)/ROWS(ysmer)),ROWS(zsmer)))) -> 3 | M175: =IF(ROWS($M$18:M175)>podatki!$I$33,"",INDEX(ysmer,1+MOD(ROWS($M$18:M175)-1,ROWS(zsmer)))) -> 3 | N175: =IF(ROWS($N$18:N175)>podatki!$I$33,"",INDEX(zsmer,1+INT((ROWS($N$18:N175)-1)/(ROWS(xsmer)*ROWS(ysmer))))) -> 1 | O175: =podatki!$D$20/2*(($L175)^2/podatki!$D$22^2+($M175)^2/podatki!$D$23^2+($N175)^2/podatki!$D$24^2)^(1/2) -> 106.3831767
L176: =IF(ROWS($L$18:L176)>podatki!$I$33,"",INDEX(xsmer,1+MOD(INT((ROWS($L$17:L176)-1)/ROWS(ysmer)),ROWS(zsmer)))) -> 3 | M176: =IF(ROWS($M$18:M176)>podatki!$I$33,"",INDEX(ysmer,1+MOD(ROWS($M$18:M176)-1,ROWS(zsmer)))) -> 4 | N176: =IF(ROWS($N$18:N176)>podatki!$I$33,"",INDEX(zsmer,1+INT((ROWS($N$18:N176)-1)/(ROWS(xsmer)*ROWS(ysmer))))) -> 1 | O176: =podatki!$D$20/2*(($L176)^2/podatki!$D$22^2+($M176)^2/podatki!$D$23^2+($N176)^2/podatki!$D$24^2)^(1/2) -> 115.6556863
L177: =IF(ROWS($L$18:L177)>podatki!$I$33,"",INDEX(xsmer,1+MOD(INT((ROWS($L$17:L177)-1)/ROWS(ysmer)),ROWS(zsmer)))) -> 3 | M177: =IF(ROWS($M$18:M177)>podatki!$I$33,"",INDEX(ysmer,1+MOD(ROWS($M$18:M177)-1,ROWS(zsmer)))) -> 5 | N177: =IF(ROWS($N$18:N177)>podatki!$I$33,"",INDEX(zsmer,1+INT((ROWS($N$18:N177)-1)/(ROWS(xsmer)*ROWS(ysmer))))) -> 1 | O177: =podatki!$D$20/2*(($L177)^2/podatki!$D$22^2+($M177)^2/podatki!$D$23^2+($N177)^2/podatki!$D$24^2)^(1/2) -> 126.5833333
L178: =IF(ROWS($L$18:L178)>podatki!$I$33,"",INDEX(xsmer,1+MOD(INT((ROWS($L$17:L178)-1)/ROWS(ysmer)),ROWS(zsmer)))) -> 3 | M178: =IF(ROWS($M$18:M178)>podatki!$I$33,"",INDEX(ysmer,1+MOD(ROWS($M$18:M178)-1,ROWS(zsmer)))) -> 6 | N178: =IF(ROWS($N$18:N178)>podatki!$I$33,"",INDEX(zsmer,1+INT((ROWS($N$18:N178)-1)/(ROWS(xsmer)*ROWS(ysmer))))) -> 1 | O178: =podatki!$D$20/2*(($L178)^2/podatki!$D$22^2+($M178)^2/podatki!$D$23^2+($N178)^2/podatki!$D$24^2)^(1/2) -> 138.7756743
L179: =IF(ROWS($L$18:L179)>podatki!$I$33,"",INDEX(xsmer,1+MOD(INT((ROWS($L$17:L179)-1)/ROWS(ysmer)),ROWS(zsmer)))) -> 3 | M179: =IF(ROWS($M$18:M179)>podatki!$I$33,"",INDEX(ysmer,1+MOD(ROWS($M$18:M179)-1,ROWS(zsmer)))) -> 7 | N179: =IF(ROWS($N$18:N179)>podatki!$I$33,"",INDEX(zsmer,1+INT((ROWS($N$18:N179)-1)/(ROWS(xsmer)*ROWS(ysmer))))) -> 1 | O179: =podatki!$D$20/2*(($L179)^2/podatki!$D$22^2+($M179)^2/podatki!$D$23^2+($N179)^2/podatki!$D$24^2)^(1/2) -> 151.9285367
L180: =IF(ROWS($L$18:L180)>podatki!$I$33,"",INDEX(xsmer,1+MOD(INT((ROWS($L$17:L180)-1)/ROWS(ysmer)),ROWS(zsmer)))) -> 3 | M180: =IF(ROWS($M$18:M180)>podatki!$I$33,"",INDEX(ysmer,1+MOD(ROWS($M$18:M180)-1,ROWS(zsmer)))) -> 8 | N180: =IF(ROWS($N$18:N180)>podatki!$I$33,"",INDEX(zsmer,1+INT((ROWS($N$18:N180)-1)/(ROWS(xsmer)*ROWS(ysmer))))) -> 1 | O180: =podatki!$D$20/2*(($L180)^2/podatki!$D$22^2+($M180)^2/podatki!$D$23^2+($N180)^2/podatki!$D$24^2)^(1/2) -> 165.813503
L181: =IF(ROWS($L$18:L181)>podatki!$I$33,"",INDEX(xsmer,1+MOD(INT((ROWS($L$17:L181)-1)/ROWS(ysmer)),ROWS(zsmer)))) -> 3 | M181: =IF(ROWS($M$18:M181)>podatki!$I$33,"",INDEX(ysmer,1+MOD(ROWS($M$18:M181)-1,ROWS(zsmer)))) -> 9 | N181: =IF(ROWS($N$18:N181)>podatki!$I$33,"",INDEX(zsmer,1+INT((ROWS($N$18:N181)-1)/(ROWS(xsmer)*ROWS(ysmer))))) -> 1 | O181: =podatki!$D$20/2*(($L181)^2/podatki!$D$22^2+($M181)^2/podatki!$D$23^2+($N181)^2/podatki!$D$24^2)^(1/2) -> 180.2614775
L182: =IF(ROWS($L$18:L182)>podatki!$I$33,"",INDEX(xsmer,1+MOD(INT((ROWS($L$17:L182)-1)/ROWS(ysmer)),ROWS(zsmer)))) -> 4 | M182: =IF(ROWS($M$18:M182)>podatki!$I$33,"",INDEX(ysmer,1+MOD(ROWS($M$18:M182)-1,ROWS(zsmer)))) -> 10 | N182: =IF(ROWS($N$18:N182)>podatki!$I$33,"",INDEX(zsmer,1+INT((ROWS($N$18:N182)-1)/(ROWS(xsmer)*ROWS(ysmer))))) -> 1 | O182: =podatki!$D$20/2*(($L182)^2/podatki!$D$22^2+($M182)^2/podatki!$D$23^2+($N182)^2/podatki!$D$24^2)^(1/2) -> 205.6314124
L183: =IF(ROWS($L$18:L183)>podatki!$I$33,"",INDEX(xsmer,1+MOD(INT((ROWS($L$17:L183)-1)/ROWS(ysmer)),ROWS(zsmer)))) -> 4 | M183: =IF(ROWS($M$18:M183)>podatki!$I$33,"",INDEX(ysmer,1+MOD(ROWS($M$18:M183)-1,ROWS(zsmer)))) -> 0 | N183: =IF(ROWS($N$18:N183)>podatki!$I$33,"",INDEX(zsmer,1+INT((ROWS($N$18:N183)-1)/(ROWS(xsmer)*ROWS(ysmer))))) -> 1 | O183: =podatki!$D$20/2*(($L183)^2/podatki!$D$22^2+($M183)^2/podatki!$D$23^2+($N183)^2/podatki!$D$24^2)^(1/2) -> 113.4549592
L184: =IF(ROWS($L$18:L184)>podatki!$I$33,"",INDEX(xsmer,1+MOD(INT((ROWS($L$17:L184)-1)/ROWS(ysmer)),ROWS(zsmer)))) -> 4 | M184: =IF(ROWS($M$18:M184)>podatki!$I$33,"",INDEX(ysmer,1+MOD(ROWS($M$18:M184)-1,ROWS(zsmer)))) -> 1 | N184: =IF(ROWS($N$18:N184)>podatki!$I$33,"",INDEX(zsmer,1+INT((ROWS($N$18:N184)-1)/(ROWS(xsmer)*ROWS(ysmer))))) -> 1 | O184: =podatki!$D$20/2*(($L184)^2/podatki!$D$22^2+($M184)^2/podatki!$D$23^2+($N184)^2/podatki!$D$24^2)^(1/2) -> 114.7438464
L185: =IF(ROWS($L$18:L185)>podatki!$I$33,"",INDEX(xsmer,1+MOD(INT((ROWS($L$17:L185)-1)/ROWS(ysmer)),ROWS(zsmer)))) -> 4 | M185: =IF(ROWS($M$18:M185)>podatki!$I$33,"",INDEX(ysmer,1+MOD(ROWS($M$18:M185)-1,ROWS(zsmer)))) -> 2 | N185: =IF(ROWS($N$18:N185)>podatki!$I$33,"",INDEX(zsmer,1+INT((ROWS($N$18:N185)-1)/(ROWS(xsmer)*ROWS(ysmer))))) -> 1 | O185: =podatki!$D$20/2*(($L185)^2/podatki!$D$22^2+($M185)^2/podatki!$D$23^2+($N185)^2/podatki!$D$24^2)^(1/2) -> 118.5264434
L186: =IF(ROWS($L$18:L186)>podatki!$I$33,"",INDEX(xsmer,1+MOD(INT((ROWS($L$17:L186)-1)/ROWS(ysmer)),ROWS(zsmer)))) -> 4 | M186: =IF(ROWS($M$18:M186)>podatki!$I$33,"",INDEX(ysmer,1+MOD(ROWS($M$18:M186)-1,ROWS(zsmer)))) -> 3 | N186: =IF(ROWS($N$18:N186)>podatki!$I$33,"",INDEX(zsmer,1+INT((ROWS($N$18:N186)-1)/(ROWS(xsmer)*ROWS(ysmer))))) -> 1 | O186: =podatki!$D$20/2*(($L186)^2/podatki!$D$22^2+($M186)^2/podatki!$D$23^2+($N186)^2/podatki!$D$24^2)^(1/2) -> 124.5758013
L187: =IF(ROWS($L$18:L187)>podatki!$I$33,"",INDEX(xsmer,1+MOD(INT((ROWS($L$17:L187)-1)/ROWS(ysmer)),ROWS(zsmer)))) -> 4 | M187: =IF(ROWS($M$18:M187)>podatki!$I$33,"",INDEX(ysmer,1+MOD(ROWS($M$18:M187)-1,ROWS(zsmer)))) -> 4 | N187: =IF(ROWS($N$18:N187)>podatki!$I$33,"",INDEX(zsmer,1+INT((ROWS($N$18:N187)-1)/(ROWS(xsmer)*ROWS(ysmer))))) -> 1 | O187: =podatki!$D$20/2*(($L187)^2/podatki!$D$22^2+($M187)^2/podatki!$D$23^2+($N187)^2/podatki!$D$24^2)^(1/2) -> 132.582004
L188: =IF(ROWS($L$18:L188)>podatki!$I$33,"",INDEX(xsmer,1+MOD(INT((ROWS($L$17:L188)-1)/ROWS(ysmer)),ROWS(zsmer)))) -> 4 | M188: =IF(ROWS($M$18:M188)>podatki!$I$33,"",INDEX(ysmer,1+MOD(ROWS($M$18:M188)-1,ROWS(zsmer)))) -> 5 | N188: =IF(ROWS($N$18:N188)>podatki!$I$33,"",INDEX(zsmer,1+INT((ROWS($N$18:N188)-1)/(ROWS(xsmer)*ROWS(ysmer))))) -> 1 | O188: =podatki!$D$20/2*(($L188)^2/podatki!$D$22^2+($M188)^2/podatki!$D$23^2+($N188)^2/podatki!$D$24^2)^(1/2) -> 142.2149439
L189: =IF(ROWS($L$18:L189)>podatki!$I$33,"",INDEX(xsmer,1+MOD(INT((ROWS($L$17:L189)-1)/ROWS(ysmer)),ROWS(zsmer)))) -> 4 | M189: =IF(ROWS($M$18:M189)>podatki!$I$33,"",INDEX(ysmer,1+MOD(ROWS($M$18:M189)-1,ROWS(zsmer)))) -> 6 | N189: =IF(ROWS($N$18:N189)>podatki!$I$33,"",INDEX(zsmer,1+INT((ROWS($N$18:N189)-1)/(ROWS(xsmer)*ROWS(ysmer))))) -> 1 | O189: =podatki!$D$20/2*(($L189)^2/podatki!$D$22^2+($M189)^2/podatki!$D$23^2+($N189)^2/podatki!$D$24^2)^(1/2) -> 153.1680051
L190: =IF(ROWS($L$18:L190)>podatki!$I$33,"",INDEX(xsmer,1+MOD(INT((ROWS($L$17:L190)-1)/ROWS(ysmer)),ROWS(zsmer)))) -> 4 | M190: =IF(ROWS($M$18:M190)>podatki!$I$33,"",INDEX(ysmer,1+MOD(ROWS($M$18:M190)-1,ROWS(zsmer)))) -> 7 | N190: =IF(ROWS($N$18:N190)>podatki!$I$33,"",INDEX(zsmer,1+INT((ROWS($N$18:N190)-1)/(ROWS(xsmer)*ROWS(ysmer))))) -> 1 | O190: =podatki!$D$20/2*(($L190)^2/podatki!$D$22^2+($M190)^2/podatki!$D$23^2+($N190)^2/podatki!$D$24^2)^(1/2) -> 165.1787828
L191: =IF(ROWS($L$18:L191)>podatki!$I$33,"",INDEX(xsmer,1+MOD(INT((ROWS($L$17:L191)-1)/ROWS(ysmer)),ROWS(zsmer)))) -> 4 | M191: =IF(ROWS($M$18:M191)>podatki!$I$33,"",INDEX(ysmer,1+MOD(ROWS($M$18:M191)-1,ROWS(zsmer)))) -> 8 | N191: =IF(ROWS($N$18:N191)>podatki!$I$33,"",INDEX(zsmer,1+INT((ROWS($N$18:N191)-1)/(ROWS(xsmer)*ROWS(ysmer))))) -> 1 | O191: =podatki!$D$20/2*(($L191)^2/podatki!$D$22^2+($M191)^2/podatki!$D$23^2+($N191)^2/podatki!$D$24^2)^(1/2) -> 178.0333333
L192: =IF(ROWS($L$18:L192)>podatki!$I$33,"",INDEX(xsmer,1+MOD(INT((ROWS($L$17:L192)-1)/ROWS(ysmer)),ROWS(zsmer)))) -> 4 | M192: =IF(ROWS($M$18:M192)>podatki!$I$33,"",INDEX(ysmer,1+MOD(ROWS($M$18:M192)-1,ROWS(zsmer)))) -> 9 | N192: =IF(ROWS($N$18:N192)>podatki!$I$33,"",INDEX(zsmer,1+INT((ROWS($N$18:N192)-1)/(ROWS(xsmer)*ROWS(ysmer))))) -> 1 | O192: =podatki!$D$20/2*(($L192)^2/podatki!$D$22^2+($M192)^2/podatki!$D$23^2+($N192)^2/podatki!$D$24^2)^(1/2) -> 191.5618706
L193: =IF(ROWS($L$18:L193)>podatki!$I$33,"",INDEX(xsmer,1+MOD(INT((ROWS($L$17:L193)-1)/ROWS(ysmer)),ROWS(zsmer)))) -> 5 | M193: =IF(ROWS($M$18:M193)>podatki!$I$33,"",INDEX(ysmer,1+MOD(ROWS($M$18:M193)-1,ROWS(zsmer)))) -> 10 | N193: =IF(ROWS($N$18:N193)>podatki!$I$33,"",INDEX(zsmer,1+INT((ROWS($N$18:N193)-1)/(ROWS(xsmer)*ROWS(ysmer))))) -> 1 | O193: =podatki!$D$20/2*(($L193)^2/podatki!$D$22^2+($M193)^2/podatki!$D$23^2+($N193)^2/podatki!$D$24^2)^(1/2) -> 218.372452
L194: =IF(ROWS($L$18:L194)>podatki!$I$33,"",INDEX(xsmer,1+MOD(INT((ROWS($L$17:L194)-1)/ROWS(ysmer)),ROWS(zsmer)))) -> 5 | M194: =IF(ROWS($M$18:M194)>podatki!$I$33,"",INDEX(ysmer,1+MOD(ROWS($M$18:M194)-1,ROWS(zsmer)))) -> 0 | N194: =IF(ROWS($N$18:N194)>podatki!$I$33,"",INDEX(zsmer,1+INT((ROWS($N$18:N194)-1)/(ROWS(xsmer)*ROWS(ysmer))))) -> 1 | O194: =podatki!$D$20/2*(($L194)^2/podatki!$D$22^2+($M194)^2/podatki!$D$23^2+($N194)^2/podatki!$D$24^2)^(1/2) -> 135.1823871
L195: =IF(ROWS($L$18:L195)>podatki!$I$33,"",INDEX(xsmer,1+MOD(INT((ROWS($L$17:L195)-1)/ROWS(ysmer)),ROWS(zsmer)))) -> 5 | M195: =IF(ROWS($M$18:M195)>podatki!$I$33,"",INDEX(ysmer,1+MOD(ROWS($M$18:M195)-1,ROWS(zsmer)))) -> 1 | N195: =IF(ROWS($N$18:N195)>podatki!$I$33,"",INDEX(zsmer,1+INT((ROWS($N$18:N195)-1)/(ROWS(xsmer)*ROWS(ysmer))))) -> 1 | O195: =podatki!$D$20/2*(($L195)^2/podatki!$D$22^2+($M195)^2/podatki!$D$23^2+($N195)^2/podatki!$D$24^2)^(1/2) -> 136.2659175
L196: =IF(ROWS($L$18:L196)>podatki!$I$33,"",INDEX(xsmer,1+MOD(INT((ROWS($L$17:L196)-1)/ROWS(ysmer)),ROWS(zsmer)))) -> 5 | M196: =IF(ROWS($M$18:M196)>podatki!$I$33,"",INDEX(ysmer,1+MOD(ROWS($M$18:M196)-1,ROWS(zsmer)))) -> 2 | N196: =IF(ROWS($N$18:N196)>podatki!$I$33,"",INDEX(zsmer,1+INT((ROWS($N$18:N196)-1)/(ROWS(xsmer)*ROWS(ysmer))))) -> 1 | O196: =podatki!$D$20/2*(($L196)^2/podatki!$D$22^2+($M196)^2/podatki!$D$23^2+($N196)^2/podatki!$D$24^2)^(1/2) -> 139.4660094
L197: =IF(ROWS($L$18:L197)>podatki!$I$33,"",INDEX(xsmer,1+MOD(INT((ROWS($L$17:L197)-1)/ROWS(ysmer)),ROWS(zsmer)))) -> 5 | M197: =IF(ROWS($M$18:M197)>podatki!$I$33,"",INDEX(ysmer,1+MOD(ROWS($M$18:M197)-1,ROWS(zsmer)))) -> 3 | N197: =IF(ROWS($N$18:N197)>podatki!$I$33,"",INDEX(zsmer,1+INT((ROWS($N$18:N197)-1)/(ROWS(xsmer)*ROWS(ysmer))))) -> 1 | O197: =podatki!$D$20/2*(($L197)^2/podatki!$D$22^2+($M197)^2/podatki!$D$23^2+($N197)^2/podatki!$D$24^2)^(1/2) -> 144.6422493
L198: =IF(ROWS($L$18:L198)>podatki!$I$33,"",INDEX(xsmer,1+MOD(INT((ROWS($L$17:L198)-1)/ROWS(ysmer)),ROWS(zsmer)))) -> 5 | M198: =IF(ROWS($M$18:M198)>podatki!$I$33,"",INDEX(ysmer,1+MOD(ROWS($M$18:M198)-1,ROWS(zsmer)))) -> 4 | N198: =IF(ROWS($N$18:N198)>podatki!$I$33,"",INDEX(zsmer,1+INT((ROWS($N$18:N198)-1)/(ROWS(xsmer)*ROWS(ysmer))))) -> 1 | O198: =podatki!$D$20/2*(($L198)^2/podatki!$D$22^2+($M198)^2/podatki!$D$23^2+($N198)^2/podatki!$D$24^2)^(1/2) -> 151.5923408
L199: =IF(ROWS($L$18:L199)>podatki!$I$33,"",INDEX(xsmer,1+MOD(INT((ROWS($L$17:L199)-1)/ROWS(ysmer)),ROWS(zsmer)))) -> 5 | M199: =IF(ROWS($M$18:M199)>podatki!$I$33,"",INDEX(ysmer,1+MOD(ROWS($M$18:M199)-1,ROWS(zsmer)))) -> 5 | N199: =IF(ROWS($N$18:N199)>podatki!$I$33,"",INDEX(zsmer,1+INT((ROWS($N$18:N199)-1)/(ROWS(xsmer)*ROWS(ysmer))))) -> 1 | O199: =podatki!$D$20/2*(($L199)^2/podatki!$D$22^2+($M199)^2/podatki!$D$23^2+($N199)^2/podatki!$D$24^2)^(1/2) -> 160.0854156
L200: =IF(ROWS($L$18:L200)>podatki!$I$33,"",INDEX(xsmer,1+MOD(INT((ROWS($L$17:L200)-1)/ROWS(ysmer)),ROWS(zsmer)))) -> 5 | M200: =IF(ROWS($M$18:M200)>podatki!$I$33,"",INDEX(ysmer,1+MOD(ROWS($M$18:M200)-1,ROWS(zsmer)))) -> 6 | N200: =IF(ROWS($N$18:N200)>podatki!$I$33,"",INDEX(zsmer,1+INT((ROWS($N$18:N200)-1)/(ROWS(xsmer)*ROWS(ysmer))))) -> 1 | O200: =podatki!$D$20/2*(($L200)^2/podatki!$D$22^2+($M200)^2/podatki!$D$23^2+($N200)^2/podatki!$D$24^2)^(1/2) -> 169.8902227
L201: =IF(ROWS($L$18:L201)>podatki!$I$33,"",INDEX(xsmer,1+MOD(INT((ROWS($L$17:L201)-1)/ROWS(ysmer)),ROWS(zsmer)))) -> 5 | M201: =IF(ROWS($M$18:M201)>podatki!$I$33,"",INDEX(ysmer,1+MOD(ROWS($M$18:M201)-1,ROWS(zsmer)))) -> 7 | N201: =IF(ROWS($N$18:N201)>podatki!$I$33,"",INDEX(zsmer,1+INT((ROWS($N$18:N201)-1)/(ROWS(xsmer)*ROWS(ysmer))))) -> 1 | O201: =podatki!$D$20/2*(($L201)^2/podatki!$D$22^2+($M201)^2/podatki!$D$23^2+($N201)^2/podatki!$D$24^2)^(1/2) -> 180.7934741
L202: =IF(ROWS($L$18:L202)>podatki!$I$33,"",INDEX(xsmer,1+MOD(INT((ROWS($L$17:L202)-1)/ROWS(ysmer)),ROWS(zsmer)))) -> 5 | M202: =IF(ROWS($M$18:M202)>podatki!$I$33,"",INDEX(ysmer,1+MOD(ROWS($M$18:M202)-1,ROWS(zsmer)))) -> 8 | N202: =IF(ROWS($N$18:N202)>podatki!$I$33,"",INDEX(zsmer,1+INT((ROWS($N$18:N202)-1)/(ROWS(xsmer)*ROWS(ysmer))))) -> 1 | O202: =podatki!$D$20/2*(($L202)^2/podatki!$D$22^2+($M202)^2/podatki!$D$23^2+($N202)^2/podatki!$D$24^2)^(1/2) -> 192.6087168
L203: =IF(ROWS($L$18:L203)>podatki!$I$33,"",INDEX(xsmer,1+MOD(INT((ROWS($L$17:L203)-1)/ROWS(ysmer)),ROWS(zsmer)))) -> 5 | M203: =IF(ROWS($M$18:M203)>podatki!$I$33,"",INDEX(ysmer,1+MOD(ROWS($M$18:M203)-1,ROWS(zsmer)))) -> 9 | N203: =IF(ROWS($N$18:N203)>podatki!$I$33,"",INDEX(zsmer,1+INT((ROWS($N$18:N203)-1)/(ROWS(xsmer)*ROWS(ysmer))))) -> 1 | O203: =podatki!$D$20/2*(($L203)^2/podatki!$D$22^2+($M203)^2/podatki!$D$23^2+($N203)^2/podatki!$D$24^2)^(1/2) -> 205.1784596
L204: =IF(ROWS($L$18:L204)>podatki!$I$33,"",INDEX(xsmer,1+MOD(INT((ROWS($L$17:L204)-1)/ROWS(ysmer)),ROWS(zsmer)))) -> 6 | M204: =IF(ROWS($M$18:M204)>podatki!$I$33,"",INDEX(ysmer,1+MOD(ROWS($M$18:M204)-1,ROWS(zsmer)))) -> 10 | N204: =IF(ROWS($N$18:N204)>podatki!$I$33,"",INDEX(zsmer,1+INT((ROWS($N$18:N204)-1)/(ROWS(xsmer)*ROWS(ysmer))))) -> 1 | O204: =podatki!$D$20/2*(($L204)^2/podatki!$D$22^2+($M204)^2/podatki!$D$23^2+($N204)^2/podatki!$D$24^2)^(1/2) -> 233.0005961
... 1144 more rows

Sheet podatki2 (hidden)
B5: 1D | D5: 2D | F5: 3D | J5: 1D | L5: 2D | N5: 3D | V5: 1D | X5: 2D | Z5: 3D
B7: =IF(AND('LASTNE FREKVENCE'!$M9<'LASTNE FREKVENCE'!$F$15,'LASTNE FREKVENCE'!$N9="1D"),'LASTNE FREKVENCE'!$M9,"ni") -> 6.01754386 | C7: =IF(AND('LASTNE FREKVENCE'!$M9<'LASTNE FREKVENCE'!$F$15,'LASTNE FREKVENCE'!$N9="1D"),1,"ni") -> 1 | D7: =IF(AND('LASTNE FREKVENCE'!$M9<'LASTNE FREKVENCE'!$F$15,'LASTNE FREKVENCE'!$N9="2D"),'LASTNE FREKVENCE'!$M9,"ni") -> ni | E7: =IF(AND('LASTNE FREKVENCE'!$M9<'LASTNE FREKVENCE'!$F$15,'LASTNE FREKVENCE'!$N9="2D"),1,"ni") -> ni | F7: =IF(AND('LASTNE FREKVENCE'!$M9<'LASTNE FREKVENCE'!$F$15,'LASTNE FREKVENCE'!$N9="3D"),'LASTNE FREKVENCE'!$M9,"ni") -> ni | G7: =IF(AND('LASTNE FREKVENCE'!$M9<'LASTNE FREKVENCE'!$F$15,'LASTNE FREKVENCE'!$N9="3D"),1,"ni") -> ni | J7: =IF(AND('LASTNE FREKVENCE'!$M9<'LASTNE FREKVENCE'!$F$15,'LASTNE FREKVENCE'!$N9="1D"),'LASTNE FREKVENCE'!$M9,"ni") -> 6.01754386 | K7: =IF(AND('LASTNE FREKVENCE'!$M9<'LASTNE FREKVENCE'!$F$15,'LASTNE FREKVENCE'!$N9="1D"),1,"ni") -> 1 | L7: =IF(AND('LASTNE FREKVENCE'!$M17<'LASTNE FREKVENCE'!$F$15,'LASTNE FREKVENCE'!$N17="2D"),'LASTNE FREKVENCE'!$M17,"ni") -> 35.28932102 | M7: =IF(AND('LASTNE FREKVENCE'!$M17<'LASTNE FREKVENCE'!$F$15,'LASTNE FREKVENCE'!$N17="2D"),1,"ni") -> 1 | N7: =IF(AND('LASTNE FREKVENCE'!$M138<'LASTNE FREKVENCE'!$F$15,'LASTNE FREKVENCE'!$N138="3D"),'LASTNE FREKVENCE'!$M138,"ni") -> 64.16873239 | O7: =IF(AND('LASTNE FREKVENCE'!$M138<'LASTNE FREKVENCE'!$F$15,'LASTNE FREKVENCE'!$N138="3D"),1,"ni") -> 1 | V7: =IF(AND('LASTNE FREKVENCE'!$M9<'LASTNE FREKVENCE'!$F$15,'LASTNE FREKVENCE'!$N9="1D"),'LASTNE FREKVENCE'!$M9,"ni") -> 6.01754386 | W7: =IF(AND('LASTNE FREKVENCE'!$M9<'LASTNE FREKVENCE'!$F$15,'LASTNE FREKVENCE'!$N9="1D"),1,"ni") -> 1 | X7: =IF(AND('LASTNE FREKVENCE'!$M17<'LASTNE FREKVENCE'!$F$15,'LASTNE FREKVENCE'!$N17="2D"),'LASTNE FREKVENCE'!$M17,"ni") -> 35.28932102 | Y7: =IF(AND('LASTNE FREKVENCE'!$M17<'LASTNE FREKVENCE'!$F$15,'LASTNE FREKVENCE'!$N17="2D"),1,"ni") -> 1 | Z7: =IF(AND('LASTNE FREKVENCE'!$M138<'LASTNE FREKVENCE'!$F$15,'LASTNE FREKVENCE'!$N138="3D"),'LASTNE FREKVENCE'!$M138,"ni") -> 64.16873239 | AA7: =IF(AND('LASTNE FREKVENCE'!$M138<'LASTNE FREKVENCE'!$F$15,'LASTNE FREKVENCE'!$N138="3D"),1,"ni") -> 1
B8: =IF(AND('LASTNE FREKVENCE'!$M10<'LASTNE FREKVENCE'!$F$15,'LASTNE FREKVENCE'!$N10="1D"),'LASTNE FREKVENCE'!$M10,"ni") -> 9.026315789 | C8: =IF(AND('LASTNE FREKVENCE'!$M10<'LASTNE FREKVENCE'!$F$15,'LASTNE FREKVENCE'!$N10="1D"),1,"ni") -> 1 | D8: =IF(AND('LASTNE FREKVENCE'!$M10<'LASTNE FREKVENCE'!$F$15,'LASTNE FREKVENCE'!$N10="2D"),'LASTNE FREKVENCE'!$M10,"ni") -> ni | E8: =IF(AND('LASTNE FREKVENCE'!$M10<'LASTNE FREKVENCE'!$F$15,'LASTNE FREKVENCE'!$N10="2D"),1,"ni") -> ni | F8: =IF(AND('LASTNE FREKVENCE'!$M10<'LASTNE FREKVENCE'!$F$15,'LASTNE FREKVENCE'!$N10="3D"),'LASTNE FREKVENCE'!$M10,"ni") -> ni | G8: =IF(AND('LASTNE FREKVENCE'!$M10<'LASTNE FREKVENCE'!$F$15,'LASTNE FREKVENCE'!$N10="3D"),1,"ni") -> ni | J8: =IF(AND('LASTNE FREKVENCE'!$M10<'LASTNE FREKVENCE'!$F$15,'LASTNE FREKVENCE'!$N10="1D"),'LASTNE FREKVENCE'!$M10,"ni") -> 9.026315789 | K8: =IF(AND('LASTNE FREKVENCE'!$M10<'LASTNE FREKVENCE'!$F$15,'LASTNE FREKVENCE'!$N10="1D"),1,"ni") -> 1 | L8: =IF(AND('LASTNE FREKVENCE'!$M19<'LASTNE FREKVENCE'!$F$15,'LASTNE FREKVENCE'!$N19="2D"),'LASTNE FREKVENCE'!$M19,"ni") -> 18.68470053 | M8: =IF(AND('LASTNE FREKVENCE'!$M19<'LASTNE FREKVENCE'!$F$15,'LASTNE FREKVENCE'!$N19="2D"),1,"ni") -> 1 | N8: =IF(AND('LASTNE FREKVENCE'!$M140<'LASTNE FREKVENCE'!$F$15,'LASTNE FREKVENCE'!$N140="3D"),'LASTNE FREKVENCE'!$M140,"ni") -> 56.75744949 | O8: =IF(AND('LASTNE FREKVENCE'!$M140<'LASTNE FREKVENCE'!$F$15,'LASTNE FREKVENCE'!$N140="3D"),1,"ni") -> 1 | V8: =IF(AND('LASTNE FREKVENCE'!$M10<'LASTNE FREKVENCE'!$F$15,'LASTNE FREKVENCE'!$N10="1D"),'LASTNE FREKVENCE'!$M10,"ni") -> 9.026315789 | W8: =IF(AND('LASTNE FREKVENCE'!$M10<'LASTNE FREKVENCE'!$F$15,'LASTNE FREKVENCE'!$N10="1D"),1,"ni") -> 1 | X8: =IF(AND('LASTNE FREKVENCE'!$M19<'LASTNE FREKVENCE'!$F$15,'LASTNE FREKVENCE'!$N19="2D"),'LASTNE FREKVENCE'!$M19,"ni") -> 18.68470053 | Y8: =IF(AND('LASTNE FREKVENCE'!$M19<'LASTNE FREKVENCE'!$F$15,'LASTNE FREKVENCE'!$N19="2D"),1,"ni") -> 1 | Z8: =IF(AND('LASTNE FREKVENCE'!$M140<'LASTNE FREKVENCE'!$F$15,'LASTNE FREKVENCE'!$N140="3D"),'LASTNE FREKVENCE'!$M140,"ni") -> 56.75744949 | AA8: =IF(AND('LASTNE FREKVENCE'!$M140<'LASTNE FREKVENCE'!$F$15,'LASTNE FREKVENCE'!$N140="3D"),1,"ni") -> 1
B9: =IF(AND('LASTNE FREKVENCE'!$M11<'LASTNE FREKVENCE'!$F$15,'LASTNE FREKVENCE'!$N11="1D"),'LASTNE FREKVENCE'!$M11,"ni") -> 12.03508772 | C9: =IF(AND('LASTNE FREKVENCE'!$M11<'LASTNE FREKVENCE'!$F$15,'LASTNE FREKVENCE'!$N11="1D"),1,"ni") -> 1 | D9: =IF(AND('LASTNE FREKVENCE'!$M11<'LASTNE FREKVENCE'!$F$15,'LASTNE FREKVENCE'!$N11="2D"),'LASTNE FREKVENCE'!$M11,"ni") -> ni | E9: =IF(AND('LASTNE FREKVENCE'!$M11<'LASTNE FREKVENCE'!$F$15,'LASTNE FREKVENCE'!$N11="2D"),1,"ni") -> ni | F9: =IF(AND('LASTNE FREKVENCE'!$M11<'LASTNE FREKVENCE'!$F$15,'LASTNE FREKVENCE'!$N11="3D"),'LASTNE FREKVENCE'!$M11,"ni") -> ni | G9: =IF(AND('LASTNE FREKVENCE'!$M11<'LASTNE FREKVENCE'!$F$15,'LASTNE FREKVENCE'!$N11="3D"),1,"ni") -> ni | J9: =IF(AND('LASTNE FREKVENCE'!$M11<'LASTNE FREKVENCE'!$F$15,'LASTNE FREKVENCE'!$N11="1D"),'LASTNE FREKVENCE'!$M11,"ni") -> 12.03508772 | K9: =IF(AND('LASTNE FREKVENCE'!$M11<'LASTNE FREKVENCE'!$F$15,'LASTNE FREKVENCE'!$N11="1D"),1,"ni") -> 1 | L9: =IF(AND('LASTNE FREKVENCE'!$M20<'LASTNE FREKVENCE'!$F$15,'LASTNE FREKVENCE'!$N20="2D"),'LASTNE FREKVENCE'!$M20,"ni") -> 19.39783904 | M9: =IF(AND('LASTNE FREKVENCE'!$M20<'LASTNE FREKVENCE'!$F$15,'LASTNE FREKVENCE'!$N20="2D"),1,"ni") -> 1 | N9: =IF(AND('LASTNE FREKVENCE'!$M141<'LASTNE FREKVENCE'!$F$15,'LASTNE FREKVENCE'!$N141="3D"),'LASTNE FREKVENCE'!$M141,"ni") -> 56.9961946 | O9: =IF(AND('LASTNE FREKVENCE'!$M141<'LASTNE FREKVENCE'!$F$15,'LASTNE FREKVENCE'!$N141="3D"),1,"ni") -> 1 | V9: =IF(AND('LASTNE FREKVENCE'!$M11<'LASTNE FREKVENCE'!$F$15,'LASTNE FREKVENCE'!$N11="1D"),'LASTNE FREKVENCE'!$M11,"ni") -> 12.03508772 | W9: =IF(AND('LASTNE FREKVENCE'!$M11<'LASTNE FREKVENCE'!$F$15,'LASTNE FREKVENCE'!$N11="1D"),1,"ni") -> 1 | X9: =IF(AND('LASTNE FREKVENCE'!$M20<'LASTNE FREKVENCE'!$F$15,'LASTNE FREKVENCE'!$N20="2D"),'LASTNE FREKVENCE'!$M20,"ni") -> 19.39783904 | Y9: =IF(AND('LASTNE FREKVENCE'!$M20<'LASTNE FREKVENCE'!$F$15,'LASTNE FREKVENCE'!$N20="2D"),1,"ni") -> 1 | Z9: =IF(AND('LASTNE FREKVENCE'!$M141<'LASTNE FREKVENCE'!$F$15,'LASTNE FREKVENCE'!$N141="3D"),'LASTNE FREKVENCE'!$M141,"ni") -> 56.9961946 | AA9: =IF(AND('LASTNE FREKVENCE'!$M141<'LASTNE FREKVENCE'!$F$15,'LASTNE FREKVENCE'!$N141="3D"),1,"ni") -> 1
B10: =IF(AND('LASTNE FREKVENCE'!$M12<'LASTNE FREKVENCE'!$F$15,'LASTNE FREKVENCE'!$N12="1D"),'LASTNE FREKVENCE'!$M12,"ni") -> 15.04385965 | C10: =IF(AND('LASTNE FREKVENCE'!$M12<'LASTNE FREKVENCE'!$F$15,'LASTNE FREKVENCE'!$N12="1D"),1,"ni") -> 1 | D10: =IF(AND('LASTNE FREKVENCE'!$M12<'LASTNE FREKVENCE'!$F$15,'LASTNE FREKVENCE'!$N12="2D"),'LASTNE FREKVENCE'!$M12,"ni") -> ni | E10: =IF(AND('LASTNE FREKVENCE'!$M12<'LASTNE FREKVENCE'!$F$15,'LASTNE FREKVENCE'!$N12="2D"),1,"ni") -> ni | F10: =IF(AND('LASTNE FREKVENCE'!$M12<'LASTNE FREKVENCE'!$F$15,'LASTNE FREKVENCE'!$N12="3D"),'LASTNE FREKVENCE'!$M12,"ni") -> ni | G10: =IF(AND('LASTNE FREKVENCE'!$M12<'LASTNE FREKVENCE'!$F$15,'LASTNE FREKVENCE'!$N12="3D"),1,"ni") -> ni | J10: =IF(AND('LASTNE FREKVENCE'!$M12<'LASTNE FREKVENCE'!$F$15,'LASTNE FREKVENCE'!$N12="1D"),'LASTNE FREKVENCE'!$M12,"ni") -> 15.04385965 | K10: =IF(AND('LASTNE FREKVENCE'!$M12<'LASTNE FREKVENCE'!$F$15,'LASTNE FREKVENCE'!$N12="1D"),1,"ni") -> 1 | L10: =IF(AND('LASTNE FREKVENCE'!$M21<'LASTNE FREKVENCE'!$F$15,'LASTNE FREKVENCE'!$N21="2D"),'LASTNE FREKVENCE'!$M21,"ni") -> 20.53143205 | M10: =IF(AND('LASTNE FREKVENCE'!$M21<'LASTNE FREKVENCE'!$F$15,'LASTNE FREKVENCE'!$N21="2D"),1,"ni") -> 1 | N10: =IF(AND('LASTNE FREKVENCE'!$M142<'LASTNE FREKVENCE'!$F$15,'LASTNE FREKVENCE'!$N142="3D"),'LASTNE FREKVENCE'!$M142,"ni") -> 57.39189613 | O10: =IF(AND('LASTNE FREKVENCE'!$M142<'LASTNE FREKVENCE'!$F$15,'LASTNE FREKVENCE'!$N142="3D"),1,"ni") -> 1 | V10: =IF(AND('LASTNE FREKVENCE'!$M12<'LASTNE FREKVENCE'!$F$15,'LASTNE FREKVENCE'!$N12="1D"),'LASTNE FREKVENCE'!$M12,"ni") -> 15.04385965 | W10: =IF(AND('LASTNE FREKVENCE'!$M12<'LASTNE FREKVENCE'!$F$15,'LASTNE FREKVENCE'!$N12="1D"),1,"ni") -> 1 | X10: =IF(AND('LASTNE FREKVENCE'!$M21<'LASTNE FREKVENCE'!$F$15,'LASTNE FREKVENCE'!$N21="2D"),'LASTNE FREKVENCE'!$M21,"ni") -> 20.53143205 | Y10: =IF(AND('LASTNE FREKVENCE'!$M21<'LASTNE FREKVENCE'!$F$15,'LASTNE FREKVENCE'!$N21="2D"),1,"ni") -> 1 | Z10: =IF(AND('LASTNE FREKVENCE'!$M142<'LASTNE FREKVENCE'!$F$15,'LASTNE FREKVENCE'!$N142="3D"),'LASTNE FREKVENCE'!$M142,"ni") -> 57.39189613 | AA10: =IF(AND('LASTNE FREKVENCE'!$M142<'LASTNE FREKVENCE'!$F$15,'LASTNE FREKVENCE'!$N142="3D"),1,"ni") -> 1
B11: =IF(AND('LASTNE FREKVENCE'!$M13<'LASTNE FREKVENCE'!$F$15,'LASTNE FREKVENCE'!$N13="1D"),'LASTNE FREKVENCE'!$M13,"ni") -> 18.05263158 | C11: =IF(AND('LASTNE FREKVENCE'!$M13<'LASTNE FREKVENCE'!$F$15,'LASTNE FREKVENCE'!$N13="1D"),1,"ni") -> 1 | D11: =IF(AND('LASTNE FREKVENCE'!$M13<'LASTNE FREKVENCE'!$F$15,'LASTNE FREKVENCE'!$N13="2D"),'LASTNE FREKVENCE'!$M13,"ni") -> ni | E11: =IF(AND('LASTNE FREKVENCE'!$M13<'LASTNE FREKVENCE'!$F$15,'LASTNE FREKVENCE'!$N13="2D"),1,"ni") -> ni | F11: =IF(AND('LASTNE FREKVENCE'!$M13<'LASTNE FREKVENCE'!$F$15,'LASTNE FREKVENCE'!$N13="3D"),'LASTNE FREKVENCE'!$M13,"ni") -> ni | G11: =IF(AND('LASTNE FREKVENCE'!$M13<'LASTNE FREKVENCE'!$F$15,'LASTNE FREKVENCE'!$N13="3D"),1,"ni") -> ni | J11: =IF(AND('LASTNE FREKVENCE'!$M13<'LASTNE FREKVENCE'!$F$15,'LASTNE FREKVENCE'!$N13="1D"),'LASTNE FREKVENCE'!$M13,"ni") -> 18.05263158 | K11: =IF(AND('LASTNE FREKVENCE'!$M13<'LASTNE FREKVENCE'!$F$15,'LASTNE FREKVENCE'!$N13="1D"),1,"ni") -> 1 | L11: =IF(AND('LASTNE FREKVENCE'!$M22<'LASTNE FREKVENCE'!$F$15,'LASTNE FREKVENCE'!$N22="2D"),'LASTNE FREKVENCE'!$M22,"ni") -> 22.02064172 | M11: =IF(AND('LASTNE FREKVENCE'!$M22<'LASTNE FREKVENCE'!$F$15,'LASTNE FREKVENCE'!$N22="2D"),1,"ni") -> 1 | N11: =IF(AND('LASTNE FREKVENCE'!$M143<'LASTNE FREKVENCE'!$F$15,'LASTNE FREKVENCE'!$N143="3D"),'LASTNE FREKVENCE'!$M143,"ni") -> 57.94133845 | O11: =IF(AND('LASTNE FREKVENCE'!$M143<'LASTNE FREKVENCE'!$F$15,'LASTNE FREKVENCE'!$N143="3D"),1,"ni") -> 1 | V11: =IF(AND('LASTNE FREKVENCE'!$M13<'LASTNE FREKVENCE'!$F$15,'LASTNE FREKVENCE'!$N13="1D"),'LASTNE FREKVENCE'!$M13,"ni") -> 18.05263158 | W11: =IF(AND('LASTNE FREKVENCE'!$M13<'LASTNE FREKVENCE'!$F$15,'LASTNE FREKVENCE'!$N13="1D"),1,"ni") -> 1 | X11: =IF(AND('LASTNE FREKVENCE'!$M22<'LASTNE FREKVENCE'!$F$15,'LASTNE FREKVENCE'!$N22="2D"),'LASTNE FREKVENCE'!$M22,"ni") -> 22.02064172 | Y11: =IF(AND('LASTNE FREKVENCE'!$M22<'LASTNE FREKVENCE'!$F$15,'LASTNE FREKVENCE'!$N22="2D"),1,"ni") -> 1 | Z11: =IF(AND('LASTNE FREKVENCE'!$M143<'LASTNE FREKVENCE'!$F$15,'LASTNE FREKVENCE'!$N143="3D"),'LASTNE FREKVENCE'!$M143,"ni") -> 57.94133845 | AA11: =IF(AND('LASTNE FREKVENCE'!$M143<'LASTNE FREKVENCE'!$F$15,'LASTNE FREKVENCE'!$N143="3D"),1,"ni") -> 1
B12: =IF(AND('LASTNE FREKVENCE'!$M14<'LASTNE FREKVENCE'!$F$15,'LASTNE FREKVENCE'!$N14="1D"),'LASTNE FREKVENCE'!$M14,"ni") -> 21.06140351 | C12: =IF(AND('LASTNE FREKVENCE'!$M14<'LASTNE FREKVENCE'!$F$15,'LASTNE FREKVENCE'!$N14="1D"),1,"ni") -> 1 | D12: =IF(AND('LASTNE FREKVENCE'!$M14<'LASTNE FREKVENCE'!$F$15,'LASTNE FREKVENCE'!$N14="2D"),'LASTNE FREKVENCE'!$M14,"ni") -> ni | E12: =IF(AND('LASTNE FREKVENCE'!$M14<'LASTNE FREKVENCE'!$F$15,'LASTNE FREKVENCE'!$N14="2D"),1,"ni") -> ni | F12: =IF(AND('LASTNE FREKVENCE'!$M14<'LASTNE FREKVENCE'!$F$15,'LASTNE FREKVENCE'!$N14="3D"),'LASTNE FREKVENCE'!$M14,"ni") -> ni | G12: =IF(AND('LASTNE FREKVENCE'!$M14<'LASTNE FREKVENCE'!$F$15,'LASTNE FREKVENCE'!$N14="3D"),1,"ni") -> ni | J12: =IF(AND('LASTNE FREKVENCE'!$M14<'LASTNE FREKVENCE'!$F$15,'LASTNE FREKVENCE'!$N14="1D"),'LASTNE FREKVENCE'!$M14,"ni") -> 21.06140351 | K12: =IF(AND('LASTNE FREKVENCE'!$M14<'LASTNE FREKVENCE'!$F$15,'LASTNE FREKVENCE'!$N14="1D"),1,"ni") -> 1 | L12: =IF(AND('LASTNE FREKVENCE'!$M23<'LASTNE FREKVENCE'!$F$15,'LASTNE FREKVENCE'!$N23="2D"),'LASTNE FREKVENCE'!$M23,"ni") -> 23.7988033 | M12: =IF(AND('LASTNE FREKVENCE'!$M23<'LASTNE FREKVENCE'!$F$15,'LASTNE FREKVENCE'!$N23="2D"),1,"ni") -> 1 | N12: =IF(AND('LASTNE FREKVENCE'!$M144<'LASTNE FREKVENCE'!$F$15,'LASTNE FREKVENCE'!$N144="3D"),'LASTNE FREKVENCE'!$M144,"ni") -> 58.64020018 | O12: =IF(AND('LASTNE FREKVENCE'!$M144<'LASTNE FREKVENCE'!$F$15,'LASTNE FREKVENCE'!$N144="3D"),1,"ni") -> 1 | V12: =IF(AND('LASTNE FREKVENCE'!$M14<'LASTNE FREKVENCE'!$F$15,'LASTNE FREKVENCE'!$N14="1D"),'LASTNE FREKVENCE'!$M14,"ni") -> 21.06140351 | W12: =IF(AND('LASTNE FREKVENCE'!$M14<'LASTNE FREKVENCE'!$F$15,'LASTNE FREKVENCE'!$N14="1D"),1,"ni") -> 1 | X12: =IF(AND('LASTNE FREKVENCE'!$M23<'LASTNE FREKVENCE'!$F$15,'LASTNE FREKVENCE'!$N23="2D"),'LASTNE FREKVENCE'!$M23,"ni") -> 23.7988033 | Y12: =IF(AND('LASTNE FREKVENCE'!$M23<'LASTNE FREKVENCE'!$F$15,'LASTNE FREKVENCE'!$N23="2D"),1,"ni") -> 1 | Z12: =IF(AND('LASTNE FREKVENCE'!$M144<'LASTNE FREKVENCE'!$F$15,'LASTNE FREKVENCE'!$N144="3D"),'LASTNE FREKVENCE'!$M144,"ni") -> 58.64020018 | AA12: =IF(AND('LASTNE FREKVENCE'!$M144<'LASTNE FREKVENCE'!$F$15,'LASTNE FREKVENCE'!$N144="3D"),1,"ni") -> 1
B13: =IF(AND('LASTNE FREKVENCE'!$M15<'LASTNE FREKVENCE'!$F$15,'LASTNE FREKVENCE'!$N15="1D"),'LASTNE FREKVENCE'!$M15,"ni") -> 24.07017544 | C13: =IF(AND('LASTNE FREKVENCE'!$M15<'LASTNE FREKVENCE'!$F$15,'LASTNE FREKVENCE'!$N15="1D"),1,"ni") -> 1 | D13: =IF(AND('LASTNE FREKVENCE'!$M15<'LASTNE FREKVENCE'!$F$15,'LASTNE FREKVENCE'!$N15="2D"),'LASTNE FREKVENCE'!$M15,"ni") -> ni | E13: =IF(AND('LASTNE FREKVENCE'!$M15<'LASTNE FREKVENCE'!$F$15,'LASTNE FREKVENCE'!$N15="2D"),1,"ni") -> ni | F13: =IF(AND('LASTNE FREKVENCE'!$M15<'LASTNE FREKVENCE'!$F$15,'LASTNE FREKVENCE'!$N15="3D"),'LASTNE FREKVENCE'!$M15,"ni") -> ni | G13: =IF(AND('LASTNE FREKVENCE'!$M15<'LASTNE FREKVENCE'!$F$15,'LASTNE FREKVENCE'!$N15="3D"),1,"ni") -> ni | J13: =IF(AND('LASTNE FREKVENCE'!$M15<'LASTNE FREKVENCE'!$F$15,'LASTNE FREKVENCE'!$N15="1D"),'LASTNE FREKVENCE'!$M15,"ni") -> 24.07017544 | K13: =IF(AND('LASTNE FREKVENCE'!$M15<'LASTNE FREKVENCE'!$F$15,'LASTNE FREKVENCE'!$N15="1D"),1,"ni") -> 1 | L13: =IF(AND('LASTNE FREKVENCE'!$M24<'LASTNE FREKVENCE'!$F$15,'LASTNE FREKVENCE'!$N24="2D"),'LASTNE FREKVENCE'!$M24,"ni") -> 25.80625568 | M13: =IF(AND('LASTNE FREKVENCE'!$M24<'LASTNE FREKVENCE'!$F$15,'LASTNE FREKVENCE'!$N24="2D"),1,"ni") -> 1 | N13: =IF(AND('LASTNE FREKVENCE'!$M145<'LASTNE FREKVENCE'!$F$15,'LASTNE FREKVENCE'!$N145="3D"),'LASTNE FREKVENCE'!$M145,"ni") -> 59.48321504 | O13: =IF(AND('LASTNE FREKVENCE'!$M145<'LASTNE FREKVENCE'!$F$15,'LASTNE FREKVENCE'!$N145="3D"),1,"ni") -> 1 | V13: =IF(AND('LASTNE FREKVENCE'!$M15<'LASTNE FREKVENCE'!$F$15,'LASTNE FREKVENCE'!$N15="1D"),'LASTNE FREKVENCE'!$M15,"ni") -> 24.07017544 | W13: =IF(AND('LASTNE FREKVENCE'!$M15<'LASTNE FREKVENCE'!$F$15,'LASTNE FREKVENCE'!$N15="1D"),1,"ni") -> 1 | X13: =IF(AND('LASTNE FREKVENCE'!$M24<'LASTNE FREKVENCE'!$F$15,'LASTNE FREKVENCE'!$N24="2D"),'LASTNE FREKVENCE'!$M24,"ni") -> 25.80625568 | Y13: =IF(AND('LASTNE FREKVENCE'!$M24<'LASTNE FREKVENCE'!$F$15,'LASTNE FREKVENCE'!$N24="2D"),1,"ni") -> 1 | Z13: =IF(AND('LASTNE FREKVENCE'!$M145<'LASTNE FREKVENCE'!$F$15,'LASTNE FREKVENCE'!$N145="3D"),'LASTNE FREKVENCE'!$M145,"ni") -> 59.48321504 | AA13: =IF(AND('LASTNE FREKVENCE'!$M145<'LASTNE FREKVENCE'!$F$15,'LASTNE FREKVENCE'!$N145="3D"),1,"ni") -> 1
B14: =IF(AND('LASTNE FREKVENCE'!$M16<'LASTNE FREKVENCE'!$F$15,'LASTNE FREKVENCE'!$N16="1D"),'LASTNE FREKVENCE'!$M16,"ni") -> 27.07894737 | C14: =IF(AND('LASTNE FREKVENCE'!$M16<'LASTNE FREKVENCE'!$F$15,'LASTNE FREKVENCE'!$N16="1D"),1,"ni") -> 1 | D14: =IF(AND('LASTNE FREKVENCE'!$M16<'LASTNE FREKVENCE'!$F$15,'LASTNE FREKVENCE'!$N16="2D"),'LASTNE FREKVENCE'!$M16,"ni") -> ni | E14: =IF(AND('LASTNE FREKVENCE'!$M16<'LASTNE FREKVENCE'!$F$15,'LASTNE FREKVENCE'!$N16="2D"),1,"ni") -> ni | F14: =IF(AND('LASTNE FREKVENCE'!$M16<'LASTNE FREKVENCE'!$F$15,'LASTNE FREKVENCE'!$N16="3D"),'LASTNE FREKVENCE'!$M16,"ni") -> ni | G14: =IF(AND('LASTNE FREKVENCE'!$M16<'LASTNE FREKVENCE'!$F$15,'LASTNE FREKVENCE'!$N16="3D"),1,"ni") -> ni | J14: =IF(AND('LASTNE FREKVENCE'!$M16<'LASTNE FREKVENCE'!$F$15,'LASTNE FREKVENCE'!$N16="1D"),'LASTNE FREKVENCE'!$M16,"ni") -> 27.07894737 | K14: =IF(AND('LASTNE FREKVENCE'!$M16<'LASTNE FREKVENCE'!$F$15,'LASTNE FREKVENCE'!$N16="1D"),1,"ni") -> 1 | L14: =IF(AND('LASTNE FREKVENCE'!$M25<'LASTNE FREKVENCE'!$F$15,'LASTNE FREKVENCE'!$N25="2D"),'LASTNE FREKVENCE'!$M25,"ni") -> 27.99371435 | M14: =IF(AND('LASTNE FREKVENCE'!$M25<'LASTNE FREKVENCE'!$F$15,'LASTNE FREKVENCE'!$N25="2D"),1,"ni") -> 1 | N14: =IF(AND('LASTNE FREKVENCE'!$M146<'LASTNE FREKVENCE'!$F$15,'LASTNE FREKVENCE'!$N146="3D"),'LASTNE FREKVENCE'!$M146,"ni") -> 60.46435382 | O14: =IF(AND('LASTNE FREKVENCE'!$M146<'LASTNE FREKVENCE'!$F$15,'LASTNE FREKVENCE'!$N146="3D"),1,"ni") -> 1 | V14: =IF(AND('LASTNE FREKVENCE'!$M16<'LASTNE FREKVENCE'!$F$15,'LASTNE FREKVENCE'!$N16="1D"),'LASTNE FREKVENCE'!$M16,"ni") -> 27.07894737 | W14: =IF(AND('LASTNE FREKVENCE'!$M16<'LASTNE FREKVENCE'!$F$15,'LASTNE FREKVENCE'!$N16="1D"),1,"ni") -> 1 | X14: =IF(AND('LASTNE FREKVENCE'!$M25<'LASTNE FREKVENCE'!$F$15,'LASTNE FREKVENCE'!$N25="2D"),'LASTNE FREKVENCE'!$M25,"ni") -> 27.99371435 | Y14: =IF(AND('LASTNE FREKVENCE'!$M25<'LASTNE FREKVENCE'!$F$15,'LASTNE FREKVENCE'!$N25="2D"),1,"ni") -> 1 | Z14: =IF(AND('LASTNE FREKVENCE'!$M146<'LASTNE FREKVENCE'!$F$15,'LASTNE FREKVENCE'!$N146="3D"),'LASTNE FREKVENCE'!$M146,"ni") -> 60.46435382 | AA14: =IF(AND('LASTNE FREKVENCE'!$M146<'LASTNE FREKVENCE'!$F$15,'LASTNE FREKVENCE'!$N146="3D"),1,"ni") -> 1
B15: =IF(AND('LASTNE FREKVENCE'!$M17<'LASTNE FREKVENCE'!$F$15,'LASTNE FREKVENCE'!$N17="1D"),'LASTNE FREKVENCE'!$M17,"ni") -> ni | C15: =IF(AND('LASTNE FREKVENCE'!$M17<'LASTNE FREKVENCE'!$F$15,'LASTNE FREKVENCE'!$N17="1D"),1,"ni") -> ni | D15: =IF(AND('LASTNE FREKVENCE'!$M17<'LASTNE FREKVENCE'!$F$15,'LASTNE FREKVENCE'!$N17="2D"),'LASTNE FREKVENCE'!$M17,"ni") -> 35.28932102 | E15: =IF(AND('LASTNE FREKVENCE'!$M17<'LASTNE FREKVENCE'!$F$15,'LASTNE FREKVENCE'!$N17="2D"),1,"ni") -> 1 | F15: =IF(AND('LASTNE FREKVENCE'!$M17<'LASTNE FREKVENCE'!$F$15,'LASTNE FREKVENCE'!$N17="3D"),'LASTNE FREKVENCE'!$M17,"ni") -> ni | G15: =IF(AND('LASTNE FREKVENCE'!$M17<'LASTNE FREKVENCE'!$F$15,'LASTNE FREKVENCE'!$N17="3D"),1,"ni") -> ni | J15: =IF(AND('LASTNE FREKVENCE'!$M18<'LASTNE FREKVENCE'!$F$15,'LASTNE FREKVENCE'!$N18="1D"),'LASTNE FREKVENCE'!$M18,"ni") -> 18.44086022 | K15: =IF(AND('LASTNE FREKVENCE'!$M18<'LASTNE FREKVENCE'!$F$15,'LASTNE FREKVENCE'!$N18="1D"),1,"ni") -> 1 | L15: =IF(AND('LASTNE FREKVENCE'!$M26<'LASTNE FREKVENCE'!$F$15,'LASTNE FREKVENCE'!$N26="2D"),'LASTNE FREKVENCE'!$M26,"ni") -> 30.32224713 | M15: =IF(AND('LASTNE FREKVENCE'!$M26<'LASTNE FREKVENCE'!$F$15,'LASTNE FREKVENCE'!$N26="2D"),1,"ni") -> 1 | N15: =IF(AND('LASTNE FREKVENCE'!$M147<'LASTNE FREKVENCE'!$F$15,'LASTNE FREKVENCE'!$N147="3D"),'LASTNE FREKVENCE'!$M147,"ni") -> 61.57701446 | O15: =IF(AND('LASTNE FREKVENCE'!$M147<'LASTNE FREKVENCE'!$F$15,'LASTNE FREKVENCE'!$N147="3D"),1,"ni") -> 1 | V15: =IF(AND('LASTNE FREKVENCE'!$M18<'LASTNE FREKVENCE'!$F$15,'LASTNE FREKVENCE'!$N18="1D"),'LASTNE FREKVENCE'!$M18,"ni") -> 18.44086022 | W15: =IF(AND('LASTNE FREKVENCE'!$M18<'LASTNE FREKVENCE'!$F$15,'LASTNE FREKVENCE'!$N18="1D"),1,"ni") -> 1 | X15: =IF(AND('LASTNE FREKVENCE'!$M26<'LASTNE FREKVENCE'!$F$15,'LASTNE FREKVENCE'!$N26="2D"),'LASTNE FREKVENCE'!$M26,"ni") -> 30.32224713 | Y15: =IF(AND('LASTNE FREKVENCE'!$M26<'LASTNE FREKVENCE'!$F$15,'LASTNE FREKVENCE'!$N26="2D"),1,"ni") -> 1 | Z15: =IF(AND('LASTNE FREKVENCE'!$M147<'LASTNE FREKVENCE'!$F$15,'LASTNE FREKVENCE'!$N147="3D"),'LASTNE FREKVENCE'!$M147,"ni") -> 61.57701446 | AA15: =IF(AND('LASTNE FREKVENCE'!$M147<'LASTNE FREKVENCE'!$F$15,'LASTNE FREKVENCE'!$N147="3D"),1,"ni") -> 1
B16: =IF(AND('LASTNE FREKVENCE'!$M18<'LASTNE FREKVENCE'!$F$15,'LASTNE FREKVENCE'!$N18="1D"),'LASTNE FREKVENCE'!$M18,"ni") -> 18.44086022 | C16: =IF(AND('LASTNE FREKVENCE'!$M18<'LASTNE FREKVENCE'!$F$15,'LASTNE FREKVENCE'!$N18="1D"),1,"ni") -> 1 | D16: =IF(AND('LASTNE FREKVENCE'!$M18<'LASTNE FREKVENCE'!$F$15,'LASTNE FREKVENCE'!$N18="2D"),'LASTNE FREKVENCE'!$M18,"ni") -> ni | E16: =IF(AND('LASTNE FREKVENCE'!$M18<'LASTNE FREKVENCE'!$F$15,'LASTNE FREKVENCE'!$N18="2D"),1,"ni") -> ni | F16: =IF(AND('LASTNE FREKVENCE'!$M18<'LASTNE FREKVENCE'!$F$15,'LASTNE FREKVENCE'!$N18="3D"),'LASTNE FREKVENCE'!$M18,"ni") -> ni | G16: =IF(AND('LASTNE FREKVENCE'!$M18<'LASTNE FREKVENCE'!$F$15,'LASTNE FREKVENCE'!$N18="3D"),1,"ni") -> ni | J16: =IF(AND('LASTNE FREKVENCE'!$M29<'LASTNE FREKVENCE'!$F$15,'LASTNE FREKVENCE'!$N29="1D"),'LASTNE FREKVENCE'!$M29,"ni") -> 36.88172043 | K16: =IF(AND('LASTNE FREKVENCE'!$M29<'LASTNE FREKVENCE'!$F$15,'LASTNE FREKVENCE'!$N29="1D"),1,"ni") -> 1 | L16: =IF(AND('LASTNE FREKVENCE'!$M27<'LASTNE FREKVENCE'!$F$15,'LASTNE FREKVENCE'!$N27="2D"),'LASTNE FREKVENCE'!$M27,"ni") -> 32.76178744 | M16: =IF(AND('LASTNE FREKVENCE'!$M27<'LASTNE FREKVENCE'!$F$15,'LASTNE FREKVENCE'!$N27="2D"),1,"ni") -> 1 | N16: =IF(AND('LASTNE FREKVENCE'!$M148<'LASTNE FREKVENCE'!$F$15,'LASTNE FREKVENCE'!$N148="3D"),'LASTNE FREKVENCE'!$M148,"ni") -> 62.81420823 | O16: =IF(AND('LASTNE FREKVENCE'!$M148<'LASTNE FREKVENCE'!$F$15,'LASTNE FREKVENCE'!$N148="3D"),1,"ni") -> 1 | V16: =IF(AND('LASTNE FREKVENCE'!$M29<'LASTNE FREKVENCE'!$F$15,'LASTNE FREKVENCE'!$N29="1D"),'LASTNE FREKVENCE'!$M29,"ni") -> 36.88172043 | W16: =IF(AND('LASTNE FREKVENCE'!$M29<'LASTNE FREKVENCE'!$F$15,'LASTNE FREKVENCE'!$N29="1D"),1,"ni") -> 1 | X16: =IF(AND('LASTNE FREKVENCE'!$M27<'LASTNE FREKVENCE'!$F$15,'LASTNE FREKVENCE'!$N27="2D"),'LASTNE FREKVENCE'!$M27,"ni") -> 32.76178744 | Y16: =IF(AND('LASTNE FREKVENCE'!$M27<'LASTNE FREKVENCE'!$F$15,'LASTNE FREKVENCE'!$N27="2D"),1,"ni") -> 1 | Z16: =IF(AND('LASTNE FREKVENCE'!$M148<'LASTNE FREKVENCE'!$F$15,'LASTNE FREKVENCE'!$N148="3D"),'LASTNE FREKVENCE'!$M148,"ni") -> 62.81420823 | AA16: =IF(AND('LASTNE FREKVENCE'!$M148<'LASTNE FREKVENCE'!$F$15,'LASTNE FREKVENCE'!$N148="3D"),1,"ni") -> 1
B17: =IF(AND('LASTNE FREKVENCE'!$M19<'LASTNE FREKVENCE'!$F$15,'LASTNE FREKVENCE'!$N19="1D"),'LASTNE FREKVENCE'!$M19,"ni") -> ni | C17: =IF(AND('LASTNE FREKVENCE'!$M19<'LASTNE FREKVENCE'!$F$15,'LASTNE FREKVENCE'!$N19="1D"),1,"ni") -> ni | D17: =IF(AND('LASTNE FREKVENCE'!$M19<'LASTNE FREKVENCE'!$F$15,'LASTNE FREKVENCE'!$N19="2D"),'LASTNE FREKVENCE'!$M19,"ni") -> 18.68470053 | E17: =IF(AND('LASTNE FREKVENCE'!$M19<'LASTNE FREKVENCE'!$F$15,'LASTNE FREKVENCE'!$N19="2D"),1,"ni") -> 1 | F17: =IF(AND('LASTNE FREKVENCE'!$M19<'LASTNE FREKVENCE'!$F$15,'LASTNE FREKVENCE'!$N19="3D"),'LASTNE FREKVENCE'!$M19,"ni") -> ni | G17: =IF(AND('LASTNE FREKVENCE'!$M19<'LASTNE FREKVENCE'!$F$15,'LASTNE FREKVENCE'!$N19="3D"),1,"ni") -> ni | J17: =IF(AND('LASTNE FREKVENCE'!$M40<'LASTNE FREKVENCE'!$F$15,'LASTNE FREKVENCE'!$N40="1D"),'LASTNE FREKVENCE'!$M40,"ni") -> 55.32258065 | K17: =IF(AND('LASTNE FREKVENCE'!$M40<'LASTNE FREKVENCE'!$F$15,'LASTNE FREKVENCE'!$N40="1D"),1,"ni") -> 1 | L17: =IF(AND('LASTNE FREKVENCE'!$M28<'LASTNE FREKVENCE'!$F$15,'LASTNE FREKVENCE'!$N28="2D"),'LASTNE FREKVENCE'!$M28,"ni") -> 47.5976066 | M17: =IF(AND('LASTNE FREKVENCE'!$M28<'LASTNE FREKVENCE'!$F$15,'LASTNE FREKVENCE'!$N28="2D"),1,"ni") -> 1 | N17: =IF(AND('LASTNE FREKVENCE'!$M149<'LASTNE FREKVENCE'!$F$15,'LASTNE FREKVENCE'!$N149="3D"),'LASTNE FREKVENCE'!$M149,"ni") -> 71.67860346 | O17: =IF(AND('LASTNE FREKVENCE'!$M149<'LASTNE FREKVENCE'!$F$15,'LASTNE FREKVENCE'!$N149="3D"),1,"ni") -> 1 | V17: =IF(AND('LASTNE FREKVENCE'!$M40<'LASTNE FREKVENCE'!$F$15,'LASTNE FREKVENCE'!$N40="1D"),'LASTNE FREKVENCE'!$M40,"ni") -> 55.32258065 | W17: =IF(AND('LASTNE FREKVENCE'!$M40<'LASTNE FREKVENCE'!$F$15,'LASTNE FREKVENCE'!$N40="1D"),1,"ni") -> 1 | X17: =IF(AND('LASTNE FREKVENCE'!$M28<'LASTNE FREKVENCE'!$F$15,'LASTNE FREKVENCE'!$N28="2D"),'LASTNE FREKVENCE'!$M28,"ni") -> 47.5976066 | Y17: =IF(AND('LASTNE FREKVENCE'!$M28<'LASTNE FREKVENCE'!$F$15,'LASTNE FREKVENCE'!$N28="2D"),1,"ni") -> 1 | Z17: =IF(AND('LASTNE FREKVENCE'!$M149<'LASTNE FREKVENCE'!$F$15,'LASTNE FREKVENCE'!$N149="3D"),'LASTNE FREKVENCE'!$M149,"ni") -> 71.67860346 | AA17: =IF(AND('LASTNE FREKVENCE'!$M149<'LASTNE FREKVENCE'!$F$15,'LASTNE FREKVENCE'!$N149="3D"),1,"ni") -> 1
B18: =IF(AND('LASTNE FREKVENCE'!$M20<'LASTNE FREKVENCE'!$F$15,'LASTNE FREKVENCE'!$N20="1D"),'LASTNE FREKVENCE'!$M20,"ni") -> ni | C18: =IF(AND('LASTNE FREKVENCE'!$M20<'LASTNE FREKVENCE'!$F$15,'LASTNE FREKVENCE'!$N20="1D"),1,"ni") -> ni | D18: =IF(AND('LASTNE FREKVENCE'!$M20<'LASTNE FREKVENCE'!$F$15,'LASTNE FREKVENCE'!$N20="2D"),'LASTNE FREKVENCE'!$M20,"ni") -> 19.39783904 | E18: =IF(AND('LASTNE FREKVENCE'!$M20<'LASTNE FREKVENCE'!$F$15,'LASTNE FREKVENCE'!$N20="2D"),1,"ni") -> 1 | F18: =IF(AND('LASTNE FREKVENCE'!$M20<'LASTNE FREKVENCE'!$F$15,'LASTNE FREKVENCE'!$N20="3D"),'LASTNE FREKVENCE'!$M20,"ni") -> ni | G18: =IF(AND('LASTNE FREKVENCE'!$M20<'LASTNE FREKVENCE'!$F$15,'LASTNE FREKVENCE'!$N20="3D"),1,"ni") -> ni | J18: =IF(AND('LASTNE FREKVENCE'!$M51<'LASTNE FREKVENCE'!$F$15,'LASTNE FREKVENCE'!$N51="1D"),'LASTNE FREKVENCE'!$M51,"ni") -> 73.76344086 | K18: =IF(AND('LASTNE FREKVENCE'!$M51<'LASTNE FREKVENCE'!$F$15,'LASTNE FREKVENCE'!$N51="1D"),1,"ni") -> 1 | L18: =IF(AND('LASTNE FREKVENCE'!$M30<'LASTNE FREKVENCE'!$F$15,'LASTNE FREKVENCE'!$N30="2D"),'LASTNE FREKVENCE'!$M30,"ni") -> 37.00424314 | M18: =IF(AND('LASTNE FREKVENCE'!$M30<'LASTNE FREKVENCE'!$F$15,'LASTNE FREKVENCE'!$N30="2D"),1,"ni") -> 1 | N18: =IF(AND('LASTNE FREKVENCE'!$M151<'LASTNE FREKVENCE'!$F$15,'LASTNE FREKVENCE'!$N151="3D"),'LASTNE FREKVENCE'!$M151,"ni") -> 65.12759822 | O18: =IF(AND('LASTNE FREKVENCE'!$M151<'LASTNE FREKVENCE'!$F$15,'LASTNE FREKVENCE'!$N151="3D"),1,"ni") -> 1 | V18: =IF(AND('LASTNE FREKVENCE'!$M51<'LASTNE FREKVENCE'!$F$15,'LASTNE FREKVENCE'!$N51="1D"),'LASTNE FREKVENCE'!$M51,"ni") -> 73.76344086 | W18: =IF(AND('LASTNE FREKVENCE'!$M51<'LASTNE FREKVENCE'!$F$15,'LASTNE FREKVENCE'!$N51="1D"),1,"ni") -> 1 | X18: =IF(AND('LASTNE FREKVENCE'!$M30<'LASTNE FREKVENCE'!$F$15,'LASTNE FREKVENCE'!$N30="2D"),'LASTNE FREKVENCE'!$M30,"ni") -> 37.00424314 | Y18: =IF(AND('LASTNE FREKVENCE'!$M30<'LASTNE FREKVENCE'!$F$15,'LASTNE FREKVENCE'!$N30="2D"),1,"ni") -> 1 | Z18: =IF(AND('LASTNE FREKVENCE'!$M151<'LASTNE FREKVENCE'!$F$15,'LASTNE FREKVENCE'!$N151="3D"),'LASTNE FREKVENCE'!$M151,"ni") -> 65.12759822 | AA18: =IF(AND('LASTNE FREKVENCE'!$M151<'LASTNE FREKVENCE'!$F$15,'LASTNE FREKVENCE'!$N151="3D"),1,"ni") -> 1
B19: =IF(AND('LASTNE FREKVENCE'!$M21<'LASTNE FREKVENCE'!$F$15,'LASTNE FREKVENCE'!$N21="1D"),'LASTNE FREKVENCE'!$M21,"ni") -> ni | C19: =IF(AND('LASTNE FREKVENCE'!$M21<'LASTNE FREKVENCE'!$F$15,'LASTNE FREKVENCE'!$N21="1D"),1,"ni") -> ni | D19: =IF(AND('LASTNE FREKVENCE'!$M21<'LASTNE FREKVENCE'!$F$15,'LASTNE FREKVENCE'!$N21="2D"),'LASTNE FREKVENCE'!$M21,"ni") -> 20.53143205 | E19: =IF(AND('LASTNE FREKVENCE'!$M21<'LASTNE FREKVENCE'!$F$15,'LASTNE FREKVENCE'!$N21="2D"),1,"ni") -> 1 | F19: =IF(AND('LASTNE FREKVENCE'!$M21<'LASTNE FREKVENCE'!$F$15,'LASTNE FREKVENCE'!$N21="3D"),'LASTNE FREKVENCE'!$M21,"ni") -> ni | G19: =IF(AND('LASTNE FREKVENCE'!$M21<'LASTNE FREKVENCE'!$F$15,'LASTNE FREKVENCE'!$N21="3D"),1,"ni") -> ni | J19: =IF(AND('LASTNE FREKVENCE'!$M62<'LASTNE FREKVENCE'!$F$15,'LASTNE FREKVENCE'!$N62="1D"),'LASTNE FREKVENCE'!$M62,"ni") -> 92.20430108 | K19: =IF(AND('LASTNE FREKVENCE'!$M62<'LASTNE FREKVENCE'!$F$15,'LASTNE FREKVENCE'!$N62="1D"),1,"ni") -> 1 | L19: =IF(AND('LASTNE FREKVENCE'!$M31<'LASTNE FREKVENCE'!$F$15,'LASTNE FREKVENCE'!$N31="2D"),'LASTNE FREKVENCE'!$M31,"ni") -> 37.36940107 | M19: =IF(AND('LASTNE FREKVENCE'!$M31<'LASTNE FREKVENCE'!$F$15,'LASTNE FREKVENCE'!$N31="2D"),1,"ni") -> 1 | N19: =IF(AND('LASTNE FREKVENCE'!$M152<'LASTNE FREKVENCE'!$F$15,'LASTNE FREKVENCE'!$N152="3D"),'LASTNE FREKVENCE'!$M152,"ni") -> 65.3357649 | O19: =IF(AND('LASTNE FREKVENCE'!$M152<'LASTNE FREKVENCE'!$F$15,'LASTNE FREKVENCE'!$N152="3D"),1,"ni") -> 1 | V19: =IF(AND('LASTNE FREKVENCE'!$M62<'LASTNE FREKVENCE'!$F$15,'LASTNE FREKVENCE'!$N62="1D"),'LASTNE FREKVENCE'!$M62,"ni") -> 92.20430108 | W19: =IF(AND('LASTNE FREKVENCE'!$M62<'LASTNE FREKVENCE'!$F$15,'LASTNE FREKVENCE'!$N62="1D"),1,"ni") -> 1 | X19: =IF(AND('LASTNE FREKVENCE'!$M31<'LASTNE FREKVENCE'!$F$15,'LASTNE FREKVENCE'!$N31="2D"),'LASTNE FREKVENCE'!$M31,"ni") -> 37.36940107 | Y19: =IF(AND('LASTNE FREKVENCE'!$M31<'LASTNE FREKVENCE'!$F$15,'LASTNE FREKVENCE'!$N31="2D"),1,"ni") -> 1 | Z19: =IF(AND('LASTNE FREKVENCE'!$M152<'LASTNE FREKVENCE'!$F$15,'LASTNE FREKVENCE'!$N152="3D"),'LASTNE FREKVENCE'!$M152,"ni") -> 65.3357649 | AA19: =IF(AND('LASTNE FREKVENCE'!$M152<'LASTNE FREKVENCE'!$F$15,'LASTNE FREKVENCE'!$N152="3D"),1,"ni") -> 1
B20: =IF(AND('LASTNE FREKVENCE'!$M22<'LASTNE FREKVENCE'!$F$15,'LASTNE FREKVENCE'!$N22="1D"),'LASTNE FREKVENCE'!$M22,"ni") -> ni | C20: =IF(AND('LASTNE FREKVENCE'!$M22<'LASTNE FREKVENCE'!$F$15,'LASTNE FREKVENCE'!$N22="1D"),1,"ni") -> ni | D20: =IF(AND('LASTNE FREKVENCE'!$M22<'LASTNE FREKVENCE'!$F$15,'LASTNE FREKVENCE'!$N22="2D"),'LASTNE FREKVENCE'!$M22,"ni") -> 22.02064172 | E20: =IF(AND('LASTNE FREKVENCE'!$M22<'LASTNE FREKVENCE'!$F$15,'LASTNE FREKVENCE'!$N22="2D"),1,"ni") -> 1 | F20: =IF(AND('LASTNE FREKVENCE'!$M22<'LASTNE FREKVENCE'!$F$15,'LASTNE FREKVENCE'!$N22="3D"),'LASTNE FREKVENCE'!$M22,"ni") -> ni | G20: =IF(AND('LASTNE FREKVENCE'!$M22<'LASTNE FREKVENCE'!$F$15,'LASTNE FREKVENCE'!$N22="3D"),1,"ni") -> ni | J20: =IF(AND('LASTNE FREKVENCE'!$M127<'LASTNE FREKVENCE'!$F$15,'LASTNE FREKVENCE'!$N127="1D"),'LASTNE FREKVENCE'!$M127,"ni") -> 30.0877193 | K20: =IF(AND('LASTNE FREKVENCE'!$M127<'LASTNE FREKVENCE'!$F$15,'LASTNE FREKVENCE'!$N127="1D"),1,"ni") -> 1 | L20: =IF(AND('LASTNE FREKVENCE'!$M32<'LASTNE FREKVENCE'!$F$15,'LASTNE FREKVENCE'!$N32="2D"),'LASTNE FREKVENCE'!$M32,"ni") -> 37.97019461 | M20: =IF(AND('LASTNE FREKVENCE'!$M32<'LASTNE FREKVENCE'!$F$15,'LASTNE FREKVENCE'!$N32="2D"),1,"ni") -> 1 | N20: =IF(AND('LASTNE FREKVENCE'!$M153<'LASTNE FREKVENCE'!$F$15,'LASTNE FREKVENCE'!$N153="3D"),'LASTNE FREKVENCE'!$M153,"ni") -> 65.68124327 | O20: =IF(AND('LASTNE FREKVENCE'!$M153<'LASTNE FREKVENCE'!$F$15,'LASTNE FREKVENCE'!$N153="3D"),1,"ni") -> 1 | V20: =IF(AND('LASTNE FREKVENCE'!$M127<'LASTNE FREKVENCE'!$F$15,'LASTNE FREKVENCE'!$N127="1D"),'LASTNE FREKVENCE'!$M127,"ni") -> 30.0877193 | W20: =IF(AND('LASTNE FREKVENCE'!$M127<'LASTNE FREKVENCE'!$F$15,'LASTNE FREKVENCE'!$N127="1D"),1,"ni") -> 1 | X20: =IF(AND('LASTNE FREKVENCE'!$M32<'LASTNE FREKVENCE'!$F$15,'LASTNE FREKVENCE'!$N32="2D"),'LASTNE FREKVENCE'!$M32,"ni") -> 37.97019461 | Y20: =IF(AND('LASTNE FREKVENCE'!$M32<'LASTNE FREKVENCE'!$F$15,'LASTNE FREKVENCE'!$N32="2D"),1,"ni") -> 1 | Z20: =IF(AND('LASTNE FREKVENCE'!$M153<'LASTNE FREKVENCE'!$F$15,'LASTNE FREKVENCE'!$N153="3D"),'LASTNE FREKVENCE'!$M153,"ni") -> 65.68124327 | AA20: =IF(AND('LASTNE FREKVENCE'!$M153<'LASTNE FREKVENCE'!$F$15,'LASTNE FREKVENCE'!$N153="3D"),1,"ni") -> 1
B21: =IF(AND('LASTNE FREKVENCE'!$M23<'LASTNE FREKVENCE'!$F$15,'LASTNE FREKVENCE'!$N23="1D"),'LASTNE FREKVENCE'!$M23,"ni") -> ni | C21: =IF(AND('LASTNE FREKVENCE'!$M23<'LASTNE FREKVENCE'!$F$15,'LASTNE FREKVENCE'!$N23="1D"),1,"ni") -> ni | D21: =IF(AND('LASTNE FREKVENCE'!$M23<'LASTNE FREKVENCE'!$F$15,'LASTNE FREKVENCE'!$N23="2D"),'LASTNE FREKVENCE'!$M23,"ni") -> 23.7988033 | E21: =IF(AND('LASTNE FREKVENCE'!$M23<'LASTNE FREKVENCE'!$F$15,'LASTNE FREKVENCE'!$N23="2D"),1,"ni") -> 1 | F21: =IF(AND('LASTNE FREKVENCE'!$M23<'LASTNE FREKVENCE'!$F$15,'LASTNE FREKVENCE'!$N23="3D"),'LASTNE FREKVENCE'!$M23,"ni") -> ni | G21: =IF(AND('LASTNE FREKVENCE'!$M23<'LASTNE FREKVENCE'!$F$15,'LASTNE FREKVENCE'!$N23="3D"),1,"ni") -> ni | J21: =IF(AND('LASTNE FREKVENCE'!$M128<'LASTNE FREKVENCE'!$F$15,'LASTNE FREKVENCE'!$N128="1D"),'LASTNE FREKVENCE'!$M128,"ni") -> 53.59375 | K21: =IF(AND('LASTNE FREKVENCE'!$M128<'LASTNE FREKVENCE'!$F$15,'LASTNE FREKVENCE'!$N128="1D"),1,"ni") -> 1 | L21: =IF(AND('LASTNE FREKVENCE'!$M33<'LASTNE FREKVENCE'!$F$15,'LASTNE FREKVENCE'!$N33="2D"),'LASTNE FREKVENCE'!$M33,"ni") -> 38.79567809 | M21: =IF(AND('LASTNE FREKVENCE'!$M33<'LASTNE FREKVENCE'!$F$15,'LASTNE FREKVENCE'!$N33="2D"),1,"ni") -> 1 | N21: =IF(AND('LASTNE FREKVENCE'!$M154<'LASTNE FREKVENCE'!$F$15,'LASTNE FREKVENCE'!$N154="3D"),'LASTNE FREKVENCE'!$M154,"ni") -> 66.16188236 | O21: =IF(AND('LASTNE FREKVENCE'!$M154<'LASTNE FREKVENCE'!$F$15,'LASTNE FREKVENCE'!$N154="3D"),1,"ni") -> 1 | V21: =IF(AND('LASTNE FREKVENCE'!$M128<'LASTNE FREKVENCE'!$F$15,'LASTNE FREKVENCE'!$N128="1D"),'LASTNE FREKVENCE'!$M128,"ni") -> 53.59375 | W21: =IF(AND('LASTNE FREKVENCE'!$M128<'LASTNE FREKVENCE'!$F$15,'LASTNE FREKVENCE'!$N128="1D"),1,"ni") -> 1 | X21: =IF(AND('LASTNE FREKVENCE'!$M33<'LASTNE FREKVENCE'!$F$15,'LASTNE FREKVENCE'!$N33="2D"),'LASTNE FREKVENCE'!$M33,"ni") -> 38.79567809 | Y21: =IF(AND('LASTNE FREKVENCE'!$M33<'LASTNE FREKVENCE'!$F$15,'LASTNE FREKVENCE'!$N33="2D"),1,"ni") -> 1 | Z21: =IF(AND('LASTNE FREKVENCE'!$M154<'LASTNE FREKVENCE'!$F$15,'LASTNE FREKVENCE'!$N154="3D"),'LASTNE FREKVENCE'!$M154,"ni") -> 66.16188236 | AA21: =IF(AND('LASTNE FREKVENCE'!$M154<'LASTNE FREKVENCE'!$F$15,'LASTNE FREKVENCE'!$N154="3D"),1,"ni") -> 1
B22: =IF(AND('LASTNE FREKVENCE'!$M24<'LASTNE FREKVENCE'!$F$15,'LASTNE FREKVENCE'!$N24="1D"),'LASTNE FREKVENCE'!$M24,"ni") -> ni | C22: =IF(AND('LASTNE FREKVENCE'!$M24<'LASTNE FREKVENCE'!$F$15,'LASTNE FREKVENCE'!$N24="1D"),1,"ni") -> ni | D22: =IF(AND('LASTNE FREKVENCE'!$M24<'LASTNE FREKVENCE'!$F$15,'LASTNE FREKVENCE'!$N24="2D"),'LASTNE FREKVENCE'!$M24,"ni") -> 25.80625568 | E22: =IF(AND('LASTNE FREKVENCE'!$M24<'LASTNE FREKVENCE'!$F$15,'LASTNE FREKVENCE'!$N24="2D"),1,"ni") -> 1 | F22: =IF(AND('LASTNE FREKVENCE'!$M24<'LASTNE FREKVENCE'!$F$15,'LASTNE FREKVENCE'!$N24="3D"),'LASTNE FREKVENCE'!$M24,"ni") -> ni | G22: =IF(AND('LASTNE FREKVENCE'!$M24<'LASTNE FREKVENCE'!$F$15,'LASTNE FREKVENCE'!$N24="3D"),1,"ni") -> ni | L22: =IF(AND('LASTNE FREKVENCE'!$M34<'LASTNE FREKVENCE'!$F$15,'LASTNE FREKVENCE'!$N34="2D"),'LASTNE FREKVENCE'!$M34,"ni") -> 39.8318844 | M22: =IF(AND('LASTNE FREKVENCE'!$M34<'LASTNE FREKVENCE'!$F$15,'LASTNE FREKVENCE'!$N34="2D"),1,"ni") -> 1 | N22: =IF(AND('LASTNE FREKVENCE'!$M155<'LASTNE FREKVENCE'!$F$15,'LASTNE FREKVENCE'!$N155="3D"),'LASTNE FREKVENCE'!$M155,"ni") -> 66.7747636 | O22: =IF(AND('LASTNE FREKVENCE'!$M155<'LASTNE FREKVENCE'!$F$15,'LASTNE FREKVENCE'!$N155="3D"),1,"ni") -> 1 | X22: =IF(AND('LASTNE FREKVENCE'!$M34<'LASTNE FREKVENCE'!$F$15,'LASTNE FREKVENCE'!$N34="2D"),'LASTNE FREKVENCE'!$M34,"ni") -> 39.8318844 | Y22: =IF(AND('LASTNE FREKVENCE'!$M34<'LASTNE FREKVENCE'!$F$15,'LASTNE FREKVENCE'!$N34="2D"),1,"ni") -> 1 | Z22: =IF(AND('LASTNE FREKVENCE'!$M155<'LASTNE FREKVENCE'!$F$15,'LASTNE FREKVENCE'!$N155="3D"),'LASTNE FREKVENCE'!$M155,"ni") -> 66.7747636 | AA22: =IF(AND('LASTNE FREKVENCE'!$M155<'LASTNE FREKVENCE'!$F$15,'LASTNE FREKVENCE'!$N155="3D"),1,"ni") -> 1
B23: =IF(AND('LASTNE FREKVENCE'!$M25<'LASTNE FREKVENCE'!$F$15,'LASTNE FREKVENCE'!$N25="1D"),'LASTNE FREKVENCE'!$M25,"ni") -> ni | C23: =IF(AND('LASTNE FREKVENCE'!$M25<'LASTNE FREKVENCE'!$F$15,'LASTNE FREKVENCE'!$N25="1D"),1,"ni") -> ni | D23: =IF(AND('LASTNE FREKVENCE'!$M25<'LASTNE FREKVENCE'!$F$15,'LASTNE FREKVENCE'!$N25="2D"),'LASTNE FREKVENCE'!$M25,"ni") -> 27.99371435 | E23: =IF(AND('LASTNE FREKVENCE'!$M25<'LASTNE FREKVENCE'!$F$15,'LASTNE FREKVENCE'!$N25="2D"),1,"ni") -> 1 | F23: =IF(AND('LASTNE FREKVENCE'!$M25<'LASTNE FREKVENCE'!$F$15,'LASTNE FREKVENCE'!$N25="3D"),'LASTNE FREKVENCE'!$M25,"ni") -> ni | G23: =IF(AND('LASTNE FREKVENCE'!$M25<'LASTNE FREKVENCE'!$F$15,'LASTNE FREKVENCE'!$N25="3D"),1,"ni") -> ni | L23: =IF(AND('LASTNE FREKVENCE'!$M35<'LASTNE FREKVENCE'!$F$15,'LASTNE FREKVENCE'!$N35="2D"),'LASTNE FREKVENCE'!$M35,"ni") -> 41.06286411 | M23: =IF(AND('LASTNE FREKVENCE'!$M35<'LASTNE FREKVENCE'!$F$15,'LASTNE FREKVENCE'!$N35="2D"),1,"ni") -> 1 | N23: =IF(AND('LASTNE FREKVENCE'!$M156<'LASTNE FREKVENCE'!$F$15,'LASTNE FREKVENCE'!$N156="3D"),'LASTNE FREKVENCE'!$M156,"ni") -> 67.5162858 | O23: =IF(AND('LASTNE FREKVENCE'!$M156<'LASTNE FREKVENCE'!$F$15,'LASTNE FREKVENCE'!$N156="3D"),1,"ni") -> 1 | X23: =IF(AND('LASTNE FREKVENCE'!$M35<'LASTNE FREKVENCE'!$F$15,'LASTNE FREKVENCE'!$N35="2D"),'LASTNE FREKVENCE'!$M35,"ni") -> 41.06286411 | Y23: =IF(AND('LASTNE FREKVENCE'!$M35<'LASTNE FREKVENCE'!$F$15,'LASTNE FREKVENCE'!$N35="2D"),1,"ni") -> 1 | Z23: =IF(AND('LASTNE FREKVENCE'!$M156<'LASTNE FREKVENCE'!$F$15,'LASTNE FREKVENCE'!$N156="3D"),'LASTNE FREKVENCE'!$M156,"ni") -> 67.5162858 | AA23: =IF(AND('LASTNE FREKVENCE'!$M156<'LASTNE FREKVENCE'!$F$15,'LASTNE FREKVENCE'!$N156="3D"),1,"ni") -> 1
B24: =IF(AND('LASTNE FREKVENCE'!$M26<'LASTNE FREKVENCE'!$F$15,'LASTNE FREKVENCE'!$N26="1D"),'LASTNE FREKVENCE'!$M26,"ni") -> ni | C24: =IF(AND('LASTNE FREKVENCE'!$M26<'LASTNE FREKVENCE'!$F$15,'LASTNE FREKVENCE'!$N26="1D"),1,"ni") -> ni | D24: =IF(AND('LASTNE FREKVENCE'!$M26<'LASTNE FREKVENCE'!$F$15,'LASTNE FREKVENCE'!$N26="2D"),'LASTNE FREKVENCE'!$M26,"ni") -> 30.32224713 | E24: =IF(AND('LASTNE FREKVENCE'!$M26<'LASTNE FREKVENCE'!$F$15,'LASTNE FREKVENCE'!$N26="2D"),1,"ni") -> 1 | F24: =IF(AND('LASTNE FREKVENCE'!$M26<'LASTNE FREKVENCE'!$F$15,'LASTNE FREKVENCE'!$N26="3D"),'LASTNE FREKVENCE'!$M26,"ni") -> ni | G24: =IF(AND('LASTNE FREKVENCE'!$M26<'LASTNE FREKVENCE'!$F$15,'LASTNE FREKVENCE'!$N26="3D"),1,"ni") -> ni | L24: =IF(AND('LASTNE FREKVENCE'!$M36<'LASTNE FREKVENCE'!$F$15,'LASTNE FREKVENCE'!$N36="2D"),'LASTNE FREKVENCE'!$M36,"ni") -> 42.47168492 | M24: =IF(AND('LASTNE FREKVENCE'!$M36<'LASTNE FREKVENCE'!$F$15,'LASTNE FREKVENCE'!$N36="2D"),1,"ni") -> 1 | N24: =IF(AND('LASTNE FREKVENCE'!$M157<'LASTNE FREKVENCE'!$F$15,'LASTNE FREKVENCE'!$N157="3D"),'LASTNE FREKVENCE'!$M157,"ni") -> 68.38226421 | O24: =IF(AND('LASTNE FREKVENCE'!$M157<'LASTNE FREKVENCE'!$F$15,'LASTNE FREKVENCE'!$N157="3D"),1,"ni") -> 1 | X24: =IF(AND('LASTNE FREKVENCE'!$M36<'LASTNE FREKVENCE'!$F$15,'LASTNE FREKVENCE'!$N36="2D"),'LASTNE FREKVENCE'!$M36,"ni") -> 42.47168492 | Y24: =IF(AND('LASTNE FREKVENCE'!$M36<'LASTNE FREKVENCE'!$F$15,'LASTNE FREKVENCE'!$N36="2D"),1,"ni") -> 1 | Z24: =IF(AND('LASTNE FREKVENCE'!$M157<'LASTNE FREKVENCE'!$F$15,'LASTNE FREKVENCE'!$N157="3D"),'LASTNE FREKVENCE'!$M157,"ni") -> 68.38226421 | AA24: =IF(AND('LASTNE FREKVENCE'!$M157<'LASTNE FREKVENCE'!$F$15,'LASTNE FREKVENCE'!$N157="3D"),1,"ni") -> 1
B25: =IF(AND('LASTNE FREKVENCE'!$M27<'LASTNE FREKVENCE'!$F$15,'LASTNE FREKVENCE'!$N27="1D"),'LASTNE FREKVENCE'!$M27,"ni") -> ni | C25: =IF(AND('LASTNE FREKVENCE'!$M27<'LASTNE FREKVENCE'!$F$15,'LASTNE FREKVENCE'!$N27="1D"),1,"ni") -> ni | D25: =IF(AND('LASTNE FREKVENCE'!$M27<'LASTNE FREKVENCE'!$F$15,'LASTNE FREKVENCE'!$N27="2D"),'LASTNE FREKVENCE'!$M27,"ni") -> 32.76178744 | E25: =IF(AND('LASTNE FREKVENCE'!$M27<'LASTNE FREKVENCE'!$F$15,'LASTNE FREKVENCE'!$N27="2D"),1,"ni") -> 1 | F25: =IF(AND('LASTNE FREKVENCE'!$M27<'LASTNE FREKVENCE'!$F$15,'LASTNE FREKVENCE'!$N27="3D"),'LASTNE FREKVENCE'!$M27,"ni") -> ni | G25: =IF(AND('LASTNE FREKVENCE'!$M27<'LASTNE FREKVENCE'!$F$15,'LASTNE FREKVENCE'!$N27="3D"),1,"ni") -> ni | L25: =IF(AND('LASTNE FREKVENCE'!$M37<'LASTNE FREKVENCE'!$F$15,'LASTNE FREKVENCE'!$N37="2D"),'LASTNE FREKVENCE'!$M37,"ni") -> 44.04128345 | M25: =IF(AND('LASTNE FREKVENCE'!$M37<'LASTNE FREKVENCE'!$F$15,'LASTNE FREKVENCE'!$N37="2D"),1,"ni") -> 1 | N25: =IF(AND('LASTNE FREKVENCE'!$M158<'LASTNE FREKVENCE'!$F$15,'LASTNE FREKVENCE'!$N158="3D"),'LASTNE FREKVENCE'!$M158,"ni") -> 69.36803793 | O25: =IF(AND('LASTNE FREKVENCE'!$M158<'LASTNE FREKVENCE'!$F$15,'LASTNE FREKVENCE'!$N158="3D"),1,"ni") -> 1 | X25: =IF(AND('LASTNE FREKVENCE'!$M37<'LASTNE FREKVENCE'!$F$15,'LASTNE FREKVENCE'!$N37="2D"),'LASTNE FREKVENCE'!$M37,"ni") -> 44.04128345 | Y25: =IF(AND('LASTNE FREKVENCE'!$M37<'LASTNE FREKVENCE'!$F$15,'LASTNE FREKVENCE'!$N37="2D"),1,"ni") -> 1 | Z25: =IF(AND('LASTNE FREKVENCE'!$M158<'LASTNE FREKVENCE'!$F$15,'LASTNE FREKVENCE'!$N158="3D"),'LASTNE FREKVENCE'!$M158,"ni") -> 69.36803793 | AA25: =IF(AND('LASTNE FREKVENCE'!$M158<'LASTNE FREKVENCE'!$F$15,'LASTNE FREKVENCE'!$N158="3D"),1,"ni") -> 1
B26: =IF(AND('LASTNE FREKVENCE'!$M28<'LASTNE FREKVENCE'!$F$15,'LASTNE FREKVENCE'!$N28="1D"),'LASTNE FREKVENCE'!$M28,"ni") -> ni | C26: =IF(AND('LASTNE FREKVENCE'!$M28<'LASTNE FREKVENCE'!$F$15,'LASTNE FREKVENCE'!$N28="1D"),1,"ni") -> ni | D26: =IF(AND('LASTNE FREKVENCE'!$M28<'LASTNE FREKVENCE'!$F$15,'LASTNE FREKVENCE'!$N28="2D"),'LASTNE FREKVENCE'!$M28,"ni") -> 47.5976066 | E26: =IF(AND('LASTNE FREKVENCE'!$M28<'LASTNE FREKVENCE'!$F$15,'LASTNE FREKVENCE'!$N28="2D"),1,"ni") -> 1 | F26: =IF(AND('LASTNE FREKVENCE'!$M28<'LASTNE FREKVENCE'!$F$15,'LASTNE FREKVENCE'!$N28="3D"),'LASTNE FREKVENCE'!$M28,"ni") -> ni | G26: =IF(AND('LASTNE FREKVENCE'!$M28<'LASTNE FREKVENCE'!$F$15,'LASTNE FREKVENCE'!$N28="3D"),1,"ni") -> ni | L26: =IF(AND('LASTNE FREKVENCE'!$M38<'LASTNE FREKVENCE'!$F$15,'LASTNE FREKVENCE'!$N38="2D"),'LASTNE FREKVENCE'!$M38,"ni") -> 45.75511657 | M26: =IF(AND('LASTNE FREKVENCE'!$M38<'LASTNE FREKVENCE'!$F$15,'LASTNE FREKVENCE'!$N38="2D"),1,"ni") -> 1 | N26: =IF(AND('LASTNE FREKVENCE'!$M159<'LASTNE FREKVENCE'!$F$15,'LASTNE FREKVENCE'!$N159="3D"),'LASTNE FREKVENCE'!$M159,"ni") -> 70.46857975 | O26: =IF(AND('LASTNE FREKVENCE'!$M159<'LASTNE FREKVENCE'!$F$15,'LASTNE FREKVENCE'!$N159="3D"),1,"ni") -> 1 | X26: =IF(AND('LASTNE FREKVENCE'!$M38<'LASTNE FREKVENCE'!$F$15,'LASTNE FREKVENCE'!$N38="2D"),'LASTNE FREKVENCE'!$M38,"ni") -> 45.75511657 | Y26: =IF(AND('LASTNE FREKVENCE'!$M38<'LASTNE FREKVENCE'!$F$15,'LASTNE FREKVENCE'!$N38="2D"),1,"ni") -> 1 | Z26: =IF(AND('LASTNE FREKVENCE'!$M159<'LASTNE FREKVENCE'!$F$15,'LASTNE FREKVENCE'!$N159="3D"),'LASTNE FREKVENCE'!$M159,"ni") -> 70.46857975 | AA26: =IF(AND('LASTNE FREKVENCE'!$M159<'LASTNE FREKVENCE'!$F$15,'LASTNE FREKVENCE'!$N159="3D"),1,"ni") -> 1
B27: =IF(AND('LASTNE FREKVENCE'!$M29<'LASTNE FREKVENCE'!$F$15,'LASTNE FREKVENCE'!$N29="1D"),'LASTNE FREKVENCE'!$M29,"ni") -> 36.88172043 | C27: =IF(AND('LASTNE FREKVENCE'!$M29<'LASTNE FREKVENCE'!$F$15,'LASTNE FREKVENCE'!$N29="1D"),1,"ni") -> 1 | D27: =IF(AND('LASTNE FREKVENCE'!$M29<'LASTNE FREKVENCE'!$F$15,'LASTNE FREKVENCE'!$N29="2D"),'LASTNE FREKVENCE'!$M29,"ni") -> ni | E27: =IF(AND('LASTNE FREKVENCE'!$M29<'LASTNE FREKVENCE'!$F$15,'LASTNE FREKVENCE'!$N29="2D"),1,"ni") -> ni | F27: =IF(AND('LASTNE FREKVENCE'!$M29<'LASTNE FREKVENCE'!$F$15,'LASTNE FREKVENCE'!$N29="3D"),'LASTNE FREKVENCE'!$M29,"ni") -> ni | G27: =IF(AND('LASTNE FREKVENCE'!$M29<'LASTNE FREKVENCE'!$F$15,'LASTNE FREKVENCE'!$N29="3D"),1,"ni") -> ni | L27: =IF(AND('LASTNE FREKVENCE'!$M39<'LASTNE FREKVENCE'!$F$15,'LASTNE FREKVENCE'!$N39="2D"),'LASTNE FREKVENCE'!$M39,"ni") -> 62.97506476 | M27: =IF(AND('LASTNE FREKVENCE'!$M39<'LASTNE FREKVENCE'!$F$15,'LASTNE FREKVENCE'!$N39="2D"),1,"ni") -> 1 | N27: =IF(AND('LASTNE FREKVENCE'!$M160<'LASTNE FREKVENCE'!$F$15,'LASTNE FREKVENCE'!$N160="3D"),'LASTNE FREKVENCE'!$M160,"ni") -> 82.6931002 | O27: =IF(AND('LASTNE FREKVENCE'!$M160<'LASTNE FREKVENCE'!$F$15,'LASTNE FREKVENCE'!$N160="3D"),1,"ni") -> 1 | X27: =IF(AND('LASTNE FREKVENCE'!$M39<'LASTNE FREKVENCE'!$F$15,'LASTNE FREKVENCE'!$N39="2D"),'LASTNE FREKVENCE'!$M39,"ni") -> 62.97506476 | Y27: =IF(AND('LASTNE FREKVENCE'!$M39<'LASTNE FREKVENCE'!$F$15,'LASTNE FREKVENCE'!$N39="2D"),1,"ni") -> 1 | Z27: =IF(AND('LASTNE FREKVENCE'!$M160<'LASTNE FREKVENCE'!$F$15,'LASTNE FREKVENCE'!$N160="3D"),'LASTNE FREKVENCE'!$M160,"ni") -> 82.6931002 | AA27: =IF(AND('LASTNE FREKVENCE'!$M160<'LASTNE FREKVENCE'!$F$15,'LASTNE FREKVENCE'!$N160="3D"),1,"ni") -> 1
B28: =IF(AND('LASTNE FREKVENCE'!$M30<'LASTNE FREKVENCE'!$F$15,'LASTNE FREKVENCE'!$N30="1D"),'LASTNE FREKVENCE'!$M30,"ni") -> ni | C28: =IF(AND('LASTNE FREKVENCE'!$M30<'LASTNE FREKVENCE'!$F$15,'LASTNE FREKVENCE'!$N30="1D"),1,"ni") -> ni | D28: =IF(AND('LASTNE FREKVENCE'!$M30<'LASTNE FREKVENCE'!$F$15,'LASTNE FREKVENCE'!$N30="2D"),'LASTNE FREKVENCE'!$M30,"ni") -> 37.00424314 | E28: =IF(AND('LASTNE FREKVENCE'!$M30<'LASTNE FREKVENCE'!$F$15,'LASTNE FREKVENCE'!$N30="2D"),1,"ni") -> 1 | F28: =IF(AND('LASTNE FREKVENCE'!$M30<'LASTNE FREKVENCE'!$F$15,'LASTNE FREKVENCE'!$N30="3D"),'LASTNE FREKVENCE'!$M30,"ni") -> ni | G28: =IF(AND('LASTNE FREKVENCE'!$M30<'LASTNE FREKVENCE'!$F$15,'LASTNE FREKVENCE'!$N30="3D"),1,"ni") -> ni | L28: =IF(AND('LASTNE FREKVENCE'!$M41<'LASTNE FREKVENCE'!$F$15,'LASTNE FREKVENCE'!$N41="2D"),'LASTNE FREKVENCE'!$M41,"ni") -> 55.40433772 | M28: =IF(AND('LASTNE FREKVENCE'!$M41<'LASTNE FREKVENCE'!$F$15,'LASTNE FREKVENCE'!$N41="2D"),1,"ni") -> 1 | N28: =IF(AND('LASTNE FREKVENCE'!$M162<'LASTNE FREKVENCE'!$F$15,'LASTNE FREKVENCE'!$N162="3D"),'LASTNE FREKVENCE'!$M162,"ni") -> 77.0839197 | O28: =IF(AND('LASTNE FREKVENCE'!$M162<'LASTNE FREKVENCE'!$F$15,'LASTNE FREKVENCE'!$N162="3D"),1,"ni") -> 1 | X28: =IF(AND('LASTNE FREKVENCE'!$M41<'LASTNE FREKVENCE'!$F$15,'LASTNE FREKVENCE'!$N41="2D"),'LASTNE FREKVENCE'!$M41,"ni") -> 55.40433772 | Y28: =IF(AND('LASTNE FREKVENCE'!$M41<'LASTNE FREKVENCE'!$F$15,'LASTNE FREKVENCE'!$N41="2D"),1,"ni") -> 1 | Z28: =IF(AND('LASTNE FREKVENCE'!$M162<'LASTNE FREKVENCE'!$F$15,'LASTNE FREKVENCE'!$N162="3D"),'LASTNE FREKVENCE'!$M162,"ni") -> 77.0839197 | AA28: =IF(AND('LASTNE FREKVENCE'!$M162<'LASTNE FREKVENCE'!$F$15,'LASTNE FREKVENCE'!$N162="3D"),1,"ni") -> 1
B29: =IF(AND('LASTNE FREKVENCE'!$M31<'LASTNE FREKVENCE'!$F$15,'LASTNE FREKVENCE'!$N31="1D"),'LASTNE FREKVENCE'!$M31,"ni") -> ni | C29: =IF(AND('LASTNE FREKVENCE'!$M31<'LASTNE FREKVENCE'!$F$15,'LASTNE FREKVENCE'!$N31="1D"),1,"ni") -> ni | D29: =IF(AND('LASTNE FREKVENCE'!$M31<'LASTNE FREKVENCE'!$F$15,'LASTNE FREKVENCE'!$N31="2D"),'LASTNE FREKVENCE'!$M31,"ni") -> 37.36940107 | E29: =IF(AND('LASTNE FREKVENCE'!$M31<'LASTNE FREKVENCE'!$F$15,'LASTNE FREKVENCE'!$N31="2D"),1,"ni") -> 1 | F29: =IF(AND('LASTNE FREKVENCE'!$M31<'LASTNE FREKVENCE'!$F$15,'LASTNE FREKVENCE'!$N31="3D"),'LASTNE FREKVENCE'!$M31,"ni") -> ni | G29: =IF(AND('LASTNE FREKVENCE'!$M31<'LASTNE FREKVENCE'!$F$15,'LASTNE FREKVENCE'!$N31="3D"),1,"ni") -> ni | L29: =IF(AND('LASTNE FREKVENCE'!$M42<'LASTNE FREKVENCE'!$F$15,'LASTNE FREKVENCE'!$N42="2D"),'LASTNE FREKVENCE'!$M42,"ni") -> 55.64888825 | M29: =IF(AND('LASTNE FREKVENCE'!$M42<'LASTNE FREKVENCE'!$F$15,'LASTNE FREKVENCE'!$N42="2D"),1,"ni") -> 1 | N29: =IF(AND('LASTNE FREKVENCE'!$M163<'LASTNE FREKVENCE'!$F$15,'LASTNE FREKVENCE'!$N163="3D"),'LASTNE FREKVENCE'!$M163,"ni") -> 77.25987835 | O29: =IF(AND('LASTNE FREKVENCE'!$M163<'LASTNE FREKVENCE'!$F$15,'LASTNE FREKVENCE'!$N163="3D"),1,"ni") -> 1 | X29: =IF(AND('LASTNE FREKVENCE'!$M42<'LASTNE FREKVENCE'!$F$15,'LASTNE FREKVENCE'!$N42="2D"),'LASTNE FREKVENCE'!$M42,"ni") -> 55.64888825 | Y29: =IF(AND('LASTNE FREKVENCE'!$M42<'LASTNE FREKVENCE'!$F$15,'LASTNE FREKVENCE'!$N42="2D"),1,"ni") -> 1 | Z29: =IF(AND('LASTNE FREKVENCE'!$M163<'LASTNE FREKVENCE'!$F$15,'LASTNE FREKVENCE'!$N163="3D"),'LASTNE FREKVENCE'!$M163,"ni") -> 77.25987835 | AA29: =IF(AND('LASTNE FREKVENCE'!$M163<'LASTNE FREKVENCE'!$F$15,'LASTNE FREKVENCE'!$N163="3D"),1,"ni") -> 1
B30: =IF(AND('LASTNE FREKVENCE'!$M32<'LASTNE FREKVENCE'!$F$15,'LASTNE FREKVENCE'!$N32="1D"),'LASTNE FREKVENCE'!$M32,"ni") -> ni | C30: =IF(AND('LASTNE FREKVENCE'!$M32<'LASTNE FREKVENCE'!$F$15,'LASTNE FREKVENCE'!$N32="1D"),1,"ni") -> ni | D30: =IF(AND('LASTNE FREKVENCE'!$M32<'LASTNE FREKVENCE'!$F$15,'LASTNE FREKVENCE'!$N32="2D"),'LASTNE FREKVENCE'!$M32,"ni") -> 37.97019461 | E30: =IF(AND('LASTNE FREKVENCE'!$M32<'LASTNE FREKVENCE'!$F$15,'LASTNE FREKVENCE'!$N32="2D"),1,"ni") -> 1 | F30: =IF(AND('LASTNE FREKVENCE'!$M32<'LASTNE FREKVENCE'!$F$15,'LASTNE FREKVENCE'!$N32="3D"),'LASTNE FREKVENCE'!$M32,"ni") -> ni | G30: =IF(AND('LASTNE FREKVENCE'!$M32<'LASTNE FREKVENCE'!$F$15,'LASTNE FREKVENCE'!$N32="3D"),1,"ni") -> ni | L30: =IF(AND('LASTNE FREKVENCE'!$M43<'LASTNE FREKVENCE'!$F$15,'LASTNE FREKVENCE'!$N43="2D"),'LASTNE FREKVENCE'!$M43,"ni") -> 56.0541016 | M30: =IF(AND('LASTNE FREKVENCE'!$M43<'LASTNE FREKVENCE'!$F$15,'LASTNE FREKVENCE'!$N43="2D"),1,"ni") -> 1 | N30: =IF(AND('LASTNE FREKVENCE'!$M164<'LASTNE FREKVENCE'!$F$15,'LASTNE FREKVENCE'!$N164="3D"),'LASTNE FREKVENCE'!$M164,"ni") -> 77.55225558 | O30: =IF(AND('LASTNE FREKVENCE'!$M164<'LASTNE FREKVENCE'!$F$15,'LASTNE FREKVENCE'!$N164="3D"),1,"ni") -> 1 | X30: =IF(AND('LASTNE FREKVENCE'!$M43<'LASTNE FREKVENCE'!$F$15,'LASTNE FREKVENCE'!$N43="2D"),'LASTNE FREKVENCE'!$M43,"ni") -> 56.0541016 | Y30: =IF(AND('LASTNE FREKVENCE'!$M43<'LASTNE FREKVENCE'!$F$15,'LASTNE FREKVENCE'!$N43="2D"),1,"ni") -> 1 | Z30: =IF(AND('LASTNE FREKVENCE'!$M164<'LASTNE FREKVENCE'!$F$15,'LASTNE FREKVENCE'!$N164="3D"),'LASTNE FREKVENCE'!$M164,"ni") -> 77.55225558 | AA30: =IF(AND('LASTNE FREKVENCE'!$M164<'LASTNE FREKVENCE'!$F$15,'LASTNE FREKVENCE'!$N164="3D"),1,"ni") -> 1
B31: =IF(AND('LASTNE FREKVENCE'!$M33<'LASTNE FREKVENCE'!$F$15,'LASTNE FREKVENCE'!$N33="1D"),'LASTNE FREKVENCE'!$M33,"ni") -> ni | C31: =IF(AND('LASTNE FREKVENCE'!$M33<'LASTNE FREKVENCE'!$F$15,'LASTNE FREKVENCE'!$N33="1D"),1,"ni") -> ni | D31: =IF(AND('LASTNE FREKVENCE'!$M33<'LASTNE FREKVENCE'!$F$15,'LASTNE FREKVENCE'!$N33="2D"),'LASTNE FREKVENCE'!$M33,"ni") -> 38.79567809 | E31: =IF(AND('LASTNE FREKVENCE'!$M33<'LASTNE FREKVENCE'!$F$15,'LASTNE FREKVENCE'!$N33="2D"),1,"ni") -> 1 | F31: =IF(AND('LASTNE FREKVENCE'!$M33<'LASTNE FREKVENCE'!$F$15,'LASTNE FREKVENCE'!$N33="3D"),'LASTNE FREKVENCE'!$M33,"ni") -> ni | G31: =IF(AND('LASTNE FREKVENCE'!$M33<'LASTNE FREKVENCE'!$F$15,'LASTNE FREKVENCE'!$N33="3D"),1,"ni") -> ni | L31: =IF(AND('LASTNE FREKVENCE'!$M44<'LASTNE FREKVENCE'!$F$15,'LASTNE FREKVENCE'!$N44="2D"),'LASTNE FREKVENCE'!$M44,"ni") -> 56.6165282 | M31: =IF(AND('LASTNE FREKVENCE'!$M44<'LASTNE FREKVENCE'!$F$15,'LASTNE FREKVENCE'!$N44="2D"),1,"ni") -> 1 | N31: =IF(AND('LASTNE FREKVENCE'!$M165<'LASTNE FREKVENCE'!$F$15,'LASTNE FREKVENCE'!$N165="3D"),'LASTNE FREKVENCE'!$M165,"ni") -> 77.95974156 | O31: =IF(AND('LASTNE FREKVENCE'!$M165<'LASTNE FREKVENCE'!$F$15,'LASTNE FREKVENCE'!$N165="3D"),1,"ni") -> 1 | X31: =IF(AND('LASTNE FREKVENCE'!$M44<'LASTNE FREKVENCE'!$F$15,'LASTNE FREKVENCE'!$N44="2D"),'LASTNE FREKVENCE'!$M44,"ni") -> 56.6165282 | Y31: =IF(AND('LASTNE FREKVENCE'!$M44<'LASTNE FREKVENCE'!$F$15,'LASTNE FREKVENCE'!$N44="2D"),1,"ni") -> 1 | Z31: =IF(AND('LASTNE FREKVENCE'!$M165<'LASTNE FREKVENCE'!$F$15,'LASTNE FREKVENCE'!$N165="3D"),'LASTNE FREKVENCE'!$M165,"ni") -> 77.95974156 | AA31: =IF(AND('LASTNE FREKVENCE'!$M165<'LASTNE FREKVENCE'!$F$15,'LASTNE FREKVENCE'!$N165="3D"),1,"ni") -> 1
B32: =IF(AND('LASTNE FREKVENCE'!$M34<'LASTNE FREKVENCE'!$F$15,'LASTNE FREKVENCE'!$N34="1D"),'LASTNE FREKVENCE'!$M34,"ni") -> ni | C32: =IF(AND('LASTNE FREKVENCE'!$M34<'LASTNE FREKVENCE'!$F$15,'LASTNE FREKVENCE'!$N34="1D"),1,"ni") -> ni | D32: =IF(AND('LASTNE FREKVENCE'!$M34<'LASTNE FREKVENCE'!$F$15,'LASTNE FREKVENCE'!$N34="2D"),'LASTNE FREKVENCE'!$M34,"ni") -> 39.8318844 | E32: =IF(AND('LASTNE FREKVENCE'!$M34<'LASTNE FREKVENCE'!$F$15,'LASTNE FREKVENCE'!$N34="2D"),1,"ni") -> 1 | F32: =IF(AND('LASTNE FREKVENCE'!$M34<'LASTNE FREKVENCE'!$F$15,'LASTNE FREKVENCE'!$N34="3D"),'LASTNE FREKVENCE'!$M34,"ni") -> ni | G32: =IF(AND('LASTNE FREKVENCE'!$M34<'LASTNE FREKVENCE'!$F$15,'LASTNE FREKVENCE'!$N34="3D"),1,"ni") -> ni | L32: =IF(AND('LASTNE FREKVENCE'!$M45<'LASTNE FREKVENCE'!$F$15,'LASTNE FREKVENCE'!$N45="2D"),'LASTNE FREKVENCE'!$M45,"ni") -> 57.33154143 | M32: =IF(AND('LASTNE FREKVENCE'!$M45<'LASTNE FREKVENCE'!$F$15,'LASTNE FREKVENCE'!$N45="2D"),1,"ni") -> 1 | N32: =IF(AND('LASTNE FREKVENCE'!$M166<'LASTNE FREKVENCE'!$F$15,'LASTNE FREKVENCE'!$N166="3D"),'LASTNE FREKVENCE'!$M166,"ni") -> 78.48054333 | O32: =IF(AND('LASTNE FREKVENCE'!$M166<'LASTNE FREKVENCE'!$F$15,'LASTNE FREKVENCE'!$N166="3D"),1,"ni") -> 1 | X32: =IF(AND('LASTNE FREKVENCE'!$M45<'LASTNE FREKVENCE'!$F$15,'LASTNE FREKVENCE'!$N45="2D"),'LASTNE FREKVENCE'!$M45,"ni") -> 57.33154143 | Y32: =IF(AND('LASTNE FREKVENCE'!$M45<'LASTNE FREKVENCE'!$F$15,'LASTNE FREKVENCE'!$N45="2D"),1,"ni") -> 1 | Z32: =IF(AND('LASTNE FREKVENCE'!$M166<'LASTNE FREKVENCE'!$F$15,'LASTNE FREKVENCE'!$N166="3D"),'LASTNE FREKVENCE'!$M166,"ni") -> 78.48054333 | AA32: =IF(AND('LASTNE FREKVENCE'!$M166<'LASTNE FREKVENCE'!$F$15,'LASTNE FREKVENCE'!$N166="3D"),1,"ni") -> 1
B33: =IF(AND('LASTNE FREKVENCE'!$M35<'LASTNE FREKVENCE'!$F$15,'LASTNE FREKVENCE'!$N35="1D"),'LASTNE FREKVENCE'!$M35,"ni") -> ni | C33: =IF(AND('LASTNE FREKVENCE'!$M35<'LASTNE FREKVENCE'!$F$15,'LASTNE FREKVENCE'!$N35="1D"),1,"ni") -> ni | D33: =IF(AND('LASTNE FREKVENCE'!$M35<'LASTNE FREKVENCE'!$F$15,'LASTNE FREKVENCE'!$N35="2D"),'LASTNE FREKVENCE'!$M35,"ni") -> 41.06286411 | E33: =IF(AND('LASTNE FREKVENCE'!$M35<'LASTNE FREKVENCE'!$F$15,'LASTNE FREKVENCE'!$N35="2D"),1,"ni") -> 1 | F33: =IF(AND('LASTNE FREKVENCE'!$M35<'LASTNE FREKVENCE'!$F$15,'LASTNE FREKVENCE'!$N35="3D"),'LASTNE FREKVENCE'!$M35,"ni") -> ni | G33: =IF(AND('LASTNE FREKVENCE'!$M35<'LASTNE FREKVENCE'!$F$15,'LASTNE FREKVENCE'!$N35="3D"),1,"ni") -> ni | L33: =IF(AND('LASTNE FREKVENCE'!$M46<'LASTNE FREKVENCE'!$F$15,'LASTNE FREKVENCE'!$N46="2D"),'LASTNE FREKVENCE'!$M46,"ni") -> 58.19351713 | M33: =IF(AND('LASTNE FREKVENCE'!$M46<'LASTNE FREKVENCE'!$F$15,'LASTNE FREKVENCE'!$N46="2D"),1,"ni") -> 1 | N33: =IF(AND('LASTNE FREKVENCE'!$M167<'LASTNE FREKVENCE'!$F$15,'LASTNE FREKVENCE'!$N167="3D"),'LASTNE FREKVENCE'!$M167,"ni") -> 79.11242301 | O33: =IF(AND('LASTNE FREKVENCE'!$M167<'LASTNE FREKVENCE'!$F$15,'LASTNE FREKVENCE'!$N167="3D"),1,"ni") -> 1 | X33: =IF(AND('LASTNE FREKVENCE'!$M46<'LASTNE FREKVENCE'!$F$15,'LASTNE FREKVENCE'!$N46="2D"),'LASTNE FREKVENCE'!$M46,"ni") -> 58.19351713 | Y33: =IF(AND('LASTNE FREKVENCE'!$M46<'LASTNE FREKVENCE'!$F$15,'LASTNE FREKVENCE'!$N46="2D"),1,"ni") -> 1 | Z33: =IF(AND('LASTNE FREKVENCE'!$M167<'LASTNE FREKVENCE'!$F$15,'LASTNE FREKVENCE'!$N167="3D"),'LASTNE FREKVENCE'!$M167,"ni") -> 79.11242301 | AA33: =IF(AND('LASTNE FREKVENCE'!$M167<'LASTNE FREKVENCE'!$F$15,'LASTNE FREKVENCE'!$N167="3D"),1,"ni") -> 1
B34: =IF(AND('LASTNE FREKVENCE'!$M36<'LASTNE FREKVENCE'!$F$15,'LASTNE FREKVENCE'!$N36="1D"),'LASTNE FREKVENCE'!$M36,"ni") -> ni | C34: =IF(AND('LASTNE FREKVENCE'!$M36<'LASTNE FREKVENCE'!$F$15,'LASTNE FREKVENCE'!$N36="1D"),1,"ni") -> ni | D34: =IF(AND('LASTNE FREKVENCE'!$M36<'LASTNE FREKVENCE'!$F$15,'LASTNE FREKVENCE'!$N36="2D"),'LASTNE FREKVENCE'!$M36,"ni") -> 42.47168492 | E34: =IF(AND('LASTNE FREKVENCE'!$M36<'LASTNE FREKVENCE'!$F$15,'LASTNE FREKVENCE'!$N36="2D"),1,"ni") -> 1 | F34: =IF(AND('LASTNE FREKVENCE'!$M36<'LASTNE FREKVENCE'!$F$15,'LASTNE FREKVENCE'!$N36="3D"),'LASTNE FREKVENCE'!$M36,"ni") -> ni | G34: =IF(AND('LASTNE FREKVENCE'!$M36<'LASTNE FREKVENCE'!$F$15,'LASTNE FREKVENCE'!$N36="3D"),1,"ni") -> ni | L34: =IF(AND('LASTNE FREKVENCE'!$M47<'LASTNE FREKVENCE'!$F$15,'LASTNE FREKVENCE'!$N47="2D"),'LASTNE FREKVENCE'!$M47,"ni") -> 59.19603574 | M34: =IF(AND('LASTNE FREKVENCE'!$M47<'LASTNE FREKVENCE'!$F$15,'LASTNE FREKVENCE'!$N47="2D"),1,"ni") -> 1 | N34: =IF(AND('LASTNE FREKVENCE'!$M168<'LASTNE FREKVENCE'!$F$15,'LASTNE FREKVENCE'!$N168="3D"),'LASTNE FREKVENCE'!$M168,"ni") -> 79.85274376 | O34: =IF(AND('LASTNE FREKVENCE'!$M168<'LASTNE FREKVENCE'!$F$15,'LASTNE FREKVENCE'!$N168="3D"),1,"ni") -> 1 | X34: =IF(AND('LASTNE FREKVENCE'!$M47<'LASTNE FREKVENCE'!$F$15,'LASTNE FREKVENCE'!$N47="2D"),'LASTNE FREKVENCE'!$M47,"ni") -> 59.19603574 | Y34: =IF(AND('LASTNE FREKVENCE'!$M47<'LASTNE FREKVENCE'!$F$15,'LASTNE FREKVENCE'!$N47="2D"),1,"ni") -> 1 | Z34: =IF(AND('LASTNE FREKVENCE'!$M168<'LASTNE FREKVENCE'!$F$15,'LASTNE FREKVENCE'!$N168="3D"),'LASTNE FREKVENCE'!$M168,"ni") -> 79.85274376 | AA34: =IF(AND('LASTNE FREKVENCE'!$M168<'LASTNE FREKVENCE'!$F$15,'LASTNE FREKVENCE'!$N168="3D"),1,"ni") -> 1
B35: =IF(AND('LASTNE FREKVENCE'!$M37<'LASTNE FREKVENCE'!$F$15,'LASTNE FREKVENCE'!$N37="1D"),'LASTNE FREKVENCE'!$M37,"ni") -> ni | C35: =IF(AND('LASTNE FREKVENCE'!$M37<'LASTNE FREKVENCE'!$F$15,'LASTNE FREKVENCE'!$N37="1D"),1,"ni") -> ni | D35: =IF(AND('LASTNE FREKVENCE'!$M37<'LASTNE FREKVENCE'!$F$15,'LASTNE FREKVENCE'!$N37="2D"),'LASTNE FREKVENCE'!$M37,"ni") -> 44.04128345 | E35: =IF(AND('LASTNE FREKVENCE'!$M37<'LASTNE FREKVENCE'!$F$15,'LASTNE FREKVENCE'!$N37="2D"),1,"ni") -> 1 | F35: =IF(AND('LASTNE FREKVENCE'!$M37<'LASTNE FREKVENCE'!$F$15,'LASTNE FREKVENCE'!$N37="3D"),'LASTNE FREKVENCE'!$M37,"ni") -> ni | G35: =IF(AND('LASTNE FREKVENCE'!$M37<'LASTNE FREKVENCE'!$F$15,'LASTNE FREKVENCE'!$N37="3D"),1,"ni") -> ni | L35: =IF(AND('LASTNE FREKVENCE'!$M48<'LASTNE FREKVENCE'!$F$15,'LASTNE FREKVENCE'!$N48="2D"),'LASTNE FREKVENCE'!$M48,"ni") -> 60.33209158 | M35: =IF(AND('LASTNE FREKVENCE'!$M48<'LASTNE FREKVENCE'!$F$15,'LASTNE FREKVENCE'!$N48="2D"),1,"ni") -> 1 | N35: =IF(AND('LASTNE FREKVENCE'!$M169<'LASTNE FREKVENCE'!$F$15,'LASTNE FREKVENCE'!$N169="3D"),'LASTNE FREKVENCE'!$M169,"ni") -> 80.69852114 | O35: =IF(AND('LASTNE FREKVENCE'!$M169<'LASTNE FREKVENCE'!$F$15,'LASTNE FREKVENCE'!$N169="3D"),1,"ni") -> 1 | X35: =IF(AND('LASTNE FREKVENCE'!$M48<'LASTNE FREKVENCE'!$F$15,'LASTNE FREKVENCE'!$N48="2D"),'LASTNE FREKVENCE'!$M48,"ni") -> 60.33209158 | Y35: =IF(AND('LASTNE FREKVENCE'!$M48<'LASTNE FREKVENCE'!$F$15,'LASTNE FREKVENCE'!$N48="2D"),1,"ni") -> 1 | Z35: =IF(AND('LASTNE FREKVENCE'!$M169<'LASTNE FREKVENCE'!$F$15,'LASTNE FREKVENCE'!$N169="3D"),'LASTNE FREKVENCE'!$M169,"ni") -> 80.69852114 | AA35: =IF(AND('LASTNE FREKVENCE'!$M169<'LASTNE FREKVENCE'!$F$15,'LASTNE FREKVENCE'!$N169="3D"),1,"ni") -> 1
B36: =IF(AND('LASTNE FREKVENCE'!$M38<'LASTNE FREKVENCE'!$F$15,'LASTNE FREKVENCE'!$N38="1D"),'LASTNE FREKVENCE'!$M38,"ni") -> ni | C36: =IF(AND('LASTNE FREKVENCE'!$M38<'LASTNE FREKVENCE'!$F$15,'LASTNE FREKVENCE'!$N38="1D"),1,"ni") -> ni | D36: =IF(AND('LASTNE FREKVENCE'!$M38<'LASTNE FREKVENCE'!$F$15,'LASTNE FREKVENCE'!$N38="2D"),'LASTNE FREKVENCE'!$M38,"ni") -> 45.75511657 | E36: =IF(AND('LASTNE FREKVENCE'!$M38<'LASTNE FREKVENCE'!$F$15,'LASTNE FREKVENCE'!$N38="2D"),1,"ni") -> 1 | F36: =IF(AND('LASTNE FREKVENCE'!$M38<'LASTNE FREKVENCE'!$F$15,'LASTNE FREKVENCE'!$N38="3D"),'LASTNE FREKVENCE'!$M38,"ni") -> ni | G36: =IF(AND('LASTNE FREKVENCE'!$M38<'LASTNE FREKVENCE'!$F$15,'LASTNE FREKVENCE'!$N38="3D"),1,"ni") -> ni | L36: =IF(AND('LASTNE FREKVENCE'!$M49<'LASTNE FREKVENCE'!$F$15,'LASTNE FREKVENCE'!$N49="2D"),'LASTNE FREKVENCE'!$M49,"ni") -> 61.59429616 | M36: =IF(AND('LASTNE FREKVENCE'!$M49<'LASTNE FREKVENCE'!$F$15,'LASTNE FREKVENCE'!$N49="2D"),1,"ni") -> 1 | N36: =IF(AND('LASTNE FREKVENCE'!$M170<'LASTNE FREKVENCE'!$F$15,'LASTNE FREKVENCE'!$N170="3D"),'LASTNE FREKVENCE'!$M170,"ni") -> 81.64647793 | O36: =IF(AND('LASTNE FREKVENCE'!$M170<'LASTNE FREKVENCE'!$F$15,'LASTNE FREKVENCE'!$N170="3D"),1,"ni") -> 1 | X36: =IF(AND('LASTNE FREKVENCE'!$M49<'LASTNE FREKVENCE'!$F$15,'LASTNE FREKVENCE'!$N49="2D"),'LASTNE FREKVENCE'!$M49,"ni") -> 61.59429616 | Y36: =IF(AND('LASTNE FREKVENCE'!$M49<'LASTNE FREKVENCE'!$F$15,'LASTNE FREKVENCE'!$N49="2D"),1,"ni") -> 1 | Z36: =IF(AND('LASTNE FREKVENCE'!$M170<'LASTNE FREKVENCE'!$F$15,'LASTNE FREKVENCE'!$N170="3D"),'LASTNE FREKVENCE'!$M170,"ni") -> 81.64647793 | AA36: =IF(AND('LASTNE FREKVENCE'!$M170<'LASTNE FREKVENCE'!$F$15,'LASTNE FREKVENCE'!$N170="3D"),1,"ni") -> 1
B37: =IF(AND('LASTNE FREKVENCE'!$M39<'LASTNE FREKVENCE'!$F$15,'LASTNE FREKVENCE'!$N39="1D"),'LASTNE FREKVENCE'!$M39,"ni") -> ni | C37: =IF(AND('LASTNE FREKVENCE'!$M39<'LASTNE FREKVENCE'!$F$15,'LASTNE FREKVENCE'!$N39="1D"),1,"ni") -> ni | D37: =IF(AND('LASTNE FREKVENCE'!$M39<'LASTNE FREKVENCE'!$F$15,'LASTNE FREKVENCE'!$N39="2D"),'LASTNE FREKVENCE'!$M39,"ni") -> 62.97506476 | E37: =IF(AND('LASTNE FREKVENCE'!$M39<'LASTNE FREKVENCE'!$F$15,'LASTNE FREKVENCE'!$N39="2D"),1,"ni") -> 1 | F37: =IF(AND('LASTNE FREKVENCE'!$M39<'LASTNE FREKVENCE'!$F$15,'LASTNE FREKVENCE'!$N39="3D"),'LASTNE FREKVENCE'!$M39,"ni") -> ni | G37: =IF(AND('LASTNE FREKVENCE'!$M39<'LASTNE FREKVENCE'!$F$15,'LASTNE FREKVENCE'!$N39="3D"),1,"ni") -> ni | L37: =IF(AND('LASTNE FREKVENCE'!$M50<'LASTNE FREKVENCE'!$F$15,'LASTNE FREKVENCE'!$N50="2D"),'LASTNE FREKVENCE'!$M50,"ni") -> 79.6637688 | M37: =IF(AND('LASTNE FREKVENCE'!$M50<'LASTNE FREKVENCE'!$F$15,'LASTNE FREKVENCE'!$N50="2D"),1,"ni") -> 1 | N37: =IF(AND('LASTNE FREKVENCE'!$M171<'LASTNE FREKVENCE'!$F$15,'LASTNE FREKVENCE'!$N171="3D"),'LASTNE FREKVENCE'!$M171,"ni") -> 96.01357247 | O37: =IF(AND('LASTNE FREKVENCE'!$M171<'LASTNE FREKVENCE'!$F$15,'LASTNE FREKVENCE'!$N171="3D"),1,"ni") -> 1 | X37: =IF(AND('LASTNE FREKVENCE'!$M50<'LASTNE FREKVENCE'!$F$15,'LASTNE FREKVENCE'!$N50="2D"),'LASTNE FREKVENCE'!$M50,"ni") -> 79.6637688 | Y37: =IF(AND('LASTNE FREKVENCE'!$M50<'LASTNE FREKVENCE'!$F$15,'LASTNE FREKVENCE'!$N50="2D"),1,"ni") -> 1 | Z37: =IF(AND('LASTNE FREKVENCE'!$M171<'LASTNE FREKVENCE'!$F$15,'LASTNE FREKVENCE'!$N171="3D"),'LASTNE FREKVENCE'!$M171,"ni") -> 96.01357247 | AA37: =IF(AND('LASTNE FREKVENCE'!$M171<'LASTNE FREKVENCE'!$F$15,'LASTNE FREKVENCE'!$N171="3D"),1,"ni") -> 1
B38: =IF(AND('LASTNE FREKVENCE'!$M40<'LASTNE FREKVENCE'!$F$15,'LASTNE FREKVENCE'!$N40="1D"),'LASTNE FREKVENCE'!$M40,"ni") -> 55.32258065 | C38: =IF(AND('LASTNE FREKVENCE'!$M40<'LASTNE FREKVENCE'!$F$15,'LASTNE FREKVENCE'!$N40="1D"),1,"ni") -> 1 | D38: =IF(AND('LASTNE FREKVENCE'!$M40<'LASTNE FREKVENCE'!$F$15,'LASTNE FREKVENCE'!$N40="2D"),'LASTNE FREKVENCE'!$M40,"ni") -> ni | E38: =IF(AND('LASTNE FREKVENCE'!$M40<'LASTNE FREKVENCE'!$F$15,'LASTNE FREKVENCE'!$N40="2D"),1,"ni") -> ni | F38: =IF(AND('LASTNE FREKVENCE'!$M40<'LASTNE FREKVENCE'!$F$15,'LASTNE FREKVENCE'!$N40="3D"),'LASTNE FREKVENCE'!$M40,"ni") -> ni | G38: =IF(AND('LASTNE FREKVENCE'!$M40<'LASTNE FREKVENCE'!$F$15,'LASTNE FREKVENCE'!$N40="3D"),1,"ni") -> ni | L38: =IF(AND('LASTNE FREKVENCE'!$M52<'LASTNE FREKVENCE'!$F$15,'LASTNE FREKVENCE'!$N52="2D"),'LASTNE FREKVENCE'!$M52,"ni") -> 73.82477847 | M38: =IF(AND('LASTNE FREKVENCE'!$M52<'LASTNE FREKVENCE'!$F$15,'LASTNE FREKVENCE'!$N52="2D"),1,"ni") -> 1 | N38: =IF(AND('LASTNE FREKVENCE'!$M173<'LASTNE FREKVENCE'!$F$15,'LASTNE FREKVENCE'!$N173="3D"),'LASTNE FREKVENCE'!$M173,"ni") -> 91.22712291 | O38: =IF(AND('LASTNE FREKVENCE'!$M173<'LASTNE FREKVENCE'!$F$15,'LASTNE FREKVENCE'!$N173="3D"),1,"ni") -> 1 | X38: =IF(AND('LASTNE FREKVENCE'!$M52<'LASTNE FREKVENCE'!$F$15,'LASTNE FREKVENCE'!$N52="2D"),'LASTNE FREKVENCE'!$M52,"ni") -> 73.82477847 | Y38: =IF(AND('LASTNE FREKVENCE'!$M52<'LASTNE FREKVENCE'!$F$15,'LASTNE FREKVENCE'!$N52="2D"),1,"ni") -> 1 | Z38: =IF(AND('LASTNE FREKVENCE'!$M173<'LASTNE FREKVENCE'!$F$15,'LASTNE FREKVENCE'!$N173="3D"),'LASTNE FREKVENCE'!$M173,"ni") -> 91.22712291 | AA38: =IF(AND('LASTNE FREKVENCE'!$M173<'LASTNE FREKVENCE'!$F$15,'LASTNE FREKVENCE'!$N173="3D"),1,"ni") -> 1
B39: =IF(AND('LASTNE FREKVENCE'!$M41<'LASTNE FREKVENCE'!$F$15,'LASTNE FREKVENCE'!$N41="1D"),'LASTNE FREKVENCE'!$M41,"ni") -> ni | C39: =IF(AND('LASTNE FREKVENCE'!$M41<'LASTNE FREKVENCE'!$F$15,'LASTNE FREKVENCE'!$N41="1D"),1,"ni") -> ni | D39: =IF(AND('LASTNE FREKVENCE'!$M41<'LASTNE FREKVENCE'!$F$15,'LASTNE FREKVENCE'!$N41="2D"),'LASTNE FREKVENCE'!$M41,"ni") -> 55.40433772 | E39: =IF(AND('LASTNE FREKVENCE'!$M41<'LASTNE FREKVENCE'!$F$15,'LASTNE FREKVENCE'!$N41="2D"),1,"ni") -> 1 | F39: =IF(AND('LASTNE FREKVENCE'!$M41<'LASTNE FREKVENCE'!$F$15,'LASTNE FREKVENCE'!$N41="3D"),'LASTNE FREKVENCE'!$M41,"ni") -> ni | G39: =IF(AND('LASTNE FREKVENCE'!$M41<'LASTNE FREKVENCE'!$F$15,'LASTNE FREKVENCE'!$N41="3D"),1,"ni") -> ni | L39: =IF(AND('LASTNE FREKVENCE'!$M53<'LASTNE FREKVENCE'!$F$15,'LASTNE FREKVENCE'!$N53="2D"),'LASTNE FREKVENCE'!$M53,"ni") -> 74.00848628 | M39: =IF(AND('LASTNE FREKVENCE'!$M53<'LASTNE FREKVENCE'!$F$15,'LASTNE FREKVENCE'!$N53="2D"),1,"ni") -> 1 | N39: =IF(AND('LASTNE FREKVENCE'!$M174<'LASTNE FREKVENCE'!$F$15,'LASTNE FREKVENCE'!$N174="3D"),'LASTNE FREKVENCE'!$M174,"ni") -> 91.37585064 | O39: =IF(AND('LASTNE FREKVENCE'!$M174<'LASTNE FREKVENCE'!$F$15,'LASTNE FREKVENCE'!$N174="3D"),1,"ni") -> 1 | X39: =IF(AND('LASTNE FREKVENCE'!$M53<'LASTNE FREKVENCE'!$F$15,'LASTNE FREKVENCE'!$N53="2D"),'LASTNE FREKVENCE'!$M53,"ni") -> 74.00848628 | Y39: =IF(AND('LASTNE FREKVENCE'!$M53<'LASTNE FREKVENCE'!$F$15,'LASTNE FREKVENCE'!$N53="2D"),1,"ni") -> 1 | Z39: =IF(AND('LASTNE FREKVENCE'!$M174<'LASTNE FREKVENCE'!$F$15,'LASTNE FREKVENCE'!$N174="3D"),'LASTNE FREKVENCE'!$M174,"ni") -> 91.37585064 | AA39: =IF(AND('LASTNE FREKVENCE'!$M174<'LASTNE FREKVENCE'!$F$15,'LASTNE FREKVENCE'!$N174="3D"),1,"ni") -> 1
B40: =IF(AND('LASTNE FREKVENCE'!$M42<'LASTNE FREKVENCE'!$F$15,'LASTNE FREKVENCE'!$N42="1D"),'LASTNE FREKVENCE'!$M42,"ni") -> ni | C40: =IF(AND('LASTNE FREKVENCE'!$M42<'LASTNE FREKVENCE'!$F$15,'LASTNE FREKVENCE'!$N42="1D"),1,"ni") -> ni | D40: =IF(AND('LASTNE FREKVENCE'!$M42<'LASTNE FREKVENCE'!$F$15,'LASTNE FREKVENCE'!$N42="2D"),'LASTNE FREKVENCE'!$M42,"ni") -> 55.64888825 | E40: =IF(AND('LASTNE FREKVENCE'!$M42<'LASTNE FREKVENCE'!$F$15,'LASTNE FREKVENCE'!$N42="2D"),1,"ni") -> 1 | F40: =IF(AND('LASTNE FREKVENCE'!$M42<'LASTNE FREKVENCE'!$F$15,'LASTNE FREKVENCE'!$N42="3D"),'LASTNE FREKVENCE'!$M42,"ni") -> ni | G40: =IF(AND('LASTNE FREKVENCE'!$M42<'LASTNE FREKVENCE'!$F$15,'LASTNE FREKVENCE'!$N42="3D"),1,"ni") -> ni | L40: =IF(AND('LASTNE FREKVENCE'!$M54<'LASTNE FREKVENCE'!$F$15,'LASTNE FREKVENCE'!$N54="2D"),'LASTNE FREKVENCE'!$M54,"ni") -> 74.31365678 | M40: =IF(AND('LASTNE FREKVENCE'!$M54<'LASTNE FREKVENCE'!$F$15,'LASTNE FREKVENCE'!$N54="2D"),1,"ni") -> 1 | N40: =IF(AND('LASTNE FREKVENCE'!$M175<'LASTNE FREKVENCE'!$F$15,'LASTNE FREKVENCE'!$N175="3D"),'LASTNE FREKVENCE'!$M175,"ni") -> 91.6231937 | O40: =IF(AND('LASTNE FREKVENCE'!$M175<'LASTNE FREKVENCE'!$F$15,'LASTNE FREKVENCE'!$N175="3D"),1,"ni") -> 1 | X40: =IF(AND('LASTNE FREKVENCE'!$M54<'LASTNE FREKVENCE'!$F$15,'LASTNE FREKVENCE'!$N54="2D"),'LASTNE FREKVENCE'!$M54,"ni") -> 74.31365678 | Y40: =IF(AND('LASTNE FREKVENCE'!$M54<'LASTNE FREKVENCE'!$F$15,'LASTNE FREKVENCE'!$N54="2D"),1,"ni") -> 1 | Z40: =IF(AND('LASTNE FREKVENCE'!$M175<'LASTNE FREKVENCE'!$F$15,'LASTNE FREKVENCE'!$N175="3D"),'LASTNE FREKVENCE'!$M175,"ni") -> 91.6231937 | AA40: =IF(AND('LASTNE FREKVENCE'!$M175<'LASTNE FREKVENCE'!$F$15,'LASTNE FREKVENCE'!$N175="3D"),1,"ni") -> 1
B41: =IF(AND('LASTNE FREKVENCE'!$M43<'LASTNE FREKVENCE'!$F$15,'LASTNE FREKVENCE'!$N43="1D"),'LASTNE FREKVENCE'!$M43,"ni") -> ni | C41: =IF(AND('LASTNE FREKVENCE'!$M43<'LASTNE FREKVENCE'!$F$15,'LASTNE FREKVENCE'!$N43="1D"),1,"ni") -> ni | D41: =IF(AND('LASTNE FREKVENCE'!$M43<'LASTNE FREKVENCE'!$F$15,'LASTNE FREKVENCE'!$N43="2D"),'LASTNE FREKVENCE'!$M43,"ni") -> 56.0541016 | E41: =IF(AND('LASTNE FREKVENCE'!$M43<'LASTNE FREKVENCE'!$F$15,'LASTNE FREKVENCE'!$N43="2D"),1,"ni") -> 1 | F41: =IF(AND('LASTNE FREKVENCE'!$M43<'LASTNE FREKVENCE'!$F$15,'LASTNE FREKVENCE'!$N43="3D"),'LASTNE FREKVENCE'!$M43,"ni") -> ni | G41: =IF(AND('LASTNE FREKVENCE'!$M43<'LASTNE FREKVENCE'!$F$15,'LASTNE FREKVENCE'!$N43="3D"),1,"ni") -> ni | L41: =IF(AND('LASTNE FREKVENCE'!$M55<'LASTNE FREKVENCE'!$F$15,'LASTNE FREKVENCE'!$N55="2D"),'LASTNE FREKVENCE'!$M55,"ni") -> 74.73880213 | M41: =IF(AND('LASTNE FREKVENCE'!$M55<'LASTNE FREKVENCE'!$F$15,'LASTNE FREKVENCE'!$N55="2D"),1,"ni") -> 1 | N41: =IF(AND('LASTNE FREKVENCE'!$M176<'LASTNE FREKVENCE'!$F$15,'LASTNE FREKVENCE'!$N176="3D"),'LASTNE FREKVENCE'!$M176,"ni") -> 91.96835642 | O41: =IF(AND('LASTNE FREKVENCE'!$M176<'LASTNE FREKVENCE'!$F$15,'LASTNE FREKVENCE'!$N176="3D"),1,"ni") -> 1 | X41: =IF(AND('LASTNE FREKVENCE'!$M55<'LASTNE FREKVENCE'!$F$15,'LASTNE FREKVENCE'!$N55="2D"),'LASTNE FREKVENCE'!$M55,"ni") -> 74.73880213 | Y41: =IF(AND('LASTNE FREKVENCE'!$M55<'LASTNE FREKVENCE'!$F$15,'LASTNE FREKVENCE'!$N55="2D"),1,"ni") -> 1 | Z41: =IF(AND('LASTNE FREKVENCE'!$M176<'LASTNE FREKVENCE'!$F$15,'LASTNE FREKVENCE'!$N176="3D"),'LASTNE FREKVENCE'!$M176,"ni") -> 91.96835642 | AA41: =IF(AND('LASTNE FREKVENCE'!$M176<'LASTNE FREKVENCE'!$F$15,'LASTNE FREKVENCE'!$N176="3D"),1,"ni") -> 1
B42: =IF(AND('LASTNE FREKVENCE'!$M44<'LASTNE FREKVENCE'!$F$15,'LASTNE FREKVENCE'!$N44="1D"),'LASTNE FREKVENCE'!$M44,"ni") -> ni | C42: =IF(AND('LASTNE FREKVENCE'!$M44<'LASTNE FREKVENCE'!$F$15,'LASTNE FREKVENCE'!$N44="1D"),1,"ni") -> ni | D42: =IF(AND('LASTNE FREKVENCE'!$M44<'LASTNE FREKVENCE'!$F$15,'LASTNE FREKVENCE'!$N44="2D"),'LASTNE FREKVENCE'!$M44,"ni") -> 56.6165282 | E42: =IF(AND('LASTNE FREKVENCE'!$M44<'LASTNE FREKVENCE'!$F$15,'LASTNE FREKVENCE'!$N44="2D"),1,"ni") -> 1 | F42: =IF(AND('LASTNE FREKVENCE'!$M44<'LASTNE FREKVENCE'!$F$15,'LASTNE FREKVENCE'!$N44="3D"),'LASTNE FREKVENCE'!$M44,"ni") -> ni | G42: =IF(AND('LASTNE FREKVENCE'!$M44<'LASTNE FREKVENCE'!$F$15,'LASTNE FREKVENCE'!$N44="3D"),1,"ni") -> ni | L42: =IF(AND('LASTNE FREKVENCE'!$M56<'LASTNE FREKVENCE'!$F$15,'LASTNE FREKVENCE'!$N56="2D"),'LASTNE FREKVENCE'!$M56,"ni") -> 75.28188973 | M42: =IF(AND('LASTNE FREKVENCE'!$M56<'LASTNE FREKVENCE'!$F$15,'LASTNE FREKVENCE'!$N56="2D"),1,"ni") -> 1 | N42: =IF(AND('LASTNE FREKVENCE'!$M177<'LASTNE FREKVENCE'!$F$15,'LASTNE FREKVENCE'!$N177="3D"),'LASTNE FREKVENCE'!$M177,"ni") -> 92.41024272 | O42: =IF(AND('LASTNE FREKVENCE'!$M177<'LASTNE FREKVENCE'!$F$15,'LASTNE FREKVENCE'!$N177="3D"),1,"ni") -> 1 | X42: =IF(AND('LASTNE FREKVENCE'!$M56<'LASTNE FREKVENCE'!$F$15,'LASTNE FREKVENCE'!$N56="2D"),'LASTNE FREKVENCE'!$M56,"ni") -> 75.28188973 | Y42: =IF(AND('LASTNE FREKVENCE'!$M56<'LASTNE FREKVENCE'!$F$15,'LASTNE FREKVENCE'!$N56="2D"),1,"ni") -> 1 | Z42: =IF(AND('LASTNE FREKVENCE'!$M177<'LASTNE FREKVENCE'!$F$15,'LASTNE FREKVENCE'!$N177="3D"),'LASTNE FREKVENCE'!$M177,"ni") -> 92.41024272 | AA42: =IF(AND('LASTNE FREKVENCE'!$M177<'LASTNE FREKVENCE'!$F$15,'LASTNE FREKVENCE'!$N177="3D"),1,"ni") -> 1
B43: =IF(AND('LASTNE FREKVENCE'!$M45<'LASTNE FREKVENCE'!$F$15,'LASTNE FREKVENCE'!$N45="1D"),'LASTNE FREKVENCE'!$M45,"ni") -> ni | C43: =IF(AND('LASTNE FREKVENCE'!$M45<'LASTNE FREKVENCE'!$F$15,'LASTNE FREKVENCE'!$N45="1D"),1,"ni") -> ni | D43: =IF(AND('LASTNE FREKVENCE'!$M45<'LASTNE FREKVENCE'!$F$15,'LASTNE FREKVENCE'!$N45="2D"),'LASTNE FREKVENCE'!$M45,"ni") -> 57.33154143 | E43: =IF(AND('LASTNE FREKVENCE'!$M45<'LASTNE FREKVENCE'!$F$15,'LASTNE FREKVENCE'!$N45="2D"),1,"ni") -> 1 | F43: =IF(AND('LASTNE FREKVENCE'!$M45<'LASTNE FREKVENCE'!$F$15,'LASTNE FREKVENCE'!$N45="3D"),'LASTNE FREKVENCE'!$M45,"ni") -> ni | G43: =IF(AND('LASTNE FREKVENCE'!$M45<'LASTNE FREKVENCE'!$F$15,'LASTNE FREKVENCE'!$N45="3D"),1,"ni") -> ni | L43: =IF(AND('LASTNE FREKVENCE'!$M57<'LASTNE FREKVENCE'!$F$15,'LASTNE FREKVENCE'!$N57="2D"),'LASTNE FREKVENCE'!$M57,"ni") -> 75.94038922 | M43: =IF(AND('LASTNE FREKVENCE'!$M57<'LASTNE FREKVENCE'!$F$15,'LASTNE FREKVENCE'!$N57="2D"),1,"ni") -> 1 | N43: =IF(AND('LASTNE FREKVENCE'!$M178<'LASTNE FREKVENCE'!$F$15,'LASTNE FREKVENCE'!$N178="3D"),'LASTNE FREKVENCE'!$M178,"ni") -> 92.94747309 | O43: =IF(AND('LASTNE FREKVENCE'!$M178<'LASTNE FREKVENCE'!$F$15,'LASTNE FREKVENCE'!$N178="3D"),1,"ni") -> 1 | X43: =IF(AND('LASTNE FREKVENCE'!$M57<'LASTNE FREKVENCE'!$F$15,'LASTNE FREKVENCE'!$N57="2D"),'LASTNE FREKVENCE'!$M57,"ni") -> 75.94038922 | Y43: =IF(AND('LASTNE FREKVENCE'!$M57<'LASTNE FREKVENCE'!$F$15,'LASTNE FREKVENCE'!$N57="2D"),1,"ni") -> 1 | Z43: =IF(AND('LASTNE FREKVENCE'!$M178<'LASTNE FREKVENCE'!$F$15,'LASTNE FREKVENCE'!$N178="3D"),'LASTNE FREKVENCE'!$M178,"ni") -> 92.94747309 | AA43: =IF(AND('LASTNE FREKVENCE'!$M178<'LASTNE FREKVENCE'!$F$15,'LASTNE FREKVENCE'!$N178="3D"),1,"ni") -> 1
B44: =IF(AND('LASTNE FREKVENCE'!$M46<'LASTNE FREKVENCE'!$F$15,'LASTNE FREKVENCE'!$N46="1D"),'LASTNE FREKVENCE'!$M46,"ni") -> ni | C44: =IF(AND('LASTNE FREKVENCE'!$M46<'LASTNE FREKVENCE'!$F$15,'LASTNE FREKVENCE'!$N46="1D"),1,"ni") -> ni | D44: =IF(AND('LASTNE FREKVENCE'!$M46<'LASTNE FREKVENCE'!$F$15,'LASTNE FREKVENCE'!$N46="2D"),'LASTNE FREKVENCE'!$M46,"ni") -> 58.19351713 | E44: =IF(AND('LASTNE FREKVENCE'!$M46<'LASTNE FREKVENCE'!$F$15,'LASTNE FREKVENCE'!$N46="2D"),1,"ni") -> 1 | F44: =IF(AND('LASTNE FREKVENCE'!$M46<'LASTNE FREKVENCE'!$F$15,'LASTNE FREKVENCE'!$N46="3D"),'LASTNE FREKVENCE'!$M46,"ni") -> ni | G44: =IF(AND('LASTNE FREKVENCE'!$M46<'LASTNE FREKVENCE'!$F$15,'LASTNE FREKVENCE'!$N46="3D"),1,"ni") -> ni | L44: =IF(AND('LASTNE FREKVENCE'!$M58<'LASTNE FREKVENCE'!$F$15,'LASTNE FREKVENCE'!$N58="2D"),'LASTNE FREKVENCE'!$M58,"ni") -> 76.71132853 | M44: =IF(AND('LASTNE FREKVENCE'!$M58<'LASTNE FREKVENCE'!$F$15,'LASTNE FREKVENCE'!$N58="2D"),1,"ni") -> 1 | N44: =IF(AND('LASTNE FREKVENCE'!$M179<'LASTNE FREKVENCE'!$F$15,'LASTNE FREKVENCE'!$N179="3D"),'LASTNE FREKVENCE'!$M179,"ni") -> 93.57840544 | O44: =IF(AND('LASTNE FREKVENCE'!$M179<'LASTNE FREKVENCE'!$F$15,'LASTNE FREKVENCE'!$N179="3D"),1,"ni") -> 1 | X44: =IF(AND('LASTNE FREKVENCE'!$M58<'LASTNE FREKVENCE'!$F$15,'LASTNE FREKVENCE'!$N58="2D"),'LASTNE FREKVENCE'!$M58,"ni") -> 76.71132853 | Y44: =IF(AND('LASTNE FREKVENCE'!$M58<'LASTNE FREKVENCE'!$F$15,'LASTNE FREKVENCE'!$N58="2D"),1,"ni") -> 1 | Z44: =IF(AND('LASTNE FREKVENCE'!$M179<'LASTNE FREKVENCE'!$F$15,'LASTNE FREKVENCE'!$N179="3D"),'LASTNE FREKVENCE'!$M179,"ni") -> 93.57840544 | AA44: =IF(AND('LASTNE FREKVENCE'!$M179<'LASTNE FREKVENCE'!$F$15,'LASTNE FREKVENCE'!$N179="3D"),1,"ni") -> 1
B45: =IF(AND('LASTNE FREKVENCE'!$M47<'LASTNE FREKVENCE'!$F$15,'LASTNE FREKVENCE'!$N47="1D"),'LASTNE FREKVENCE'!$M47,"ni") -> ni | C45: =IF(AND('LASTNE FREKVENCE'!$M47<'LASTNE FREKVENCE'!$F$15,'LASTNE FREKVENCE'!$N47="1D"),1,"ni") -> ni | D45: =IF(AND('LASTNE FREKVENCE'!$M47<'LASTNE FREKVENCE'!$F$15,'LASTNE FREKVENCE'!$N47="2D"),'LASTNE FREKVENCE'!$M47,"ni") -> 59.19603574 | E45: =IF(AND('LASTNE FREKVENCE'!$M47<'LASTNE FREKVENCE'!$F$15,'LASTNE FREKVENCE'!$N47="2D"),1,"ni") -> 1 | F45: =IF(AND('LASTNE FREKVENCE'!$M47<'LASTNE FREKVENCE'!$F$15,'LASTNE FREKVENCE'!$N47="3D"),'LASTNE FREKVENCE'!$M47,"ni") -> ni | G45: =IF(AND('LASTNE FREKVENCE'!$M47<'LASTNE FREKVENCE'!$F$15,'LASTNE FREKVENCE'!$N47="3D"),1,"ni") -> ni | L45: =IF(AND('LASTNE FREKVENCE'!$M59<'LASTNE FREKVENCE'!$F$15,'LASTNE FREKVENCE'!$N59="2D"),'LASTNE FREKVENCE'!$M59,"ni") -> 77.59135618 | M45: =IF(AND('LASTNE FREKVENCE'!$M59<'LASTNE FREKVENCE'!$F$15,'LASTNE FREKVENCE'!$N59="2D"),1,"ni") -> 1 | N45: =IF(AND('LASTNE FREKVENCE'!$M180<'LASTNE FREKVENCE'!$F$15,'LASTNE FREKVENCE'!$N180="3D"),'LASTNE FREKVENCE'!$M180,"ni") -> 94.30115902 | O45: =IF(AND('LASTNE FREKVENCE'!$M180<'LASTNE FREKVENCE'!$F$15,'LASTNE FREKVENCE'!$N180="3D"),1,"ni") -> 1 | X45: =IF(AND('LASTNE FREKVENCE'!$M59<'LASTNE FREKVENCE'!$F$15,'LASTNE FREKVENCE'!$N59="2D"),'LASTNE FREKVENCE'!$M59,"ni") -> 77.59135618 | Y45: =IF(AND('LASTNE FREKVENCE'!$M59<'LASTNE FREKVENCE'!$F$15,'LASTNE FREKVENCE'!$N59="2D"),1,"ni") -> 1 | Z45: =IF(AND('LASTNE FREKVENCE'!$M180<'LASTNE FREKVENCE'!$F$15,'LASTNE FREKVENCE'!$N180="3D"),'LASTNE FREKVENCE'!$M180,"ni") -> 94.30115902 | AA45: =IF(AND('LASTNE FREKVENCE'!$M180<'LASTNE FREKVENCE'!$F$15,'LASTNE FREKVENCE'!$N180="3D"),1,"ni") -> 1
B46: =IF(AND('LASTNE FREKVENCE'!$M48<'LASTNE FREKVENCE'!$F$15,'LASTNE FREKVENCE'!$N48="1D"),'LASTNE FREKVENCE'!$M48,"ni") -> ni | C46: =IF(AND('LASTNE FREKVENCE'!$M48<'LASTNE FREKVENCE'!$F$15,'LASTNE FREKVENCE'!$N48="1D"),1,"ni") -> ni | D46: =IF(AND('LASTNE FREKVENCE'!$M48<'LASTNE FREKVENCE'!$F$15,'LASTNE FREKVENCE'!$N48="2D"),'LASTNE FREKVENCE'!$M48,"ni") -> 60.33209158 | E46: =IF(AND('LASTNE FREKVENCE'!$M48<'LASTNE FREKVENCE'!$F$15,'LASTNE FREKVENCE'!$N48="2D"),1,"ni") -> 1 | F46: =IF(AND('LASTNE FREKVENCE'!$M48<'LASTNE FREKVENCE'!$F$15,'LASTNE FREKVENCE'!$N48="3D"),'LASTNE FREKVENCE'!$M48,"ni") -> ni | G46: =IF(AND('LASTNE FREKVENCE'!$M48<'LASTNE FREKVENCE'!$F$15,'LASTNE FREKVENCE'!$N48="3D"),1,"ni") -> ni | L46: =IF(AND('LASTNE FREKVENCE'!$M60<'LASTNE FREKVENCE'!$F$15,'LASTNE FREKVENCE'!$N60="2D"),'LASTNE FREKVENCE'!$M60,"ni") -> 78.576807 | M46: =IF(AND('LASTNE FREKVENCE'!$M60<'LASTNE FREKVENCE'!$F$15,'LASTNE FREKVENCE'!$N60="2D"),1,"ni") -> 1 | N46: =IF(AND('LASTNE FREKVENCE'!$M181<'LASTNE FREKVENCE'!$F$15,'LASTNE FREKVENCE'!$N181="3D"),'LASTNE FREKVENCE'!$M181,"ni") -> 95.11364065 | O46: =IF(AND('LASTNE FREKVENCE'!$M181<'LASTNE FREKVENCE'!$F$15,'LASTNE FREKVENCE'!$N181="3D"),1,"ni") -> 1 | X46: =IF(AND('LASTNE FREKVENCE'!$M60<'LASTNE FREKVENCE'!$F$15,'LASTNE FREKVENCE'!$N60="2D"),'LASTNE FREKVENCE'!$M60,"ni") -> 78.576807 | Y46: =IF(AND('LASTNE FREKVENCE'!$M60<'LASTNE FREKVENCE'!$F$15,'LASTNE FREKVENCE'!$N60="2D"),1,"ni") -> 1 | Z46: =IF(AND('LASTNE FREKVENCE'!$M181<'LASTNE FREKVENCE'!$F$15,'LASTNE FREKVENCE'!$N181="3D"),'LASTNE FREKVENCE'!$M181,"ni") -> 95.11364065 | AA46: =IF(AND('LASTNE FREKVENCE'!$M181<'LASTNE FREKVENCE'!$F$15,'LASTNE FREKVENCE'!$N181="3D"),1,"ni") -> 1
B47: =IF(AND('LASTNE FREKVENCE'!$M49<'LASTNE FREKVENCE'!$F$15,'LASTNE FREKVENCE'!$N49="1D"),'LASTNE FREKVENCE'!$M49,"ni") -> ni | C47: =IF(AND('LASTNE FREKVENCE'!$M49<'LASTNE FREKVENCE'!$F$15,'LASTNE FREKVENCE'!$N49="1D"),1,"ni") -> ni | D47: =IF(AND('LASTNE FREKVENCE'!$M49<'LASTNE FREKVENCE'!$F$15,'LASTNE FREKVENCE'!$N49="2D"),'LASTNE FREKVENCE'!$M49,"ni") -> 61.59429616 | E47: =IF(AND('LASTNE FREKVENCE'!$M49<'LASTNE FREKVENCE'!$F$15,'LASTNE FREKVENCE'!$N49="2D"),1,"ni") -> 1 | F47: =IF(AND('LASTNE FREKVENCE'!$M49<'LASTNE FREKVENCE'!$F$15,'LASTNE FREKVENCE'!$N49="3D"),'LASTNE FREKVENCE'!$M49,"ni") -> ni | G47: =IF(AND('LASTNE FREKVENCE'!$M49<'LASTNE FREKVENCE'!$F$15,'LASTNE FREKVENCE'!$N49="3D"),1,"ni") -> ni | L47: =IF(AND('LASTNE FREKVENCE'!$M63<'LASTNE FREKVENCE'!$F$15,'LASTNE FREKVENCE'!$N63="2D"),'LASTNE FREKVENCE'!$M63,"ni") -> 92.2533785 | M47: =IF(AND('LASTNE FREKVENCE'!$M63<'LASTNE FREKVENCE'!$F$15,'LASTNE FREKVENCE'!$N63="2D"),1,"ni") -> 1 | X47: =IF(AND('LASTNE FREKVENCE'!$M63<'LASTNE FREKVENCE'!$F$15,'LASTNE FREKVENCE'!$N63="2D"),'LASTNE FREKVENCE'!$M63,"ni") -> 92.2533785 | Y47: =IF(AND('LASTNE FREKVENCE'!$M63<'LASTNE FREKVENCE'!$F$15,'LASTNE FREKVENCE'!$N63="2D"),1,"ni") -> 1
B48: =IF(AND('LASTNE FREKVENCE'!$M50<'LASTNE FREKVENCE'!$F$15,'LASTNE FREKVENCE'!$N50="1D"),'LASTNE FREKVENCE'!$M50,"ni") -> ni | C48: =IF(AND('LASTNE FREKVENCE'!$M50<'LASTNE FREKVENCE'!$F$15,'LASTNE FREKVENCE'!$N50="1D"),1,"ni") -> ni | D48: =IF(AND('LASTNE FREKVENCE'!$M50<'LASTNE FREKVENCE'!$F$15,'LASTNE FREKVENCE'!$N50="2D"),'LASTNE FREKVENCE'!$M50,"ni") -> 79.6637688 | E48: =IF(AND('LASTNE FREKVENCE'!$M50<'LASTNE FREKVENCE'!$F$15,'LASTNE FREKVENCE'!$N50="2D"),1,"ni") -> 1 | F48: =IF(AND('LASTNE FREKVENCE'!$M50<'LASTNE FREKVENCE'!$F$15,'LASTNE FREKVENCE'!$N50="3D"),'LASTNE FREKVENCE'!$M50,"ni") -> ni | G48: =IF(AND('LASTNE FREKVENCE'!$M50<'LASTNE FREKVENCE'!$F$15,'LASTNE FREKVENCE'!$N50="3D"),1,"ni") -> ni | L48: =IF(AND('LASTNE FREKVENCE'!$M64<'LASTNE FREKVENCE'!$F$15,'LASTNE FREKVENCE'!$N64="2D"),'LASTNE FREKVENCE'!$M64,"ni") -> 92.40045439 | M48: =IF(AND('LASTNE FREKVENCE'!$M64<'LASTNE FREKVENCE'!$F$15,'LASTNE FREKVENCE'!$N64="2D"),1,"ni") -> 1 | X48: =IF(AND('LASTNE FREKVENCE'!$M64<'LASTNE FREKVENCE'!$F$15,'LASTNE FREKVENCE'!$N64="2D"),'LASTNE FREKVENCE'!$M64,"ni") -> 92.40045439 | Y48: =IF(AND('LASTNE FREKVENCE'!$M64<'LASTNE FREKVENCE'!$F$15,'LASTNE FREKVENCE'!$N64="2D"),1,"ni") -> 1
B49: =IF(AND('LASTNE FREKVENCE'!$M51<'LASTNE FREKVENCE'!$F$15,'LASTNE FREKVENCE'!$N51="1D"),'LASTNE FREKVENCE'!$M51,"ni") -> 73.76344086 | C49: =IF(AND('LASTNE FREKVENCE'!$M51<'LASTNE FREKVENCE'!$F$15,'LASTNE FREKVENCE'!$N51="1D"),1,"ni") -> 1 | D49: =IF(AND('LASTNE FREKVENCE'!$M51<'LASTNE FREKVENCE'!$F$15,'LASTNE FREKVENCE'!$N51="2D"),'LASTNE FREKVENCE'!$M51,"ni") -> ni | E49: =IF(AND('LASTNE FREKVENCE'!$M51<'LASTNE FREKVENCE'!$F$15,'LASTNE FREKVENCE'!$N51="2D"),1,"ni") -> ni | F49: =IF(AND('LASTNE FREKVENCE'!$M51<'LASTNE FREKVENCE'!$F$15,'LASTNE FREKVENCE'!$N51="3D"),'LASTNE FREKVENCE'!$M51,"ni") -> ni | G49: =IF(AND('LASTNE FREKVENCE'!$M51<'LASTNE FREKVENCE'!$F$15,'LASTNE FREKVENCE'!$N51="3D"),1,"ni") -> ni | L49: =IF(AND('LASTNE FREKVENCE'!$M65<'LASTNE FREKVENCE'!$F$15,'LASTNE FREKVENCE'!$N65="2D"),'LASTNE FREKVENCE'!$M65,"ni") -> 92.645062 | M49: =IF(AND('LASTNE FREKVENCE'!$M65<'LASTNE FREKVENCE'!$F$15,'LASTNE FREKVENCE'!$N65="2D"),1,"ni") -> 1 | X49: =IF(AND('LASTNE FREKVENCE'!$M65<'LASTNE FREKVENCE'!$F$15,'LASTNE FREKVENCE'!$N65="2D"),'LASTNE FREKVENCE'!$M65,"ni") -> 92.645062 | Y49: =IF(AND('LASTNE FREKVENCE'!$M65<'LASTNE FREKVENCE'!$F$15,'LASTNE FREKVENCE'!$N65="2D"),1,"ni") -> 1
B50: =IF(AND('LASTNE FREKVENCE'!$M52<'LASTNE FREKVENCE'!$F$15,'LASTNE FREKVENCE'!$N52="1D"),'LASTNE FREKVENCE'!$M52,"ni") -> ni | C50: =IF(AND('LASTNE FREKVENCE'!$M52<'LASTNE FREKVENCE'!$F$15,'LASTNE FREKVENCE'!$N52="1D"),1,"ni") -> ni | D50: =IF(AND('LASTNE FREKVENCE'!$M52<'LASTNE FREKVENCE'!$F$15,'LASTNE FREKVENCE'!$N52="2D"),'LASTNE FREKVENCE'!$M52,"ni") -> 73.82477847 | E50: =IF(AND('LASTNE FREKVENCE'!$M52<'LASTNE FREKVENCE'!$F$15,'LASTNE FREKVENCE'!$N52="2D"),1,"ni") -> 1 | F50: =IF(AND('LASTNE FREKVENCE'!$M52<'LASTNE FREKVENCE'!$F$15,'LASTNE FREKVENCE'!$N52="3D"),'LASTNE FREKVENCE'!$M52,"ni") -> ni | G50: =IF(AND('LASTNE FREKVENCE'!$M52<'LASTNE FREKVENCE'!$F$15,'LASTNE FREKVENCE'!$N52="3D"),1,"ni") -> ni | L50: =IF(AND('LASTNE FREKVENCE'!$M66<'LASTNE FREKVENCE'!$F$15,'LASTNE FREKVENCE'!$N66="2D"),'LASTNE FREKVENCE'!$M66,"ni") -> 92.98643166 | M50: =IF(AND('LASTNE FREKVENCE'!$M66<'LASTNE FREKVENCE'!$F$15,'LASTNE FREKVENCE'!$N66="2D"),1,"ni") -> 1 | X50: =IF(AND('LASTNE FREKVENCE'!$M66<'LASTNE FREKVENCE'!$F$15,'LASTNE FREKVENCE'!$N66="2D"),'LASTNE FREKVENCE'!$M66,"ni") -> 92.98643166 | Y50: =IF(AND('LASTNE FREKVENCE'!$M66<'LASTNE FREKVENCE'!$F$15,'LASTNE FREKVENCE'!$N66="2D"),1,"ni") -> 1
B51: =IF(AND('LASTNE FREKVENCE'!$M53<'LASTNE FREKVENCE'!$F$15,'LASTNE FREKVENCE'!$N53="1D"),'LASTNE FREKVENCE'!$M53,"ni") -> ni | C51: =IF(AND('LASTNE FREKVENCE'!$M53<'LASTNE FREKVENCE'!$F$15,'LASTNE FREKVENCE'!$N53="1D"),1,"ni") -> ni | D51: =IF(AND('LASTNE FREKVENCE'!$M53<'LASTNE FREKVENCE'!$F$15,'LASTNE FREKVENCE'!$N53="2D"),'LASTNE FREKVENCE'!$M53,"ni") -> 74.00848628 | E51: =IF(AND('LASTNE FREKVENCE'!$M53<'LASTNE FREKVENCE'!$F$15,'LASTNE FREKVENCE'!$N53="2D"),1,"ni") -> 1 | F51: =IF(AND('LASTNE FREKVENCE'!$M53<'LASTNE FREKVENCE'!$F$15,'LASTNE FREKVENCE'!$N53="3D"),'LASTNE FREKVENCE'!$M53,"ni") -> ni | G51: =IF(AND('LASTNE FREKVENCE'!$M53<'LASTNE FREKVENCE'!$F$15,'LASTNE FREKVENCE'!$N53="3D"),1,"ni") -> ni | L51: =IF(AND('LASTNE FREKVENCE'!$M67<'LASTNE FREKVENCE'!$F$15,'LASTNE FREKVENCE'!$N67="2D"),'LASTNE FREKVENCE'!$M67,"ni") -> 93.42350266 | M51: =IF(AND('LASTNE FREKVENCE'!$M67<'LASTNE FREKVENCE'!$F$15,'LASTNE FREKVENCE'!$N67="2D"),1,"ni") -> 1 | X51: =IF(AND('LASTNE FREKVENCE'!$M67<'LASTNE FREKVENCE'!$F$15,'LASTNE FREKVENCE'!$N67="2D"),'LASTNE FREKVENCE'!$M67,"ni") -> 93.42350266 | Y51: =IF(AND('LASTNE FREKVENCE'!$M67<'LASTNE FREKVENCE'!$F$15,'LASTNE FREKVENCE'!$N67="2D"),1,"ni") -> 1
B52: =IF(AND('LASTNE FREKVENCE'!$M54<'LASTNE FREKVENCE'!$F$15,'LASTNE FREKVENCE'!$N54="1D"),'LASTNE FREKVENCE'!$M54,"ni") -> ni | C52: =IF(AND('LASTNE FREKVENCE'!$M54<'LASTNE FREKVENCE'!$F$15,'LASTNE FREKVENCE'!$N54="1D"),1,"ni") -> ni | D52: =IF(AND('LASTNE FREKVENCE'!$M54<'LASTNE FREKVENCE'!$F$15,'LASTNE FREKVENCE'!$N54="2D"),'LASTNE FREKVENCE'!$M54,"ni") -> 74.31365678 | E52: =IF(AND('LASTNE FREKVENCE'!$M54<'LASTNE FREKVENCE'!$F$15,'LASTNE FREKVENCE'!$N54="2D"),1,"ni") -> 1 | F52: =IF(AND('LASTNE FREKVENCE'!$M54<'LASTNE FREKVENCE'!$F$15,'LASTNE FREKVENCE'!$N54="3D"),'LASTNE FREKVENCE'!$M54,"ni") -> ni | G52: =IF(AND('LASTNE FREKVENCE'!$M54<'LASTNE FREKVENCE'!$F$15,'LASTNE FREKVENCE'!$N54="3D"),1,"ni") -> ni | L52: =IF(AND('LASTNE FREKVENCE'!$M68<'LASTNE FREKVENCE'!$F$15,'LASTNE FREKVENCE'!$N68="2D"),'LASTNE FREKVENCE'!$M68,"ni") -> 93.95493943 | M52: =IF(AND('LASTNE FREKVENCE'!$M68<'LASTNE FREKVENCE'!$F$15,'LASTNE FREKVENCE'!$N68="2D"),1,"ni") -> 1 | X52: =IF(AND('LASTNE FREKVENCE'!$M68<'LASTNE FREKVENCE'!$F$15,'LASTNE FREKVENCE'!$N68="2D"),'LASTNE FREKVENCE'!$M68,"ni") -> 93.95493943 | Y52: =IF(AND('LASTNE FREKVENCE'!$M68<'LASTNE FREKVENCE'!$F$15,'LASTNE FREKVENCE'!$N68="2D"),1,"ni") -> 1
B53: =IF(AND('LASTNE FREKVENCE'!$M55<'LASTNE FREKVENCE'!$F$15,'LASTNE FREKVENCE'!$N55="1D"),'LASTNE FREKVENCE'!$M55,"ni") -> ni | C53: =IF(AND('LASTNE FREKVENCE'!$M55<'LASTNE FREKVENCE'!$F$15,'LASTNE FREKVENCE'!$N55="1D"),1,"ni") -> ni | D53: =IF(AND('LASTNE FREKVENCE'!$M55<'LASTNE FREKVENCE'!$F$15,'LASTNE FREKVENCE'!$N55="2D"),'LASTNE FREKVENCE'!$M55,"ni") -> 74.73880213 | E53: =IF(AND('LASTNE FREKVENCE'!$M55<'LASTNE FREKVENCE'!$F$15,'LASTNE FREKVENCE'!$N55="2D"),1,"ni") -> 1 | F53: =IF(AND('LASTNE FREKVENCE'!$M55<'LASTNE FREKVENCE'!$F$15,'LASTNE FREKVENCE'!$N55="3D"),'LASTNE FREKVENCE'!$M55,"ni") -> ni | G53: =IF(AND('LASTNE FREKVENCE'!$M55<'LASTNE FREKVENCE'!$F$15,'LASTNE FREKVENCE'!$N55="3D"),1,"ni") -> ni | L53: =IF(AND('LASTNE FREKVENCE'!$M69<'LASTNE FREKVENCE'!$F$15,'LASTNE FREKVENCE'!$N69="2D"),'LASTNE FREKVENCE'!$M69,"ni") -> 94.57915127 | M53: =IF(AND('LASTNE FREKVENCE'!$M69<'LASTNE FREKVENCE'!$F$15,'LASTNE FREKVENCE'!$N69="2D"),1,"ni") -> 1 | X53: =IF(AND('LASTNE FREKVENCE'!$M69<'LASTNE FREKVENCE'!$F$15,'LASTNE FREKVENCE'!$N69="2D"),'LASTNE FREKVENCE'!$M69,"ni") -> 94.57915127 | Y53: =IF(AND('LASTNE FREKVENCE'!$M69<'LASTNE FREKVENCE'!$F$15,'LASTNE FREKVENCE'!$N69="2D"),1,"ni") -> 1
B54: =IF(AND('LASTNE FREKVENCE'!$M56<'LASTNE FREKVENCE'!$F$15,'LASTNE FREKVENCE'!$N56="1D"),'LASTNE FREKVENCE'!$M56,"ni") -> ni | C54: =IF(AND('LASTNE FREKVENCE'!$M56<'LASTNE FREKVENCE'!$F$15,'LASTNE FREKVENCE'!$N56="1D"),1,"ni") -> ni | D54: =IF(AND('LASTNE FREKVENCE'!$M56<'LASTNE FREKVENCE'!$F$15,'LASTNE FREKVENCE'!$N56="2D"),'LASTNE FREKVENCE'!$M56,"ni") -> 75.28188973 | E54: =IF(AND('LASTNE FREKVENCE'!$M56<'LASTNE FREKVENCE'!$F$15,'LASTNE FREKVENCE'!$N56="2D"),1,"ni") -> 1 | F54: =IF(AND('LASTNE FREKVENCE'!$M56<'LASTNE FREKVENCE'!$F$15,'LASTNE FREKVENCE'!$N56="3D"),'LASTNE FREKVENCE'!$M56,"ni") -> ni | G54: =IF(AND('LASTNE FREKVENCE'!$M56<'LASTNE FREKVENCE'!$F$15,'LASTNE FREKVENCE'!$N56="3D"),1,"ni") -> ni | L54: =IF(AND('LASTNE FREKVENCE'!$M70<'LASTNE FREKVENCE'!$F$15,'LASTNE FREKVENCE'!$N70="2D"),'LASTNE FREKVENCE'!$M70,"ni") -> 95.29431506 | M54: =IF(AND('LASTNE FREKVENCE'!$M70<'LASTNE FREKVENCE'!$F$15,'LASTNE FREKVENCE'!$N70="2D"),1,"ni") -> 1 | X54: =IF(AND('LASTNE FREKVENCE'!$M70<'LASTNE FREKVENCE'!$F$15,'LASTNE FREKVENCE'!$N70="2D"),'LASTNE FREKVENCE'!$M70,"ni") -> 95.29431506 | Y54: =IF(AND('LASTNE FREKVENCE'!$M70<'LASTNE FREKVENCE'!$F$15,'LASTNE FREKVENCE'!$N70="2D"),1,"ni") -> 1
B55: =IF(AND('LASTNE FREKVENCE'!$M57<'LASTNE FREKVENCE'!$F$15,'LASTNE FREKVENCE'!$N57="1D"),'LASTNE FREKVENCE'!$M57,"ni") -> ni | C55: =IF(AND('LASTNE FREKVENCE'!$M57<'LASTNE FREKVENCE'!$F$15,'LASTNE FREKVENCE'!$N57="1D"),1,"ni") -> ni | D55: =IF(AND('LASTNE FREKVENCE'!$M57<'LASTNE FREKVENCE'!$F$15,'LASTNE FREKVENCE'!$N57="2D"),'LASTNE FREKVENCE'!$M57,"ni") -> 75.94038922 | E55: =IF(AND('LASTNE FREKVENCE'!$M57<'LASTNE FREKVENCE'!$F$15,'LASTNE FREKVENCE'!$N57="2D"),1,"ni") -> 1 | F55: =IF(AND('LASTNE FREKVENCE'!$M57<'LASTNE FREKVENCE'!$F$15,'LASTNE FREKVENCE'!$N57="3D"),'LASTNE FREKVENCE'!$M57,"ni") -> ni | G55: =IF(AND('LASTNE FREKVENCE'!$M57<'LASTNE FREKVENCE'!$F$15,'LASTNE FREKVENCE'!$N57="3D"),1,"ni") -> ni | L55: =IF(AND('LASTNE FREKVENCE'!$M71<'LASTNE FREKVENCE'!$F$15,'LASTNE FREKVENCE'!$N71="2D"),'LASTNE FREKVENCE'!$M71,"ni") -> 96.09840023 | M55: =IF(AND('LASTNE FREKVENCE'!$M71<'LASTNE FREKVENCE'!$F$15,'LASTNE FREKVENCE'!$N71="2D"),1,"ni") -> 1 | X55: =IF(AND('LASTNE FREKVENCE'!$M71<'LASTNE FREKVENCE'!$F$15,'LASTNE FREKVENCE'!$N71="2D"),'LASTNE FREKVENCE'!$M71,"ni") -> 96.09840023 | Y55: =IF(AND('LASTNE FREKVENCE'!$M71<'LASTNE FREKVENCE'!$F$15,'LASTNE FREKVENCE'!$N71="2D"),1,"ni") -> 1
B56: =IF(AND('LASTNE FREKVENCE'!$M58<'LASTNE FREKVENCE'!$F$15,'LASTNE FREKVENCE'!$N58="1D"),'LASTNE FREKVENCE'!$M58,"ni") -> ni | C56: =IF(AND('LASTNE FREKVENCE'!$M58<'LASTNE FREKVENCE'!$F$15,'LASTNE FREKVENCE'!$N58="1D"),1,"ni") -> ni | D56: =IF(AND('LASTNE FREKVENCE'!$M58<'LASTNE FREKVENCE'!$F$15,'LASTNE FREKVENCE'!$N58="2D"),'LASTNE FREKVENCE'!$M58,"ni") -> 76.71132853 | E56: =IF(AND('LASTNE FREKVENCE'!$M58<'LASTNE FREKVENCE'!$F$15,'LASTNE FREKVENCE'!$N58="2D"),1,"ni") -> 1 | F56: =IF(AND('LASTNE FREKVENCE'!$M58<'LASTNE FREKVENCE'!$F$15,'LASTNE FREKVENCE'!$N58="3D"),'LASTNE FREKVENCE'!$M58,"ni") -> ni | G56: =IF(AND('LASTNE FREKVENCE'!$M58<'LASTNE FREKVENCE'!$F$15,'LASTNE FREKVENCE'!$N58="3D"),1,"ni") -> ni | L56: =IF(AND('LASTNE FREKVENCE'!$M129<'LASTNE FREKVENCE'!$F$15,'LASTNE FREKVENCE'!$N129="2D"),'LASTNE FREKVENCE'!$M129,"ni") -> 53.67814031 | M56: =IF(AND('LASTNE FREKVENCE'!$M129<'LASTNE FREKVENCE'!$F$15,'LASTNE FREKVENCE'!$N129="2D"),1,"ni") -> 1 | X56: =IF(AND('LASTNE FREKVENCE'!$M129<'LASTNE FREKVENCE'!$F$15,'LASTNE FREKVENCE'!$N129="2D"),'LASTNE FREKVENCE'!$M129,"ni") -> 53.67814031 | Y56: =IF(AND('LASTNE FREKVENCE'!$M129<'LASTNE FREKVENCE'!$F$15,'LASTNE FREKVENCE'!$N129="2D"),1,"ni") -> 1
B57: =IF(AND('LASTNE FREKVENCE'!$M59<'LASTNE FREKVENCE'!$F$15,'LASTNE FREKVENCE'!$N59="1D"),'LASTNE FREKVENCE'!$M59,"ni") -> ni | C57: =IF(AND('LASTNE FREKVENCE'!$M59<'LASTNE FREKVENCE'!$F$15,'LASTNE FREKVENCE'!$N59="1D"),1,"ni") -> ni | D57: =IF(AND('LASTNE FREKVENCE'!$M59<'LASTNE FREKVENCE'!$F$15,'LASTNE FREKVENCE'!$N59="2D"),'LASTNE FREKVENCE'!$M59,"ni") -> 77.59135618 | E57: =IF(AND('LASTNE FREKVENCE'!$M59<'LASTNE FREKVENCE'!$F$15,'LASTNE FREKVENCE'!$N59="2D"),1,"ni") -> 1 | F57: =IF(AND('LASTNE FREKVENCE'!$M59<'LASTNE FREKVENCE'!$F$15,'LASTNE FREKVENCE'!$N59="3D"),'LASTNE FREKVENCE'!$M59,"ni") -> ni | G57: =IF(AND('LASTNE FREKVENCE'!$M59<'LASTNE FREKVENCE'!$F$15,'LASTNE FREKVENCE'!$N59="3D"),1,"ni") -> ni | L57: =IF(AND('LASTNE FREKVENCE'!$M130<'LASTNE FREKVENCE'!$F$15,'LASTNE FREKVENCE'!$N130="2D"),'LASTNE FREKVENCE'!$M130,"ni") -> 53.93051894 | M57: =IF(AND('LASTNE FREKVENCE'!$M130<'LASTNE FREKVENCE'!$F$15,'LASTNE FREKVENCE'!$N130="2D"),1,"ni") -> 1 | X57: =IF(AND('LASTNE FREKVENCE'!$M130<'LASTNE FREKVENCE'!$F$15,'LASTNE FREKVENCE'!$N130="2D"),'LASTNE FREKVENCE'!$M130,"ni") -> 53.93051894 | Y57: =IF(AND('LASTNE FREKVENCE'!$M130<'LASTNE FREKVENCE'!$F$15,'LASTNE FREKVENCE'!$N130="2D"),1,"ni") -> 1
B58: =IF(AND('LASTNE FREKVENCE'!$M60<'LASTNE FREKVENCE'!$F$15,'LASTNE FREKVENCE'!$N60="1D"),'LASTNE FREKVENCE'!$M60,"ni") -> ni | C58: =IF(AND('LASTNE FREKVENCE'!$M60<'LASTNE FREKVENCE'!$F$15,'LASTNE FREKVENCE'!$N60="1D"),1,"ni") -> ni | D58: =IF(AND('LASTNE FREKVENCE'!$M60<'LASTNE FREKVENCE'!$F$15,'LASTNE FREKVENCE'!$N60="2D"),'LASTNE FREKVENCE'!$M60,"ni") -> 78.576807 | E58: =IF(AND('LASTNE FREKVENCE'!$M60<'LASTNE FREKVENCE'!$F$15,'LASTNE FREKVENCE'!$N60="2D"),1,"ni") -> 1 | F58: =IF(AND('LASTNE FREKVENCE'!$M60<'LASTNE FREKVENCE'!$F$15,'LASTNE FREKVENCE'!$N60="3D"),'LASTNE FREKVENCE'!$M60,"ni") -> ni | G58: =IF(AND('LASTNE FREKVENCE'!$M60<'LASTNE FREKVENCE'!$F$15,'LASTNE FREKVENCE'!$N60="3D"),1,"ni") -> ni | L58: =IF(AND('LASTNE FREKVENCE'!$M131<'LASTNE FREKVENCE'!$F$15,'LASTNE FREKVENCE'!$N131="2D"),'LASTNE FREKVENCE'!$M131,"ni") -> 54.34854566 | M58: =IF(AND('LASTNE FREKVENCE'!$M131<'LASTNE FREKVENCE'!$F$15,'LASTNE FREKVENCE'!$N131="2D"),1,"ni") -> 1 | X58: =IF(AND('LASTNE FREKVENCE'!$M131<'LASTNE FREKVENCE'!$F$15,'LASTNE FREKVENCE'!$N131="2D"),'LASTNE FREKVENCE'!$M131,"ni") -> 54.34854566 | Y58: =IF(AND('LASTNE FREKVENCE'!$M131<'LASTNE FREKVENCE'!$F$15,'LASTNE FREKVENCE'!$N131="2D"),1,"ni") -> 1
B59: =IF(AND('LASTNE FREKVENCE'!$M61<'LASTNE FREKVENCE'!$F$15,'LASTNE FREKVENCE'!$N61="1D"),'LASTNE FREKVENCE'!$M61,"ni") -> ni | C59: =IF(AND('LASTNE FREKVENCE'!$M61<'LASTNE FREKVENCE'!$F$15,'LASTNE FREKVENCE'!$N61="1D"),1,"ni") -> ni | D59: =IF(AND('LASTNE FREKVENCE'!$M61<'LASTNE FREKVENCE'!$F$15,'LASTNE FREKVENCE'!$N61="2D"),'LASTNE FREKVENCE'!$M61,"ni") -> 96.98919522 | E59: =IF(AND('LASTNE FREKVENCE'!$M61<'LASTNE FREKVENCE'!$F$15,'LASTNE FREKVENCE'!$N61="2D"),1,"ni") -> 1 | F59: =IF(AND('LASTNE FREKVENCE'!$M61<'LASTNE FREKVENCE'!$F$15,'LASTNE FREKVENCE'!$N61="3D"),'LASTNE FREKVENCE'!$M61,"ni") -> ni | G59: =IF(AND('LASTNE FREKVENCE'!$M61<'LASTNE FREKVENCE'!$F$15,'LASTNE FREKVENCE'!$N61="3D"),1,"ni") -> ni | L59: =IF(AND('LASTNE FREKVENCE'!$M132<'LASTNE FREKVENCE'!$F$15,'LASTNE FREKVENCE'!$N132="2D"),'LASTNE FREKVENCE'!$M132,"ni") -> 54.92843868 | M59: =IF(AND('LASTNE FREKVENCE'!$M132<'LASTNE FREKVENCE'!$F$15,'LASTNE FREKVENCE'!$N132="2D"),1,"ni") -> 1 | X59: =IF(AND('LASTNE FREKVENCE'!$M132<'LASTNE FREKVENCE'!$F$15,'LASTNE FREKVENCE'!$N132="2D"),'LASTNE FREKVENCE'!$M132,"ni") -> 54.92843868 | Y59: =IF(AND('LASTNE FREKVENCE'!$M132<'LASTNE FREKVENCE'!$F$15,'LASTNE FREKVENCE'!$N132="2D"),1,"ni") -> 1
B60: =IF(AND('LASTNE FREKVENCE'!$M62<'LASTNE FREKVENCE'!$F$15,'LASTNE FREKVENCE'!$N62="1D"),'LASTNE FREKVENCE'!$M62,"ni") -> 92.20430108 | C60: =IF(AND('LASTNE FREKVENCE'!$M62<'LASTNE FREKVENCE'!$F$15,'LASTNE FREKVENCE'!$N62="1D"),1,"ni") -> 1 | D60: =IF(AND('LASTNE FREKVENCE'!$M62<'LASTNE FREKVENCE'!$F$15,'LASTNE FREKVENCE'!$N62="2D"),'LASTNE FREKVENCE'!$M62,"ni") -> ni | E60: =IF(AND('LASTNE FREKVENCE'!$M62<'LASTNE FREKVENCE'!$F$15,'LASTNE FREKVENCE'!$N62="2D"),1,"ni") -> ni | F60: =IF(AND('LASTNE FREKVENCE'!$M62<'LASTNE FREKVENCE'!$F$15,'LASTNE FREKVENCE'!$N62="3D"),'LASTNE FREKVENCE'!$M62,"ni") -> ni | G60: =IF(AND('LASTNE FREKVENCE'!$M62<'LASTNE FREKVENCE'!$F$15,'LASTNE FREKVENCE'!$N62="3D"),1,"ni") -> ni | L60: =IF(AND('LASTNE FREKVENCE'!$M133<'LASTNE FREKVENCE'!$F$15,'LASTNE FREKVENCE'!$N133="2D"),'LASTNE FREKVENCE'!$M133,"ni") -> 55.66513947 | M60: =IF(AND('LASTNE FREKVENCE'!$M133<'LASTNE FREKVENCE'!$F$15,'LASTNE FREKVENCE'!$N133="2D"),1,"ni") -> 1 | X60: =IF(AND('LASTNE FREKVENCE'!$M133<'LASTNE FREKVENCE'!$F$15,'LASTNE FREKVENCE'!$N133="2D"),'LASTNE FREKVENCE'!$M133,"ni") -> 55.66513947 | Y60: =IF(AND('LASTNE FREKVENCE'!$M133<'LASTNE FREKVENCE'!$F$15,'LASTNE FREKVENCE'!$N133="2D"),1,"ni") -> 1
B61: =IF(AND('LASTNE FREKVENCE'!$M63<'LASTNE FREKVENCE'!$F$15,'LASTNE FREKVENCE'!$N63="1D"),'LASTNE FREKVENCE'!$M63,"ni") -> ni | C61: =IF(AND('LASTNE FREKVENCE'!$M63<'LASTNE FREKVENCE'!$F$15,'LASTNE FREKVENCE'!$N63="1D"),1,"ni") -> ni | D61: =IF(AND('LASTNE FREKVENCE'!$M63<'LASTNE FREKVENCE'!$F$15,'LASTNE FREKVENCE'!$N63="2D"),'LASTNE FREKVENCE'!$M63,"ni") -> 92.2533785 | E61: =IF(AND('LASTNE FREKVENCE'!$M63<'LASTNE FREKVENCE'!$F$15,'LASTNE FREKVENCE'!$N63="2D"),1,"ni") -> 1 | F61: =IF(AND('LASTNE FREKVENCE'!$M63<'LASTNE FREKVENCE'!$F$15,'LASTNE FREKVENCE'!$N63="3D"),'LASTNE FREKVENCE'!$M63,"ni") -> ni | G61: =IF(AND('LASTNE FREKVENCE'!$M63<'LASTNE FREKVENCE'!$F$15,'LASTNE FREKVENCE'!$N63="3D"),1,"ni") -> ni | L61: =IF(AND('LASTNE FREKVENCE'!$M134<'LASTNE FREKVENCE'!$F$15,'LASTNE FREKVENCE'!$N134="2D"),'LASTNE FREKVENCE'!$M134,"ni") -> 56.55252024 | M61: =IF(AND('LASTNE FREKVENCE'!$M134<'LASTNE FREKVENCE'!$F$15,'LASTNE FREKVENCE'!$N134="2D"),1,"ni") -> 1 | X61: =IF(AND('LASTNE FREKVENCE'!$M134<'LASTNE FREKVENCE'!$F$15,'LASTNE FREKVENCE'!$N134="2D"),'LASTNE FREKVENCE'!$M134,"ni") -> 56.55252024 | Y61: =IF(AND('LASTNE FREKVENCE'!$M134<'LASTNE FREKVENCE'!$F$15,'LASTNE FREKVENCE'!$N134="2D"),1,"ni") -> 1
B62: =IF(AND('LASTNE FREKVENCE'!$M64<'LASTNE FREKVENCE'!$F$15,'LASTNE FREKVENCE'!$N64="1D"),'LASTNE FREKVENCE'!$M64,"ni") -> ni | C62: =IF(AND('LASTNE FREKVENCE'!$M64<'LASTNE FREKVENCE'!$F$15,'LASTNE FREKVENCE'!$N64="1D"),1,"ni") -> ni | D62: =IF(AND('LASTNE FREKVENCE'!$M64<'LASTNE FREKVENCE'!$F$15,'LASTNE FREKVENCE'!$N64="2D"),'LASTNE FREKVENCE'!$M64,"ni") -> 92.40045439 | E62: =IF(AND('LASTNE FREKVENCE'!$M64<'LASTNE FREKVENCE'!$F$15,'LASTNE FREKVENCE'!$N64="2D"),1,"ni") -> 1 | F62: =IF(AND('LASTNE FREKVENCE'!$M64<'LASTNE FREKVENCE'!$F$15,'LASTNE FREKVENCE'!$N64="3D"),'LASTNE FREKVENCE'!$M64,"ni") -> ni | G62: =IF(AND('LASTNE FREKVENCE'!$M64<'LASTNE FREKVENCE'!$F$15,'LASTNE FREKVENCE'!$N64="3D"),1,"ni") -> ni | L62: =IF(AND('LASTNE FREKVENCE'!$M135<'LASTNE FREKVENCE'!$F$15,'LASTNE FREKVENCE'!$N135="2D"),'LASTNE FREKVENCE'!$M135,"ni") -> 57.58361535 | M62: =IF(AND('LASTNE FREKVENCE'!$M135<'LASTNE FREKVENCE'!$F$15,'LASTNE FREKVENCE'!$N135="2D"),1,"ni") -> 1 | X62: =IF(AND('LASTNE FREKVENCE'!$M135<'LASTNE FREKVENCE'!$F$15,'LASTNE FREKVENCE'!$N135="2D"),'LASTNE FREKVENCE'!$M135,"ni") -> 57.58361535 | Y62: =IF(AND('LASTNE FREKVENCE'!$M135<'LASTNE FREKVENCE'!$F$15,'LASTNE FREKVENCE'!$N135="2D"),1,"ni") -> 1
B63: =IF(AND('LASTNE FREKVENCE'!$M65<'LASTNE FREKVENCE'!$F$15,'LASTNE FREKVENCE'!$N65="1D"),'LASTNE FREKVENCE'!$M65,"ni") -> ni | C63: =IF(AND('LASTNE FREKVENCE'!$M65<'LASTNE FREKVENCE'!$F$15,'LASTNE FREKVENCE'!$N65="1D"),1,"ni") -> ni | D63: =IF(AND('LASTNE FREKVENCE'!$M65<'LASTNE FREKVENCE'!$F$15,'LASTNE FREKVENCE'!$N65="2D"),'LASTNE FREKVENCE'!$M65,"ni") -> 92.645062 | E63: =IF(AND('LASTNE FREKVENCE'!$M65<'LASTNE FREKVENCE'!$F$15,'LASTNE FREKVENCE'!$N65="2D"),1,"ni") -> 1 | F63: =IF(AND('LASTNE FREKVENCE'!$M65<'LASTNE FREKVENCE'!$F$15,'LASTNE FREKVENCE'!$N65="3D"),'LASTNE FREKVENCE'!$M65,"ni") -> ni | G63: =IF(AND('LASTNE FREKVENCE'!$M65<'LASTNE FREKVENCE'!$F$15,'LASTNE FREKVENCE'!$N65="3D"),1,"ni") -> ni | L63: =IF(AND('LASTNE FREKVENCE'!$M136<'LASTNE FREKVENCE'!$F$15,'LASTNE FREKVENCE'!$N136="2D"),'LASTNE FREKVENCE'!$M136,"ni") -> 58.75085859 | M63: =IF(AND('LASTNE FREKVENCE'!$M136<'LASTNE FREKVENCE'!$F$15,'LASTNE FREKVENCE'!$N136="2D"),1,"ni") -> 1 | X63: =IF(AND('LASTNE FREKVENCE'!$M136<'LASTNE FREKVENCE'!$F$15,'LASTNE FREKVENCE'!$N136="2D"),'LASTNE FREKVENCE'!$M136,"ni") -> 58.75085859 | Y63: =IF(AND('LASTNE FREKVENCE'!$M136<'LASTNE FREKVENCE'!$F$15,'LASTNE FREKVENCE'!$N136="2D"),1,"ni") -> 1
B64: =IF(AND('LASTNE FREKVENCE'!$M66<'LASTNE FREKVENCE'!$F$15,'LASTNE FREKVENCE'!$N66="1D"),'LASTNE FREKVENCE'!$M66,"ni") -> ni | C64: =IF(AND('LASTNE FREKVENCE'!$M66<'LASTNE FREKVENCE'!$F$15,'LASTNE FREKVENCE'!$N66="1D"),1,"ni") -> ni | D64: =IF(AND('LASTNE FREKVENCE'!$M66<'LASTNE FREKVENCE'!$F$15,'LASTNE FREKVENCE'!$N66="2D"),'LASTNE FREKVENCE'!$M66,"ni") -> 92.98643166 | E64: =IF(AND('LASTNE FREKVENCE'!$M66<'LASTNE FREKVENCE'!$F$15,'LASTNE FREKVENCE'!$N66="2D"),1,"ni") -> 1 | F64: =IF(AND('LASTNE FREKVENCE'!$M66<'LASTNE FREKVENCE'!$F$15,'LASTNE FREKVENCE'!$N66="3D"),'LASTNE FREKVENCE'!$M66,"ni") -> ni | G64: =IF(AND('LASTNE FREKVENCE'!$M66<'LASTNE FREKVENCE'!$F$15,'LASTNE FREKVENCE'!$N66="3D"),1,"ni") -> ni | L64: =IF(AND('LASTNE FREKVENCE'!$M137<'LASTNE FREKVENCE'!$F$15,'LASTNE FREKVENCE'!$N137="2D"),'LASTNE FREKVENCE'!$M137,"ni") -> 60.04631071 | M64: =IF(AND('LASTNE FREKVENCE'!$M137<'LASTNE FREKVENCE'!$F$15,'LASTNE FREKVENCE'!$N137="2D"),1,"ni") -> 1 | X64: =IF(AND('LASTNE FREKVENCE'!$M137<'LASTNE FREKVENCE'!$F$15,'LASTNE FREKVENCE'!$N137="2D"),'LASTNE FREKVENCE'!$M137,"ni") -> 60.04631071 | Y64: =IF(AND('LASTNE FREKVENCE'!$M137<'LASTNE FREKVENCE'!$F$15,'LASTNE FREKVENCE'!$N137="2D"),1,"ni") -> 1
B65: =IF(AND('LASTNE FREKVENCE'!$M67<'LASTNE FREKVENCE'!$F$15,'LASTNE FREKVENCE'!$N67="1D"),'LASTNE FREKVENCE'!$M67,"ni") -> ni | C65: =IF(AND('LASTNE FREKVENCE'!$M67<'LASTNE FREKVENCE'!$F$15,'LASTNE FREKVENCE'!$N67="1D"),1,"ni") -> ni | D65: =IF(AND('LASTNE FREKVENCE'!$M67<'LASTNE FREKVENCE'!$F$15,'LASTNE FREKVENCE'!$N67="2D"),'LASTNE FREKVENCE'!$M67,"ni") -> 93.42350266 | E65: =IF(AND('LASTNE FREKVENCE'!$M67<'LASTNE FREKVENCE'!$F$15,'LASTNE FREKVENCE'!$N67="2D"),1,"ni") -> 1 | F65: =IF(AND('LASTNE FREKVENCE'!$M67<'LASTNE FREKVENCE'!$F$15,'LASTNE FREKVENCE'!$N67="3D"),'LASTNE FREKVENCE'!$M67,"ni") -> ni | G65: =IF(AND('LASTNE FREKVENCE'!$M67<'LASTNE FREKVENCE'!$F$15,'LASTNE FREKVENCE'!$N67="3D"),1,"ni") -> ni | L65: =IF(AND('LASTNE FREKVENCE'!$M139<'LASTNE FREKVENCE'!$F$15,'LASTNE FREKVENCE'!$N139="2D"),'LASTNE FREKVENCE'!$M139,"ni") -> 56.67764431 | M65: =IF(AND('LASTNE FREKVENCE'!$M139<'LASTNE FREKVENCE'!$F$15,'LASTNE FREKVENCE'!$N139="2D"),1,"ni") -> 1 | X65: =IF(AND('LASTNE FREKVENCE'!$M139<'LASTNE FREKVENCE'!$F$15,'LASTNE FREKVENCE'!$N139="2D"),'LASTNE FREKVENCE'!$M139,"ni") -> 56.67764431 | Y65: =IF(AND('LASTNE FREKVENCE'!$M139<'LASTNE FREKVENCE'!$F$15,'LASTNE FREKVENCE'!$N139="2D"),1,"ni") -> 1
B66: =IF(AND('LASTNE FREKVENCE'!$M68<'LASTNE FREKVENCE'!$F$15,'LASTNE FREKVENCE'!$N68="1D"),'LASTNE FREKVENCE'!$M68,"ni") -> ni | C66: =IF(AND('LASTNE FREKVENCE'!$M68<'LASTNE FREKVENCE'!$F$15,'LASTNE FREKVENCE'!$N68="1D"),1,"ni") -> ni | D66: =IF(AND('LASTNE FREKVENCE'!$M68<'LASTNE FREKVENCE'!$F$15,'LASTNE FREKVENCE'!$N68="2D"),'LASTNE FREKVENCE'!$M68,"ni") -> 93.95493943 | E66: =IF(AND('LASTNE FREKVENCE'!$M68<'LASTNE FREKVENCE'!$F$15,'LASTNE FREKVENCE'!$N68="2D"),1,"ni") -> 1 | F66: =IF(AND('LASTNE FREKVENCE'!$M68<'LASTNE FREKVENCE'!$F$15,'LASTNE FREKVENCE'!$N68="3D"),'LASTNE FREKVENCE'!$M68,"ni") -> ni | G66: =IF(AND('LASTNE FREKVENCE'!$M68<'LASTNE FREKVENCE'!$F$15,'LASTNE FREKVENCE'!$N68="3D"),1,"ni") -> ni | L66: =IF(AND('LASTNE FREKVENCE'!$M150<'LASTNE FREKVENCE'!$F$15,'LASTNE FREKVENCE'!$N150="2D"),'LASTNE FREKVENCE'!$M150,"ni") -> 65.05806131 | M66: =IF(AND('LASTNE FREKVENCE'!$M150<'LASTNE FREKVENCE'!$F$15,'LASTNE FREKVENCE'!$N150="2D"),1,"ni") -> 1 | X66: =IF(AND('LASTNE FREKVENCE'!$M150<'LASTNE FREKVENCE'!$F$15,'LASTNE FREKVENCE'!$N150="2D"),'LASTNE FREKVENCE'!$M150,"ni") -> 65.05806131 | Y66: =IF(AND('LASTNE FREKVENCE'!$M150<'LASTNE FREKVENCE'!$F$15,'LASTNE FREKVENCE'!$N150="2D"),1,"ni") -> 1
B67: =IF(AND('LASTNE FREKVENCE'!$M69<'LASTNE FREKVENCE'!$F$15,'LASTNE FREKVENCE'!$N69="1D"),'LASTNE FREKVENCE'!$M69,"ni") -> ni | C67: =IF(AND('LASTNE FREKVENCE'!$M69<'LASTNE FREKVENCE'!$F$15,'LASTNE FREKVENCE'!$N69="1D"),1,"ni") -> ni | D67: =IF(AND('LASTNE FREKVENCE'!$M69<'LASTNE FREKVENCE'!$F$15,'LASTNE FREKVENCE'!$N69="2D"),'LASTNE FREKVENCE'!$M69,"ni") -> 94.57915127 | E67: =IF(AND('LASTNE FREKVENCE'!$M69<'LASTNE FREKVENCE'!$F$15,'LASTNE FREKVENCE'!$N69="2D"),1,"ni") -> 1 | F67: =IF(AND('LASTNE FREKVENCE'!$M69<'LASTNE FREKVENCE'!$F$15,'LASTNE FREKVENCE'!$N69="3D"),'LASTNE FREKVENCE'!$M69,"ni") -> ni | G67: =IF(AND('LASTNE FREKVENCE'!$M69<'LASTNE FREKVENCE'!$F$15,'LASTNE FREKVENCE'!$N69="3D"),1,"ni") -> ni | L67: =IF(AND('LASTNE FREKVENCE'!$M161<'LASTNE FREKVENCE'!$F$15,'LASTNE FREKVENCE'!$N161="2D"),'LASTNE FREKVENCE'!$M161,"ni") -> 77.0251775 | M67: =IF(AND('LASTNE FREKVENCE'!$M161<'LASTNE FREKVENCE'!$F$15,'LASTNE FREKVENCE'!$N161="2D"),1,"ni") -> 1 | X67: =IF(AND('LASTNE FREKVENCE'!$M161<'LASTNE FREKVENCE'!$F$15,'LASTNE FREKVENCE'!$N161="2D"),'LASTNE FREKVENCE'!$M161,"ni") -> 77.0251775 | Y67: =IF(AND('LASTNE FREKVENCE'!$M161<'LASTNE FREKVENCE'!$F$15,'LASTNE FREKVENCE'!$N161="2D"),1,"ni") -> 1
B68: =IF(AND('LASTNE FREKVENCE'!$M70<'LASTNE FREKVENCE'!$F$15,'LASTNE FREKVENCE'!$N70="1D"),'LASTNE FREKVENCE'!$M70,"ni") -> ni | C68: =IF(AND('LASTNE FREKVENCE'!$M70<'LASTNE FREKVENCE'!$F$15,'LASTNE FREKVENCE'!$N70="1D"),1,"ni") -> ni | D68: =IF(AND('LASTNE FREKVENCE'!$M70<'LASTNE FREKVENCE'!$F$15,'LASTNE FREKVENCE'!$N70="2D"),'LASTNE FREKVENCE'!$M70,"ni") -> 95.29431506 | E68: =IF(AND('LASTNE FREKVENCE'!$M70<'LASTNE FREKVENCE'!$F$15,'LASTNE FREKVENCE'!$N70="2D"),1,"ni") -> 1 | F68: =IF(AND('LASTNE FREKVENCE'!$M70<'LASTNE FREKVENCE'!$F$15,'LASTNE FREKVENCE'!$N70="3D"),'LASTNE FREKVENCE'!$M70,"ni") -> ni | G68: =IF(AND('LASTNE FREKVENCE'!$M70<'LASTNE FREKVENCE'!$F$15,'LASTNE FREKVENCE'!$N70="3D"),1,"ni") -> ni | L68: =IF(AND('LASTNE FREKVENCE'!$M172<'LASTNE FREKVENCE'!$F$15,'LASTNE FREKVENCE'!$N172="2D"),'LASTNE FREKVENCE'!$M172,"ni") -> 91.17749309 | M68: =IF(AND('LASTNE FREKVENCE'!$M172<'LASTNE FREKVENCE'!$F$15,'LASTNE FREKVENCE'!$N172="2D"),1,"ni") -> 1 | X68: =IF(AND('LASTNE FREKVENCE'!$M172<'LASTNE FREKVENCE'!$F$15,'LASTNE FREKVENCE'!$N172="2D"),'LASTNE FREKVENCE'!$M172,"ni") -> 91.17749309 | Y68: =IF(AND('LASTNE FREKVENCE'!$M172<'LASTNE FREKVENCE'!$F$15,'LASTNE FREKVENCE'!$N172="2D"),1,"ni") -> 1
B69: =IF(AND('LASTNE FREKVENCE'!$M71<'LASTNE FREKVENCE'!$F$15,'LASTNE FREKVENCE'!$N71="1D"),'LASTNE FREKVENCE'!$M71,"ni") -> ni | C69: =IF(AND('LASTNE FREKVENCE'!$M71<'LASTNE FREKVENCE'!$F$15,'LASTNE FREKVENCE'!$N71="1D"),1,"ni") -> ni | D69: =IF(AND('LASTNE FREKVENCE'!$M71<'LASTNE FREKVENCE'!$F$15,'LASTNE FREKVENCE'!$N71="2D"),'LASTNE FREKVENCE'!$M71,"ni") -> 96.09840023 | E69: =IF(AND('LASTNE FREKVENCE'!$M71<'LASTNE FREKVENCE'!$F$15,'LASTNE FREKVENCE'!$N71="2D"),1,"ni") -> 1 | F69: =IF(AND('LASTNE FREKVENCE'!$M71<'LASTNE FREKVENCE'!$F$15,'LASTNE FREKVENCE'!$N71="3D"),'LASTNE FREKVENCE'!$M71,"ni") -> ni | G69: =IF(AND('LASTNE FREKVENCE'!$M71<'LASTNE FREKVENCE'!$F$15,'LASTNE FREKVENCE'!$N71="3D"),1,"ni") -> ni | L69: =IF(AND('LASTNE FREKVENCE'!$M248<'LASTNE FREKVENCE'!$F$15,'LASTNE FREKVENCE'!$N248="2D"),'LASTNE FREKVENCE'!$M248,"ni") -> 61.46186534 | M69: =IF(AND('LASTNE FREKVENCE'!$M248<'LASTNE FREKVENCE'!$F$15,'LASTNE FREKVENCE'!$N248="2D"),1,"ni") -> 1 | X69: =IF(AND('LASTNE FREKVENCE'!$M248<'LASTNE FREKVENCE'!$F$15,'LASTNE FREKVENCE'!$N248="2D"),'LASTNE FREKVENCE'!$M248,"ni") -> 61.46186534 | Y69: =IF(AND('LASTNE FREKVENCE'!$M248<'LASTNE FREKVENCE'!$F$15,'LASTNE FREKVENCE'!$N248="2D"),1,"ni") -> 1
B70: =IF(AND('LASTNE FREKVENCE'!$M72<'LASTNE FREKVENCE'!$F$15,'LASTNE FREKVENCE'!$N72="1D"),'LASTNE FREKVENCE'!$M72,"ni") -> ni | C70: =IF(AND('LASTNE FREKVENCE'!$M72<'LASTNE FREKVENCE'!$F$15,'LASTNE FREKVENCE'!$N72="1D"),1,"ni") -> ni | D70: =IF(AND('LASTNE FREKVENCE'!$M72<'LASTNE FREKVENCE'!$F$15,'LASTNE FREKVENCE'!$N72="2D"),'LASTNE FREKVENCE'!$M72,"ni") -> 114.6630829 | E70: =IF(AND('LASTNE FREKVENCE'!$M72<'LASTNE FREKVENCE'!$F$15,'LASTNE FREKVENCE'!$N72="2D"),1,"ni") -> 1 | F70: =IF(AND('LASTNE FREKVENCE'!$M72<'LASTNE FREKVENCE'!$F$15,'LASTNE FREKVENCE'!$N72="3D"),'LASTNE FREKVENCE'!$M72,"ni") -> ni | G70: =IF(AND('LASTNE FREKVENCE'!$M72<'LASTNE FREKVENCE'!$F$15,'LASTNE FREKVENCE'!$N72="3D"),1,"ni") -> ni
B71: =IF(AND('LASTNE FREKVENCE'!$M73<'LASTNE FREKVENCE'!$F$15,'LASTNE FREKVENCE'!$N73="1D"),'LASTNE FREKVENCE'!$M73,"ni") -> 110.6451613 | C71: =IF(AND('LASTNE FREKVENCE'!$M73<'LASTNE FREKVENCE'!$F$15,'LASTNE FREKVENCE'!$N73="1D"),1,"ni") -> 1 | D71: =IF(AND('LASTNE FREKVENCE'!$M73<'LASTNE FREKVENCE'!$F$15,'LASTNE FREKVENCE'!$N73="2D"),'LASTNE FREKVENCE'!$M73,"ni") -> ni | E71: =IF(AND('LASTNE FREKVENCE'!$M73<'LASTNE FREKVENCE'!$F$15,'LASTNE FREKVENCE'!$N73="2D"),1,"ni") -> ni | F71: =IF(AND('LASTNE FREKVENCE'!$M73<'LASTNE FREKVENCE'!$F$15,'LASTNE FREKVENCE'!$N73="3D"),'LASTNE FREKVENCE'!$M73,"ni") -> ni | G71: =IF(AND('LASTNE FREKVENCE'!$M73<'LASTNE FREKVENCE'!$F$15,'LASTNE FREKVENCE'!$N73="3D"),1,"ni") -> ni
B72: =IF(AND('LASTNE FREKVENCE'!$M74<'LASTNE FREKVENCE'!$F$15,'LASTNE FREKVENCE'!$N74="1D"),'LASTNE FREKVENCE'!$M74,"ni") -> ni | C72: =IF(AND('LASTNE FREKVENCE'!$M74<'LASTNE FREKVENCE'!$F$15,'LASTNE FREKVENCE'!$N74="1D"),1,"ni") -> ni | D72: =IF(AND('LASTNE FREKVENCE'!$M74<'LASTNE FREKVENCE'!$F$15,'LASTNE FREKVENCE'!$N74="2D"),'LASTNE FREKVENCE'!$M74,"ni") -> 110.6860625 | E72: =IF(AND('LASTNE FREKVENCE'!$M74<'LASTNE FREKVENCE'!$F$15,'LASTNE FREKVENCE'!$N74="2D"),1,"ni") -> 1 | F72: =IF(AND('LASTNE FREKVENCE'!$M74<'LASTNE FREKVENCE'!$F$15,'LASTNE FREKVENCE'!$N74="3D"),'LASTNE FREKVENCE'!$M74,"ni") -> ni | G72: =IF(AND('LASTNE FREKVENCE'!$M74<'LASTNE FREKVENCE'!$F$15,'LASTNE FREKVENCE'!$N74="3D"),1,"ni") -> ni
B73: =IF(AND('LASTNE FREKVENCE'!$M75<'LASTNE FREKVENCE'!$F$15,'LASTNE FREKVENCE'!$N75="1D"),'LASTNE FREKVENCE'!$M75,"ni") -> ni | C73: =IF(AND('LASTNE FREKVENCE'!$M75<'LASTNE FREKVENCE'!$F$15,'LASTNE FREKVENCE'!$N75="1D"),1,"ni") -> ni | D73: =IF(AND('LASTNE FREKVENCE'!$M75<'LASTNE FREKVENCE'!$F$15,'LASTNE FREKVENCE'!$N75="2D"),'LASTNE FREKVENCE'!$M75,"ni") -> 110.8086754 | E73: =IF(AND('LASTNE FREKVENCE'!$M75<'LASTNE FREKVENCE'!$F$15,'LASTNE FREKVENCE'!$N75="2D"),1,"ni") -> 1 | F73: =IF(AND('LASTNE FREKVENCE'!$M75<'LASTNE FREKVENCE'!$F$15,'LASTNE FREKVENCE'!$N75="3D"),'LASTNE FREKVENCE'!$M75,"ni") -> ni | G73: =IF(AND('LASTNE FREKVENCE'!$M75<'LASTNE FREKVENCE'!$F$15,'LASTNE FREKVENCE'!$N75="3D"),1,"ni") -> ni
B74: =IF(AND('LASTNE FREKVENCE'!$M76<'LASTNE FREKVENCE'!$F$15,'LASTNE FREKVENCE'!$N76="1D"),'LASTNE FREKVENCE'!$M76,"ni") -> ni | C74: =IF(AND('LASTNE FREKVENCE'!$M76<'LASTNE FREKVENCE'!$F$15,'LASTNE FREKVENCE'!$N76="1D"),1,"ni") -> ni | D74: =IF(AND('LASTNE FREKVENCE'!$M76<'LASTNE FREKVENCE'!$F$15,'LASTNE FREKVENCE'!$N76="2D"),'LASTNE FREKVENCE'!$M76,"ni") -> 111.0127294 | E74: =IF(AND('LASTNE FREKVENCE'!$M76<'LASTNE FREKVENCE'!$F$15,'LASTNE FREKVENCE'!$N76="2D"),1,"ni") -> 1 | F74: =IF(AND('LASTNE FREKVENCE'!$M76<'LASTNE FREKVENCE'!$F$15,'LASTNE FREKVENCE'!$N76="3D"),'LASTNE FREKVENCE'!$M76,"ni") -> ni | G74: =IF(AND('LASTNE FREKVENCE'!$M76<'LASTNE FREKVENCE'!$F$15,'LASTNE FREKVENCE'!$N76="3D"),1,"ni") -> ni
B75: =IF(AND('LASTNE FREKVENCE'!$M77<'LASTNE FREKVENCE'!$F$15,'LASTNE FREKVENCE'!$N77="1D"),'LASTNE FREKVENCE'!$M77,"ni") -> ni | C75: =IF(AND('LASTNE FREKVENCE'!$M77<'LASTNE FREKVENCE'!$F$15,'LASTNE FREKVENCE'!$N77="1D"),1,"ni") -> ni | D75: =IF(AND('LASTNE FREKVENCE'!$M77<'LASTNE FREKVENCE'!$F$15,'LASTNE FREKVENCE'!$N77="2D"),'LASTNE FREKVENCE'!$M77,"ni") -> 111.2977765 | E75: =IF(AND('LASTNE FREKVENCE'!$M77<'LASTNE FREKVENCE'!$F$15,'LASTNE FREKVENCE'!$N77="2D"),1,"ni") -> 1 | F75: =IF(AND('LASTNE FREKVENCE'!$M77<'LASTNE FREKVENCE'!$F$15,'LASTNE FREKVENCE'!$N77="3D"),'LASTNE FREKVENCE'!$M77,"ni") -> ni | G75: =IF(AND('LASTNE FREKVENCE'!$M77<'LASTNE FREKVENCE'!$F$15,'LASTNE FREKVENCE'!$N77="3D"),1,"ni") -> ni
B76: =IF(AND('LASTNE FREKVENCE'!$M78<'LASTNE FREKVENCE'!$F$15,'LASTNE FREKVENCE'!$N78="1D"),'LASTNE FREKVENCE'!$M78,"ni") -> ni | C76: =IF(AND('LASTNE FREKVENCE'!$M78<'LASTNE FREKVENCE'!$F$15,'LASTNE FREKVENCE'!$N78="1D"),1,"ni") -> ni | D76: =IF(AND('LASTNE FREKVENCE'!$M78<'LASTNE FREKVENCE'!$F$15,'LASTNE FREKVENCE'!$N78="2D"),'LASTNE FREKVENCE'!$M78,"ni") -> 111.6631964 | E76: =IF(AND('LASTNE FREKVENCE'!$M78<'LASTNE FREKVENCE'!$F$15,'LASTNE FREKVENCE'!$N78="2D"),1,"ni") -> 1 | F76: =IF(AND('LASTNE FREKVENCE'!$M78<'LASTNE FREKVENCE'!$F$15,'LASTNE FREKVENCE'!$N78="3D"),'LASTNE FREKVENCE'!$M78,"ni") -> ni | G76: =IF(AND('LASTNE FREKVENCE'!$M78<'LASTNE FREKVENCE'!$F$15,'LASTNE FREKVENCE'!$N78="3D"),1,"ni") -> ni
B77: =IF(AND('LASTNE FREKVENCE'!$M79<'LASTNE FREKVENCE'!$F$15,'LASTNE FREKVENCE'!$N79="1D"),'LASTNE FREKVENCE'!$M79,"ni") -> ni | C77: =IF(AND('LASTNE FREKVENCE'!$M79<'LASTNE FREKVENCE'!$F$15,'LASTNE FREKVENCE'!$N79="1D"),1,"ni") -> ni | D77: =IF(AND('LASTNE FREKVENCE'!$M79<'LASTNE FREKVENCE'!$F$15,'LASTNE FREKVENCE'!$N79="2D"),'LASTNE FREKVENCE'!$M79,"ni") -> 112.1082032 | E77: =IF(AND('LASTNE FREKVENCE'!$M79<'LASTNE FREKVENCE'!$F$15,'LASTNE FREKVENCE'!$N79="2D"),1,"ni") -> 1 | F77: =IF(AND('LASTNE FREKVENCE'!$M79<'LASTNE FREKVENCE'!$F$15,'LASTNE FREKVENCE'!$N79="3D"),'LASTNE FREKVENCE'!$M79,"ni") -> ni | G77: =IF(AND('LASTNE FREKVENCE'!$M79<'LASTNE FREKVENCE'!$F$15,'LASTNE FREKVENCE'!$N79="3D"),1,"ni") -> ni
B78: =IF(AND('LASTNE FREKVENCE'!$M80<'LASTNE FREKVENCE'!$F$15,'LASTNE FREKVENCE'!$N80="1D"),'LASTNE FREKVENCE'!$M80,"ni") -> ni | C78: =IF(AND('LASTNE FREKVENCE'!$M80<'LASTNE FREKVENCE'!$F$15,'LASTNE FREKVENCE'!$N80="1D"),1,"ni") -> ni | D78: =IF(AND('LASTNE FREKVENCE'!$M80<'LASTNE FREKVENCE'!$F$15,'LASTNE FREKVENCE'!$N80="2D"),'LASTNE FREKVENCE'!$M80,"ni") -> 112.6318536 | E78: =IF(AND('LASTNE FREKVENCE'!$M80<'LASTNE FREKVENCE'!$F$15,'LASTNE FREKVENCE'!$N80="2D"),1,"ni") -> 1 | F78: =IF(AND('LASTNE FREKVENCE'!$M80<'LASTNE FREKVENCE'!$F$15,'LASTNE FREKVENCE'!$N80="3D"),'LASTNE FREKVENCE'!$M80,"ni") -> ni | G78: =IF(AND('LASTNE FREKVENCE'!$M80<'LASTNE FREKVENCE'!$F$15,'LASTNE FREKVENCE'!$N80="3D"),1,"ni") -> ni
B79: =IF(AND('LASTNE FREKVENCE'!$M81<'LASTNE FREKVENCE'!$F$15,'LASTNE FREKVENCE'!$N81="1D"),'LASTNE FREKVENCE'!$M81,"ni") -> ni | C79: =IF(AND('LASTNE FREKVENCE'!$M81<'LASTNE FREKVENCE'!$F$15,'LASTNE FREKVENCE'!$N81="1D"),1,"ni") -> ni | D79: =IF(AND('LASTNE FREKVENCE'!$M81<'LASTNE FREKVENCE'!$F$15,'LASTNE FREKVENCE'!$N81="2D"),'LASTNE FREKVENCE'!$M81,"ni") -> 113.2330564 | E79: =IF(AND('LASTNE FREKVENCE'!$M81<'LASTNE FREKVENCE'!$F$15,'LASTNE FREKVENCE'!$N81="2D"),1,"ni") -> 1 | F79: =IF(AND('LASTNE FREKVENCE'!$M81<'LASTNE FREKVENCE'!$F$15,'LASTNE FREKVENCE'!$N81="3D"),'LASTNE FREKVENCE'!$M81,"ni") -> ni | G79: =IF(AND('LASTNE FREKVENCE'!$M81<'LASTNE FREKVENCE'!$F$15,'LASTNE FREKVENCE'!$N81="3D"),1,"ni") -> ni
B80: =IF(AND('LASTNE FREKVENCE'!$M82<'LASTNE FREKVENCE'!$F$15,'LASTNE FREKVENCE'!$N82="1D"),'LASTNE FREKVENCE'!$M82,"ni") -> ni | C80: =IF(AND('LASTNE FREKVENCE'!$M82<'LASTNE FREKVENCE'!$F$15,'LASTNE FREKVENCE'!$N82="1D"),1,"ni") -> ni | D80: =IF(AND('LASTNE FREKVENCE'!$M82<'LASTNE FREKVENCE'!$F$15,'LASTNE FREKVENCE'!$N82="2D"),'LASTNE FREKVENCE'!$M82,"ni") -> 113.9105838 | E80: =IF(AND('LASTNE FREKVENCE'!$M82<'LASTNE FREKVENCE'!$F$15,'LASTNE FREKVENCE'!$N82="2D"),1,"ni") -> 1 | F80: =IF(AND('LASTNE FREKVENCE'!$M82<'LASTNE FREKVENCE'!$F$15,'LASTNE FREKVENCE'!$N82="3D"),'LASTNE FREKVENCE'!$M82,"ni") -> ni | G80: =IF(AND('LASTNE FREKVENCE'!$M82<'LASTNE FREKVENCE'!$F$15,'LASTNE FREKVENCE'!$N82="3D"),1,"ni") -> ni
B81: =IF(AND('LASTNE FREKVENCE'!$M83<'LASTNE FREKVENCE'!$F$15,'LASTNE FREKVENCE'!$N83="1D"),'LASTNE FREKVENCE'!$M83,"ni") -> ni | C81: =IF(AND('LASTNE FREKVENCE'!$M83<'LASTNE FREKVENCE'!$F$15,'LASTNE FREKVENCE'!$N83="1D"),1,"ni") -> ni | D81: =IF(AND('LASTNE FREKVENCE'!$M83<'LASTNE FREKVENCE'!$F$15,'LASTNE FREKVENCE'!$N83="2D"),'LASTNE FREKVENCE'!$M83,"ni") -> ni | E81: =IF(AND('LASTNE FREKVENCE'!$M83<'LASTNE FREKVENCE'!$F$15,'LASTNE FREKVENCE'!$N83="2D"),1,"ni") -> ni | F81: =IF(AND('LASTNE FREKVENCE'!$M83<'LASTNE FREKVENCE'!$F$15,'LASTNE FREKVENCE'!$N83="3D"),'LASTNE FREKVENCE'!$M83,"ni") -> ni | G81: =IF(AND('LASTNE FREKVENCE'!$M83<'LASTNE FREKVENCE'!$F$15,'LASTNE FREKVENCE'!$N83="3D"),1,"ni") -> ni
B82: =IF(AND('LASTNE FREKVENCE'!$M84<'LASTNE FREKVENCE'!$F$15,'LASTNE FREKVENCE'!$N84="1D"),'LASTNE FREKVENCE'!$M84,"ni") -> 129.0860215 | C82: =IF(AND('LASTNE FREKVENCE'!$M84<'LASTNE FREKVENCE'!$F$15,'LASTNE FREKVENCE'!$N84="1D"),1,"ni") -> 1 | D82: =IF(AND('LASTNE FREKVENCE'!$M84<'LASTNE FREKVENCE'!$F$15,'LASTNE FREKVENCE'!$N84="2D"),'LASTNE FREKVENCE'!$M84,"ni") -> ni | E82: =IF(AND('LASTNE FREKVENCE'!$M84<'LASTNE FREKVENCE'!$F$15,'LASTNE FREKVENCE'!$N84="2D"),1,"ni") -> ni | F82: =IF(AND('LASTNE FREKVENCE'!$M84<'LASTNE FREKVENCE'!$F$15,'LASTNE FREKVENCE'!$N84="3D"),'LASTNE FREKVENCE'!$M84,"ni") -> ni | G82: =IF(AND('LASTNE FREKVENCE'!$M84<'LASTNE FREKVENCE'!$F$15,'LASTNE FREKVENCE'!$N84="3D"),1,"ni") -> ni
B83: =IF(AND('LASTNE FREKVENCE'!$M85<'LASTNE FREKVENCE'!$F$15,'LASTNE FREKVENCE'!$N85="1D"),'LASTNE FREKVENCE'!$M85,"ni") -> ni | C83: =IF(AND('LASTNE FREKVENCE'!$M85<'LASTNE FREKVENCE'!$F$15,'LASTNE FREKVENCE'!$N85="1D"),1,"ni") -> ni | D83: =IF(AND('LASTNE FREKVENCE'!$M85<'LASTNE FREKVENCE'!$F$15,'LASTNE FREKVENCE'!$N85="2D"),'LASTNE FREKVENCE'!$M85,"ni") -> 129.1210814 | E83: =IF(AND('LASTNE FREKVENCE'!$M85<'LASTNE FREKVENCE'!$F$15,'LASTNE FREKVENCE'!$N85="2D"),1,"ni") -> 1 | F83: =IF(AND('LASTNE FREKVENCE'!$M85<'LASTNE FREKVENCE'!$F$15,'LASTNE FREKVENCE'!$N85="3D"),'LASTNE FREKVENCE'!$M85,"ni") -> ni | G83: =IF(AND('LASTNE FREKVENCE'!$M85<'LASTNE FREKVENCE'!$F$15,'LASTNE FREKVENCE'!$N85="3D"),1,"ni") -> ni
B84: =IF(AND('LASTNE FREKVENCE'!$M86<'LASTNE FREKVENCE'!$F$15,'LASTNE FREKVENCE'!$N86="1D"),'LASTNE FREKVENCE'!$M86,"ni") -> ni | C84: =IF(AND('LASTNE FREKVENCE'!$M86<'LASTNE FREKVENCE'!$F$15,'LASTNE FREKVENCE'!$N86="1D"),1,"ni") -> ni | D84: =IF(AND('LASTNE FREKVENCE'!$M86<'LASTNE FREKVENCE'!$F$15,'LASTNE FREKVENCE'!$N86="2D"),'LASTNE FREKVENCE'!$M86,"ni") -> 129.2262039 | E84: =IF(AND('LASTNE FREKVENCE'!$M86<'LASTNE FREKVENCE'!$F$15,'LASTNE FREKVENCE'!$N86="2D"),1,"ni") -> 1 | F84: =IF(AND('LASTNE FREKVENCE'!$M86<'LASTNE FREKVENCE'!$F$15,'LASTNE FREKVENCE'!$N86="3D"),'LASTNE FREKVENCE'!$M86,"ni") -> ni | G84: =IF(AND('LASTNE FREKVENCE'!$M86<'LASTNE FREKVENCE'!$F$15,'LASTNE FREKVENCE'!$N86="3D"),1,"ni") -> ni
B85: =IF(AND('LASTNE FREKVENCE'!$M87<'LASTNE FREKVENCE'!$F$15,'LASTNE FREKVENCE'!$N87="1D"),'LASTNE FREKVENCE'!$M87,"ni") -> ni | C85: =IF(AND('LASTNE FREKVENCE'!$M87<'LASTNE FREKVENCE'!$F$15,'LASTNE FREKVENCE'!$N87="1D"),1,"ni") -> ni | D85: =IF(AND('LASTNE FREKVENCE'!$M87<'LASTNE FREKVENCE'!$F$15,'LASTNE FREKVENCE'!$N87="2D"),'LASTNE FREKVENCE'!$M87,"ni") -> 129.4012184 | E85: =IF(AND('LASTNE FREKVENCE'!$M87<'LASTNE FREKVENCE'!$F$15,'LASTNE FREKVENCE'!$N87="2D"),1,"ni") -> 1 | F85: =IF(AND('LASTNE FREKVENCE'!$M87<'LASTNE FREKVENCE'!$F$15,'LASTNE FREKVENCE'!$N87="3D"),'LASTNE FREKVENCE'!$M87,"ni") -> ni | G85: =IF(AND('LASTNE FREKVENCE'!$M87<'LASTNE FREKVENCE'!$F$15,'LASTNE FREKVENCE'!$N87="3D"),1,"ni") -> ni
B86: =IF(AND('LASTNE FREKVENCE'!$M88<'LASTNE FREKVENCE'!$F$15,'LASTNE FREKVENCE'!$N88="1D"),'LASTNE FREKVENCE'!$M88,"ni") -> ni | C86: =IF(AND('LASTNE FREKVENCE'!$M88<'LASTNE FREKVENCE'!$F$15,'LASTNE FREKVENCE'!$N88="1D"),1,"ni") -> ni | D86: =IF(AND('LASTNE FREKVENCE'!$M88<'LASTNE FREKVENCE'!$F$15,'LASTNE FREKVENCE'!$N88="2D"),'LASTNE FREKVENCE'!$M88,"ni") -> 129.6458418 | E86: =IF(AND('LASTNE FREKVENCE'!$M88<'LASTNE FREKVENCE'!$F$15,'LASTNE FREKVENCE'!$N88="2D"),1,"ni") -> 1 | F86: =IF(AND('LASTNE FREKVENCE'!$M88<'LASTNE FREKVENCE'!$F$15,'LASTNE FREKVENCE'!$N88="3D"),'LASTNE FREKVENCE'!$M88,"ni") -> ni | G86: =IF(AND('LASTNE FREKVENCE'!$M88<'LASTNE FREKVENCE'!$F$15,'LASTNE FREKVENCE'!$N88="3D"),1,"ni") -> ni
B87: =IF(AND('LASTNE FREKVENCE'!$M89<'LASTNE FREKVENCE'!$F$15,'LASTNE FREKVENCE'!$N89="1D"),'LASTNE FREKVENCE'!$M89,"ni") -> ni | C87: =IF(AND('LASTNE FREKVENCE'!$M89<'LASTNE FREKVENCE'!$F$15,'LASTNE FREKVENCE'!$N89="1D"),1,"ni") -> ni | D87: =IF(AND('LASTNE FREKVENCE'!$M89<'LASTNE FREKVENCE'!$F$15,'LASTNE FREKVENCE'!$N89="2D"),'LASTNE FREKVENCE'!$M89,"ni") -> 129.9596809 | E87: =IF(AND('LASTNE FREKVENCE'!$M89<'LASTNE FREKVENCE'!$F$15,'LASTNE FREKVENCE'!$N89="2D"),1,"ni") -> 1 | F87: =IF(AND('LASTNE FREKVENCE'!$M89<'LASTNE FREKVENCE'!$F$15,'LASTNE FREKVENCE'!$N89="3D"),'LASTNE FREKVENCE'!$M89,"ni") -> ni | G87: =IF(AND('LASTNE FREKVENCE'!$M89<'LASTNE FREKVENCE'!$F$15,'LASTNE FREKVENCE'!$N89="3D"),1,"ni") -> ni
B88: =IF(AND('LASTNE FREKVENCE'!$M90<'LASTNE FREKVENCE'!$F$15,'LASTNE FREKVENCE'!$N90="1D"),'LASTNE FREKVENCE'!$M90,"ni") -> ni | C88: =IF(AND('LASTNE FREKVENCE'!$M90<'LASTNE FREKVENCE'!$F$15,'LASTNE FREKVENCE'!$N90="1D"),1,"ni") -> ni | D88: =IF(AND('LASTNE FREKVENCE'!$M90<'LASTNE FREKVENCE'!$F$15,'LASTNE FREKVENCE'!$N90="2D"),'LASTNE FREKVENCE'!$M90,"ni") -> 130.3422359 | E88: =IF(AND('LASTNE FREKVENCE'!$M90<'LASTNE FREKVENCE'!$F$15,'LASTNE FREKVENCE'!$N90="2D"),1,"ni") -> 1 | F88: =IF(AND('LASTNE FREKVENCE'!$M90<'LASTNE FREKVENCE'!$F$15,'LASTNE FREKVENCE'!$N90="3D"),'LASTNE FREKVENCE'!$M90,"ni") -> ni | G88: =IF(AND('LASTNE FREKVENCE'!$M90<'LASTNE FREKVENCE'!$F$15,'LASTNE FREKVENCE'!$N90="3D"),1,"ni") -> ni
